{"text_format":"1","workbook":"xlsx","n_sheets":12,"sheets":["_VARIABLES","Overview","Instructions","Cover Sheet","Lot 1","Lot 2","Lot 3","Lot 4","Lot 5","Lot 6","Named Ranges","URN List"],"not_rendered":{"charts":0,"images":1,"macros":1,"external_links":0,"defined_names":6,"comments":0,"pivot_tables":0},"unopened":[],"bounds":{"document_bytes":16777216,"sheet_cells":100000,"rows_first":2000,"rows_last":500,"rows_between":2000,"halvings":0,"cell_chars":16384,"cell_head_chars":4096},"cells_cut":0,"cells_raw":0,"read":"whole","date_system":"1900"}

{"sheet":"_VARIABLES","index":0,"n_rows":0,"n_cols":0,"rows_kept":0,"cut":false,"hidden":true,"merged":[]}

{"sheet":"Overview","index":1,"n_rows":30,"n_cols":7,"rows_kept":30,"cut":false,"hidden":false,"merged":[[21,1,26,6],[6,2,6,6]]}
[]
[]
[]
[]
[]
[]
[null,null,"For Authority use only. "]
[]
[null,null,"Hours Worked","Number of Contracting Authorities","Number of Contracting Authorities On URN list","Threshold Reached?","Within 1 year?"]
[null,"Lot 1",{"$f":"SUM('Lot 1'!$L$12:$L$41)","v":0},{"$f":"SUM('Lot 1'!$A$12:$A$41)","v":0},{"$f":"COUNTIF('Lot 1'!$B$12:$B$41,CHAR(252))","v":0},{"$f":"IF(C10<110000,CHAR(251),CHAR(252))","v":"û"},{"$f":"IF(DAYS360(MIN('Lot 1'!I12:$I$41),MAX('Lot 1'!$J$12:$J$41))<=360,CHAR(252),CHAR(251))","v":"ü"}]
[null,"Lot 2",{"$f":"SUM('Lot 2'!$L$11:$L$40)","v":0},{"$f":"SUM('Lot 2'!$A$11:$A$40)","v":0},{"$f":"COUNTIF('Lot 2'!$B$11:$B$40,CHAR(252))","v":0},{"$f":"IF(C11<65000,CHAR(251),CHAR(252))","v":"û"},{"$f":"IF(DAYS360(MIN('Lot 2'!$I$11:$I$40),MAX('Lot 2'!$J$11:$J$40))<=360,CHAR(252),CHAR(251))","v":"ü"}]
[null,"Lot 3",{"$f":"SUM('Lot 3'!$L$12:$L$40)","v":0},{"$f":"SUM('Lot 3'!$A$12:$A$40)","v":0},{"$f":"COUNTIF('Lot 3'!$B$12:$B$40,CHAR(252))","v":0},{"$f":"IF(C12<80000,CHAR(251),CHAR(252))","v":"û"},{"$f":"IF(DAYS360(MIN('Lot 3'!$I$12:$I$40),MAX('Lot 3'!$J$12:$J$40))<=360,CHAR(252),CHAR(251))","v":"ü"}]
[null,"Lot 4",{"$f":"SUM('Lot 4'!$L$11:$L$40)","v":0},{"$f":"SUM('Lot 4'!$A$11:$A$40)","v":0},{"$f":"COUNTIF('Lot 4'!$B$11:$B$40,CHAR(252))","v":0},{"$f":"IF(C13<10000,CHAR(251),CHAR(252))","v":"û"},{"$f":"IF(DAYS360(MIN('Lot 4'!$I$11:$I$40),MAX('Lot 4'!$J$11:$J$40))<=360,CHAR(252),CHAR(251))","v":"ü"}]
[null,"Lot 5",{"$f":"SUM('Lot 5'!$L$11:$L$39)","v":0},{"$f":"SUM('Lot 5'!$A$11:$A$39)","v":0},{"$f":"COUNTIF('Lot 5'!$B$11:$B$39,CHAR(252))","v":0},{"$f":"IF(C14<5000,CHAR(251),CHAR(252))","v":"û"},{"$f":"IF(DAYS360(MIN('Lot 5'!$I$11:$I$39),MAX('Lot 5'!$J$11:$J$39))<=360,CHAR(252),CHAR(251))","v":"ü"}]
[null,"Lot 6",{"$f":"SUM('Lot 6'!$L$11:$L$39)","v":0},{"$f":"SUM('Lot 6'!$A$11:$A$39)","v":0},{"$f":"COUNTIF('Lot 6'!$B$11:$B$39,CHAR(252))","v":0},{"$f":"IF(C15<75000,CHAR(251),CHAR(252))","v":"û"},{"$f":"IF(DAYS360(MIN('Lot 6'!$I$11:$I$39),MAX('Lot 6'!$J$11:$J$39))<=360,CHAR(252),CHAR(251))","v":"ü"}]
[]
[null,null,{"$f":"SUM(C10:C15)","v":0},{"$f":"SUM(D10:D15)","v":0},{"$f":"SUM($E$10:$E$15)","v":0}]
[]
[]
[]
[]
[null,"If there is a red cross in the column F 'Threshold Reached' then the required number of hours for that lot has not been met, a green tick indicates the required number of hours has been demonstrated. \n\nIf there is a red cross in column G 'Within 1 year?' then the period of contracts demonstrated has exceeded the 1 year requirement; a green tick indicates all demonstrated contract dates are within 1 year. "]
[]
[]
[]
[]
[]
[]
[]
[null,"© Crown Copyright 2019 "]

{"sheet":"Instructions","index":2,"n_rows":7,"n_cols":3,"rows_kept":7,"cut":false,"hidden":false,"merged":[[6,2,18,9],[1,2,1,9],[2,2,2,9],[3,2,3,9],[4,2,4,9],[5,2,5,9]]}
[]
[null,null,"INSTRUCTIONS FOR COMPLETING YOUR RESPONSE"]
[null,null,"Previous Experience - Lot 1 to Lot 6 inclusive"]
[null,null,"For the Lot(s) you are tendering for, you are required to demonstrate the  supply of a minimum total number of hours of Temporary Workers within any period of 12 consecutive calendar months during the three (3) year period starting on 1 April 2016 \n\nThis evidence is required to show your ability to supply the relevant type of Temporary Workers.\n\nPlease DO NOT COPY and PASTE into any of the sections of this workbook. "]
[null,null,"The minimum total number of hours required to be evidenced within a period of 12 consecutive months during the three year period starting on 1 April 2016 is: \n\nLot 1 (Admin and Clerical Supply) = 110,000 hours  \nLot 2 (Corporate Functions) = 65,000 hours  \nLot 3 (IT Professionals) = 80,000 hours  \nLot 4 (Legal Supply) = 10,000 hours\nLot 5 (Clinical Coding) = 5,000  hours\nLot 6 (Ancillary Staff) = 75,000 hours\n"]
[null,null,"For Lots 1, 2, 3, 4 & 6 the number of hours must be for the provision of Temporary Work-Seekers from public and/or private sector for the job profiles relevant to the Lot as stated in Attachment 2c Schedule 1 - Appendix A - Person Specification. For lot 5 only, the number of hours must be for the provision of Temporary Work-Seekers from NHS only, and must be for the job profiles relevant to lot 5. "]
[null,null,"You must fill in your Organisation's Name, Trading Name and Company Registration Number in the Cover Sheet tab which must be identical to the information you have entered in Attachment 3 - Pricing Workbook Cover Sheet tab \n\nPlease complete the tab(s) in this workbook relevant to the Lot(s) you are tendering for (Lot 1 - 6)\n\nYou may identify up to 30 Contracting Authorities when evidencing the minimum total number of hours required for those Lot(s). If the Contracting Authority is listed on the URN list, you MUST complete column D (Contracting Authority URN).\n\nIf you can evidence the required minimum total number of hours with less than 30 Contracting Authorities then please do not enter anything in the remaining rows  in the table.\n\nAfter completing this workbook, you must upload this as part of your Tender using the e-Sourcing Suite  (PLEASE ENSURE THAT YOU INCLUDE YOUR ORGANISATION'S NAME AS PART OF THE FILE NAME)\n\nPlease complete the table in DESCENDING ORDER of the number of hours supplied - In particular, the hours stated for Contracting Authority 1 in the table must be the largest number of hours stated in column L which asks you to insert number of hours supplied within a period of 12 consecutive months during the three year period starting on 1 April 2016. If the number of hours supplied to 2 or more Contracting Authorities is the same, then the order that the table is filled in should be in alphabetical order by Contracting Authority.\n\nIf the length of a contract being used in this exercise exceeds the allowed 12 consecutive months, please use the start and end date for the 12 month period being used to demonstrate hours for this tender.  For example, if a contract runs from 01/05/15 to 01/05/18, then you may use any 12 month period within this contract to demonstrate the hours that falls within the allowed timeframe (01/04/16 onwards), e.g. 01/05/17 - 01/05/18. \n\nPlease note that the Contracting Authority contacts provided must be informed by you in advance that they may be contacted by the Authority, as the Authority reserves the right to verify the accuracy of the Contracting Authority details provided. Should the Contracting Authority you have mentioned state that you have provided less hours than you have entered in column I of the worksheet for any of the Lot(s) you are tendering for, then you will be excluded from participation from this Procurement in respect of that Lot. "]

{"sheet":"Cover Sheet","index":3,"n_rows":17,"n_cols":3,"rows_kept":17,"cut":false,"hidden":false,"merged":[]}
[]
[null,null,"Framework Contract  for the Supply of Non Clinical Temporary and Fixed Term Staff"]
[]
[]
[null,null,"Contract Reference: RM6160"]
[]
[]
[null,null,"Please enter your ORGANISATION'S NAME in the text box below."]
[null,null,"If you are required to register at Companies House or non-UK equivalent, this must be your registered company name"]
[]
[]
[]
[null,null,"Please enter your ORGANISATION'S TRADING NAME in the text box below."]
[]
[]
[]
[null,null,"If you are registered with Companies House or non-UK equivalent, please enter your COMPANY REGISTRATION NUMBER or non-UK equivalent number in the text box below"]

{"sheet":"Lot 1","index":4,"n_rows":49,"n_cols":12,"rows_kept":49,"cut":false,"hidden":false,"merged":[[7,2,9,11],[41,2,41,10],[1,2,1,11],[2,2,2,11],[17,5,17,6],[3,2,3,11],[4,2,4,11],[5,2,5,11],[6,2,6,11],[12,5,12,6],[13,5,13,6],[14,5,14,6],[15,5,15,6],[16,5,16,6],[11,5,11,6],[10,5,10,6],[10,3,10,4],[29,5,29,6],[18,5,18,6],[19,5,19,6],[20,5,20,6],[21,5,21,6],[22,5,22,6],[23,5,23,6],[24,5,24,6],[25,5,25,6],[26,5,26,6],[27,5,27,6],[28,5,28,6],[26,3,26,4],[27,3,27,4],[11,3,11,4],[42,2,42,11],[40,5,40,6],[30,5,30,6],[31,5,31,6],[32,5,32,6],[33,5,33,6],[34,5,34,6],[35,5,35,6],[36,5,36,6],[37,5,37,6],[38,5,38,6],[39,5,39,6],[46,2,48,3],[46,4,46,11],[47,4,47,11],[48,4,48,11],[43,2,43,11],[44,2,44,3],[44,4,44,11],[45,2,45,3],[45,4,45,11],[12,3,12,4],[13,3,13,4],[14,3,14,4],[15,3,15,4],[16,3,16,4],[17,3,17,4],[18,3,18,4],[19,3,19,4],[20,3,20,4],[21,3,21,4],[22,3,22,4],[23,3,23,4],[24,3,24,4],[25,3,25,4],[28,3,28,4],[29,3,29,4],[30,3,30,4],[40,3,40,4],[35,3,35,4],[36,3,36,4],[37,3,37,4],[38,3,38,4],[39,3,39,4],[31,3,31,4],[32,3,32,4],[33,3,33,4],[34,3,34,4]]}
[]
[null,null,"Previous Experience Lot 1 (Admin and Clerical Supply)"]
[null,null,"Lot 1 - You must demonstrate a minimum total of 110,000 hours of Temporary Workers supplied within any period of 12 consecutive calendar months during the three (3) year period starting on 1 April 2016"]
[null,null,"The minimum number of hours for Lot 1 must be for the provision of Temporary Workers (either public and/or private sector) and must fall under the job profiles for Lot 1 stated in Attachment 2c - Appendix A - Person Specification"]
[]
[null,null,"You should note the required minimum numbers of hours should be only for Agenda for Change Bands 1, 2, 3, 4 and 5"]
[]
[null,null,"Response Guidance\n\nYou must populate the table below which demonstrates supply of the minimum total required number of hours for Lot 1 and for the job profiles specified in Attachment 2c - Appendix A - Person Specification. \n\nDo Not Copy and Paste into this workbook"]
[]
[]
["Count","CCS Contracting Authority?",null,"Contracting Authority URN (Please Provide Where Available)",null,"Insert Contracting Authority organisation (name)",null,"Insert Contracting Authority contact name and address or email","Insert contract start date\n(DD/MM/YYYY)","Insert contract completion date\n(DD/MM/YYYY)","Insert brief description of job profiles of staff supplied","Insert number of hours supplied within a period of 12 consecutive months during the three year period starting on 1 April 2016 - DESCENDING ORDER"]
[{"$f":"IF(F12=\"\",\"\",1)","v":""},{"$f":"IFERROR(IF(VLOOKUP(D12,'URN List'!$A:$A,1,0)=D12,CHAR(252),CHAR(251)),\"\")","v":""},"Contracting Authority 1"]
[{"$f":"IF(F13=\"\",\"\",1)","v":""},{"$f":"IFERROR(IF(VLOOKUP(D13,'URN List'!$A:$A,1,0)=D13,CHAR(252),CHAR(251)),\"\")","v":""},"Contracting Authority 2"]
["",{"$f":"IFERROR(IF(VLOOKUP(D14,'URN List'!$A:$A,1,0)=D14,CHAR(252),CHAR(251)),\"\")","v":""},"Contracting Authority 3"]
["",{"$f":"IFERROR(IF(VLOOKUP(D15,'URN List'!$A:$A,1,0)=D15,CHAR(252),CHAR(251)),\"\")","v":""},"Contracting Authority 4"]
["",{"$f":"IFERROR(IF(VLOOKUP(D16,'URN List'!$A:$A,1,0)=D16,CHAR(252),CHAR(251)),\"\")","v":""},"Contracting Authority 5"]
["",{"$f":"IFERROR(IF(VLOOKUP(D17,'URN List'!$A:$A,1,0)=D17,CHAR(252),CHAR(251)),\"\")","v":""},"Contracting Authority 6"]
["",{"$f":"IFERROR(IF(VLOOKUP(D18,'URN List'!$A:$A,1,0)=D18,CHAR(252),CHAR(251)),\"\")","v":""},"Contracting Authority 7"]
["",{"$f":"IFERROR(IF(VLOOKUP(D19,'URN List'!$A:$A,1,0)=D19,CHAR(252),CHAR(251)),\"\")","v":""},"Contracting Authority 8"]
["",{"$f":"IFERROR(IF(VLOOKUP(D20,'URN List'!$A:$A,1,0)=D20,CHAR(252),CHAR(251)),\"\")","v":""},"Contracting Authority 9"]
["",{"$f":"IFERROR(IF(VLOOKUP(D21,'URN List'!$A:$A,1,0)=D21,CHAR(252),CHAR(251)),\"\")","v":""},"Contracting Authority 10"]
["",{"$f":"IFERROR(IF(VLOOKUP(D22,'URN List'!$A:$A,1,0)=D22,CHAR(252),CHAR(251)),\"\")","v":""},"Contracting Authority 11"]
["",{"$f":"IFERROR(IF(VLOOKUP(D23,'URN List'!$A:$A,1,0)=D23,CHAR(252),CHAR(251)),\"\")","v":""},"Contracting Authority 12"]
["",{"$f":"IFERROR(IF(VLOOKUP(D24,'URN List'!$A:$A,1,0)=D24,CHAR(252),CHAR(251)),\"\")","v":""},"Contracting Authority 13"]
["",{"$f":"IFERROR(IF(VLOOKUP(D25,'URN List'!$A:$A,1,0)=D25,CHAR(252),CHAR(251)),\"\")","v":""},"Contracting Authority 14"]
["",{"$f":"IFERROR(IF(VLOOKUP(D26,'URN List'!$A:$A,1,0)=D26,CHAR(252),CHAR(251)),\"\")","v":""},"Contracting Authority 15"]
["",{"$f":"IFERROR(IF(VLOOKUP(D27,'URN List'!$A:$A,1,0)=D27,CHAR(252),CHAR(251)),\"\")","v":""},"Contracting Authority 16"]
["",{"$f":"IFERROR(IF(VLOOKUP(D28,'URN List'!$A:$A,1,0)=D28,CHAR(252),CHAR(251)),\"\")","v":""},"Contracting Authority 17"]
["",{"$f":"IFERROR(IF(VLOOKUP(D29,'URN List'!$A:$A,1,0)=D29,CHAR(252),CHAR(251)),\"\")","v":""},"Contracting Authority 18"]
["",{"$f":"IFERROR(IF(VLOOKUP(D30,'URN List'!$A:$A,1,0)=D30,CHAR(252),CHAR(251)),\"\")","v":""},"Contracting Authority 19"]
["",{"$f":"IFERROR(IF(VLOOKUP(D31,'URN List'!$A:$A,1,0)=D31,CHAR(252),CHAR(251)),\"\")","v":""},"Contracting Authority 20"]
["",{"$f":"IFERROR(IF(VLOOKUP(D32,'URN List'!$A:$A,1,0)=D32,CHAR(252),CHAR(251)),\"\")","v":""},"Contracting Authority 21"]
["",{"$f":"IFERROR(IF(VLOOKUP(D33,'URN List'!$A:$A,1,0)=D33,CHAR(252),CHAR(251)),\"\")","v":""},"Contracting Authority 22"]
["",{"$f":"IFERROR(IF(VLOOKUP(D34,'URN List'!$A:$A,1,0)=D34,CHAR(252),CHAR(251)),\"\")","v":""},"Contracting Authority 23"]
["",{"$f":"IFERROR(IF(VLOOKUP(D35,'URN List'!$A:$A,1,0)=D35,CHAR(252),CHAR(251)),\"\")","v":""},"Contracting Authority 24"]
["",{"$f":"IFERROR(IF(VLOOKUP(D36,'URN List'!$A:$A,1,0)=D36,CHAR(252),CHAR(251)),\"\")","v":""},"Contracting Authority 25"]
["",{"$f":"IFERROR(IF(VLOOKUP(D37,'URN List'!$A:$A,1,0)=D37,CHAR(252),CHAR(251)),\"\")","v":""},"Contracting Authority 26"]
["",{"$f":"IFERROR(IF(VLOOKUP(D38,'URN List'!$A:$A,1,0)=D38,CHAR(252),CHAR(251)),\"\")","v":""},"Contracting Authority 27"]
["",{"$f":"IFERROR(IF(VLOOKUP(D39,'URN List'!$A:$A,1,0)=D39,CHAR(252),CHAR(251)),\"\")","v":""},"Contracting Authority 28"]
["",{"$f":"IFERROR(IF(VLOOKUP(D40,'URN List'!$A:$A,1,0)=D40,CHAR(252),CHAR(251)),\"\")","v":""},"Contracting Authority 29"]
["",{"$f":"IFERROR(IF(VLOOKUP(D41,'URN List'!$A:$A,1,0)=D41,CHAR(252),CHAR(251)),\"\")","v":""},"Contracting Authority 30"]
[null,null,"Total number of hours",null,null,null,null,null,null,null,null,{"$f":"SUM(L12:L41)","v":0}]
[null,null,"If  your organisation can demonstrate that it has supplied the minimum total number of hours required using less than the 30 Contracting Authorities provided for in the table, you are not required to continue to complete the numbers of hours for the rest of the Contracting Authorities. "]
[null,null,"If your organisation fails to demonstrate that it has supplied the minimum total number of hours required in response to this question or it can be shown that your organisation has provided false information in its response to this question, this shall result in your organisation's Tender being disqualified from further participation in this Procurement in respect of Lot 1. "]
[null,null,"Marking Scheme",null,"Evaluation Guidance"]
[null,null,"Pass",null,"Your organisation has completed the Cover Sheet, the table above and uploaded this completed workbook, to demonstrate supply of Temporary Workers within the scope of the job profiles of Lot 1 as stated in Attachment 2c - Schedule 1 - Appendix A - Person Specification for the minimum total number of hours within a period of 12 consecutive calendar months during the three (3) year period starting on 1 April 2016 using up to the 30 Contracting Authorities provided for in the table and the Authority is satisfied that the number of hours stated in the table above is correct"]
[null,null,"Fail",null,"Your organisation has not completed the Cover Sheet, the table above and uploaded this completed workbook, to demonstrate supply of Temporary Workers within the scope of the job profiles of Lot 1 as stated in Attachment 2c - Schedule 1 - Appendix A - Person Specification, or does not meet the minimum required total number of hours within a period of 12 consecutive calendar months during the three (3) year period starting on 1 April 2016 and/or the Authority is not satisfied that the information stated is incorrect."]
[null,null,null,null,"OR "]
[null,null,null,null,"This question has not been answered."]

{"sheet":"Lot 2","index":5,"n_rows":48,"n_cols":12,"rows_kept":48,"cut":false,"hidden":false,"merged":[[44,2,44,3],[44,4,44,11],[45,2,47,3],[45,4,45,11],[46,4,46,11],[47,4,47,11],[41,2,41,11],[42,2,42,11],[43,2,43,3],[43,4,43,11],[17,5,17,6],[29,5,29,6],[18,5,18,6],[19,5,19,6],[20,5,20,6],[21,5,21,6],[22,5,22,6],[23,5,23,6],[24,5,24,6],[25,5,25,6],[26,5,26,6],[27,5,27,6],[9,5,9,6],[6,2,8,11],[3,2,3,11],[5,2,5,11],[4,2,4,11],[1,2,2,11],[15,5,15,6],[16,5,16,6],[9,3,9,4],[10,3,10,4],[11,3,11,4],[12,3,12,4],[13,3,13,4],[14,3,14,4],[15,3,15,4],[16,3,16,4],[10,5,10,6],[11,5,11,6],[12,5,12,6],[13,5,13,6],[14,5,14,6],[28,5,28,6],[30,5,30,6],[31,5,31,6],[32,5,32,6],[33,5,33,6],[39,5,39,6],[30,3,30,4],[31,3,31,4],[32,3,32,4],[40,2,40,10],[34,5,34,6],[35,5,35,6],[36,5,36,6],[37,5,37,6],[38,5,38,6],[17,3,17,4],[18,3,18,4],[19,3,19,4],[20,3,20,4],[21,3,21,4],[22,3,22,4],[23,3,23,4],[24,3,24,4],[25,3,25,4],[26,3,26,4],[27,3,27,4],[28,3,28,4],[29,3,29,4],[38,3,38,4],[39,3,39,4],[33,3,33,4],[34,3,34,4],[35,3,35,4],[36,3,36,4],[37,3,37,4]]}
[]
[null,null,"Previous Experience Lot 2 (Corporate Functions)"]
[]
[null,null,"Lot 2 - You must demonstrate a minimum total of 65,000 hours of Temporary Workers supplied within any period of 12 consecutive calendar months during the three (3) year period starting on 1 April 2016."]
[null,null,"The minimum number of hours for Lot 2 must be for the provision of Temporary Workers (either public and/or private sector) and must fall under the job profiles for Lot 2 stated in Attachment 2c - Appendix A - Person Specification"]
[null,null,"You should note the required minimum numbers of hours should be only for Agenda for Change Bands 5 and above, including Band 10A to 10D for very senior managers only within the NHS, may be used for other roles outside of the NHS."]
[null,null,"Response Guidance\n\nYou must populate the table below which demonstrates supply of the minimum total required number of hours for Lot 2 and for the job profiles specified in Attachment 2c - Appendix A - Person Specification.\n\nDo Not Copy and Paste into this workbook"]
[]
[]
["Count","CCS Contracting Authority?",null,"Contracting Authority URN (Please Provide Where Available)",null,"Insert Contracting Authority organisation (name)",null,"Insert Contracting Authority contact name and address or email","Insert contract start date\n(DD/MM/YYYY)","Insert contract completion date\n(DD/MM/YYYY)","Insert brief description of job profiles of staff supplied","Insert number of hours supplied within a period of 12 consecutive months during the three year period starting on 1 April 2016 - DESCENDING ORDER"]
[{"$f":"IF(H11=\"\",\"\",1)","v":""},{"$f":"IFERROR(IF(VLOOKUP(D11,'URN List'!$A:$A,1,0)=D11,CHAR(252),CHAR(251)),\"\")","v":""},"Contracting Authority 1"]
[{"$f":"IF(H12=\"\",\"\",1)","v":""},{"$f":"IFERROR(IF(VLOOKUP(D12,'URN List'!$A:$A,1,0)=D12,CHAR(252),CHAR(251)),\"\")","v":""},"Contracting Authority 2"]
["",{"$f":"IFERROR(IF(VLOOKUP(D13,'URN List'!$A:$A,1,0)=D13,CHAR(252),CHAR(251)),\"\")","v":""},"Contracting Authority 3"]
["",{"$f":"IFERROR(IF(VLOOKUP(D14,'URN List'!$A:$A,1,0)=D14,CHAR(252),CHAR(251)),\"\")","v":""},"Contracting Authority 4"]
["",{"$f":"IFERROR(IF(VLOOKUP(D15,'URN List'!$A:$A,1,0)=D15,CHAR(252),CHAR(251)),\"\")","v":""},"Contracting Authority 5"]
["",{"$f":"IFERROR(IF(VLOOKUP(D16,'URN List'!$A:$A,1,0)=D16,CHAR(252),CHAR(251)),\"\")","v":""},"Contracting Authority 6"]
["",{"$f":"IFERROR(IF(VLOOKUP(D17,'URN List'!$A:$A,1,0)=D17,CHAR(252),CHAR(251)),\"\")","v":""},"Contracting Authority 7"]
["",{"$f":"IFERROR(IF(VLOOKUP(D18,'URN List'!$A:$A,1,0)=D18,CHAR(252),CHAR(251)),\"\")","v":""},"Contracting Authority 8"]
["",{"$f":"IFERROR(IF(VLOOKUP(D19,'URN List'!$A:$A,1,0)=D19,CHAR(252),CHAR(251)),\"\")","v":""},"Contracting Authority 9"]
["",{"$f":"IFERROR(IF(VLOOKUP(D20,'URN List'!$A:$A,1,0)=D20,CHAR(252),CHAR(251)),\"\")","v":""},"Contracting Authority 10"]
["",{"$f":"IFERROR(IF(VLOOKUP(D21,'URN List'!$A:$A,1,0)=D21,CHAR(252),CHAR(251)),\"\")","v":""},"Contracting Authority 11"]
["",{"$f":"IFERROR(IF(VLOOKUP(D22,'URN List'!$A:$A,1,0)=D22,CHAR(252),CHAR(251)),\"\")","v":""},"Contracting Authority 12"]
["",{"$f":"IFERROR(IF(VLOOKUP(D23,'URN List'!$A:$A,1,0)=D23,CHAR(252),CHAR(251)),\"\")","v":""},"Contracting Authority 13"]
["",{"$f":"IFERROR(IF(VLOOKUP(D24,'URN List'!$A:$A,1,0)=D24,CHAR(252),CHAR(251)),\"\")","v":""},"Contracting Authority 14"]
["",{"$f":"IFERROR(IF(VLOOKUP(D25,'URN List'!$A:$A,1,0)=D25,CHAR(252),CHAR(251)),\"\")","v":""},"Contracting Authority 15"]
["",{"$f":"IFERROR(IF(VLOOKUP(D26,'URN List'!$A:$A,1,0)=D26,CHAR(252),CHAR(251)),\"\")","v":""},"Contracting Authority 16"]
["",{"$f":"IFERROR(IF(VLOOKUP(D27,'URN List'!$A:$A,1,0)=D27,CHAR(252),CHAR(251)),\"\")","v":""},"Contracting Authority 17"]
["",{"$f":"IFERROR(IF(VLOOKUP(D28,'URN List'!$A:$A,1,0)=D28,CHAR(252),CHAR(251)),\"\")","v":""},"Contracting Authority 18"]
["",{"$f":"IFERROR(IF(VLOOKUP(D29,'URN List'!$A:$A,1,0)=D29,CHAR(252),CHAR(251)),\"\")","v":""},"Contracting Authority 19"]
["",{"$f":"IFERROR(IF(VLOOKUP(D30,'URN List'!$A:$A,1,0)=D30,CHAR(252),CHAR(251)),\"\")","v":""},"Contracting Authority 20"]
["",{"$f":"IFERROR(IF(VLOOKUP(D31,'URN List'!$A:$A,1,0)=D31,CHAR(252),CHAR(251)),\"\")","v":""},"Contracting Authority 21"]
["",{"$f":"IFERROR(IF(VLOOKUP(D32,'URN List'!$A:$A,1,0)=D32,CHAR(252),CHAR(251)),\"\")","v":""},"Contracting Authority 22"]
["",{"$f":"IFERROR(IF(VLOOKUP(D33,'URN List'!$A:$A,1,0)=D33,CHAR(252),CHAR(251)),\"\")","v":""},"Contracting Authority 23"]
["",{"$f":"IFERROR(IF(VLOOKUP(D34,'URN List'!$A:$A,1,0)=D34,CHAR(252),CHAR(251)),\"\")","v":""},"Contracting Authority 24"]
["",{"$f":"IFERROR(IF(VLOOKUP(D35,'URN List'!$A:$A,1,0)=D35,CHAR(252),CHAR(251)),\"\")","v":""},"Contracting Authority 25"]
["",{"$f":"IFERROR(IF(VLOOKUP(D36,'URN List'!$A:$A,1,0)=D36,CHAR(252),CHAR(251)),\"\")","v":""},"Contracting Authority 26"]
["",{"$f":"IFERROR(IF(VLOOKUP(D37,'URN List'!$A:$A,1,0)=D37,CHAR(252),CHAR(251)),\"\")","v":""},"Contracting Authority 27"]
["",{"$f":"IFERROR(IF(VLOOKUP(D38,'URN List'!$A:$A,1,0)=D38,CHAR(252),CHAR(251)),\"\")","v":""},"Contracting Authority 28"]
["",{"$f":"IFERROR(IF(VLOOKUP(D39,'URN List'!$A:$A,1,0)=D39,CHAR(252),CHAR(251)),\"\")","v":""},"Contracting Authority 29"]
["",{"$f":"IFERROR(IF(VLOOKUP(D40,'URN List'!$A:$A,1,0)=D40,CHAR(252),CHAR(251)),\"\")","v":""},"Contracting Authority 30"]
[null,null,"Total number of hours",null,null,null,null,null,null,null,null,{"$f":"SUM(L11:L40)","v":0}]
[null,null,"If  your organisation can demonstrate that it has supplied the minimum total number of hours required using less than the 30 Contracting Authorities provided for in the table, you are not required to continue to complete the numbers of hours for the rest of the Contracting Authorities. "]
[null,null,"If your organisation fails to demonstrate that it has supplied the minimum total number of hours required in response to this question or it can be shown that your organisation has provided false information in its response to this question, this shall result in your organisation's Tender being disqualified from further participation in this Procurement in respect of Lot 2. "]
[null,null,"Marking Scheme",null,"Evaluation Guidance"]
[null,null,"Pass",null,"Your organisation has completed the Cover Sheet, the table above and uploaded this completed workbook, to demonstrate supply of Temporary Workers within the scope of the job profiles of Lot 2 as stated in Attachment 2c - Schedule 1 - Appendix A - Person Specification for the minimum total number of hours within a period of 12 consecutive calendar months during the three (3) year period starting on 1 April 2016 using up to the 30 Contracting Authorities provided for in the table and the Authority is satisfied that the number of hours stated in the table above is correct"]
[null,null,"Fail",null,"Your organisation has not completed the Cover Sheet, the table above and uploaded this completed workbook, to demonstrate supply of Temporary Workers within the scope of the job profiles of Lot 2 as stated in Attachment 2c - Schedule 1 - Appendix A - Person Specification, or does not meet the minimum required total number of hours within a period of 12 consecutive calendar months during the three (3) year period starting on 1 April 2016 and/or the Authority is not satisfied that the information stated is incorrect."]
[null,null,null,null,"OR "]
[null,null,null,null,"This question has not been answered."]

{"sheet":"Lot 3","index":6,"n_rows":49,"n_cols":12,"rows_kept":49,"cut":false,"hidden":false,"merged":[[46,2,48,3],[46,4,46,11],[47,4,47,11],[48,4,48,11],[2,2,2,11],[3,2,3,11],[4,2,5,11],[6,2,9,11],[42,2,42,11],[13,3,13,4],[14,3,14,4],[15,3,15,4],[16,3,16,4],[17,3,17,4],[18,3,18,4],[38,5,38,6],[1,2,1,11],[19,5,19,6],[20,5,20,6],[21,5,21,6],[12,5,12,6],[13,5,13,6],[14,5,14,6],[15,5,15,6],[16,5,16,6],[10,5,10,6],[11,5,11,6],[17,5,17,6],[18,5,18,6],[10,3,10,4],[11,3,11,4],[12,3,12,4],[39,5,39,6],[40,5,40,6],[39,3,39,4],[40,3,40,4],[41,2,41,10],[43,2,43,11],[44,2,44,3],[44,4,44,11],[45,2,45,3],[45,4,45,11],[23,5,23,6],[22,5,22,6],[36,5,36,6],[37,5,37,6],[35,5,35,6],[24,5,24,6],[25,5,25,6],[26,5,26,6],[27,5,27,6],[28,5,28,6],[29,5,29,6],[30,5,30,6],[31,5,31,6],[32,5,32,6],[33,5,33,6],[34,5,34,6],[19,3,19,4],[20,3,20,4],[21,3,21,4],[22,3,22,4],[23,3,23,4],[24,3,24,4],[25,3,25,4],[26,3,26,4],[27,3,27,4],[28,3,28,4],[29,3,29,4],[30,3,30,4],[31,3,31,4],[32,3,32,4],[33,3,33,4],[34,3,34,4],[35,3,35,4],[36,3,36,4],[37,3,37,4],[38,3,38,4]]}
[]
[null,null,"Previous Experience Lot 3 (IT Professionals)"]
[null,null,"Lot 3 - You must demonstrate a minimum total of 80,000 hours of Temporary Workers supplied within any period of 12 consecutive calendar months during the three (3) year period starting on 1 April 2016."]
[null,null,"The minimum number of hours for Lot 3 must be for the provision of Temporary Workers (either public and/or private sector) and must fall under the job profiles for Lot 3 stated in Attachment 2c - Appendix A - Person Specification"]
[null,null,"You should note the required minimum numbers of hours should be only for Agenda for Change Bands 3 and above including Band 10A to 10D for very senior managers only within the NHS, may be used for other roles outside of the NHS."]
[]
[null,null,"Response Guidance\n\nYou must populate the table below which demonstrates supply of the minimum total required minimum number of hours for Lot 3 and for the job profiles specified in Attachment 2c - Appendix A - Person Specification.\n\nDo Not Copy and Paste into this workbook"]
[]
[]
[]
[null,"CCS Contracting Authority?",null,"Contracting Authority URN (Please Provide Where Available)",null,"Insert Contracting Authority organisation (name)",null,"Insert Contracting Authority contact name and address or email","Insert contract start date\n(DD/MM/YYYY)","Insert contract completion date\n(DD/MM/YYYY)","Insert brief description of job profiles of staff supplied","Insert number of hours supplied within a period of 12 consecutive months during the three year period starting on 1 April 2016 - DESCENDING ORDER"]
["Count",{"$f":"IFERROR(IF(VLOOKUP(D12,'URN List'!$A:$A,1,0)=D12,CHAR(252),CHAR(251)),\"\")","v":""},"Contracting Authority 1"]
[{"$f":"IF(H13=\"\",\"\",1)","v":""},{"$f":"IFERROR(IF(VLOOKUP(D13,'URN List'!$A:$A,1,0)=D13,CHAR(252),CHAR(251)),\"\")","v":""},"Contracting Authority 2"]
["",{"$f":"IFERROR(IF(VLOOKUP(D14,'URN List'!$A:$A,1,0)=D14,CHAR(252),CHAR(251)),\"\")","v":""},"Contracting Authority 3"]
["",{"$f":"IFERROR(IF(VLOOKUP(D15,'URN List'!$A:$A,1,0)=D15,CHAR(252),CHAR(251)),\"\")","v":""},"Contracting Authority 4"]
["",{"$f":"IFERROR(IF(VLOOKUP(D16,'URN List'!$A:$A,1,0)=D16,CHAR(252),CHAR(251)),\"\")","v":""},"Contracting Authority 5"]
["",{"$f":"IFERROR(IF(VLOOKUP(D17,'URN List'!$A:$A,1,0)=D17,CHAR(252),CHAR(251)),\"\")","v":""},"Contracting Authority 6"]
["",{"$f":"IFERROR(IF(VLOOKUP(D18,'URN List'!$A:$A,1,0)=D18,CHAR(252),CHAR(251)),\"\")","v":""},"Contracting Authority 7"]
["",{"$f":"IFERROR(IF(VLOOKUP(D19,'URN List'!$A:$A,1,0)=D19,CHAR(252),CHAR(251)),\"\")","v":""},"Contracting Authority 8"]
["",{"$f":"IFERROR(IF(VLOOKUP(D20,'URN List'!$A:$A,1,0)=D20,CHAR(252),CHAR(251)),\"\")","v":""},"Contracting Authority 9"]
["",{"$f":"IFERROR(IF(VLOOKUP(D21,'URN List'!$A:$A,1,0)=D21,CHAR(252),CHAR(251)),\"\")","v":""},"Contracting Authority 10"]
["",{"$f":"IFERROR(IF(VLOOKUP(D22,'URN List'!$A:$A,1,0)=D22,CHAR(252),CHAR(251)),\"\")","v":""},"Contracting Authority 11"]
["",{"$f":"IFERROR(IF(VLOOKUP(D23,'URN List'!$A:$A,1,0)=D23,CHAR(252),CHAR(251)),\"\")","v":""},"Contracting Authority 12"]
["",{"$f":"IFERROR(IF(VLOOKUP(D24,'URN List'!$A:$A,1,0)=D24,CHAR(252),CHAR(251)),\"\")","v":""},"Contracting Authority 13"]
["",{"$f":"IFERROR(IF(VLOOKUP(D25,'URN List'!$A:$A,1,0)=D25,CHAR(252),CHAR(251)),\"\")","v":""},"Contracting Authority 14"]
["",{"$f":"IFERROR(IF(VLOOKUP(D26,'URN List'!$A:$A,1,0)=D26,CHAR(252),CHAR(251)),\"\")","v":""},"Contracting Authority 15"]
["",{"$f":"IFERROR(IF(VLOOKUP(D27,'URN List'!$A:$A,1,0)=D27,CHAR(252),CHAR(251)),\"\")","v":""},"Contracting Authority 16"]
["",{"$f":"IFERROR(IF(VLOOKUP(D28,'URN List'!$A:$A,1,0)=D28,CHAR(252),CHAR(251)),\"\")","v":""},"Contracting Authority 17"]
["",{"$f":"IFERROR(IF(VLOOKUP(D29,'URN List'!$A:$A,1,0)=D29,CHAR(252),CHAR(251)),\"\")","v":""},"Contracting Authority 18"]
["",{"$f":"IFERROR(IF(VLOOKUP(D30,'URN List'!$A:$A,1,0)=D30,CHAR(252),CHAR(251)),\"\")","v":""},"Contracting Authority 19"]
["",{"$f":"IFERROR(IF(VLOOKUP(D31,'URN List'!$A:$A,1,0)=D31,CHAR(252),CHAR(251)),\"\")","v":""},"Contracting Authority 20"]
["",{"$f":"IFERROR(IF(VLOOKUP(D32,'URN List'!$A:$A,1,0)=D32,CHAR(252),CHAR(251)),\"\")","v":""},"Contracting Authority 21"]
["",{"$f":"IFERROR(IF(VLOOKUP(D33,'URN List'!$A:$A,1,0)=D33,CHAR(252),CHAR(251)),\"\")","v":""},"Contracting Authority 22"]
["",{"$f":"IFERROR(IF(VLOOKUP(D34,'URN List'!$A:$A,1,0)=D34,CHAR(252),CHAR(251)),\"\")","v":""},"Contracting Authority 23"]
["",{"$f":"IFERROR(IF(VLOOKUP(D35,'URN List'!$A:$A,1,0)=D35,CHAR(252),CHAR(251)),\"\")","v":""},"Contracting Authority 24"]
["",{"$f":"IFERROR(IF(VLOOKUP(D36,'URN List'!$A:$A,1,0)=D36,CHAR(252),CHAR(251)),\"\")","v":""},"Contracting Authority 25"]
["",{"$f":"IFERROR(IF(VLOOKUP(D37,'URN List'!$A:$A,1,0)=D37,CHAR(252),CHAR(251)),\"\")","v":""},"Contracting Authority 26"]
["",{"$f":"IFERROR(IF(VLOOKUP(D38,'URN List'!$A:$A,1,0)=D38,CHAR(252),CHAR(251)),\"\")","v":""},"Contracting Authority 27"]
["",{"$f":"IFERROR(IF(VLOOKUP(D39,'URN List'!$A:$A,1,0)=D39,CHAR(252),CHAR(251)),\"\")","v":""},"Contracting Authority 28"]
["",{"$f":"IFERROR(IF(VLOOKUP(D40,'URN List'!$A:$A,1,0)=D40,CHAR(252),CHAR(251)),\"\")","v":""},"Contracting Authority 29"]
["",{"$f":"IFERROR(IF(VLOOKUP(D41,'URN List'!$A:$A,1,0)=D41,CHAR(252),CHAR(251)),\"\")","v":""},"Contracting Authority 30"]
[{"$f":"IF(F42=\"\",\"\",1)","v":""},{"$f":"IFERROR(IF(VLOOKUP(D42,'URN List'!$A:$A,1,0)=D42,CHAR(252),CHAR(251)),\"\")","v":""},"Total number of hours",null,null,null,null,null,null,null,null,{"$f":"SUM(L12:L41)","v":0}]
[null,null,"If  your organisation can demonstrate that it has supplied the minimum total number of hours required using less than the 30 Contracting Authorities provided for in the table, you are not required to continue to complete the numbers of hours for the rest of the Contracting Authorities. "]
[null,null,"If your organisation fails to demonstrate that it has supplied the minimum total number of hours required in response to this question or it can be shown that your organisation has provided false information in its response to this question, this shall result in your organisation's Tender being disqualified from further participation in this Procurement in respect of Lot 3. "]
[null,null,"Marking Scheme",null,"Evaluation Guidance"]
[null,null,"Pass",null,"Your organisation has completed the Cover Sheet, the table above and uploaded this completed workbook, to demonstrate supply of Temporary Workers within the scope of the job profiles of Lot 3 as stated in Attachment 2c - Schedule 1 - Appendix A - Person Specification for the minimum total number of hours within a period of 12 consecutive calendar months during the three (3) year period starting on 1 April 2016 using up to the 30 Contracting Authorities provided for in the table and the Authority is satisfied that the number of hours stated in the table above is correct"]
[null,null,"Fail",null,"Your organisation has not completed the Cover Sheet, the table above and uploaded this completed workbook, to demonstrate supply of Temporary Workers within the scope of the job profiles of Lot 3 as stated in Attachment 2c - Schedule 1 - Appendix A - Person Specification, or does not meet the minimum required total number of hours within a period of 12 consecutive calendar months during the three (3) year period starting on 1 April 2016 and/or the Authority is not satisfied that the information stated is incorrect."]
[null,null,null,null,"OR "]
[null,null,null,null,"This question has not been answered."]

{"sheet":"Lot 4","index":7,"n_rows":48,"n_cols":12,"rows_kept":48,"cut":false,"hidden":false,"merged":[[44,2,44,3],[44,4,44,11],[45,2,47,3],[45,4,45,11],[46,4,46,11],[47,4,47,11],[3,2,3,11],[4,2,4,11],[41,2,41,11],[42,2,42,11],[43,2,43,3],[43,4,43,11],[5,2,8,11],[14,3,14,4],[29,5,29,6],[18,5,18,6],[19,5,19,6],[20,5,20,6],[21,5,21,6],[22,5,22,6],[23,5,23,6],[24,5,24,6],[1,2,1,11],[2,2,2,11],[17,5,17,6],[10,5,10,6],[11,5,11,6],[9,5,9,6],[12,5,12,6],[13,5,13,6],[14,5,14,6],[15,5,15,6],[16,5,16,6],[9,3,9,4],[10,3,10,4],[11,3,11,4],[12,3,12,4],[13,3,13,4],[25,5,25,6],[26,5,26,6],[27,5,27,6],[28,5,28,6],[36,5,36,6],[37,5,37,6],[38,5,38,6],[39,5,39,6],[40,2,40,10],[30,5,30,6],[31,5,31,6],[32,5,32,6],[33,5,33,6],[34,5,34,6],[35,5,35,6],[30,3,30,4],[31,3,31,4],[32,3,32,4],[33,3,33,4],[34,3,34,4],[35,3,35,4],[15,3,15,4],[16,3,16,4],[17,3,17,4],[18,3,18,4],[19,3,19,4],[20,3,20,4],[21,3,21,4],[22,3,22,4],[23,3,23,4],[24,3,24,4],[36,3,36,4],[37,3,37,4],[38,3,38,4],[39,3,39,4],[25,3,25,4],[26,3,26,4],[27,3,27,4],[28,3,28,4],[29,3,29,4]]}
[]
[null,null,"Previous Experience Lot 4 (Legal Supply)"]
[null,null,"Lot 4 - You must demonstrate a minimum total of 10,000 hours of Temporary Workers supplied within any period of 12 consecutive calendar months during the three (3) year period starting on 1 April 2016."]
[null,null,"The minimum number of hours for Lot 4 must be for the provision of Temporary Workers (either public and/or private sector) and must fall under the job profiles for Lot 4 stated inAttachment 2c - Appendix A - Person Specification"]
[null,null,"You should note the minimum numbers of required hours should be for all Agenda for Change Bands including Band 10A to 10D for very senior managers only within the NHS, may be used for other roles outside of the NHS."]
[null,null,"Response Guidance\n\nYou must populate the table below which demonstrates supply of the minimum total required number of hours for Lot 4 and for the job profiles specified Attachment 2c - Appendix A - Person Specification.\n\nDo Not Copy and Paste into this workbook"]
[]
[]
[]
["Count","CCS Contracting Authority?",null,"Contracting Authority URN (Please Provide Where Available)",null,"Insert Contracting Authority organisation (name)",null,"Insert Contracting Authority contact name and address or email","Insert contract start date\n(DD/MM/YYYY)","Insert contract completion date\n(DD/MM/YYYY)","Insert brief description of job profiles of staff supplied","Insert number of hours supplied within a period of 12 consecutive months during the three year period starting on 1 April 2016 - DESCENDING ORDER"]
[{"$f":"IF(H11=\"\",\"\",1)","v":""},{"$f":"IFERROR(IF(VLOOKUP(D11,'URN List'!$A:$A,1,0)=D11,CHAR(252),CHAR(251)),\"\")","v":""},"Contracting Authority 1"]
[{"$f":"IF(H12=\"\",\"\",1)","v":""},{"$f":"IFERROR(IF(VLOOKUP(D12,'URN List'!$A:$A,1,0)=D12,CHAR(252),CHAR(251)),\"\")","v":""},"Contracting Authority 2"]
["",{"$f":"IFERROR(IF(VLOOKUP(D13,'URN List'!$A:$A,1,0)=D13,CHAR(252),CHAR(251)),\"\")","v":""},"Contracting Authority 3"]
["",{"$f":"IFERROR(IF(VLOOKUP(D14,'URN List'!$A:$A,1,0)=D14,CHAR(252),CHAR(251)),\"\")","v":""},"Contracting Authority 4"]
["",{"$f":"IFERROR(IF(VLOOKUP(D15,'URN List'!$A:$A,1,0)=D15,CHAR(252),CHAR(251)),\"\")","v":""},"Contracting Authority 5"]
["",{"$f":"IFERROR(IF(VLOOKUP(D16,'URN List'!$A:$A,1,0)=D16,CHAR(252),CHAR(251)),\"\")","v":""},"Contracting Authority 6"]
["",{"$f":"IFERROR(IF(VLOOKUP(D17,'URN List'!$A:$A,1,0)=D17,CHAR(252),CHAR(251)),\"\")","v":""},"Contracting Authority 7"]
["",{"$f":"IFERROR(IF(VLOOKUP(D18,'URN List'!$A:$A,1,0)=D18,CHAR(252),CHAR(251)),\"\")","v":""},"Contracting Authority 8"]
["",{"$f":"IFERROR(IF(VLOOKUP(D19,'URN List'!$A:$A,1,0)=D19,CHAR(252),CHAR(251)),\"\")","v":""},"Contracting Authority 9"]
["",{"$f":"IFERROR(IF(VLOOKUP(D20,'URN List'!$A:$A,1,0)=D20,CHAR(252),CHAR(251)),\"\")","v":""},"Contracting Authority 10"]
["",{"$f":"IFERROR(IF(VLOOKUP(D21,'URN List'!$A:$A,1,0)=D21,CHAR(252),CHAR(251)),\"\")","v":""},"Contracting Authority 11"]
["",{"$f":"IFERROR(IF(VLOOKUP(D22,'URN List'!$A:$A,1,0)=D22,CHAR(252),CHAR(251)),\"\")","v":""},"Contracting Authority 12"]
["",{"$f":"IFERROR(IF(VLOOKUP(D23,'URN List'!$A:$A,1,0)=D23,CHAR(252),CHAR(251)),\"\")","v":""},"Contracting Authority 13"]
["",{"$f":"IFERROR(IF(VLOOKUP(D24,'URN List'!$A:$A,1,0)=D24,CHAR(252),CHAR(251)),\"\")","v":""},"Contracting Authority 14"]
["",{"$f":"IFERROR(IF(VLOOKUP(D25,'URN List'!$A:$A,1,0)=D25,CHAR(252),CHAR(251)),\"\")","v":""},"Contracting Authority 15"]
["",{"$f":"IFERROR(IF(VLOOKUP(D26,'URN List'!$A:$A,1,0)=D26,CHAR(252),CHAR(251)),\"\")","v":""},"Contracting Authority 16"]
["",{"$f":"IFERROR(IF(VLOOKUP(D27,'URN List'!$A:$A,1,0)=D27,CHAR(252),CHAR(251)),\"\")","v":""},"Contracting Authority 17"]
["",{"$f":"IFERROR(IF(VLOOKUP(D28,'URN List'!$A:$A,1,0)=D28,CHAR(252),CHAR(251)),\"\")","v":""},"Contracting Authority 18"]
["",{"$f":"IFERROR(IF(VLOOKUP(D29,'URN List'!$A:$A,1,0)=D29,CHAR(252),CHAR(251)),\"\")","v":""},"Contracting Authority 19"]
["",{"$f":"IFERROR(IF(VLOOKUP(D30,'URN List'!$A:$A,1,0)=D30,CHAR(252),CHAR(251)),\"\")","v":""},"Contracting Authority 20"]
["",{"$f":"IFERROR(IF(VLOOKUP(D31,'URN List'!$A:$A,1,0)=D31,CHAR(252),CHAR(251)),\"\")","v":""},"Contracting Authority 21"]
["",{"$f":"IFERROR(IF(VLOOKUP(D32,'URN List'!$A:$A,1,0)=D32,CHAR(252),CHAR(251)),\"\")","v":""},"Contracting Authority 22"]
["",{"$f":"IFERROR(IF(VLOOKUP(D33,'URN List'!$A:$A,1,0)=D33,CHAR(252),CHAR(251)),\"\")","v":""},"Contracting Authority 23"]
["",{"$f":"IFERROR(IF(VLOOKUP(D34,'URN List'!$A:$A,1,0)=D34,CHAR(252),CHAR(251)),\"\")","v":""},"Contracting Authority 24"]
["",{"$f":"IFERROR(IF(VLOOKUP(D35,'URN List'!$A:$A,1,0)=D35,CHAR(252),CHAR(251)),\"\")","v":""},"Contracting Authority 25"]
["",{"$f":"IFERROR(IF(VLOOKUP(D36,'URN List'!$A:$A,1,0)=D36,CHAR(252),CHAR(251)),\"\")","v":""},"Contracting Authority 26"]
["",{"$f":"IFERROR(IF(VLOOKUP(D37,'URN List'!$A:$A,1,0)=D37,CHAR(252),CHAR(251)),\"\")","v":""},"Contracting Authority 27"]
["",{"$f":"IFERROR(IF(VLOOKUP(D38,'URN List'!$A:$A,1,0)=D38,CHAR(252),CHAR(251)),\"\")","v":""},"Contracting Authority 28"]
["",{"$f":"IFERROR(IF(VLOOKUP(D39,'URN List'!$A:$A,1,0)=D39,CHAR(252),CHAR(251)),\"\")","v":""},"Contracting Authority 29"]
["",{"$f":"IFERROR(IF(VLOOKUP(D40,'URN List'!$A:$A,1,0)=D40,CHAR(252),CHAR(251)),\"\")","v":""},"Contracting Authority 30"]
[null,null,"Total number of hours",null,null,null,null,null,null,null,null,{"$f":"SUM(L11:L40)","v":0}]
[null,null,"If  your organisation can demonstrate that it has supplied the minimum total number of hours required using less than the 30 Contracting Authorities provided for in the table, you are not required to continue to complete the numbers of hours for the rest of the Contracting Authorities. "]
[null,null,"If your organisation fails to demonstrate that it has supplied the minimum total number of hours required in response to this question or it can be shown that your organisation has provided false information in its response to this question, this shall result in your organisation's Tender being disqualified from further participation in this Procurement in respect of Lot 4. "]
[null,null,"Marking Scheme",null,"Evaluation Guidance"]
[null,null,"Pass",null,"Your organisation has completed the Cover Sheet, the table above and uploaded this completed workbook, to demonstrate supply of Temporary Workers within the scope of the job profiles of Lot 4 as stated in Attachment 2c - Schedule 1 - Appendix A - Person Specification for the minimum total number of hours within a period of 12 consecutive calendar months during the three (3) year period starting on 1 April 2016 using up to the 30 Contracting Authorities provided for in the table and the Authority is satisfied that the number of hours stated in the table above is correct"]
[null,null,"Fail",null,"Your organisation has not completed the Cover Sheet, the table above and uploaded this completed workbook, to demonstrate supply of Temporary Workers within the scope of the job profiles of Lot 4 as stated in Attachment 2c - Schedule 1 - Appendix A - Person Specification, or does not meet the minimum required total number of hours within a period of 12 consecutive calendar months during the three (3) year period starting on 1 April 2016 and/or the Authority is not satisfied that the information stated is incorrect."]
[null,null,null,null,"OR "]
[null,null,null,null,"This question has not been answered."]

{"sheet":"Lot 5","index":8,"n_rows":48,"n_cols":12,"rows_kept":48,"cut":false,"hidden":false,"merged":[[45,2,47,3],[45,4,45,11],[46,4,46,11],[47,4,47,11],[41,2,41,11],[42,2,42,11],[43,2,43,3],[43,4,43,11],[44,2,44,3],[44,4,44,11],[1,2,1,11],[2,2,2,11],[10,5,10,6],[11,5,11,6],[9,5,9,6],[9,3,9,4],[10,3,10,4],[11,3,11,4],[3,2,3,11],[4,2,4,11],[5,2,8,11],[23,5,23,6],[12,5,12,6],[13,5,13,6],[14,5,14,6],[15,5,15,6],[16,5,16,6],[17,5,17,6],[18,5,18,6],[19,5,19,6],[20,5,20,6],[21,5,21,6],[22,5,22,6],[35,5,35,6],[24,5,24,6],[25,5,25,6],[26,5,26,6],[27,5,27,6],[28,5,28,6],[29,5,29,6],[30,5,30,6],[31,5,31,6],[32,5,32,6],[33,5,33,6],[34,5,34,6],[38,5,38,6],[39,5,39,6],[37,3,37,4],[38,3,38,4],[39,3,39,4],[40,2,40,10],[36,5,36,6],[37,5,37,6],[12,3,12,4],[13,3,13,4],[14,3,14,4],[15,3,15,4],[16,3,16,4],[17,3,17,4],[18,3,18,4],[19,3,19,4],[20,3,20,4],[21,3,21,4],[22,3,22,4],[23,3,23,4],[24,3,24,4],[25,3,25,4],[26,3,26,4],[27,3,27,4],[28,3,28,4],[29,3,29,4],[35,3,35,4],[36,3,36,4],[30,3,30,4],[31,3,31,4],[32,3,32,4],[33,3,33,4],[34,3,34,4]]}
[]
[null,null,"Previous Experience Lot 5 (Clinical Coding)"]
[null,null,"Lot 5 - You must demonstrate a minimum total of 5,000 hours of Temporary Workers supplied within any period of 12 consecutive calendar months during the three (3) year period starting on 1 April 2016"]
[null,null,"The minimum number of hours for Lot 5 must be for the provision of Temporary Workers from within the NHS ONLY and must fall under the job profiles for Lot 5 stated in Attachment 2c - Appendix A - Person Specification"]
[null,null,"You should note the minimum number of required hours should be for all Agenda for Change Bands including Band 10A to 10D for very senior managers only within the NHS, may be used for other roles outside of the NHS."]
[null,null,"Response Guidance\n\nYou must populate the tablebelow which demonstrates supply of the minimum total required number of hours for Lot 5 and for the job profiles specified Attachment 2c - Appendix A - Person Specification.\n\nDo Not Copy and Paste into this workbook"]
[]
[]
[]
["Count","CCS Contracting Authority?",null,"Contracting Authority URN (Please Provide Where Available)",null,"Insert Contracting Authority organisation (name)",null,"Insert Contracting Authority contact name and address or email\n\nNHS ONLY","Insert contract start date\n(DD/MM/YYYY)","Insert contract completion date\n(DD/MM/YYYY)","Insert brief description of job profiles of staff supplied","Insert number of hours supplied within a period of 12 consecutive months during the three year period starting on 1 April 2016 - DESCENDING ORDER"]
[{"$f":"IF(H11=\"\",\"\",1)","v":""},{"$f":"IFERROR(IF(VLOOKUP(D11,'URN List'!$A:$A,1,0)=D11,CHAR(252),CHAR(251)),\"\")","v":""},"Contracting Authority 1"]
[{"$f":"IF(H12=\"\",\"\",1)","v":""},{"$f":"IFERROR(IF(VLOOKUP(D12,'URN List'!$A:$A,1,0)=D12,CHAR(252),CHAR(251)),\"\")","v":""},"Contracting Authority 2"]
["",{"$f":"IFERROR(IF(VLOOKUP(D13,'URN List'!$A:$A,1,0)=D13,CHAR(252),CHAR(251)),\"\")","v":""},"Contracting Authority 3"]
["",{"$f":"IFERROR(IF(VLOOKUP(D14,'URN List'!$A:$A,1,0)=D14,CHAR(252),CHAR(251)),\"\")","v":""},"Contracting Authority 4"]
["",{"$f":"IFERROR(IF(VLOOKUP(D15,'URN List'!$A:$A,1,0)=D15,CHAR(252),CHAR(251)),\"\")","v":""},"Contracting Authority 5"]
["",{"$f":"IFERROR(IF(VLOOKUP(D16,'URN List'!$A:$A,1,0)=D16,CHAR(252),CHAR(251)),\"\")","v":""},"Contracting Authority 6"]
["",{"$f":"IFERROR(IF(VLOOKUP(D17,'URN List'!$A:$A,1,0)=D17,CHAR(252),CHAR(251)),\"\")","v":""},"Contracting Authority 7"]
["",{"$f":"IFERROR(IF(VLOOKUP(D18,'URN List'!$A:$A,1,0)=D18,CHAR(252),CHAR(251)),\"\")","v":""},"Contracting Authority 8"]
["",{"$f":"IFERROR(IF(VLOOKUP(D19,'URN List'!$A:$A,1,0)=D19,CHAR(252),CHAR(251)),\"\")","v":""},"Contracting Authority 9"]
["",{"$f":"IFERROR(IF(VLOOKUP(D20,'URN List'!$A:$A,1,0)=D20,CHAR(252),CHAR(251)),\"\")","v":""},"Contracting Authority 10"]
["",{"$f":"IFERROR(IF(VLOOKUP(D21,'URN List'!$A:$A,1,0)=D21,CHAR(252),CHAR(251)),\"\")","v":""},"Contracting Authority 11"]
["",{"$f":"IFERROR(IF(VLOOKUP(D22,'URN List'!$A:$A,1,0)=D22,CHAR(252),CHAR(251)),\"\")","v":""},"Contracting Authority 12"]
["",{"$f":"IFERROR(IF(VLOOKUP(D23,'URN List'!$A:$A,1,0)=D23,CHAR(252),CHAR(251)),\"\")","v":""},"Contracting Authority 13"]
["",{"$f":"IFERROR(IF(VLOOKUP(D24,'URN List'!$A:$A,1,0)=D24,CHAR(252),CHAR(251)),\"\")","v":""},"Contracting Authority 14"]
["",{"$f":"IFERROR(IF(VLOOKUP(D25,'URN List'!$A:$A,1,0)=D25,CHAR(252),CHAR(251)),\"\")","v":""},"Contracting Authority 15"]
["",{"$f":"IFERROR(IF(VLOOKUP(D26,'URN List'!$A:$A,1,0)=D26,CHAR(252),CHAR(251)),\"\")","v":""},"Contracting Authority 16"]
["",{"$f":"IFERROR(IF(VLOOKUP(D27,'URN List'!$A:$A,1,0)=D27,CHAR(252),CHAR(251)),\"\")","v":""},"Contracting Authority 17"]
["",{"$f":"IFERROR(IF(VLOOKUP(D28,'URN List'!$A:$A,1,0)=D28,CHAR(252),CHAR(251)),\"\")","v":""},"Contracting Authority 18"]
["",{"$f":"IFERROR(IF(VLOOKUP(D29,'URN List'!$A:$A,1,0)=D29,CHAR(252),CHAR(251)),\"\")","v":""},"Contracting Authority 19"]
["",{"$f":"IFERROR(IF(VLOOKUP(D30,'URN List'!$A:$A,1,0)=D30,CHAR(252),CHAR(251)),\"\")","v":""},"Contracting Authority 20"]
["",{"$f":"IFERROR(IF(VLOOKUP(D31,'URN List'!$A:$A,1,0)=D31,CHAR(252),CHAR(251)),\"\")","v":""},"Contracting Authority 21"]
["",{"$f":"IFERROR(IF(VLOOKUP(D32,'URN List'!$A:$A,1,0)=D32,CHAR(252),CHAR(251)),\"\")","v":""},"Contracting Authority 22"]
["",{"$f":"IFERROR(IF(VLOOKUP(D33,'URN List'!$A:$A,1,0)=D33,CHAR(252),CHAR(251)),\"\")","v":""},"Contracting Authority 23"]
["",{"$f":"IFERROR(IF(VLOOKUP(D34,'URN List'!$A:$A,1,0)=D34,CHAR(252),CHAR(251)),\"\")","v":""},"Contracting Authority 24"]
["",{"$f":"IFERROR(IF(VLOOKUP(D35,'URN List'!$A:$A,1,0)=D35,CHAR(252),CHAR(251)),\"\")","v":""},"Contracting Authority 25"]
["",{"$f":"IFERROR(IF(VLOOKUP(D36,'URN List'!$A:$A,1,0)=D36,CHAR(252),CHAR(251)),\"\")","v":""},"Contracting Authority 26"]
["",{"$f":"IFERROR(IF(VLOOKUP(D37,'URN List'!$A:$A,1,0)=D37,CHAR(252),CHAR(251)),\"\")","v":""},"Contracting Authority 27"]
["",{"$f":"IFERROR(IF(VLOOKUP(D38,'URN List'!$A:$A,1,0)=D38,CHAR(252),CHAR(251)),\"\")","v":""},"Contracting Authority 28"]
["",{"$f":"IFERROR(IF(VLOOKUP(D39,'URN List'!$A:$A,1,0)=D39,CHAR(252),CHAR(251)),\"\")","v":""},"Contracting Authority 29"]
["",{"$f":"IFERROR(IF(VLOOKUP(D40,'URN List'!$A:$A,1,0)=D40,CHAR(252),CHAR(251)),\"\")","v":""},"Contracting Authority 30"]
[null,null,"Total number of hours",null,null,null,null,null,null,null,null,{"$f":"SUM(L11:L40)","v":0}]
[null,null,"If  your organisation can demonstrate that it has supplied the minimum total number of hours required using less than the 30 Contracting Authorities provided for in the table, you are not required to continue to complete the numbers of hours for the rest of the Contracting Authorities. "]
[null,null,"If your organisation fails to demonstrate that it has supplied the minimum total number of hours required in response to this question or it can be shown that your organisation has provided false information in its response to this question, this shall result in your organisation's Tender being disqualified from further participation in this Procurement in respect of Lot 5. "]
[null,null,"Marking Scheme",null,"Evaluation Guidance"]
[null,null,"Pass",null,"Your organisation has completed the Cover Sheet, the table above and uploaded this completed workbook, to demonstrate supply of Temporary Workers within the scope of the job profiles of Lot 5 as stated in Attachment 2c - Schedule 1 - Appendix A - Person Specification for the minimum total number of hours within a period of 12 consecutive calendar months during the three (3) year period starting on 1 April 2016 using up to the 30 Contracting Authorities provided for in the table and the Authority is satisfied that the number of hours stated in the table above is correct"]
[null,null,"Fail",null,"Your organisation has not completed the Cover Sheet, the table above and uploaded this completed workbook, to demonstrate supply of Temporary Workers within the scope of the job profiles of Lot 5 as stated in Attachment 2c - Schedule 1 - Appendix A - Person Specification, or does not meet the minimum required total number of hours within a period of 12 consecutive calendar months during the three (3) year period starting on 1 April 2016 and/or the Authority is not satisfied that the information stated is incorrect."]
[null,null,null,null,"OR "]
[null,null,null,null,"This question has not been answered."]

{"sheet":"Lot 6","index":9,"n_rows":48,"n_cols":12,"rows_kept":48,"cut":false,"hidden":false,"merged":[[43,2,43,3],[43,4,43,11],[44,2,44,3],[44,4,44,11],[31,3,31,4],[32,3,32,4],[33,3,33,4],[34,3,34,4],[35,3,35,4],[33,5,33,6],[26,3,26,4],[27,3,27,4],[28,3,28,4],[29,3,29,4],[30,3,30,4],[21,3,21,4],[22,3,22,4],[23,3,23,4],[24,3,24,4],[25,3,25,4],[16,3,16,4],[17,3,17,4],[18,3,18,4],[19,3,19,4],[20,3,20,4],[11,3,11,4],[12,3,12,4],[13,3,13,4],[14,3,14,4],[15,3,15,4],[1,2,1,11],[2,2,2,11],[9,5,9,6],[10,5,10,6],[9,3,9,4],[10,3,10,4],[3,2,3,11],[4,2,4,11],[5,2,8,11],[22,5,22,6],[11,5,11,6],[12,5,12,6],[13,5,13,6],[14,5,14,6],[15,5,15,6],[16,5,16,6],[17,5,17,6],[18,5,18,6],[19,5,19,6],[20,5,20,6],[21,5,21,6],[23,5,23,6],[24,5,24,6],[25,5,25,6],[26,5,26,6],[27,5,27,6],[28,5,28,6],[29,5,29,6],[30,5,30,6],[34,5,34,6],[31,5,31,6],[32,5,32,6],[45,2,47,3],[45,4,45,11],[46,4,46,11],[47,4,47,11],[35,5,35,6],[36,5,36,6],[37,5,37,6],[38,5,38,6],[40,2,40,10],[36,3,36,4],[37,3,37,4],[38,3,38,4],[39,3,39,4],[39,5,39,6],[41,2,41,11],[42,2,42,11]]}
[]
[null,null,"Previous Experience Lot 6 (Ancillary Staff)"]
[null,null,"Lot 6 - You must demonstrate a minimum total of 75,000 hours of Temporary Workers supplied within any period of 12 consecutive calendar months during the three (3) year period starting on 1 April 2016"]
[null,null,"The minimum number of hours for Lot 6 must be for the provision of Temporary Workers (either public and/or private sector) and must fall under the job profiles for Lot 6 stated in Attachment 2c - Appendix A - Person Specification"]
[null,null,"You should note the required minimum numbers of hours should be for all Agenda for Change Bands including Band 10A to 10D for senior staff and Non NHS Contracting Authoritys."]
[null,null,"Response Guidance\n\nYou must populate the table below which demonstrates supply of the minimum total required number of hours for Lot 6 and for the job profiles specified Attachment 2c - Appendix A - Person Specification.\n\nDo Not Copy and Paste into this workbook"]
[]
[]
[]
["Count","CCS Contracting Authority?",null,"Contracting Authority URN (Please Provide Where Available)",null,"Insert Contracting Authority organisation (name)",null,"Insert Contracting Authority contact name and address or email","Insert contract start date\n(DD/MM/YYYY)","Insert contract completion date\n(DD/MM/YYYY)","Insert brief description of job profiles of staff supplied","Insert number of hours supplied within a period of 12 consecutive months during the three year period starting on 1 April 2016 - DESCENDING ORDER"]
[{"$f":"IF(H11=\"\",\"\",1)","v":""},{"$f":"IFERROR(IF(VLOOKUP(D11,'URN List'!$A:$A,1,0)=D11,CHAR(252),CHAR(251)),\"\")","v":""},"Contracting Authority 1"]
[{"$f":"IF(H12=\"\",\"\",1)","v":""},{"$f":"IFERROR(IF(VLOOKUP(D12,'URN List'!$A:$A,1,0)=D12,CHAR(252),CHAR(251)),\"\")","v":""},"Contracting Authority 2"]
["",{"$f":"IFERROR(IF(VLOOKUP(D13,'URN List'!$A:$A,1,0)=D13,CHAR(252),CHAR(251)),\"\")","v":""},"Contracting Authority 3"]
["",{"$f":"IFERROR(IF(VLOOKUP(D14,'URN List'!$A:$A,1,0)=D14,CHAR(252),CHAR(251)),\"\")","v":""},"Contracting Authority 4"]
["",{"$f":"IFERROR(IF(VLOOKUP(D15,'URN List'!$A:$A,1,0)=D15,CHAR(252),CHAR(251)),\"\")","v":""},"Contracting Authority 5"]
["",{"$f":"IFERROR(IF(VLOOKUP(D16,'URN List'!$A:$A,1,0)=D16,CHAR(252),CHAR(251)),\"\")","v":""},"Contracting Authority 6"]
["",{"$f":"IFERROR(IF(VLOOKUP(D17,'URN List'!$A:$A,1,0)=D17,CHAR(252),CHAR(251)),\"\")","v":""},"Contracting Authority 7"]
["",{"$f":"IFERROR(IF(VLOOKUP(D18,'URN List'!$A:$A,1,0)=D18,CHAR(252),CHAR(251)),\"\")","v":""},"Contracting Authority 8"]
["",{"$f":"IFERROR(IF(VLOOKUP(D19,'URN List'!$A:$A,1,0)=D19,CHAR(252),CHAR(251)),\"\")","v":""},"Contracting Authority 9"]
["",{"$f":"IFERROR(IF(VLOOKUP(D20,'URN List'!$A:$A,1,0)=D20,CHAR(252),CHAR(251)),\"\")","v":""},"Contracting Authority 10"]
["",{"$f":"IFERROR(IF(VLOOKUP(D21,'URN List'!$A:$A,1,0)=D21,CHAR(252),CHAR(251)),\"\")","v":""},"Contracting Authority 11"]
["",{"$f":"IFERROR(IF(VLOOKUP(D22,'URN List'!$A:$A,1,0)=D22,CHAR(252),CHAR(251)),\"\")","v":""},"Contracting Authority 12"]
["",{"$f":"IFERROR(IF(VLOOKUP(D23,'URN List'!$A:$A,1,0)=D23,CHAR(252),CHAR(251)),\"\")","v":""},"Contracting Authority 13"]
["",{"$f":"IFERROR(IF(VLOOKUP(D24,'URN List'!$A:$A,1,0)=D24,CHAR(252),CHAR(251)),\"\")","v":""},"Contracting Authority 14"]
["",{"$f":"IFERROR(IF(VLOOKUP(D25,'URN List'!$A:$A,1,0)=D25,CHAR(252),CHAR(251)),\"\")","v":""},"Contracting Authority 15"]
["",{"$f":"IFERROR(IF(VLOOKUP(D26,'URN List'!$A:$A,1,0)=D26,CHAR(252),CHAR(251)),\"\")","v":""},"Contracting Authority 16"]
["",{"$f":"IFERROR(IF(VLOOKUP(D27,'URN List'!$A:$A,1,0)=D27,CHAR(252),CHAR(251)),\"\")","v":""},"Contracting Authority 17"]
["",{"$f":"IFERROR(IF(VLOOKUP(D28,'URN List'!$A:$A,1,0)=D28,CHAR(252),CHAR(251)),\"\")","v":""},"Contracting Authority 18"]
["",{"$f":"IFERROR(IF(VLOOKUP(D29,'URN List'!$A:$A,1,0)=D29,CHAR(252),CHAR(251)),\"\")","v":""},"Contracting Authority 19"]
["",{"$f":"IFERROR(IF(VLOOKUP(D30,'URN List'!$A:$A,1,0)=D30,CHAR(252),CHAR(251)),\"\")","v":""},"Contracting Authority 20"]
["",{"$f":"IFERROR(IF(VLOOKUP(D31,'URN List'!$A:$A,1,0)=D31,CHAR(252),CHAR(251)),\"\")","v":""},"Contracting Authority 21"]
["",{"$f":"IFERROR(IF(VLOOKUP(D32,'URN List'!$A:$A,1,0)=D32,CHAR(252),CHAR(251)),\"\")","v":""},"Contracting Authority 22"]
["",{"$f":"IFERROR(IF(VLOOKUP(D33,'URN List'!$A:$A,1,0)=D33,CHAR(252),CHAR(251)),\"\")","v":""},"Contracting Authority 23"]
["",{"$f":"IFERROR(IF(VLOOKUP(D34,'URN List'!$A:$A,1,0)=D34,CHAR(252),CHAR(251)),\"\")","v":""},"Contracting Authority 24"]
["",{"$f":"IFERROR(IF(VLOOKUP(D35,'URN List'!$A:$A,1,0)=D35,CHAR(252),CHAR(251)),\"\")","v":""},"Contracting Authority 25"]
["",{"$f":"IFERROR(IF(VLOOKUP(D36,'URN List'!$A:$A,1,0)=D36,CHAR(252),CHAR(251)),\"\")","v":""},"Contracting Authority 26"]
["",{"$f":"IFERROR(IF(VLOOKUP(D37,'URN List'!$A:$A,1,0)=D37,CHAR(252),CHAR(251)),\"\")","v":""},"Contracting Authority 27"]
["",{"$f":"IFERROR(IF(VLOOKUP(D38,'URN List'!$A:$A,1,0)=D38,CHAR(252),CHAR(251)),\"\")","v":""},"Contracting Authority 28"]
["",{"$f":"IFERROR(IF(VLOOKUP(D39,'URN List'!$A:$A,1,0)=D39,CHAR(252),CHAR(251)),\"\")","v":""},"Contracting Authority 29"]
["",{"$f":"IFERROR(IF(VLOOKUP(D40,'URN List'!$A:$A,1,0)=D40,CHAR(252),CHAR(251)),\"\")","v":""},"Contracting Authority 30"]
[null,null,"Total number of hours",null,null,null,null,null,null,null,null,{"$f":"SUM(L11:L40)","v":0}]
[null,null,"If  your organisation can demonstrate that it has supplied the minimum total number of hours required using less than the 30 Contracting Authorities provided for in the table, you are not required to continue to complete the numbers of hours for the rest of the Contracting Authorities. "]
[null,null,"If your organisation fails to demonstrate that it has supplied the minimum total number of hours required in response to this question or it can be shown that your organisation has provided false information in its response to this question, this shall result in your organisation's Tender being disqualified from further participation in this Procurement in respect of Lot 6. "]
[null,null,"Marking Scheme",null,"Evaluation Guidance"]
[null,null,"Pass",null,"Your organisation has completed the Cover Sheet, the table above and uploaded this completed workbook, to demonstrate supply of Temporary Workers within the scope of the job profiles of Lot 6 as stated in Attachment 2c - Schedule 1 - Appendix A - Person Specification for the minimum total number of hours within a period of 12 consecutive calendar months during the three (3) year period starting on 1 April 2016 using up to the 30 Contracting Authorities provided for in the table and the Authority is satisfied that the number of hours stated in the table above is correct"]
[null,null,"Fail",null,"Your organisation has not completed the Cover Sheet, the table above and uploaded this completed workbook, to demonstrate supply of Temporary Workers within the scope of the job profiles of Lot 6 as stated in Attachment 2c - Schedule 1 - Appendix A - Person Specification, or does not meet the minimum required total number of hours within a period of 12 consecutive calendar months during the three (3) year period starting on 1 April 2016 and/or the Authority is not satisfied that the information stated is incorrect."]
[null,null,null,null,"OR "]
[null,null,null,null,"This question has not been answered."]

{"sheet":"Named Ranges","index":10,"n_rows":15,"n_cols":6,"rows_kept":15,"cut":false,"hidden":true,"merged":[]}
["Lot 1","Lot 2","Lot 3","Lot 4","Lot 5","Lot 6"]
["Administration and Secretarial","Finance, Accounts and Audit ","IM&T Technician ","Paralegal","Clinical Coding/ Health Records ","Catering"]
["Finance, Accounts and Audit ","HR","IM&T Analyst","Legal Secretary",null,"Drivers (Inc HGV, Folklift Operator)"]
["HR","Library Services","IM&T Technical Engineer Specialist","Lawyer",null,"Drivers (Inc Emergency Services)"]
["IT","Procurement and Supplies","IM&T Consultant ",null,null,"Driver (General)"]
["Library Services","Project Management","Project Management",null,null,"General Labour "]
["Medical Secretaries","Public Relations & Customer Services ",null,null,null,"Specialist Labour e.g. Electrician"]
["Procurement and suppliers","Senior Business",null,null,null,"Surveyor "]
["Project Management ","Media Services ",null,null,null,"Porters/Cleaning"]
["Public Relations & Customer Services ",null,null,null,null,"Security "]
[null,null,null,null,null,"Sterile Services"]
[null,null,null,null,null,"Stores (Logistics)"]
[null,null,null,null,null,"Scientific"]
[null,null,null,null,null,"Enviromental"]
[null,null,null,null,null,"Animal "]

{"sheet":"URN List","index":11,"n_rows":50737,"n_cols":4,"rows_kept":4500,"cut":true,"hidden":false,"merged":[],"bounds":{"rows_first":2000,"rows_last":500,"rows_between":2000,"halvings":0}}
["URN","URN Check","Organisation Name","Address"]
[10029523,{"$f":"CHAR(252)","v":"ü"},"(Bionow) The Centre of Excellence for Life Sciences Ltd","MANCHESTER SCIENCE PARK ,PENCROFT WAY,,,,M15 6SZ"]
[10028920,{"$f":"CHAR(252)","v":"ü"},"(Closed) Beta Partnerships","Trent Street,,,West Yorkshire,England,LS119RY"]
[10007632,"ü","(Closed) Central Office of Information","Hercules House,Hercules Road,,Greater London,England,SE1 7DU"]
[10015062,"ü","(Closed) Defence Communication Services Agency (DCSA) Defence Information Infrastructure","DII,HQBFC,,,BFP,BFPO 53"]
[10006938,"ü","(Closed) Defence Storage and Distribution Agency","B O D Donnington,School Road,Donnington,,Shropshire,England,TF2 8JT"]
[10025084,"ü","(closed) Defence Storage and Distribution Agency (DSDA) Crombie","Ordnance Road,Crombie,,Fife,Scotland,KY12 8LA"]
[10025224,"ü","(Closed) DSDA Dulman","SBS,Building 6,Tuzo Strasse 1,,England,BFPO140"]
[10025846,"ü","(closed) DSDA Gosport","DSDA Gosport,Fareham Road,,Hampshire,England,PO13 0AH"]
[10026757,"ü","(closed) DSDA Plymouth","Ernesettle Lane,,,Devon,England,PL5 2TX"]
[10019001,"ü","(Closed) General Commissioners of Income Tax Tribunal","Tax Tribunals Branch,1st Floor,4 Abbey Orchard Street,Greater London,England,SW1P 2HT"]
[10015147,"ü","(Closed) Grange School","77 Dickenson Road,,Rusholme,Greater Manchester,England,M14 5AZ"]
[10040353,"ü","(closed) HMS Quorn","Royal Navy,,,,England,BFPO 366"]
[10012517,"ü","(Closed) London Thames Gateway Development Corporation","10th Floor,2 Exchange Street,Harbour Exchange Square,Greater London,England,E14 9GS"]
[10015008,"ü","(Closed) MOD Defence Communication Services Agency (DCSA) Arncott","LAIPT Commercial,Room 72,DCSA Arncott,Oxfordshire,England,OX25 1LP"]
[10004561,"ü","(closed) RAF Church Fenton","Main Office,,,North Yorkshire,England,LS24 9SE"]
[10004362,"ü","(Closed) RAF Coltishall","Barrack Stores,Coltishall,,Norfolk,England,NR10 5AJ"]
[10003887,"ü","(Closed) RAF Uxbridge","Domestic Supply Flight,OC Comms FLT,,Middlesex,England,UB10 0RZ"]
[10042346,"ü","(DE&S) Defence Equipment and Support (Project Bennu)","Abbey Wood,,,West Midlands,England,BS34 8JH"]
[10043157,"ü","(DE&S) Defence Equipment and Support - HQ (Bristol)","Abbey Road,,,Avon,England,BS34 8QW"]
[10050968,"ü","(DE&S) Security","Abbey Wood,,,Somerset,England,BS34 8JH"]
[10542016,"ü","(DE&S) Transformation Team","Abbey Wood,,,Somerset,England,BS34 8JH"]
[10029405,"ü","(DIO) ASPIRE DEFENCE","WELLINGTON HOUSE,ST OMER BARRACKS,ALISONS ROAD,Hampshire,England,GU11 2BG"]
[10035059,"ü","(DIO) Aspire Defence Services Limited","Aspire Business Centre,Ordnance Road,,Wiltshire,England,SP9 7QD"]
[10014523,"ü","(DIO) Defence Fuels Group","West Moors,,,,,BH21 6QS"]
[10034504,"ü","(DIO) Defence Housing Executive","ORDNANCE RD,,,Hampshire,England,GU11 2AA"]
[10005952,"ü","(DIO) Defence Land Agent","Estate Office,High Street,,Wiltshire,England,SP4 8AF"]
[10541629,"ü","(Ldon Borough Of Ealing) Penvale Prim Sc",",,,,England,W5 2HL"]
[10003877,"ü","(NATO) North Atlantic Treaty Organisation","Atlantic Building,Northwood Headquarters,,Middlesex,England,HA6 3HP"]
[10579548,"ü","(Procurement and Logistics Service)",",,,,,"]
[10003894,"ü","(RSPCA) Royal Society for the Prevention of Cruelty to Animals","Wilberforce Way,Southwater,,West Sussex,England,RH13 9RS"]
[10011484,"ü","@Wales Digital Media Initiative","Cymric Buildings,,West Bute Street,,South Glamorgan,Wales,CF10 5LL."]
[10042555,"ü","101 Medical Practice","101 Portland Street,,,Ayrshire,Scotland,KA10 6QN"]
[10025399,"ü","101 Regiment Royal Artillery","101 Regt RA 9V) Wksp REME,Kingston Park TAC,Airport Industrial Estate,Tyne and Wear,England,NE3 2EF"]
[10541443,"ü","1032 (Yeovil) Squadron Air Training Corps","Milford Road,,,Somerset,England,BA21 4QF"]
[10006450,"ü","103 Battalion Reme V","TA Centre Kilnmead,Batts Hill,Northgate,,West Sussex,England,RH10 2BG"]
[10040425,"ü","103 Regt Royal Artillery, Regimental Headquarters","103 Regiment Royal Artillery (V),Jubilee Barracks,Prescot Road,Lancashire,England,WA10 3UB"]
[10040390,"ü","104th Regiment Royal Artillery","Raglan Barracks,,,Gwent,Wales,NP20 5XE"]
[10044071,"ü","107th Deby Scouts Group","Chellaston Lane,Aston-on-Trent,,Derbyshire,England,DE72 2AX"]
[10541630,"ü","10Th Mansfield Scout Group","Trinity House,Robey Close,Linby,,England,NG15 8AA"]
[10041981,"ü","1101 Kettering & District Squadron Air Training Corps","Northampton Road,,,Northamptonshire,England,NN15 7JZ"]
[10041862,"ü","1145 Dunfermline Squadron ATC Non Public Sports and Welfare Fund","Hilton Road,Rosyth,,Fife,Scotland,KY112XH"]
[10023576,"ü","11 EOD Regiment","Quartermasters Department,Vauxhall Barracks,,Oxfordshire,England,OX11 7ES"]
[10541631,"ü","11Th Ipswich Scout Group","Scout Hut,Chesterfield Drive,,Suffolk,England,IP1 6DW"]
[10581091,"ü","1207 Maldon Squadron Air Cadets","Drill Hall, Tenterfield Road,,,,,CM9 5EW"]
[10541632,"ü","1220 (March) Sqn ATC","Gas Road,,,,England,PE15 9LU"]
[10040417,"ü","12th Mechanised Brigade Headquarters","Ward Barracks,Bulford Camp,,Wiltshire,England,SP4 9NA"]
[10564966,"ü","1403 Squadron Retford Air Cadets","Cadet Training Centre,Hallcroft Road,,Nottinghamshire,England,DN22 7LB"]
[10563671,"ü","1404 CHATHAM SQN ATC","Boundary Road,,,Kent,England,ME4 6TS"]
[10541633,"ü","1406(Spalding)Air Training Corp","Castle Sports Complex,Pinchbeck Road,,Lincolnshire,England,PE11 1QF"]
[10541634,"ü","1438 Prescot Squadron Air Training Corp","Cumber Lane,Whiston,,Merseyside,England,L35 2XG"]
[10032674,"ü","14th Signal Regiment","Cawdor Barracks,St Davids,.,Dyfed,Wales,SA62 6NN"]
[10051556,"ü","1507 (CHESTER LE STREET) SQUADRON, AIR TRAINING CORPS","RFCA Centre, Picktree Lane, Chester-le-Street,,,,England,DH3 3SR"]
[10005315,"ü","151 Greater London Regt Rct V","TA Centre,Sydenham Road,,Surrey,England,CR0 2EW"]
[10040357,"ü","153 Thiepval Barracks","Magheralve Road,,,County Down,Northern Ireland,BFPO 801"]
[10004866,"ü","15 Rgt RLC","Parsons Barracks,Donnington,,Shropshire,England,TF2 8LS"]
[10040374,"ü","15 Signal Regiment Information Support","Babbage Building,Blandford Camp,,Dorset,England,DT11 8RH"]
[10577403,"ü","16-19 Abingdon",",,,,,"]
[10006795,"ü","16 Regiment RA","Royal Artillery Barracks,Woolwich,,Greater London,England,SE18 6LS"]
[10040382,"ü","16 Regiment Royal Artillery","Quartermaster's Department, Building 34, St Georges Barracks,North Luffenham,Oakham,Leicestershire,England,LE15 8RL"]
[10006796,"ü","170 Community Project","170 New Cross Road,,,Greater London,England,SE14 5AA"]
[10581074,"ü","170 Engineer Group",",,,,,"]
[10040399,"ü","1710 Naval Air Squadron","Unicorn Building,HM Naval Base,,Hampshire,England,PO1 3GX"]
[10040410,"ü","17 Port and Maritime Regiment RLC","Medical Centre Marchwood,McMullen Barracks,,Hampshire,England,SO40 4ZG"]
[10034146,"ü","1825 Project Limited The","Moylinn House,21 Legahory Centre,Legahory,County Armagh,Northern Ireland,BT65 5BE"]
[10023575,"ü","18 Signals Regiment","Sterling Lines,Credenhill,,Herefordshire,England,HR4 7DD"]
[10018563,{"$f":"CHAR(252)","v":"ü"},"1940 Squadron Air Training Corps","7 Lynwood Grove,,,Cheshire,England,SK4 5DP"]
[10004502,"ü","19 Mech Bde and Catterick Garrison HQ","Peronne House,Scotton Road Catterick Garrison,,North Yorkshire,England,DL9 3JS"]
[10034240,"ü","1A Arts Etc","1A Rosebery Avenue,,,,England,EC1R 4SR"]
[10027706,"ü","1-Greatlife Limited","SPARROWS HERNE,CLAYHILL LANE,KINGSWOOD,Essex,England,SS16 5JP"]
[10043283,"ü","1 Logistics Support Regiment","London Road,,,Oxfordshire,England,OX26 6HF"]
[10032703,"ü","1NG Limited","9th Floor,Baltic Place East,South Shore Road,Tyne and Wear,England,NE8 3AE"]
[10006790,"ü","1 PWO Dale Barracks","Quartermaster Department,The Dale Barracks,,Cheshire,England,CH2 4BD"]
[10040379,"ü","1 R Anglian Regiment","Elizabeth Barracks,,,Surrey,England,GU24 0DT"]
[10006791,"ü","1 Royal Welsh Fusiliers","Main Office,,,County Antrim,Northern Ireland,BFPO 802"]
[10004865,"ü","1 Staffords","Ternhill,,,Shropshire,England,TF9 3QE"]
[10040420,"ü","1st Battalion Genadier Guards Lille Barracks","Wellington Barracks,Birdcage Walk,,Greater London,England,SW1E 6HQ"]
[10042275,"ü","1st Battalion The Royal Welsh","Lucknow Barracks,,,Wiltshire,England,SP9 7BU"]
[10044099,"ü","1st Battalion The Yorkshire Regiment","Battlesbury Barracks, Woodcock Lane,,,Yorkshire,England,BA12 9DT"]
[10582557,"ü","1st Cathays Al-Huda Scout Group","Scout Hall, 21-23 Wyverne Road, Cardiff, CF24 4BG,,,,,"]
[10021325,"ü","1st Dental Laboratories Plc","1st Dental Laboratories Plc,112 Wetherby Road,,North Yorkshire,England,HG2 7AB"]
[10041947,"ü","1st Framwellgate Moor Scout Group","Newcastle Terrace,,,County Durham,England,DH1 5EG"]
[10021239,"ü","1st Kilrea Presbyterian Church","1st Kilrea Presbyterian Church,6 Garvagh Road, Kilrea,Coleraine,,England,BT51 5QP"]
[10028598,"ü","1st Lyonsdown Scout Group","York Road,,,Essex,England,EN5 1LL"]
[10541570,"ü","1st Old Malden (St John the Baptist) Scout Group","411 Malden Road,,,,England,KT4 7NY"]
[10541635,"ü","1st Osterley Scout Group","61 Osterley Road,,,Middlesex,England,TW7 4PW"]
[10041734,"ü","1st Osterley Scout Group","61 Osterley Road,,,,England,TW7 4PW"]
[10019203,"ü","1st Place Children and Parents Centre","Chumlaigh Street,,Burgess Park,Greater London,England,SE5 ORN"]
[10541636,"ü","1St Portishead Scout Group","72 Mendip Road,Portishead,,,England,BS20 6DG"]
[10040347,"ü","1 UK Armoured Division","Wentworth Barracks,,Org Type,,England,BFPO 15"]
[10562168,"ü","2:30 LIMITED","The Elizabeth Street Dental Centre,11 Elizabeth Street,,,England,NN17 1RZ"]
[10024091,"ü","2012 Liverpool","West House,Mercury Court,Tithebarn Street,Merseyside,England,L2 2QP"]
[10016751,"ü","20 20 Housing Co operative Limited","16 Park Road,Moseley,,West Midlands,England,B13 8AB"]
[10541988,"ü","204 (City of Lincoln) Sqn Air Cadets","T A Centre,Sobraon Barracks,Burton Road,Lincolnshire,England,LN1 3PY"]
[10541637,"ü","2152 (North Bristol) Squadron ATC","Pine Grove,,,Somerset,England,BS7 0SL"]
[10040368,"ü","225 Div General Support Medical Regiment V RHQ","Block 5,Oliver Barracks,Dalkeith Road,Tayside,Scotland,DD4 7DL"]
[10032750,"ü","22 Engineer Barracks","Building Swo003, Officers Mess,Swinton Barracks,Perham Down,Wiltshire,England,SP11 9LQ"]
[10036081,"ü","22 Special Air Service Regt","Stirling Lines, Junior Ranks,Credenhill,,Herefordshire,England,HR4 7BZ"]
[10001426,"ü","2358 Ferndown Squadron ATC","Air Training Corps (Cadet Organisation),Cherry Grove,,Dorset,England,BH22 9EY"]
[10541638,"ü","2397 (Devizes) Squadron ATC","Franklyn Road,,,Devon,England,SN10 2FE"]
[10004615,"ü","23 Pioneer Regiment","St Davids Barracks,,,Oxfordshire,England,OX26 6HF"]
[10541639,"ü","2412 Bordon And District ATC","Wolfe House,Farnham Road,,,England,GU35 0NH"]
[10563660,"ü","2461 (SAWSTON) SQUADRON ATC","Hayfield Avenue,Sawston,Cambridgeshire,,,CB2 4JZ"]
[10541640,"ü","2484 Bassingbourn Squadron ATC","Bassingbourn Barracks,Royston,,Herefordshire,England,SG8 5LX"]
[10050936,"ü","2495 (Hythe) Sqn ATC","Unit 2,Hythe Marine Park,Shore Road\nHythe,Hampshire,England,SO45 6HE"]
[10001567,"ü","24 Bde HQ","Gryphon House,Gooserat Barracks,,Essex,England,CO2 7ST"]
[10040376,"ü","24 Commando Engineer Regiment","RMB Chivenor,,,Devon,England,EX31 4AZ"]
[10031010,"ü","251 Signal Squadron","Mercury Lines,Ordnance Barracks,Government Road,Hampshire,England,GU11 2DX"]
[10040404,"ü","256 Field Hospital","71 Braganza Street,Walworth,,,,SE17 3RF"]
[10005470,"ü","25 Training Regiment","The Princess Royal Barracks, Deepcut,,,,Surrey,England,GU16 6RW"]
[10541641,"ü","261 Guildford Squadron Air Training","Stockton Close,,,,England,GU1 1HR"]
[10541642,"ü","266 Squadron (Stockton) ATC Welfare Fund","T A Centre,Norton Road,,,England,TS20 2QW"]
[10577632,"ü","27 BEAUMONT STREET Surgery","27 Beaumont Street,,,,England,OX12NR"]
[10040386,"ü","299 Signal Squadron","TA Centre,Water Eaton Road,,Buckinghamshire,England,MK3 5HQ"]
[10001114,"ü","29 CDO REGT RA","The Royal Citadel,,,Devon,England,PL1 2PD"]
[10578485,"ü","29 Explosive Ordnance Disposal and Search Group Support Unit","Carver Barracks,Wimbish,,,England,CB10 2YA"]
[10578603,"ü","2buy2","Pencoed Technology Park,Pencoed,,,Wales,CF35 5HZ"]
[10016750,"ü","2 Care","11 Harwood Road,,,Greater London,England,SW6 4QP"]
[10024949,"ü","2 Div ASU","Piave House,Piave Road,,North Yorkshire,England,dl9 3lr"]
[10025959,"ü","2gether NHS Foundation Trust","Rikenel,,Montpellier,,Gloucestershire,England,GL1 1LY"]
[10579458,"ü","2gether Support Solutions Ltd","Kent & Canterbury Hospital,Ethelbert Road,,Kent,England,CT1 3NG"]
[10583569,"ü","2gether Support Solutions Ltd","William Harvey Hospital,,,Kent,England,TN24 0LZ"]
[10005925,"ü","2nd (NC) Signal Brigade HQ (TA)","Basil Hill Barracks,Park Lane,,Wiltshire,England,SN13 9NR"]
[10040402,"ü","2nd Battalion The Duke of Lancaster's Regiment","Weeton Barracks,Weeton,,Lancashire,England,PR4 3JQ"]
[10040419,"ü","2nd Battalion The Royal Welsh","Lucknow Barracks,Tidworth Garrison,Lowa Road,Wiltshire,England,SP9 7BU"]
[10035452,"ü","2nd Cuddington Rowe Scout Group","Salisbury Road,,,,England,KT4 7DD"]
[10040373,"ü","2nd Infantry Training Battalion","28, Helles Barracks,,,North Yorkshire,England,DL9 4HH"]
[10004123,"ü","2 SSU - Army","MQESSSU Albermare Barracks,Harlow Hill,,Northumberland,England,NE15 0AH"]
[10004503,"ü","2 SSU HQ - Caterick","Piave House Piave Lines,Leyburn Rd Caterick Garrison,,North Yorkshire,England,DL9 3LR"]
[10050980,"ü","309 (Sawbridgeworth) Air Training Corps","Cutforth Road,,,Hertfordshire,England,CM21 9EA"]
[10040396,{"$f":"CHAR(252)","v":"ü"},"30 Commando Exploitation Group","RM B31, East Block,Building 111,RM Stonehouse,Devon,England,PL1 3QS"]
[10006383,"ü","30 Signal Regiment","Gamecock Barracks,,,Warwickshire,England,CV11 6QN"]
[10541643,"ü","31st Scouts Group Minibus","45 Lanarck Road West,,,,Scotland,EH14 5JX"]
[10541644,"ü","331 Chesterfield Sqn ATC","Wallis Barracks,Boythorpe Road,,Derbyshire,England,S40 2NH"]
[10025980,"ü","34F Balham and Tooting Air Training Corps","TA Centre, 213 Balham High Road,,,Greater London,England,SW17 7BQ"]
[10055216,"ü","360 Assurance","Riverside House,Bridge Park Road,Thurmaston,,England,LE4 8BL"]
[10563436,"ü","372 Barry Squadron ATC",",,,,,CF63 1FJ"]
[10030248,"ü","37 Section SIB (UK) RMP","Royal Military Police (RMP),,,Essex,England,CO2 7NZ"]
[10006799,"ü","383 CDO PET TP RLC (V)","TA Centre Brest Road,,Derriford,,Devon,England,PL6 5EW"]
[10041346,"ü","38 Irish Brigade","Thiepval Barracks,Magheralve Road,,County Antrim,Northern Ireland,BFPO 825"]
[10040381,"ü","39 Engineer Regiment","RHQ Admin,,,Moray,Scotland,IV36 3UH"]
[10035008,"ü","39 Signal Regiment","T A Centre,Horfield Common,,Somerset,England,BS7 0XL"]
[10578866,"ü","3C ICT Shared Services","Huntingdon District Council,Pathfinder House,St Marys Street,,,PE29 3TN"]
[10040397,"ü","3 Commando Royal Marines OC","Royal Marines Stonehouse,Durnford Street,,Devon,England,PL1 3QS"]
[10578020,"ü","3C Shared Services","Mandela House,4 Regent Street,,Cambridgeshire,England,CB2 1BY"]
[10566299,"ü","3 Dimensions","Chardleigh House, Chardleigh Green, Wadeford,,,,,TA20 3AJ"]
[10040375,"ü","3 Military Intelligence Battalion","Ashford House,79-85 Worship Street,,Greater London,England,EC2A 2BE"]
[10018634,"ü","3M Security Printing and Systems Limited","Gorse Street,Chadderton,,Greater Manchester,England,OL9 9QH"]
[10042784,"ü","3rd Battalion The Royal Regiment of Scotland","Ardersier, Inverness,,,Inverness-shire,Scotland,IV1 7TD"]
[10564903,"ü","3SC CAPITALISE LIMITED","Ibex House,42-47 Minories,,,England,EC3N 1DY"]
[10005927,"ü","3 UK Div HQ","Picton Barracks, Bulford Camp,,,Wiltshire,England,SP4 9NY"]
[10044080,"ü","400 Troop, Royal Logistics Corps","Vimy Lines,,,North Yorkshire,England,DL9 3PS"]
[10004975,"ü","40 Commando Royal Marines","Norton Manor Camp,Norton Fitzwarren,,Somerset,England,TA2 6PF"]
[10051516,"ü","40th Fife (Touch) Scout Group","39 Wedderburn Crescent,,,Fife,Scotland,KY11 4SF"]
[10541672,"ü","413 Sqn ATC","Gallwey Road,,,Hampshire,England,GU11 2DF"]
[10002318,"ü","41 Sqn RCT","Gale Barracks,Alisons Road,,Hampshire,England,GU11 2BZ"]
[10001193,"ü","42 CDO Room","Bickleigh Bks,,,Devon,England,PL6 7AJ"]
[10006800,"ü","42 Engineer Regiment Geographic","The Quartermaster Department,Denison Barracks,Hermitage,Berkshire,England,RG18 9TP"]
[10034392,"ü","42nd Street Community Based","The Space,87-91 Great Ancoats Street,,Lancashire,England,M4 5AG"]
[10583508,"ü","44th Boys Brigade Company","370 Queen Street,,,,,DD5 2HQ"]
[10028808,"ü","45 Commando Royal Marines","RQ Base Coy,Naval Stores,RM Condor,Angus,Scotland,DD11 3SJ"]
[10541645,"ü","479 (Rubery) Squadron ATC","Callowbridge Road,Rubery,Rednal,West Midlands,England,B45 9JF"]
[10022117,"ü","4C Associates","26 York Street,,,Greater Manchester,England,M1 4JB"]
[10029004,"ü","4Children","Minerva Centre,Burnham Road,Mundon,Essex,England,CM9 6NP"]
[10040383,"ü","4 Para (V)","Thornbury Barracks,,,West Yorkshire,England,LS28 8HH"]
[10011340,"ü","4Ps","South Entrance 7th Floor,Artillery House Artillery Row,Westminster,Greater London,England,SW1P 1RT"]
[10004504,"ü","4 Regt Royal Artillery","40 Alanbrooke Barracks,,,North Yorkshire,England,YO7 3EY"]
[10582552,"ü","4Sight Vision Support","36 Victoria Drive,,,West Sussex,England,PO21 2TE"]
[10040416,"ü","4th Battalion - The Rifles","Ward Barracks,Bulford Camp,,Wiltshire,England,SP4 9NA"]
[10055172,"ü","4th Fulwood Methodist Scouts","3 Moorgate,Fulwood,,Lancashire,England,PR2 8LT"]
[10012245,"ü","4th South Bank Scout Group","36 Langley Close,,,Cleveland,England,TS10 4JE"]
[10001115,"ü","50 51 Housing Association Limited","50 Magdalen Street,,,Devon,England,EX2 4HY"]
[10563437,"ü","51 (Orton) Squadron ATC",",,,,,PE12 7DG"]
[10004791,"ü","51 Highland Brigade HQ","Highland House,,7 St Leonards Bank,,Perthshire,Scotland,PH2 8EB"]
[10033675,"ü","5th Regiment - Royal Artillery","Catterick,,,North Yorkshire,England,DL10 7NP"]
[10003927,"ü","5th Staines Sea Scout Group","133 Grosvenor Road,,,Middlesex,England,TW18 2RP"]
[10578240,"ü","6 (Reserve) Regiment Army Air Corps","Blenheim Camp,Newmarket Road,,Suffolk,England,IP33 3SW"]
[10002319,"ü","63 Signal Squadron","F of S,Baker Barracks,,Hampshire,England,PO10 8ER"]
[10563438,"ü","68 Squadron (Westbury) ATC",",,,,,BA13 3AH"]
[10036359,"ü","700 Club","Grange Road,,,County Durham,England,DL1 5NH"]
[10040367,"ü","71 Yeomanry Signal Regiment","Army Reserve Centre,Watling Street,,,,DA6 7QQ"]
[10043303,"ü","7 Brooks Medical Practice","21 Church Street,Atherton,,Greater Manchester,England,M46 9DE"]
[10040403,"ü","7 Rifles","Brock Barracks,Oxford Road,,Berkshire,England,RG30 1HW"]
[10040388,"ü","7th Infantry Brigade","Chetwynd Barracks,Chilwell,Beeston,Nottinghamshire,England,NG9 2HA"]
[10006805,"ü","7th St Georges Scouts","121 Clough Lane Mixenden,,,West Yorkshire,England,HX2 8SN"]
[10541646,"ü","90 (Speke) ATC","39 Woolton Road,Garston,,Merseyside,England,L19 5ND"]
[10583104,"ü","94 (FELTHAM) SQUADRON, AIR TRAINING CORPS","30a Oak Avenue,,,,,TW12 3NX"]
[10032256,"ü","9 Regiment","Buckley Barracks, Stanton St Quinton,,,Wiltshire,England,SN14 6BT"]
[10541648,"ü","A.D.A.P.T","Burn Lane,,,Northumberland,England,NE46 3HN"]
[10015835,"ü","A1 Housing Bassetlaw Limited","Carlton Forest House,Hundred Acre Lane,,Nottinghamshire,England,S81 0TS"]
[10017011,"ü","A2Dominion","15th Floor Capital House,25 Chapel Street,,Greater London,England,NW1 5WX"]
[10028187,"ü","A2 Home Ownership Limited",",,,,,"]
[10028188,"ü","A2 Housing Care and Support Limited",",,,,,"]
[10028189,"ü","A2 Housing Solutions Limited",",,,,,"]
[10021648,{"$f":"CHAR(252)","v":"ü"},"A4e Limited","Bessemer Road,,,South Yorkshire,England,S9 3XN"]
[10040133,"ü","A690 Youth Initiative","Grindon Lane,,,Tyne and Wear,England,SR3 4EN"]
[10018715,"ü","Aashyana Housing Association","429 Stapleton Road,,,Avon,England,BS5 6NA"]
[10015883,"ü","Abaana","40 Marlo Park,,,County Down,Northern Ireland,BT19 6NL"]
[10566364,"ü","Abacus Belsize Primary School","Jubilee Waterside Centre, ,105 Camley Street,,Greater London,England,N1C 4PF"]
[10571486,"ü","Abacus Primary School","Tresco Way, The Wick,,,,,SS12 9GJ"]
[10001568,"ü","Abacus Primary School","Tresco Way,,,Essex,England,SS12 9JG"]
[10576221,"ü","Abbas and Templecombe Church of England Primary School","School Lane,,,,,BA8 0HP"]
[10006316,"ü","Abberley Hall","Abberley,,,Worcestershire,England,WR6 6DD"]
[10006806,"ü","Abberley Parochial VC Primary School","Apostles Oak,Abberley,,Worcestershire,England,WR6 6AA"]
[10028733,"ü","Abbey Caldew Hospital","64 Dalston Road,,,Cumbria,England,CA2 5NW"]
[10038223,"ü","Abbey Catholic Primary School","Sutton Road,,,West Midlands,England,B23 6QL"]
[10036100,"ü","Abbey Church of England Voluntary Aided Primary School The","Grove Road,,,Hertfordshire,England,AL1 1DQ"]
[10576905,"ü","Abbey CofE Academy","Vicar Lane,,,,,NN11 4GD"]
[10043457,"ü","Abbey C of E Infant & Nursery School","Aston Road,,,Warwickshire,England,CV11 5EL"]
[10024642,"ü","Abbey College","Abbey Road,Ramsey,,Cambridgeshire,England,PE26 1DG"]
[10024508,"ü","Abbey College Cambridge","17 Station Road,,,Cambridgeshire,England,CB1 2JB"]
[10574818,"ü","Abbey College Cambridge","Homerton Gardens,,,,,CB2 8EB"]
[10572604,"ü","Abbey College in Malvern","253 Wells Road,,,,,WR14 4JF"]
[10572785,"ü","Abbey College Manchester","5-7 Cheapside,,,,,M2 4WG"]
[10006807,"ü","Abbey Community Association","34 Great Smith Street,,,Greater London,England,SW1P 3BU"]
[10571363,"ü","Abbey Court Foundation Special School","Rede Court Road, Strood,,,,,ME2 3SP"]
[10040462,"ü","Abbeycroft Leisure Centre","Beetons Way,,,Suffolk,England,IP33 3TT"]
[10024712,"ü","Abbeydale Grange School","Hastings Road,,,South Yorkshire,England,S7 2GU"]
[10035838,"ü","Abbeydale Playgroup","Abbeydale Community Centre,Glevum Way,,Gloucestershire,England,GL4 4BL"]
[10006812,"ü","Abbeyfield","Seafield Street,,,Aberdeenshire,Scotland,AB45 1EB"]
[10035033,"ü","Abbeyfield","The Old House,Epsom Road,,Surrey,England,KT17 1JZ"]
[10038034,"ü","Abbeyfield","Bucklow House,Chelford Road,Ollerton,Cheshire,England,wa16 8se"]
[10017629,"ü","Abbeyfield Abbots Langley Society Limited The","c/o Mr Marcus G Coultrup,26 Follett Drive,,Hertfordshire,England,WD5 0LR"]
[10017630,"ü","Abbeyfield Addiscombe Society Limited The","65 Shirley Avenue,Shirley,,Surrey,England,CR0 8SP"]
[10017631,"ü","Abbeyfield Alnwick Society Limited The","Ravenslaw House,South Road,,Northumberland,England,NE66 2NZ"]
[10017632,"ü","Abbeyfield Alresford and District Society Limited The","Mr Peter Pooley,Bailey House,Station Road,Hampshire,England,SO24 9JG"]
[10017633,"ü","Abbeyfield Alton Society Limited The","Abbeyfield House,88 Normandy Street,,Hampshire,England,GU34 1DH"]
[10028191,"ü","Abbeyfield Andover Society Limited The","14 Silchester Close,,,Hampshire,England,SP10 3RL"]
[10002586,"ü","Abbeyfield and St Albans Society","Grace Murial house,Tavistock Avenue,Watton at stone,Hertfordshire,England,AL1 2NW"]
[10017634,"ü","Abbeyfield Axminster Society Limited The","Abbeyfield House,Silver Street,,Devon,England,EX13 5AH"]
[10028192,"ü","Abbeyfield Banbury Society Limited The","Abbeyfield House,1 The Hawthorns,,Oxfordshire,England,OX16 9FA"]
[10017635,"ü","Abbeyfield Barking and Havering Society Limited The","51 Elmhurst Drive,,,Essex,England,RM11 1NZ"]
[10017636,"ü","Abbeyfield Barrow in Furness Society Limited The","Abbeyfield Millennium House,237 - 241 Dalton Road,,Cumbria,England,LA14 1PQ"]
[10017638,"ü","Abbeyfield Basildon Society Limited The","c/o Dr G Bond,Chairman,210 Clayhill Road,Essex,England,SS16 4AA"]
[10028193,"ü","Abbeyfield Basingstoke and District Society Limited","Roland House,28 Cliddesden Road,,Hampshire,England,RG21 3EP"]
[10017639,"ü","Abbeyfield Beccles Society Limited The","Abbeyfield House,Ravensmere,,Suffolk,England,NR34 9BE"]
[10017640,"ü","Abbeyfield Beckenham Society Limited The","8 Oakwood Avenue,,,Kent,England,BR3 6PJ"]
[10017641,"ü","Abbeyfield Bedford Society Limited The","The Administrator,Abbeyfield Office,18 Linden Road,Bedfordshire,England,MK40 2DA"]
[10017642,"ü","Abbeyfield Bentham Society Limited The","Abbeyfield House,30 Main Street,,Lancashire,England,LA2 7HN"]
[10017643,"ü","Abbeyfield Berkhamsted and Hemel Hempstead Soc The","Charter Court,Midland Road,,Hertfordshire,England,HP2 5GE"]
[10017644,"ü","Abbeyfield Berwick Society Limited The","Castle Vale House,Off Railway Street,,Northumberland,England,TD15 1NF"]
[10017645,"ü","Abbeyfield Billericay Society Limited The","Archer House,Laindon Road,,Essex,England,CM12 9LD"]
[10028194,"ü","Abbeyfield Birstall and Wanlip Society Limited The",",,,,,"]
[10017646,"ü","Abbeyfield Bishops Castle and District Soc Limited The","Abbeyfield House,Oak Meadow,,Shropshire,England,SY9 5PA"]
[10017647,"ü","Abbeyfield Bishops Stortford Society Limited The","Nockolds,6 Market Square,,Hertfordshire,England,CM23 3UZ"]
[10017649,"ü","Abbeyfield Blackcombe Society Limited The","Alexander House,Chapel Lane,Bootle,Cumbria,England,LA19 5UE"]
[10017650,"ü","Abbeyfield Blackmore Vale Society Limited The","Abbeyfield House,Bleke Street,,Dorset,England,SP7 8JZ"]
[10017651,"ü","Abbeyfield Bognor Regis Society Limited","9 -17 Richmond Avenue,,,West Sussex,England,PO21 2YE"]
[10017606,"ü","Abbeyfield Bootle and Litherland Society Limited The","Abbeyfield House,13 Mitchell Crescent,Litherland,Merseyside,England,L21 9JD"]
[10028615,"ü","Abbeyfield Borough of Conway Society","Awel Mor,West End,Glan Conwy,Conwy,Wales,LL28 5SY"]
[10017652,"ü","Abbeyfield Bournemouth Society Limited The","Suite 8,36 Charminster Road,,Dorset,England,BH8 8UW"]
[10017654,"ü","Abbeyfield Bradford on Avon Society Limited The","Abbeyfield House,2 Trowbridge Road,,Wiltshire,England,BA15 1EP"]
[10017653,"ü","Abbeyfield Bradford Society Limited The","25 North Park Road,,,West Yorkshire,England,BD9 4NU"]
[10017655,"ü","Abbeyfield Braintree and Bocking Society Limited The","Wickham House,338 Coggeshall Road,,Essex,England,CM7 9EH"]
[10032745,"ü","Abbeyfield Brecon","Abbeyfield House,Camden Road,,Powys,Wales,LD3 7RT"]
[10016753,"ü","Abbeyfield Bristol Society","29 Alma Vale Road,Clifton,,Gloucestershire,England,BS8 2HL"]
[10028195,"ü","Abbeyfield Broadstairs Society Limited The","6 Luton Avenue,,,Kent,England,CT10 2DH"]
[10016754,"ü","Abbeyfield Bromley Society","Ash House,118 London Road,,Kent,England,BR1 3RL"]
[10017656,{"$f":"CHAR(252)","v":"ü"},"Abbeyfield Buckland Monachorum Society Limited The","Pilcher's Field,The Crescent,,Devon,England,PL20 7PS"]
[10028196,"ü","Abbeyfield Bude and Stratton Society Limited The","Abbeyfield,8 Burn View,,Cornwall,England,EX23 8BY"]
[10017657,"ü","Abbeyfield Burnham and Highbridge Society Limited The","Woodlands,15 Berrow Road,,Somerset,England,TA8 2EX"]
[10000401,"ü","Abbeyfield Burnham S Limited","98 High Street,,,Buckinghamshire,England,SL1 7JT"]
[10017607,"ü","Abbeyfield Burnham Society Limited The","3 Church Street,Burnham,,Berkshire,England,SL1 7HX"]
[10017658,"ü","Abbeyfield Burnley Society Limited The","32 Heightside Avenue,,,Lancashire,England,BB4 9HA"]
[10017660,"ü","Abbeyfield Bury Society Limited The","78 Tottington Road,,,Lancashire,England,BL8 1LL"]
[10017661,"ü","Abbeyfield Camborne Society Limited The","Heathervale,Redbrooke Road,,Cornwall,England,TR14 7AX"]
[10028197,"ü","Abbeyfield Cambridge Society Limited The","58a Station Road,Histon,,Cambridgeshire,England,CB24 9LF"]
[10017662,"ü","Abbeyfield Camden Society Limited The","'Rosemead',South Hill Avenue,,Middlesex,England,HA1 3PA"]
[10017663,"ü","Abbeyfield Camelford and District Society Limited The","Eversley Garth,Warrens Field,,Cornwall,England,PL32 9YS"]
[10017664,"ü","Abbeyfield Canvey Island Society Limited The","103 Long Road,,,Essex,England,SS8 0JB"]
[10017665,"ü","Abbeyfield Chalfonts Society Limited The","'Austenmead',56 School Lane,,Buckinghamshire,England,SL9 9BB"]
[10017666,"ü","Abbeyfield Cheam Society Limited The","Mingulay,17 Higher Drive,,Surrey,England,SM7 1PL"]
[10028198,"ü","Abbeyfield Chelmsford Society Limited The",",,,,,"]
[10017608,"ü","Abbeyfield Chelsea and Fulham Society Limited The","19 Lord Napier Place,Upper Mall,Hammersmith,Greater London,England,W6 8UB"]
[10017667,"ü","Abbeyfield Cheltenham Society Limited The","3 Amaranth Way,Up Hatherley,,Gloucestershire,England,GL51 3YU"]
[10016755,"ü","Abbeyfield Chester Society Limited","Abbeyfield House,101 Christleton Road,Boughton,Cheshire,England,CH3 5UQ"]
[10028199,"ü","Abbeyfield Chipping Norton and District Soc Limited","2 New Street,,,Oxfordshire,England,OX7 5LJ"]
[10017668,"ü","Abbeyfield Chiswick Society Limited The","Acorn House,33 Churchfield Road,Acton,Greater London,England,W3 6AY"]
[10017609,"ü","Abbeyfield Christ Church Society Limited The","Abbeyfield House,73 Brookhouse Hill,Fulwood,South Yorkshire,England,S10 3TB"]
[10017669,"ü","Abbeyfield Chulmleigh and District Society Limited The","c/o Miss R Wraighte or Mrs A Ross,Dunns House,East Street,Devon,England,EX18 7DD"]
[10017671,"ü","Abbeyfield Cirencester Society Limited The","Sharlands,29 Links View,Baunton Lane,Gloucestershire,England,GL7 2NF"]
[10028200,"ü","Abbeyfield Coalvillesociety Limited The","209 Forest Road,,,,England,LE67 3SP"]
[10028201,"ü","Abbeyfield Colchester Society Limited The","3 West Stockwell Street,,,Essex,England,CO1 1HQ"]
[10017610,"ü","Abbeyfield Colyton Society Limited The","Marjorie Baker House,Vicarage Street,,Devon,England,EX24 6LJ"]
[10017672,"ü","Abbeyfield Coventry Society Limited The","Clarkson Abbeyfield House,126 Banner Lane,Tile Hill,West Midlands,England,CV4 9GH"]
[10028202,"ü","Abbeyfield Cowes Society Limited The","Clifton House,Bath Road,,Isle of Wight,England,PO31 7RH"]
[10031038,"ü","Abbeyfield Crieff and Muthill Society Limited","Abbeyfield House,Sauchie Road,,Perth and Kinross,Scotland,PH7 4EL"]
[10017673,"ü","Abbeyfield Crosby Society Limited The","14/16 Eshe Road,Crosby,,Merseyside,England,L23 3AR"]
[10017674,"ü","Abbeyfield Crowborough Society Limited The","Darwin House,Crowborough Hill,,East Sussex,England,TN6 2JA"]
[10017611,"ü","Abbeyfield Dalton in Furness Society Limited The","Bell-Fast,Chapels,,Cumbria,England,LA17 7XY"]
[10017612,"ü","Abbeyfield Darlington Society Limited The","Danby Lodge,Ashcroft Road,,County Durham,England,DL3 8PD"]
[10017675,"ü","Abbeyfield Dartmouth Society Limited The","High Stert,Diptford,,Devon,England,TQ6 7NB"]
[10028203,"ü","Abbeyfield Darwen Society Limited","St. Albans Road,,,Lancashire,England,BB3 0HS"]
[10017676,"ü","Abbeyfield Deben Extra Care Society Limited The","Highlands,Fitzgerald Road,,Suffolk,England,IP12 1EN"]
[10017677,"ü","Abbeyfield Deptford Society Limited The","180 New Cross Road,,,Greater London,England,SE14 5AA"]
[10017678,"ü","Abbeyfield Dorcas Society Limited The","Dorcas House,Dorcas Court,Overstone Park,Northamptonshire,England,NN6 0AD"]
[10017613,"ü","Abbeyfield Dorchester Society Limited The","52 Prince of Wales Road,,,Dorset,England,DT1 1PP"]
[10017679,"ü","Abbeyfield Dulwich Society Limited The","8 Burbage Road,,,Greater London,England,SE24 9HJ"]
[10017683,"ü","Abbeyfield Eastbourne Society Limited The","Beamsley House,47 Silverdale Road,,East Sussex,England,BN20 7AT"]
[10017680,"ü","Abbeyfield East Devon Extra Care Society Limited The","Hill House,Combe Raleigh,,Devon,England,EX14 0UQ"]
[10037261,"ü","Abbeyfield East London Extra Care Society Limited The","George Brooker House                    ,100 Dagenham Aveneue,,Essex,England,RM9 6LH"]
[10017684,"ü","Abbeyfield Egham and District Society Limited The","Ian A Pearson,The Cottage,Boyndon Road,Berkshire,England,SL6 4EU"]
[10017685,"ü","Abbeyfield Ellesmere Port Society Limited The","Abbeyfield House,Oak Grove,Whitby,Cheshire,England,CH65 6SQ"]
[10017686,"ü","Abbeyfield Epping Society Limited The","Cunningham House,Pike Way, North Weald,,Essex,England,CM16 6BL"]
[10017687,"ü","Abbeyfield Epsom Society Limited The","2 Suffolk Court,St. James Road,,Surrey,England,KT6 4QL"]
[10017688,"ü","Abbeyfield Exeter Society Limited The","c/o Veitch Penny, Solicitors,1 Manor Court,Dix's Field,Devon,England,EX1 1UP"]
[10017689,"ü","Abbeyfield Fakenham Society Limited The","c/o Larking Gowen,Summer Hill House, 1 Sculthorpe Road,,Norfolk,England,NR21 9AH"]
[10028204,"ü","Abbeyfield Falmouth Society Limited The","3 Stracey Road,,,Cornwall,England,TR11 4DW"]
[10017690,"ü","Abbeyfield Fareham Society Limited The","Fareham Point,Wickham Road,,Hampshire,England,PO16 0ES"]
[10017691,"ü","Abbeyfield Farnham Society Limited The","48 Ridgway Road,,,Surrey,England,GU9 8NW"]
[10017693,"ü","Abbeyfield Felsted Society Limited The","c/o Holmes & Hills,Dale Chambers,2 Bocking End,Essex,England,CM7 9AJ"]
[10017694,"ü","Abbeyfield Ferring Society Limited The","Cornwall House,23-25 Beehive Lane,,West Sussex,England,BN12 5NN"]
[10028205,"ü","Abbeyfield Finchley Society Limited The","52 Woodside Park Road,,,,England,N12 8RS"]
[10002890,"ü","Abbeyfield Folkestone S Limited","75 Cheriton Road,,,Kent,England,CT20 1DG"]
[10028206,"ü","Abbeyfield Formby Society Limited The","Ruby Moores House,58 Freshfield Road,Formby,Merseyside,England,L37 3HW"]
[10017695,"ü","Abbeyfield Fulwood Society Limited The","4 Fareham Close,Fulwood,,Lancashire,England,PR2 8FH"]
[10000905,"ü","Abbeyfield Furness Extra Care Society Limited","Ashmore,School Road,,Cumbria,England,LA17 7UQ"]
[10017696,"ü","Abbeyfield Furness Extra Care Society Limited The","Staveley House,Greystone Lane,,Cumbria,England,LA15 8QQ"]
[10017697,"ü","Abbeyfield Gatley Society Limited The","114-116 Gatley Road,Gatley,,Cheshire,England,SK8 4AB"]
[10017698,"ü","Abbeyfield Gerrards Cross Society Limited The","The Wyke,Marsham Way,,Buckinghamshire,England,SL9 8AD"]
[10028207,"ü","Abbeyfield Grange-Over-Sands Society Limited The","Fairfield,Park Road,,Cumbria,England,LA11 7HQ"]
[10017699,"ü","Abbeyfield Great Missenden and District Society The","Abbeyfield House,Link Road,,Buckinghamshire,England,HP16 9AE"]
[10017700,{"$f":"CHAR(252)","v":"ü"},"Abbeyfield Great Yarmouth Society Limited The","'Abbeyfield',77-79 Lawn Avenue,,Norfolk,England,NR30 1QS"]
[10017701,"ü","Abbeyfield Greenwich and Bexley Society Limited The","13 Hulsewood Close,,,Kent,England,DA2 7AD"]
[10016756,"ü","Abbeyfield Grimsby Cleethorpes and District Soc Limited","Winchester House,22 Pelham Road,,Lincolnshire,England,DN34 4SU"]
[10017702,"ü","Abbeyfield Groombridge Society Limited The","Oaklands,Orchard Rise,,East Sussex,England,TN3 9RX"]
[10016371,"ü","Abbeyfield Guildford Society Limited The","22 Chinthurst Park,Shalford,,Surrey,England,GU4 8JH"]
[10016372,"ü","Abbeyfield Haddenham Society Limited The","Stonehill House,106 Church Way,,Buckinghamshire,England,HP17 8DT"]
[10028208,"ü","Abbeyfield Hadleigh Benfleet Society Limited The","Abbeyfield House,Chapel Lane,,Essex,England,SS7 2PW"]
[10016373,"ü","Abbeyfield Harrow Society Limited The","32/34 West End Avenue,,,Middlesex,England,HA5 1BJ"]
[10016374,"ü","Abbeyfield Haslemere Society Limited The","Kemnal,Grayswood Road,,Surrey,England,GU27 2BP"]
[10028209,"ü","Abbeyfield Hastings and St Leonards Society Limited The",",,,,,"]
[10028210,"ü","Abbeyfield Havant Society The","12 Emsworth Road,,,Hampshire,England,PO9 2SS"]
[10016375,"ü","Abbeyfield Helston Mullion Society Limited The","Moonraker,Commons Close,Mullion,Cornwall,England,TR12 6HY"]
[10016757,"ü","Abbeyfield Hertfordshire Residential Care Society","9 Roughwood Close,Cassioburry,,Hertfordshire,England,WD17 3HN"]
[10016376,"ü","Abbeyfield Heswall Society Limited The","The Croft,94 Irby Road,Heswall,,England,CH61 6XG"]
[10028211,"ü","Abbeyfield Hexham Society Limited The","Petilaw,Abbeyfield House,Hill Street,Northumberland,England,NE45 5AA"]
[10000402,"ü","Abbeyfield High Wycombe S Limited","10 Easton Street,,,Buckinghamshire,England,HP11 1NP"]
[10016377,"ü","Abbeyfield Holsworthy Society Limited The","Abbeyfield Home,Densham Court, Croft Road,,Devon,England,EX22 6BW"]
[10006451,"ü","Abbeyfield Horsham S Limited","21 Hurst Road,,,West Sussex,England,RH12 2DS"]
[10016378,"ü","Abbeyfield Hoylake and West Kirby Society Limited The","Seafield House,Darmonds Green,,Merseyside,England,C48 5DT"]
[10016379,"ü","Abbeyfield Hyndburn Society Limited The","Oak Hill,Manchester Road,,Lancashire,England,BB5 2BN"]
[10016380,"ü","Abbeyfield Ickenham Society Limited The","34 Gilbey Close,Ickenham,,Middlesex,England,UB10 8TD"]
[10016382,"ü","Abbeyfield Ilkley Society Limited The","Grove House,12 Riddings Road,,West Yorkshire,England,LS29 8BF"]
[10028212,"ü","Abbeyfield Ipswich Society Limited The","315 Norwich Road,,,Suffolk,England,IP1 4BW"]
[10016383,"ü","Abbeyfield Isle of Wight Extra Care Soc Limited The","The Lord Mountbatten House,17 Partlands Avenue,,Isle of Wight,England,PO33 3DS"]
[10017614,"ü","Abbeyfield Ivybridge Society Limited The","High Stert,Diptford,,Devon,England,TQ9 7NB"]
[10016384,"ü","Abbeyfield Kelvedon Society Limited The","Abbeyfield House,The Chase,Kelvedon,Essex,England,CO5 9AB"]
[10028213,"ü","Abbeyfield Kendal Society Limited The","Fairmead,39A Castle Road,,Cumbria,England,LA9 7AU"]
[10028214,"ü","Abbeyfield Kettering and District Society Limited The","Sarnia House,86 Rockingham Road,,Northamptonshire,England,NN16 9AD"]
[10016385,"ü","Abbeyfield Keynsham and Saltford Society Limited The","c/o 14 Milward Road,Keynsham,,Gloucestershire,England,BS31 2DS"]
[10028216,"ü","Abbeyfield Kingsbury and Kenton Society Limited The","St. Johns Abbeyfield House,70 Draycott Avenue,,,England,HA3 0BU"]
[10016386,"ü","Abbeyfield Kings Langley Society Limited The","Garrad House,Rockliffe Avenue,,Hertfordshire,England,WD4 8DR"]
[10028215,"ü","Abbeyfield Kings Lynn Society Limited The","44-46 Wootton Road,Gaywood,,Norfolk,England,PE30 4EX"]
[10017616,"ü","Abbeyfield Laleham Society Limited The","Osmanstead,Condor Road,,Middlesex,England,TW18 1UG"]
[10016387,"ü","Abbeyfield Lancashire Extra Care Society Limited The","Abbeyfield House,Union Street,Low Moor,Lancashire,England,BB7 2NH"]
[10016388,"ü","Abbeyfield Lancaster Society Limited The","Chirnside House,Abbeyfield Close,,Lancashire,England,LA1 4NL"]
[10016389,"ü","Abbeyfield Launceston District Society Limited The","c/o Mrs Janet Reed,12-14 Dutson Road,,Cornwall,England,PL15 8DY"]
[10028217,"ü","Abbeyfield Leamington Spa Society Limited The",",,,,,"]
[10032787,"ü","Abbeyfield Leigh","Abbeyfield House,57-61 Bond Street,,Greater Manchester,England,WN7 1BT"]
[10028218,"ü","Abbeyfield Lewisham Society Limited The",",,,,,"]
[10016390,"ü","Abbeyfield Lingfield and District Society Limited The","Apsley Grange West,Wilderwick Road,,West Sussex,England,RH19 3NT"]
[10016391,"ü","Abbeyfield Liskeard Society Limited The","10 Pengover Heights,,,Cornwall,England,PL14 3UA"]
[10036175,"ü","Abbeyfield Liss Society Limited","35 St. Marys Road,,,Hampshire,England,GU33 7AH"]
[10028219,"ü","Abbeyfield Liverpool Society Limited The","25 South Drive,Wavertree,,Merseyside,England,L15 8JJ"]
[10035972,"ü","Abbeyfield Llanrwst and District Society Limited","Abbeyfield House,Llys Henar,,Conwy,Wales,LL26 0AE"]
[10028220,"ü","Abbeyfield Locksheath and District Society Limited The","44 Locks Road,Locks Heath,,Hampshire,England,SO31 6NR"]
[10016393,"ü","Abbeyfield London Polish Society Limited The","46 Rosemount Road,Acton,,Greater London,England,W3  9LY"]
[10016394,"ü","Abbeyfield Loughborough Society Limited The","44 Westfield Drive,,,Leicestershire,England,LE11 3QL"]
[10017617,"ü","Abbeyfield Lyme Regis and District Society Limited The","Mr Maureen Etherington,Leacroft, Tappers Knapp,'Uplyme,Dorset,England,DT7 3TW"]
[10016395,"ü","Abbeyfield Lymington Society Limited The","Heppenstalls,75 High Street,,Hampshire,England,SO41 9YY"]
[10016396,"ü","Abbeyfield Lytham St Annes Society Limited The","1 Park Avenue,,,Lancashire,England,FY8 5QU"]
[10017618,"ü","Abbeyfield Maidenhead Society Limited The","Winton House,51/53 Dedworth Road,,Berkshire,England,SL4 5AZ"]
[10028221,"ü","Abbeyfield Malmesbury and Tetbury Society Limited The","1 Abbeyfield House,Market Cross,,Wiltshire,England,SN16 9AS"]
[10016397,"ü","Abbeyfield Mancunian Society Limited The","'Downing',14 Swinbourne Grove,Withington,Greater Manchester,England,M20 9PP"]
[10028222,"ü","Abbeyfield Margate Society Limited The","31 Rancorn Road,,,Kent,England,CT9 5DG"]
[10016398,"ü","Abbeyfield Medway Valley Society The","St Martins, Martin Square,,Larkfield,,Kent,England,ME20 6QJ"]
[10016399,"ü","Abbeyfield Menston Society Limited The","27-29 Cleasby Road,Menston,,West Yorkshire,England,LS29 6JE"]
[10016400,"ü","Abbeyfield Mid Sussex Society Limited The","Westall House,Birch Grove Road,,West Sussex,England,RH17 7BS"]
[10017619,"ü","Abbeyfield Minehead and District Society Limited The","Merry Moor,Bratton Lane,Woodcombe,Somerset,England,TA24 8SQ"]
[10016401,"ü","Abbeyfield Muswell Hill Society Limited The","33 Grove Avenue,Muswell Hill,,Greater London,England,N10 2AS"]
[10017620,"ü","Abbeyfield Nailsworth and District Society Limited The","Abbeyfield House,Barn Close,,Gloucestershire,England,GL6 0JL"]
[10016402,"ü","Abbeyfield Newbury Society Limited The","51 Paddock Road,,,Berkshire,England,RG14 7DL"]
[10016404,"ü","Abbeyfield Newcastle upon Tyne Society Limited The","Administrator's Office,40a The Grove,Gosforth,Tyne and Wear,England,NE3 1NH"]
[10028223,"ü","Abbeyfield Newport I Of W Society Limited The","1 Avondale Road,,,Isle of Wight,England,PO30 1ET"]
[10016405,"ü","Abbeyfield Newquay Society Limited The","Borthallen,31 Mount Wise,,Cornwall,England,TR7 2BH"]
[10016761,{"$f":"CHAR(252)","v":"ü"},"Abbeyfield Northallerton and District Society Limited","209 High Street,,,North Yorkshire,England,DL7 8LW"]
[10028225,"ü","Abbeyfield Northamptonshire Society Limited The","Diana House,Manor Road,,Northamptonshire,England,NN13 6AJ"]
[10016758,"ü","Abbeyfield North Downs Society Limited","David Gresham House,226 Pollards Oak Road,Hurst Green,Surrey,England,RH8 0JP"]
[10006814,"ü","Abbeyfield North London S Limited","Morriss House,23 Coolhurst Road,Crouch End,Greater London,England,N8 8EP"]
[10016406,"ü","Abbeyfield North Mersey Society Limited The","Halcyon House,55 Cable Street,,Merseyside,England,L37 3LU"]
[10016759,"ü","Abbeyfield North Northumberland Extra Care Soc Limited","Abbeyfield House,South Road,,Northumberland,England,NE66 2NZ"]
[10028224,"ü","Abbeyfield North Tyneside Society Limited The","64 Cleveland Road,,,Tyne and Wear,England,NE29 0NT"]
[10016407,"ü","Abbeyfield Northwood Society Limited The","James House,2 Sandy Lodge Way,,Middlesex,England,HA6 2AJ"]
[10017621,"ü","Abbeyfield Norwich Society Limited The","Abbeyfield House,57 The Close,,Norfolk,England,NR1 4EH"]
[10028226,"ü","Abbeyfield Nottingham Society Limited The","St. Peters House,2 Bricket Road,,Hertfordshire,England,AL1 3JW"]
[10028227,"ü","Abbeyfield Nuneaton Society Limited The","15-19 Ansley Road,,,Warwickshire,England,CV10 8LY"]
[10028228,"ü","Abbeyfield Ormskirk and District Society Limited The","7 Ruff Lane,,,Lancashire,England,L39 4QX"]
[10016408,"ü","Abbeyfield Orpington Society Limited The","FAO The Society Chairman,Haines House,22 Tower Road,Kent,England,BR6 0SQ"]
[10016409,"ü","Abbeyfield Orwell Extra Care Society Limited The","c/o The Old Rectory,Clopton,,Suffolk,England,IP1 6QB"]
[10028229,"ü","Abbeyfield Oswestry Society Limited The","Abbeyfield House,40 Vyrnwy Place,,Shropshire,England,SY11 1PA"]
[10016410,"ü","Abbeyfield Oxenford Society Limited The","Oxenford House,The Glebe,Cumnor,Oxfordshire,England,OX2 9RL"]
[10016411,"ü","Abbeyfield Oxford Society Limited The","Brian Lewis House,80 St Clements,,Oxfordshire,England,OX4 1AW"]
[10016412,"ü","Abbeyfield Oxted and Limpsfield Society Limited The","Abbeyfield House,West Hill,,Surrey,England,RH8 9JB"]
[10016413,"ü","Abbeyfield Oxton and Prenton Society Limited The","Modbury,Broad Lane,Heswall,,England,CH60 9JY"]
[10016415,"ü","Abbeyfield Peabody South London Society Limited The","Pelham House,32/34 Pelham Road,Wimbledon,Greater London,England,SW19 1SX"]
[10028230,"ü","Abbeyfield Penrith Society Limited The",",,,,,"]
[10016416,"ü","Abbeyfield Pirbright and District Society Limited The","Oaklands,The Fairway,,Surrey,England,GU3 3QE"]
[10016417,"ü","Abbeyfield Plymouth Society Limited The","c/o Mr Christopher Baxter,Barn Cottage,,Devon,England,TQ9 7NQ"]
[10016418,"ü","Abbeyfield Ponteland Society Limited The","175 Middle Drive,,,Northumberland,England,NE20 9LU"]
[10016419,"ü","Abbeyfield Poole Society Limited The","4 Widdicombe Avenue,,,Dorset,England,BH14 9QW"]
[10016420,"ü","Abbeyfield Porlock Society Limited The","The Laurels,High Street,Porlock, Minehead,Somerset,England,TA24 8PY"]
[10016421,"ü","Abbeyfield Portishead Society Limited The","77 Hillside Road,,,Somerset,England,BS20 8LJ"]
[10016422,"ü","Abbeyfield Portsmouth Society Limited The","50 St Edwards Road,,,Hampshire,England,PO5 3DJ"]
[10002587,"ü","Abbeyfield Potters Bar and District Society","119 Strafford Gate,,,Hertfordshire,England,EN6 1PJ"]
[10016423,"ü","Abbeyfield Poulton le Fylde Society Limited The","Abbeyfield House,127 Breck Road,,Lancashire,England,FY6 7HJ"]
[10016424,"ü","Abbeyfield Prestbury and District Society Limited The","5 Shaw Green Lane,Prestbury,Nr Cheltenham,Gloucestershire,England,GL52 3BS"]
[10016426,"ü","Abbeyfield Princes Risborough Society Limited The","Abbeyfield House,Church End,,Buckinghamshire,England,HP27 9AW"]
[10016427,"ü","Abbeyfield Purley Society Limited The","2 Purley Knoll,,,Surrey,England,CR8 3AE"]
[10028231,"ü","Abbeyfield Quorn Society Limited The","35 Sutton Close,Quorn,,Leicestershire,England,LE12 8GA"]
[10028232,"ü","Abbeyfield Radlett Society Limited The","Abbeyfield House,1-3 The Drive,,Hertfordshire,England,WD7 7BZ"]
[10016428,"ü","Abbeyfield Reading Society Limited The","27 Portway Close,,,Berkshire,England,RG1 6LB"]
[10005316,"ü","Abbeyfield Reigate Society Limited","6 Heath Rise,Westcott,,Surrey,England,RH4 3NN"]
[10016429,"ü","Abbeyfield Ribble Valley Society Limited The","Swallows Barn, Lower Standen Hey,Whalley Road,,Lancashire,England,BB7 1PP"]
[10028233,"ü","Abbeyfield Richmond Thames and District Society The","2-4 Ennerdale Road,,,,England,TW9 3PG"]
[10017622,"ü","Abbeyfield Ripon and District Society Limited The","Abbeyfield House,Church Lane,,North Yorkshire,England,HG4 2ES"]
[10006815,"ü","Abbeyfield Romsey Society","Abbeyfield House,Mill Lane,,Hampshire,England,SO51 8EW"]
[10016430,"ü","Abbeyfield Ross on Wye Society Limited The","6 High Street,,,Herefordshire,England,HR9 5HL"]
[10028234,"ü","Abbeyfield Ross-On-Wye Society Limited The","Beech House,Gloucester Road,,,England,HR9 5LR"]
[10016431,"ü","Abbeyfield Rotherhithe Society Limited The","21-22 Smith Close,Salter Road,Rotherhithe,Greater London,England,SE16 5PB"]
[10029273,"ü","Abbeyfield Ryde Society Limited","Church House,2 Queens Road,,Isle of Wight,England,PO33 3BG"]
[10016752,"ü","Abbeyfield Salisbury Society Limited","Boldre House,35 Manor Road,,Wiltshire,England,SP1 1JT"]
[10016432,"ü","Abbeyfield Saltash Society Limited The","3 Beweys Park,Lower Burraton,,Cornwall,England,PL12 4SW"]
[10016433,"ü","Abbeyfield Sanderstead Society Limited The","3 Briton Hill Road,Sanderstead,,Surrey,England,CR2 0JG"]
[10016434,"ü","Abbeyfield Scarborough Society Limited The","White Lodge,Sea Cliff Road,,North Yorkshire,England,YO11 3BT"]
[10032808,"ü","Abbeyfield School","Mereway,,,Northamptonshire,England,NN4 8BU"]
[10019840,"ü","Abbeyfield School","Stanley Lane,London Road,,Wiltshire,England,SN15 3XB"]
[10036229,"ü","Abbeyfield Scotland Limited","15 WEST MAITLAND STREET,,,Mid Lothian,Scotland,EH12 5EA"]
[10028235,"ü","Abbeyfield Seascale and District Society Limited The",",,,,,"]
[10016435,"ü","Abbeyfield Seaton and District Devon Soc Limited The","Far End,Common Hill,Beer,Devon,England,EX12 3AQ"]
[10572908,"ü","Abbeyfields First School","Abbot's Way,,,,,NE61 2LZ"]
[10016437,"ü","Abbeyfield Shanklin Society Limited The","White Gables,Young Woods Way,,Isle of Wight,England,PO36 0HF"]
[10028236,"ü","Abbeyfield Sheffield Hallam Society Limited The",",,,,,"]
[10028237,"ü","Abbeyfield Sheffield Society Limited The","James Smith House,11-15 Marlborough Road,,South Yorkshire,England,S10 1DA"]
[10028238,"ü","Abbeyfield Sherborne Society Limited The","Abbeyfield House,Coldharbour,,,England,DT9 4HA"]
[10016438,"ü","Abbeyfield Sidmouth Society Limited The","Abbeyfield Court,Station Road,,Devon,England,EX10 8NW"]
[10028239,"ü","Abbeyfield Skipton Society Limited The","The Managers Office,Abbeyfield Woodlands,Woodlands Drive,,England,BD23 1QU"]
[10016439,"ü","Abbeyfield Slough and District Society Limited The","25 Framers Court,Ellis Way, Lane End,,Buckinghamshire,England,HP14 3LL"]
[10035021,"ü","Abbeyfield Society","Bradbury House,Wasdale Road,Gosforth,Cumbria,England,CA20 1AU"]
[10016440,"ü","Abbeyfield Society Manchester Limited The","211 Kings Road,Chorlton-cum-Hardy,,Greater Manchester,England,M21 0XY"]
[10020624,{"$f":"CHAR(252)","v":"ü"},"Abbeyfield Society The","The Abbeyfield Society,53 Victoria Street,,Hertfordshire,England,AL1 3UJ"]
[10016441,"ü","Abbeyfield Sodbury Vale Society Limited The","Abbeyfield House,Melbourne Drive,Chipping Sodbury,Gloucestershire,England,BS37 6LB"]
[10028240,"ü","Abbeyfield Solihull Society Limited The","1 Ashleigh Road,,,West Midlands,England,B91 1AE"]
[10028241,"ü","Abbeyfield South East London Extra Care Soc Limited","George Brooker House,100 Dagenham Avenue,,,England,RM9 6LH"]
[10016445,"ü","Abbeyfield Southend Society Limited The","1st Floor,54 London Road,,Essex,England,SS1 1NX"]
[10028242,"ü","Abbeyfield Southgate Society Limited The","Abbeyfield House,1 Caversham Avenue,,,England,N13 4LL"]
[10016442,"ü","Abbeyfield South Molton Society Limited The","Bidders Court,3-6 Barnstaple Street,,Devon,England,EX36 3BQ"]
[10016446,"ü","Abbeyfield Southport Society Limited The","c/o Tim Lawton, The Office,Gadsby House,28 Alexandra Road,Merseyside,England,PR9 9EZ"]
[10016443,"ü","Abbeyfield South West Society Limited The","c/o Mr Christopher Baxter,Barn Cottage,,Devon,England,TQ9 7NQ"]
[10016444,"ü","Abbeyfield South Wirral Society Limited The","Mansfield,Leighton Road,,Cheshire,England,CH64 3SF"]
[10017628,"ü","Abbeyfield SSAFA Hereford Society Limited The","Ainslie House,4 St John Street,,Herefordshire,England,HR1 2NB"]
[10028245,"ü","Abbeyfield Stafford Society Limited The","Abbeyfield House,48 Rowley Bank,,,England,ST17 9BA"]
[10020207,"ü","Abbeyfield St Albans","4 The Willows,,,,England,NW9 9QA"]
[10028243,"ü","Abbeyfield St Albans Society Limited The","Grace Muriel House,104 Tavistock Avenue,,Hertfordshire,England,AL1 2NW"]
[10016448,"ü","Abbeyfield St Austell Society Limited The","Abbeyfield House,8 Old Lawn, School Lane,,Cornwall,England,PL25 5JX"]
[10028244,"ü","Abbeyfield St Helens Society Limited The","Abbeyfield House,Windleshaw Road,Dentons Green,Merseyside,England,WA10 6TD"]
[10017623,"ü","Abbeyfield Storrington and District Society The","The Poplars,16 Melton Drive,,West Sussex,England,RH20 4LU"]
[10028246,"ü","Abbeyfield Stow-On-The-Wold and District Soc Limited The","Kings Arms Lane,The Square,Stow on the Wold,,England,GL54 1AF"]
[10017624,"ü","Abbeyfield Streatham Society Limited The","147-149 Streatham High Road,Streatham,,Greater London,England,SW16 6EG"]
[10016449,"ü","Abbeyfield Sturminster Newton Society Limited The","c/o Brackenwood,Denvell Close,,Dorset,England,DT10 1EN"]
[10028247,"ü","Abbeyfield Sutton Coldfield Society Limited The","42 Anchorage Road,,,West Midlands,England,B74 2PL"]
[10028248,"ü","Abbeyfield Swindon Society Limited The","Abbeyfield House,73 Bath Road,,Wiltshire,England,SN1 4AX"]
[10016450,"ü","Abbeyfield Tavistock Society Limited The","Drake Lodge,60 Plymouth Road,,Devon,England,PL19 8BU"]
[10016451,"ü","Abbeyfield Teignmouth Society Limited The","2 The Close,Windward Lane,Halcombe,Devon,England,EX7 0JH"]
[10016452,"ü","Abbeyfield Thirsk and Sowerby Society Limited The","The Limes,Sowerby,,North Yorkshire,England,YO7 1HX"]
[10016453,"ü","Abbeyfield Tiverton Society Limited The","Gotham House,Phoenix Lane,,Devon,England,EX16 6LT"]
[10016454,"ü","Abbeyfield Torpoint Society Limited The","60 York Road,,,Cornwall,England,PL11 2LG"]
[10016762,"ü","Abbeyfield Trowbridge Society Limited","11 Westbourne Gardens,,,Wiltshire,England,BA14 9AW"]
[10028249,"ü","Abbeyfield UK","St. Peters House,2 Bricket Road,,Hertfordshire,England,AL1 3JW"]
[10028250,"ü","Abbeyfield Ulverston Society Limited The","Abbeyfield House,Victoria Road,,Cumbria,England,LA12 0BY"]
[10016455,"ü","Abbeyfield Uxbridge Society Limited The","2 Marshall Drive,,,Middlesex,England,UB4 0SW"]
[10016456,"ü","Abbeyfield Wallasey Society The","1 Warren Drive,Wallasey,,,England,CH45 0JN"]
[10028251,"ü","Abbeyfield Warkworth and District Society Limited The","Abbeyfield House,17 Dial Place,Warkworth,Northumberland,England,NE65 0UR"]
[10028252,"ü","Abbeyfield Watford Society Limited The","5 Park Avenue,,,Hertfordshire,England,WD18 7HR"]
[10016457,"ü","Abbeyfield Wellington Somerset Society Limited The","15 High Street,,,Somerset,England,TA21 8QR"]
[10017625,"ü","Abbeyfield Wells Society Limited The","32 Chamberlain Street,,,Somerset,England,BA5 2PJ"]
[10016459,"ü","Abbeyfield Wendover Society Limited The","Abbeyfield House,Dobbins Lane,Wendover,Buckinghamshire,England,HP22 6BP"]
[10016763,"ü","Abbeyfield Wessex Society Limited","The Office, Harleston House,Harleston Villas,St Johns Hill,Dorset,England,BH21 1DB"]
[10028254,"ü","Abbeyfield Westbourne Sussex Society Limited The","Abbeyfield,Westbourne House,22 Poole Road,Dorset,England,BH4 9DS"]
[10028255,"ü","Abbeyfield Westbury and District Society Limited The","Abbeyfield House,Bratton Road,,Wiltshire,England,BA13 3EP"]
[10016460,"ü","Abbeyfield West London Society Limited The","The Willows,136 Honeypot Lane,Kingsbury,Greater London,England,NW9 9QA"]
[10016461,"ü","Abbeyfield Weston Super Mare Society Limited The","8-12 Beaufort Road,,,Somerset,England,BS23 3BB"]
[10028253,"ü","Abbeyfield West Wittering Society Limited The","Inglenook,Pound Road,West Wittering,West Sussex,England,PO20 8AJ"]
[10017627,"ü","Abbeyfield Weymouth Society Limited The","Lupins Business Centre,1-3 Greenhill,,Dorset,England,DT4 7SP"]
[10016462,"ü","Abbeyfield Wey Valley Society Limited The","Oakhill Cottage,Moons Hill,,Surrey,England,GU10 3AW"]
[10016463,"ü","Abbeyfield Whitehaven Society Limited The","Johnson House,Hillcrest Avenue,,Cumbria,England,CA28 6SU"]
[10016464,"ü","Abbeyfield Whitstable Society Limited The","c/o Patrick L Barker,The Georgians,Wingham,Kent,England,CT3 1BU"]
[10016465,"ü","Abbeyfield Widnes Society Limited The","Littlemore House,59 Coroners Lane,,Cheshire,England,WA8 9JB"]
[10002320,"ü","Abbeyfield Winchester Society Limited","Orchard Close,Bourne Lane,Twyford,Hampshire,England,SO21 1NX"]
[10016466,"ü","Abbeyfield Windermere Society Limited The","Nine Oaks,Phoenix Way,,Cumbria,England,LA23 1BB"]
[10001569,"ü","Abbeyfield Witham S Limited","48 St Nicholas Road,,,Essex,England,CM8 2JE"]
[10035347,"ü","Abbeyfield Worcester","12 Green Hill,London Road,,Worcestershire,England,WR5 2AA"]
[10016467,"ü","Abbeyfield Worcester Society Limited The","2 The Orchard,Colletts Green,,Worcestershire,England,WR2 4SE"]
[10028256,"ü","Abbeyfield Worsley Society Limited The","Abbeyfield House,Bridgewater Road,Worsley,Greater Manchester,England,M28 3JE"]
[10029096,"ü","Abbeyfield Worthing Society","8 Southey Road,,,West Sussex,England,BN11 3HT"]
[10029547,"ü","Abbeyfield Wrexham Society Limited","30 Lord Street,,,Wrexham,Wales,Ll11 1LR"]
[10016468,"ü","Abbeyfield Yarm and District Society Limited The","Abbeyfield House, 1 Abbeyfield Drive,Eaglescliffe,,Cleveland,England,TS15 0SA"]
[10028257,"ü","Abbeyfield Yeovil Society Limited The","101 West Hendford,,,Somerset,England,BA20 1XN"]
[10004505,"ü","Abbeyfield York Society","9 Tollbar Way,,,North Yorkshire,England,LS24 8JT"]
[10016470,"ü","Abbeyfield York Society Limited The","Abbeyfield House,Regency Mews,Dringhouses,North Yorkshire,England,YO24 1LL"]
[10028258,"ü","Abbeyfield Youlgrave and District Society Limited The","Alport Lane,Youlgrave,,Derbyshire,England,DE45 1WN"]
[10038901,"ü","Abbey Gate College","Saighton Grange,Saighton,,Cheshire,England,CH3 6EN"]
[10569059,"ü","Abbey Gate Prep School","Clare Avenue, Hoole,,,,,CH2 3HR"]
[10018524,"ü","Abbey Gates Primary School","Vernon Crescent,Ravenshead,,Nottinghamshire,England,NG15 9BN"]
[10000029,{"$f":"CHAR(252)","v":"ü"},"Abbey Grammar School","Courtenay Hill,,,County Down,Northern Ireland,BT137 2ED"]
[10018464,"ü","Abbey Grange Church of England Academy","Butcher Hill,,,West Yorkshire,England,LS16 5EA"]
[10022816,"ü","Abbey Hey Primary School","Abbey Hey Lane,,Gorton,Greater Manchester,England,M18 8PF"]
[10040448,"ü","Abbey Hill Primary and Nursery School","Abbey Road,Kirkby-in-Ashfield,,Nottinghamshire,England,NG17 7NZ"]
[10579485,"ü","Abbey Hill School & Performing Arts College",",,,,,"]
[10006808,"ü","Abbey Hill School Stockton","Ketton Road,,,North Yorkshire,England,TS19 8BU"]
[10014871,"ü","Abbey Hill School Stoke","Greasley Road,,,Staffordshire,England,ST2 8LG"]
[10027799,"ü","Abbey Hospitals","22 WIMPOLE STREET,,,Lancashire,England,BB7 4HX"]
[10023403,"ü","Abbey House Medical Practice","Abbey House Medical Practice,Golding Close,Daventry,,England,NN11 4RE"]
[10566412,"ü","Abbey Hulton Primary School","School Road, Abbey Hulton,,,,,ST2 8BS"]
[10015173,"ü","Abbey Infant School","Maurice Road,,,West Midlands,England,B67 5LR"]
[10572903,"ü","Abbey Junior School","Abbey Road,,,,,DL3 8NN"]
[10006810,"ü","Abbey Junior School","Northants County Council,John Dryden House,The Lakes,Northamptonshire,England,NN"]
[10040533,"ü","Abbey Lane Primary School","Abbey Lane,,,South Yorkshire,England,S8 0BN"]
[10577305,"ü","Abbey Manor College",",,,,,SE12 8JP"]
[10041358,"ü","Abbey Manor Medical Practice","Abbey Manor Medical Practice,The Forum,,Somerset,England,BA21 3TL"]
[10036705,"ü","Abbey Meadows Primary School","Galfrid Road,,,Cambridgeshire,England,CB5 8ND"]
[10006816,"ü","Abbeymead Primary School","Mead Road,Abbeymead,,Gloucestershire,England,GL4 5YS"]
[10572902,"ü","Abbey Meads Community Primary School","Abbey Meads,,,,,SN25 4GY"]
[10038902,"ü","Abbey Meads Medical Practice","Abbey Meads Village Centre,Elstree Way,,Wiltshire,England,SN25 4YZ"]
[10020380,"ü","Abbey Medical Centre","Merstow Green,,,Worcestershire,England,WR11 4BS"]
[10029704,"ü","Abbey Medical Practice","The Medical Centre,Nest Farm Cresent,,Northamptonshire,England,NN8 4TU"]
[10031898,"ü","Abbey Middle School","Mowbray Road,,,Bedfordshire,England,MK42 9XA"]
[10008647,"ü","Abbey Multi Academy Trust ta Lightcliffe Academy","Stoney Lane,Lightcliffe,,West Yorkshire,England,HX3 8TL"]
[10028720,"ü","Abbey Park Hospital","Dalton Lane,,,Cumbria,England,LA14 4HT"]
[10019674,"ü","Abbey Park Middle School","Abbey Road,,,Worcestershire,England,WR10 1DF"]
[10006747,"ü","Abbey Park Primary Academy","Keighley Close,,,,England,HX2 9DG"]
[10572404,"ü","Abbey Primary Community School","109 Ross Walk,,,,,LE4 5HH"]
[10025162,"ü","Abbey Primary Community School","Ellis Avenue,,,Leicestershire,England,LE4 5LB"]
[10036914,"ü","Abbey Primary School","Glastonbury Crescent,,,West Midlands,England,WS3 2RP"]
[10004392,"ü","Abbey Primary School","Abbey Road,,,Nottinghamshire,England,NG18 3AF"]
[10037324,"ü","Abbey Primary School","Glastonbury Road,,,Surrey,England,SM4 6NY"]
[10020819,"ü","Abbey Primary School","St James Street,,,Dorset,England,SP7 8HQ"]
[10034147,"ü","Abbey Primary School The","WINCHESTER ROAD,DELAPRE,,Northamptonshire,England,NN4 8AZ"]
[10566247,"ü","Abbey School","Hampton Court, Fore Street, St Marychurch,,,,,TQ1 4PR"]
[10569282,"ü","Abbey School","Little Common Lane, Kimberworth,,,,,S61 2RA"]
[10022083,"ü","Abbey School The","17 Kendrick Road,,,Berkshire,England,RG1 5DZ"]
[10566980,"ü","Abbeys Primary School","Melrose Avenue, Bletchley,,,,,MK3 6PS"]
[10041893,"ü","Abbey Sure Start","Community Education Centre,Rathcoole Drive,,County Antrim,Northern Ireland,BT37 9AE"]
[10033814,"ü","Abbey Surgery","28 PLYMOUTH ROAD,TAVISTOCK,,Devon,England,PL19 8BU"]
[10574403,"ü","Abbey View","Gloucester Road,,,,,GL20 5SW"]
[10566414,"ü","Abbey Village Primary School","Bolton Road, Abbey Village,,,,,PR6 8DD"]
[10041086,"ü","Abbeywood Community School","New Road,Stoke Gifford,,Gloucestershire,England,BS34 8SF"]
[10033815,"ü","Abbey Wood Nursery School","DAHLIA ROAD,ABBEY WOOD,,Greater London,England,SE2 0SX"]
[10032539,"ü","Abbey Woods Academy","Wimblestraw Road, ,Berinsfield, ,Wallingford,,,England,OX10 7LZ"]
[10006811,"ü","Abbey Wood School","Eynsham Drive,Abbey Wood,,Greater London,England,SE2 9AJ"]
[10573972,"ü","Abbot's Hall Community Primary School","Danescourt Avenue,,,,,IP14 1QF"]
[10569430,"ü","Abbot Alphege Academy","Beckford Drive, Lansdown,,,,,BA1 9AU"]
[10005082,"ü","Abbot Beyne School","Linnell Building,Osborne Street,,Staffordshire,England,DE15 0JL"]
[10572909,"ü","Abbotsbury Primary School","Abbotsbury Road,,,,,SM4 5JS"]
[10563733,"ü","Abbots Farm Junior School","Abbotts Way,,,Warwickshire,England,CV21 4AP"]
[10571734,"ü","Abbotsford Preparatory School","211 Flixton Road, Urmston,,,,,M41 5PR"]
[10006453,"ü","Abbotsford School","Cuckfield Rd,,,West Sussex,England,RH15 8RE"]
[10036082,"ü","Abbotsford Trust The","Abbotsford,Melrose,,Roxburghshire,Scotland,TD6 9BQ"]
[10572938,"ü","Abbots Green Community Primary School","Airfield Road,,,,,IP32 7PJ"]
[10015158,"ü","Abbots Hall Primary Academy","Abbots Drive,,,Essex,England,SS17 7BW"]
[10020805,"ü","Abbots Hill Junior School","St. Nicholas House,Bunkers Lane,,Hertfordshire,England,HP3 8RP"]
[10576077,"ü","Abbotsholme School","Rocester,,,,,ST14 5BS"]
[10022437,"ü","Abbotskerswell Primary School","Abbotskerswell,,,,England,TQ12 5NS"]
[10023595,"ü","Abbots Langley Parish Council","Council Offices,Langley Road,,Hertfordshire,England,WD5 OEJ"]
[10575795,"ü","Abbots Langley School","Parsonage Close,,,,,WD5 0BQ"]
[10026645,"ü","Abbots Lea School","Beaconsfield Road,,,Merseyside,England,L25 6EE"]
[10022134,"ü","Abbotsmead Junior School","Cambridge Street,,,,England,LA13 9RP"]
[10022658,"ü","Abbotsmede Community Primary School","Kingsley Road,,,Cambridgeshire,England,PE1 5JS"]
[10028794,{"$f":"CHAR(252)","v":"ü"},"Abbots Ripton Primary School","Abbots Ripton,,,Cambridgeshire,England,PE28 2LT"]
[10575799,"ü","Abbotsweld Primary Academy","Partridge Road,,,,,CM18 6TE"]
[10002321,"ü","Abbotswood Junior School","Ringwood Road,Totton,,Hampshire,England,SO40 8EB"]
[10572347,"ü","Abbotswood Primary School","Kelston Close, Yate,,,,,BS37 8SZ"]
[10031899,"ü","Abbott Diabetes Care Uk","Range Road,,,Oxfordshire,England,OX29 0YL"]
[10024382,"ü","Abbott Primary School","Livesey Street,,,Lancashire,England,M40 7PR"]
[10566419,"ü","Abbotts Ann Church of England Primary School","Duck Street, Abbotts Ann,,,,,SP11 7FE"]
[10572910,"ü","Abbs Cross Academy and Arts College","Abbs Cross Lane,,,,,RM12 4YB"]
[10030937,"ü","Abbs Cross School","Abbs Cross Lane,,,,England,RM 12 4YB"]
[10006817,"ü","abc Childcare and Education Centre","45 Eign Road,,,Herefordshire,England,HR1 2RU"]
[10040941,"ü","Abdo College Of Education The","Godmersham Park Mansion,Godmersham PkGodmersham,,Kent,England,CT4 7DT"]
[10568596,"ü","Abel Smith School","Churchfields, Greencoates,,,,,SG13 8AE"]
[10006818,"ü","Abeona Housing Co Operative Limited","30 Fleet Road,Hampstead,,Greater London,England,NW3 2QS"]
[10015676,"ü","Aberaeron Comprehensive School","South Road,,,Ceredigion,Wales,SA46 ODT"]
[10030706,"ü","Aberaeron Magistrates Court","21 Alban Square,Ceredigion,,Dyfed,Wales,SA46 0DB"]
[10030705,"ü","Aber and Llan Community College","Blaenau Gwent Offices,Mitre Street,,,Wales,NP13 2LB"]
[10020795,"ü","Abercanaid Primary School","Chapel Street,Abercanaid,,Mid Glamorgan,Wales,CF48 1SX"]
[10039703,"ü","Aberchirder Primary School","Smith Crescent,,,Aberdeenshire,Scotland,AB54 7TW"]
[10032609,"ü","Abercorn Barracks","Ballykinler HIVE,BFPO 805,,County Down,Northern Ireland,BFPO 805"]
[10006819,"ü","Abercorn School","28 Abercorn Place,St John's Wood,,Greater London,England,NW8 9XP"]
[10020316,"ü","Abercrave Primary School","School Road,,,West Glamorgan,Wales,SA9 1XD"]
[10574746,"ü","Abercrombie Primary School","Higher Albert Street,,,,,S41 7QE"]
[10574233,"ü","Abercromby Nursery School","Falkner Street,,,,,L8 7QA"]
[10020811,"ü","Aberdare Boys Comprehensive School","Cwmdare Road,,Trecynon,,England,CF44 8SS"]
[10004065,"ü","Aberdare College","Cwmdare Road,,,Mid Glamorgan,Wales,CF44 8UB"]
[10042992,"ü","Aberdare Community School",",,,,Wales,CF44 7RP"]
[10025691,"ü","Aberdare Coroners Court","Aberdare Coroners Court,Rock Grounds,Aberdare,South Glamorgan,Wales,CF44 7AE"]
[10025259,"ü","Aberdare Girls School","Cwmbach Road,,,Mid Glamorgan,Wales,CF44 0NF"]
[10015904,"ü","Aberdare Town Church Primary School","Wind Street,,,Mid Glamorgan,Wales,CF44 7HF"]
[10006820,"ü","Aberdeen and Grampian Tourist Board","27 Albyn Place,,,Grampian,Scotland,AB10 1YL"]
[10006822,"ü","Aberdeen City Council","St Nicholas House,Broad Street,Broad Street,Aberdeenshire,Scotland,AB10 1FT"]
[10029621,"ü","Aberdeen Cyrenians","62 Summer Street,,,Aberdeenshire,Scotland,AB10 11SD"]
[10000007,"ü","Aberdeen Exhibition Conference Centre Limited","Bridge Of Don,,,Aberdeenshire,Scotland,AB23 8BL"]
[10541649,"ü","Aberdeen Foyer","City Park 1,Hareness Road,Altens Industrial Estate,Aberdeenshire,Scotland,AB12 3LE"]
[10020724,"ü","Aberdeen Grammar School","Skene Street,,,Aberdeenshire,Scotland,AB10 1HT"]
[10018985,"ü","Aberdeen Metropolitan Area Network","c/o The Macaulay Institute,Macauley Drive,Craigiebuckler,Aberdeenshire,Scotland,AB15 8QH"]
[10019359,"ü","Aberdeen Performing Arts","His Majesty's Theatre,Rosemount Viaduct,,Aberdeenshire,Scotland,AB25 1GL"]
[10020414,"ü","Aberdeen Royal Hospital Trust NHS","181 Union Street,,,Aberdeenshire,Scotland,AB25 2ZN"]
[10020415,"ü","Aberdeen Royal Infirmary NHS","Firesthill,,,Angus,Scotland,AB25 2ZB"]
[10000018,"ü","Aberdeenshire Council","Woodhill House,Westburn Road,,Aberdeenshire,Scotland,AB16 5GB"]
[10044076,"ü","Aberdeenshire Housing Partnership","Ahp,Prospect Road,Arnhall Business Park,Aberdeenshire,Scotland,AB32 6FE"]
[10041349,"ü","Aberdeenshire Library HQ","Meldrum Meg Way,,,Aberdeenshire,Scotland,AB51 0GN"]
[10023264,"ü","Aberdeen Skills and Enterprise Training","Minto Operations Training Centre,Units 3-9 Minto Avenue,,Aberdeenshire,Scotland,AB12 3JZ"]
[10028605,"ü","Aberdeen University Officer Training Corps","152 Don Street,,,Aberdeenshire,Scotland,AB24 1XQ"]
[10027237,"ü","Aberdour School","Brighton Road,Burgh Heath,,Staffordshire,England,KT20 6AJ"]
[10541650,"ü","Aberfan Merthyr Vale Community Project","Aberfan Road,Aberfan,,,Wales,CF48 4QL"]
[10006824,"ü","Aberfeldy Health Centre","Tigh An Daraich,Taybridge Road,,Perthshire,Scotland,PH15 2SL"]
[10006600,"ü","Aberford Almhouses Trust","113 Lumley Street,Hightown,,West Yorkshire,England,WF10 5LY"]
[10028259,"ü","Aberford Almshouses The",",,,,,"]
[10020340,"ü","Aberford Church of England Primary School","School Lane,Aberford,,West Yorkshire,England,LS25 3BU"]
[10042824,"ü","Abergavenny Baptist Church","Frogmore Street,,,Monmouthshire,Wales,NP7 5AH"]
[10043570,"ü","Abergavenny Borough Band","Prospect Road,,,Monmouthshire,Wales,NP7 5DU"]
[10026273,"ü","Abergele Hospital","Llanfair Road,,,Conwy,Wales,LL22 8DP"]
[10030177,"ü","Abergele Town Council","Town Hall And Council Offices,,,Clwyd,Wales,LL22 7BT"]
[10036086,"ü","Aberglasney House and Gardens","Llangathen,,,Carmarthenshire,Wales,SA32 8QH"]
[10563439,"ü","Aberlour Child Care Trust",",,,,,KY12 0AD"]
[10013567,"ü","Aberlour Child Care Trust","36 Park Terrace,,,Stirlingshire,Scotland,FK8 2JR"]
[10541651,"ü","Aberlour Options Fife","36 Park Terrace,,,Stirlingshire,Scotland,FK8 2JR"]
[10541653,"ü","Aberlour Options-Fife","36 Park Terrace,,,Stirlingshire,Scotland,FK8 2JR"]
[10541652,"ü","Aberlour Options Fife Residential",",,,,Scotland,KY12 0BF"]
[10541654,"ü","Aberlour Sycamore Services","Bridge Street,,,Fife,Scotland,KY1 1TE"]
[10020187,"ü","Abermorddu Community Primary School","Cymau Road,,,Wrexham,Wales,LL12 9DH"]
[10031900,"ü","Abernant Primary School","Abernant,,,Carmarthenshire,Wales,SA33 5RR"]
[10019548,"ü","Abernethy Primary","Main Road,,,,Scotland,PH2 9JJ"]
[10023619,{"$f":"CHAR(252)","v":"ü"},"Abernethy Trust Ardeonaig","Abernethy,Ardeonaig,,Perthshire,Scotland,FK21 8SY"]
[10036230,"ü","Abernethy Trust Limited","NETHY BRIDGE,,,,Scotland,PH25 3ED"]
[10019549,"ü","Abernyte Primary","Abernyte,,,,Scotland,PH14 9ST"]
[10022060,"ü","Aberstwyth Arts Centre","Penyglais,,,Dyfed,Wales,SY23 3DE"]
[10015777,"ü","Abersychan Comprehensive","Old Lane,,Abersychan,Gwent,Wales,NP4 7DQ"]
[10024350,"ü","Abersychan School","Incline Road,Abersychan,,Torfaen,Wales,NP4 7DF"]
[10025710,"ü","Abertawe Bro Morgannwg University Health Board","One Talbot Gateway,Seaway Drive,Seaway Parade Industrial Estate,West Glamorgan,Wales,SA12 7BR"]
[10013527,"ü","Abertay Housing Association","147 Fintry Drive,,,Tayside,Scotland,DD4 9HE"]
[10024631,"ü","Abertillery Comprehensive School","Alma Street,,,Gwent,Wales,NP13 1YL"]
[10019550,"ü","Aberuthven Primary","Main Road,,,,Scotland,PH3 1HE"]
[10025677,"ü","Aberystwyth Techinum","Y Lanfa,Trefechan,,Ceredigion,Wales,SY23 1AS"]
[10027087,"ü","Aberystwyth Town Council","Town Hall,Queens Square,,Ceredigion,Wales,SY23 2EB"]
[10036166,"ü","Aberystwyth University","Dept Of History And Welsh History,,Buarth Mawr  ,,Ceredigion,Wales,SY23 3DY"]
[10016764,"ü","Ability Housing Association","The Coach House,Gresham Road,,Middlesex,England,TW18 2AE"]
[10026709,"ü","Abilitynet","Suite 1,Malvern Gate,Bromwich Road,Worcestershire,England,WR2 4BN"]
[10013030,"ü","Abingdon and Witney College","Holloway Road,,,,Oxfordshire,England,OX28 6NE"]
[10577300,"ü","Abingdon and Witney College",",,,,,OX14 1GG"]
[10022777,"ü","Abingdon Baptist Church","25 North Quay,,,Oxfordshire,England,OX14 5RY"]
[10573413,"ü","Abingdon House School","Broadley Terrace,,,,,NW1 6LG"]
[10577363,"ü","Abingdon Primary School",",,,,,TS1 3JR"]
[10024033,"ü","Abingdon Primary School","Abingdon Road,Reddish,,Greater Manchester,England,SK5 7ET"]
[10004619,"ü","Abingdon School","Park Road,,,Oxfordshire,England,OX14 1DE"]
[10022439,"ü","Abingdon St Nicolas Church of England Primary School","Boxhill Walk,,,,Oxfordshire,England,OX14 1HB"]
[10020406,"ü","Abingdon Surgery The","65 Stert Street,,,Oxfordshire,England,OX14 3LB"]
[10022016,"ü","Abinger Common School","Abinger Lane,,,,England,RH5 6HZ"]
[10024117,"ü","Abington High School","Station road,,,Leicestershire,England,LE18 2DU"]
[10051730,"ü","Abington Park Surgery Christchurch Medical Centre","100 Ardington Road,,,Northamptonshire,England,NN1 5LT"]
[10566420,"ü","Abington Vale Primary School","Ashford Close, Abington Vale,,,,,NN3 3NQ"]
[10038900,"ü","AB Kettleby School","Wartnaby Road,,,Leicestershire,England,LE14 3JJ"]
[10044046,"ü","ABL Health Ltd","71 Redgate Way,Farnworth,,Greater Manchester,England,BL4 0JL"]
[10043191,"ü","ABM Health Board Morriston Hospital","Dept, Heol Maes Eglwys,Cwmrhydyceirw,,West Glamorgan,Wales,SA6 6NL"]
[10026188,"ü","Abney House Medical Centre","St. Mary'S Court,Defoe Road,,Greater London,England,N16 0EP"]
[10541626,"ü","Abney Trust","The Kingsway School,Foxland Road,,Cheshire,England,SK8 4QX"]
[10041071,"ü","Above and Beyond","Charitable Trust For Uhbristol,The Abbots House,Blackfriars, Deep Street,Gloucestershire,England,BS1 2NZ"]
[10024774,"ü","Aboyne Academy","Bridgeview Road,,,Aberdeenshire,Scotland,AB34 5JN"]
[10000009,"ü","Aboyne Hospital","Bellwood Road,Aboyne,,Aberdeenshire,Scotland,AB34 5HQ"]
[10002589,"ü","Aboyne Lodge School","Etna Road,,,Hertfordshire,England,AL3 5NL"]
[10020188,"ü","Abraham Guest Specialist Sports Collegeÿ","Orrell Road,,Orrell,Greater Manchester,England,WN5 8HN"]
[10020189,"ü","Abraham Moss High School","Crescent Road,Crumpsall,,Greater Manchester,England,M8 5UF"]
[10566666,"ü","Abram Bryn Gates Primary School","Lily Lane, Bamfurlong,,,,,WN2 5JT"]
[10006826,"ü","Abram Church of England School","Simpkin Street,Abram,,Lancashire,England,WN2 5QE"]
[10572668,"ü","Abrar Academy","34-36 Garstang Road,,,,,PR1 1NA"]
[10024784,"ü","Abronhill High School","Larch Road,Cumbernauld,,Strathclyde,Scotland,G67 3AZ"]
[10033816,"ü","Absolute Care At Home","SUITE A, ST MARYS STUDIO,ST MARYS ROAD,,Greater Manchester,England,WA14 2PL"]
[10038903,"ü","Absolutely Leisure","Montem Leisure Lane,Finance Dept  Montem Lane,,Buckinghamshire,England,SL1 2QG"]
[10574939,"ü","Abu Bakr Boys School","Kent Street,,,,,WS2 7AN"]
[10570356,"ü","Abu Bakr Girls School","154-160 Wednesbury Road, Palfrey,,,,,WS1 4JJ"]
[10022925,"ü","Abu Hurairah Academy","28 Carrington Street,,,West Yorkshire,England,BD3 8AE"]
[10014906,"ü","Abundant Life Centre","Wapping Road,,,West Yorkshire,England,BD3 0EQ"]
[10035516,"ü","ABUNDANT LIFE CHRISTIAN CENTRE","TIBSHELF RD,,,Derbyshire,England,S42 5TA"]
[10028781,"ü","Abused Men in Scotland","20 St. Andrews Street,,,Fife,Scotland,KY11 4QN"]
[10578168,"ü","ABWTS","16 Ashbrook Road,Old Windsor,,Berkshire,England,SL4 2LS"]
[10029445,"ü","Acacia Childrens Centre","8 Cathall Road,,,Greater London,England,E11 4LF"]
[10569519,"ü","Acacia Nursery","Cecil Road, Leytonstone,,,,,E11 3HF"]
[10567235,"ü","Acacias Community Primary School","Alexandra Drive, Burnage,,,,,M19 2WW"]
[10040967,"ü","academic association for Contemporary European Studies","School Of Pub Policy Ucl,29/30 Tavistock Sq,,Greater London,England,WC1H 9QU"]
[10028829,"ü","Academies Enterprise Trust","Kilnfield House,Foundry Business Park,Station Approach,Essex,England,SS5 4HS"]
[10038904,"ü","Academy","Units 13-14,Navigation Court,,West Yorkshire,England,WF2 7BJ"]
[10010733,"ü","Academy at Peckham The","(Warwick Park School),Peckham Road,,Greater London,England,SE15 5DZ"]
[10038905,"ü","Academy Concert Society","39 Wyndham Crescent,Elm Park,,Surrey,England,GU6 8UQ"]
[10023008,"ü","Academy for Sustainable Communities The","Round Foundry Media Centre,Foundry Street,,West Yorkshire,England,LS11 5QP"]
[10032858,"ü","Academy of Contemporary Music","Rodboro Building ,Bridge Street,Gildford,Surrey,England,GU1 4SB"]
[10032671,"ü","Academy Of Contemporary Music Limited The","Global House,Bridge Street,,Surrey,England,GU1 4SB"]
[10013130,"ü","Academy of Culinary Arts Adopt a School Trust","Academy of Culinary Arts, 53,Cavendish Road,,Greater London,England,SW12 0BL"]
[10028984,{"$f":"CHAR(252)","v":"ü"},"Academy of St Francis of Assisi The","Gardners Drive,,,Merseyside,England,L6 7UR"]
[10010734,"ü","Academy of Youth The","Level L2 Millennium Point,Curzon Street,,West Midlands,England,B4 7XG"]
[10040819,"ü","Academy Transformation Trust","1 Victoria Square,,,West Midlands,England,B1 1BD"]
[10051198,"ü","Accelerated Access Review",",,,,,"]
[10054938,"ü","Accent Corporate Services Ltd","Charlestown House,Acorn Park Industrial Estate,Charlestown,West Yorkshire,England,BD17 7SW"]
[10006606,"ü","Accent Group","Butterfield House,,Otley Road,Baildon,West Yorkshire,England,BD17 7HF"]
[10028260,"ü","Accent Group Limited",",,,,,"]
[10028261,"ü","Accent Homes Limited",",,,,,"]
[10012412,"ü","Accent Yorkshire","Jeremy Downs House,Senior Way,York Road,West Yorkshire,England,BD5 0QB"]
[10030178,"ü","Access Ability Centre","28 Boulogne Road,,,Surrey,England,CR0 2QT"]
[10021272,"ü","Access for Living","Unit 9,Southbrook Road,,Greater London,England,SE12 8LG"]
[10025992,"ü","Access Glasgow","112 Ingram Street,,,Strathclyde,Scotland,G1 1ET"]
[10016447,"ü","Access Homes Housing Association Limited","Newlon House,204 Hoxton Street,,Greater London,England,N1 5LH"]
[10565977,"ü","Access School","Holbrook Villa Farm, Harmer Hill, Broughton,,,,,SY4 3EW"]
[10022736,"ü","Access to Benefits","Unit 40,North City Business Centre,2 Duncairn Gardens,County Antrim,Northern Ireland,BT15 2GG"]
[10035202,"ü","ACCESS TO LEARNING","HUNTINGTON CLOSE,,,Mid Glamorgan,Wales,SA3 5AL"]
[10041711,"ü","Acclaim Housing Group Limited","Scholes Mill,Old Coach Road,Tansley,Derbyshire,England,DE4 5FY"]
[10004620,"ü","Accommodation Stores Supply Sqn","RAF  Benson,Wallingford,,Oxfordshire,England,OX10 6AA"]
[10029645,"ü","Accord Hospice","7 Morton Avenue,,,Renfrewshire,Scotland,PA2 7BW"]
[10006122,"ü","Accord Housing Association Limited","178 Birmingham Rd,,,West Midlands,England,B70 6QG"]
[10006123,"ü","Accord Housing Group Limited","Parklands House,9 Hatherton Road,,West Midlands,England,WS1 1XS"]
[10037472,"ü","Accord Multi Academy Trust","Storrs Hill Road,,,West Yorkshire,England,WF5 0DG"]
[10023671,"ü","Account 3","307-308 Greenheath Business Centre,Three Colts Lane,,Greater London,England,E2 6JB"]
[10018883,"ü","Accountancy in Bankruptcy","1 Pennyburn Road,Kilwinning,,,Scotland,KA13 6SA"]
[10006828,"ü","Accountant in Bankruptcy","George House,126 George Street,,Mid Lothian,Scotland,EH4 4HH"]
[10025237,"ü","Account NI","PO Box 1120,,,County Antrim,Northern Ireland,BT1 9FZ"]
[10054924,"ü","Accrington Academy","Queens Road West,,,Lancashire,England,BB5 4FF"]
[10003561,"ü","Accrington and Rossendale College","Sandy Lane,,,Lancashire,England,BB5 2AW"]
[10573124,"ü","Accrington Benjamin Hargreaves Voluntary Aided Church of England Primary School","Barnfield Street,,,,,BB5 2AQ"]
[10572968,"ü","Accrington Peel Park Primary School","Alice Street,,,,,BB5 6QR"]
[10574211,"ü","Accrington Spring Hill Community Primary School","Exchange Street,,,,,BB5 0JD"]
[10575328,"ü","Accrington St John with St Augustine Church of England Primary School","Maudsley Street,,,,,BB5 6AD"]
[10043649,"ü","Ace Academy, the","Alexandra Road,,,West Midlands,England,DY4 7NR"]
[10022703,"ü","ACE Advisory Centre","92 Windmill Road,Headington,,Oxfordshire,England,OX3 7DR"]
[10018606,"ü","ACE Centre North","Unit 11/12,Gateshead Business Park,Delph New Road,Lancashire,England,OL3 5DE"]
[10028262,"ü","Ace Centre - North",",,,,,"]
[10040179,"ü","Ace Centre Nursery School","Burford Road , Chipping Norton , Oxfordshire , UK . OX7 5DZ,,,Oxfordshire,England,OX7 5DZ"]
[10583135,"ü","ACE Cornton","37 Johnston Avenue,,,Stirlingshire,Scotland,FK9 5DD"]
[10034393,"ü","Ace Enterprises","South Essex Partnership NHS,Shared Financial Services,Thurrock Community Hospital,Essex,England,LU1 1RX"]
[10000496,"ü","Acer UK Limited","Suite 1 Lancaster House,Meadow Lane,,Cambridgeshire,England,PE27"]
[10567123,"ü","ACE Schools Plymouth","Martins Gate, Bretonside,,,,,PL4 0AT"]
[10026857,"ü","Acharacle Medical Practice","The Pines Medical Centre,,,Highlands,Scotland,PH36 4JU"]
[10000087,"ü","Acharacle Primary School","School Office,,,Argyll & Bute,Scotland,PH36 4JU"]
[10010735,"ü","Achievement Zone The","c/o Carmountside Primary School,Woodhead Road,,Staffordshire,England,ST2 2DJ"]
[10026865,"ü","Achieve Potentials","Princes House,Wight Street,,North Yorkshire,England,HU2 8HX"]
[10042945,"ü","Achieving for Children","Civic Centre,44 York Street,,Middlesex,England,TW1 3BZ"]
[10006829,"ü","Acis Group Limited","Acis House,Bridge Street,,Lincolnshire,England,DN21 1GG"]
[10006830,"ü","Acklam Grange School","Lodore Grove,,,North Yorkshire,England,TS5 8PB"]
[10006831,"ü","Acklam Whin Primary School","Carlbury Avenue,Acklam,,North Yorkshire,England,TS5 8SQ"]
[10572918,"ü","Acklington Church of England Controlled First School","Acklington,,,,,NE65 9BW"]
[10055284,"ü","ACKNOWLEDGING YOUTHS CIC","Peabody Estate Block A,,,,England,SW1V 1TA"]
[10037983,"ü","Ackton Pastures Primary","College Grove,,,West Yorkshire,England,WF10 5NS"]
[10006744,"ü","Ackworth Howard Church of England Junior and Infant School","Station Road,Ackworth,,West Yorkshire,England,WF7 7HH"]
[10566424,"ü","Ackworth Mill Dam School","Mill Gate, Ackworth,,,,,WF7 7PH"]
[10037041,"ü","Ackworth Parish Council","The Parish Hall,Bell Lane,,Yorkshire,England,WF7 7JH"]
[10032619,"ü","Ackworth school","Pontefract Road,,,,England,WF7 7LT"]
[10006832,"ü","Acland Burghley School","Burghley Road,,,Greater London,England,NW5 1UJ"]
[10037172,"ü","Acle (Marshes) Childrens Centre","Bridewell Lane,Acle,,Norfolk,England,NR13 3RA"]
[10006833,"ü","Acle High School","South Walsham Road,,,Norfolk,England,NR13 3ER"]
[10006834,"ü","Acle Lions","20 St Lawrance Avenue,Brundall,,Norfolk,England,NR13 5QH"]
[10565077,"ü","ACL Essex",",,,,,"]
[10562123,"ü","Acle St Edmund C of E Primary School","Fletcher Way,Acle,,Norfolk,England,NR13 3RQ"]
[10032431,"ü","Aclet Close Nursery School","Aclet Close,,,County Durham,England,DL14 6PX"]
[10026521,"ü","Acme Artists Studios","44 Copperfield Road,,,Greater London,England,E3 4RR"]
[10006835,{"$f":"CHAR(252)","v":"ü"},"Acme Housing Association Limited","44 Copperfield Road,Bow,,Greater London,England,E3 4RR"]
[10037692,"ü","Acocks Green Primary School","63 Westley Road,,,West Midlands,England,B27 7UQ"]
[10015776,"ü","Acomb First School","Main Street,,Acomb,Northumberland,England,NE46 4PL"]
[10566428,"ü","Acomb Primary School","West Bank, Acomb,,,,,YO24 4ES"]
[10039569,"ü","Aconbury Centre The","Ross Road,,,Herefordshire,England,HR2 7RL"]
[10042460,"ü","Acorn Academy Cornwall","6 The Setons,Tolvaddon Energy Park,Tolvaddon,Cornwall,England,TR14 0HX"]
[10574172,"ü","Acorn Cottage","Elmsett,,,,,IP7 6NY"]
[10033817,"ü","Acorn Fostering Services","80 BURLEYS WAY,,,Leicestershire,England,LE1 3BD"]
[10042491,"ü","Acorn Free School","248 Calder Road,,,Lincolnshire,England,LN5 9TL"]
[10572698,"ü","Acorn House College","39-47 High Street,,,,,UB1 3HF"]
[10001571,"ü","Acorn Housing Association Limited","1 Church Hill,,,Essex,England,SS9 2DE"]
[10565947,"ü","Acorn Park School","Andrews Furlong, Mill Road, Banham,,,,,NR16 2HU"]
[10014843,"ü","Acorn Preschool","Methodist Church Hall,Ampthill Road,,Bedfordshire,England,SG17 5UT"]
[10025857,"ü","Acorn Resource Centre","Children Families & Adult Services,Newhall Campus,Longmoor Lane,Merseyside,England,L10 1LD"]
[10033818,"ü","Acorns Childrens Centre","110 ROMAN ROAD,TAUNTON,,Somerset,England,TA1 2BL"]
[10006836,"ü","Acorns Childrens Hospice Trust","8A Wake Green Road,Moseley,,West Midlands,England,B13 9EZ"]
[10569383,"ü","Acorn School","Little Oak, Knowstone,,,,,EX36 4SA"]
[10031901,"ü","Acorns Primary School","Moor Park,Blackpool Road,,Lancashire,England,PR1 6AU"]
[10040663,"ü","Acorns Primary School","Long Compton,,,Warwickshire,England,CV36 5LA"]
[10575297,"ü","Acorns School","Marple,,,,,SK6 7NN"]
[10027724,"ü","Acorns Selly Oak","103 OAK TREE LANE,SELLY OAK,,West Midlands,England,B29 6HZ"]
[10035517,"ü","Acorus Rural Property Services Limited","Elder Road,,,,England,DL6 1NH"]
[10570097,"ü","Acre Heads Primary School","Welbourn Walk, Norland Avenue,,,,,HU4 7ST"]
[10036600,"ü","Acre Rigg Infant School","Acre Rigg Road,,,County Durham,England,SR8 2DU"]
[10571730,"ü","Acresfield Community Primary School","Acres Lane, Upton By Chester,,,,,CH2 1LJ"]
[10041611,"ü","Acres Hill Primary School","Mather Road,,,South Yorkshire,England,S9 4GQ"]
[10563264,"ü","ACRO Criminal Records Office","Po Box 481,,,Hampshire,England,PO14 9FS"]
[10563029,"ü","Across Leicester Health Ltd","184 Coleman Road,,,,England,LE5 4LJ"]
[10037145,"ü","ACS Cobham International School","Heywood,Portsmouth Road,,Surrey,England,KT11 1BL"]
[10575152,"ü","ACS Egham International School","London Road,,,,,TW20 0HS"]
[10030179,"ü","Acs Hillingdon International School","Ground Floor Hillingdon Court,,,Middlesex,England,UB10 0BE"]
[10034394,"ü","Act Foundation","61 Thames Street,,,Middlesex,England,HA6 9NA"]
[10006838,"ü","Act Housing Association Limited","29 Thistlewaite Road,,,Greater London,England,E5 0QG"]
[10036908,"ü","Action4Youth","Drill Hall Cottage,Bellingdon Road,Chesham,Buckinghamshire,England,HP5 2HA"]
[10026665,"ü","Action Against Medical Accidents","44 High Street,,,Greater London,England,CR0 1YB"]
[10006839,"ü","Action Aid","MacDonald Rd,,,Greater London,England,N19 5PG"]
[10028871,"ü","Action Cancer","1 Marlborough Park,,,County Antrim,Northern Ireland,BT9 6XS"]
[10026551,"ü","Action Community Forum","112-114 Boll Bridge Road,,,Greater London,England,W3 8DD"]
[10007477,"ü","Action Deafness","135 Welford Road,,,Leicestershire,England,LE2 6BE"]
[10006840,"ü","Action for Blind People","14-16 Verney Road,,,Greater London,England,SE16 3DZ"]
[10009415,"ü","Action For Children","85 Highbury Park,Islington,Lannades Business Park,Greater London,England,N5 1UD"]
[10027867,"ü","Action For Deafness","51 ROWLANDS ROAD,,,West Sussex,England,BN11 3JN"]
[10037754,"ü","Action For Kids","3 The Boulevard,Ascot Road,,Hertfordshire,England,WD18 8AG"]
[10024488,"ü","Action for Kids Charitable Trust","15 Tottenham Lane,,,Greater London,England,N8 9DJ"]
[10582823,"ü","Action for ME","42 Temple Street,,,,,,BS31 1EH"]
[10038906,"ü","Action For M E","Canningford House,38 Victoria Street,,Avon,England,BS1 6BY"]
[10579101,"ü","Action Foundation","The Castlegate,Melbourne Street,,Tyne and Wear,England,NE1 2JQ"]
[10013509,"ü","Action Group The","Norton Park Centre,57 Albion Road,,Mid Lothian,Scotland,EH7 5QY"]
[10578802,"ü","Action Hampshire","Westgate Chambers,Staple Gardens,,Hampshire,England,SO23 8SR"]
[10018856,"ü","Action Heart","Wellesley House,117 Wellington Road,,West Midlands,England,DY1 1UB"]
[10565829,"ü","Action Homeless","Ridgeway House,Newton Lane,,Leicestershire,England,LE18 3SE"]
[10021591,"ü","Action Housing","Unit 5/6 Genesis Park,Sheffield Road,,West Yorkshire,England,S60 1DX"]
[10018646,"ü","Action in Communities","105-107 Maple Road,,,Greater London,England,SE20 8LP"]
[10051002,"ü","Action Kids",",,,,,"]
[10026269,"ü","Action Mental Health","New Horizons,Unit 13 Springtown Industrial Estate,,County Londonderry,England,BT48 OLY"]
[10042053,"ü","Action Multiple Sclerosis","Knockbracken Healthcare Park,,,County Antrim,Northern Ireland,BT8 8BH"]
[10027365,"ü","Action on Addiction","Cloud House,,East Knoyle,Wiltshire,England,SP3 6BE"]
[10027192,"ü","Action on Disability and Development","Vallis House,,,Somerset,England,BA11 3EG"]
[10037248,"ü","Action On Elder Abuse","23-25 Mitcham Lane,,,Greater London,England,SW16 6LQ"]
[10012487,"ü","Action on Hearing Loss","1 Metro Centre,Wellbeck Way,,Cambridgeshire,England,PE2 7UH"]
[10033123,"ü","Action On Smoking And Health","ASH IN WALES,8 MUSEUM PLACE,,South Glamorgan,Wales,CF10 3BG"]
[10038907,"ü","Action Overseas","Apostolic Church,Po Box 51298,,Greater London,England,SE11 9AJ"]
[10034395,"ü","Actionpoint","Otterham Quay Lane,,,Kent,England,ME8 8AS"]
[10567066,"ü","Activate","The Bracknell Centre, Bracknell Avenue,,,,,L32 9PW"]
[10042400,{"$f":"CHAR(252)","v":"ü"},"Activate Learning","Oxpens Road,,,Oxfordshire,England,OX1 1SA"]
[10042847,"ü","Active4Today","Kelham Hall,Kelham,,Nottinghamshire,England,NG23 5QX"]
[10578508,"ü","Active Change Foundation","453 Lea Bridge Road,,,,England,E10 7EA"]
[10581328,"ü","Active Devon","The Loft, Haven Banks OEC,Haven Road,,Devon,England,EX2 8DP"]
[10026906,"ü","Active Dorset","Poole House,Talbot Campus,Fern Barrow,Dorset,England,BH12 5BB"]
[10039867,"ü","ACTIVE LEARNING TRUST Limited The","c/o Chesterton Primary School New End Road,,,Cambridgeshire,England,CB4 1RW"]
[10043775,"ü","Active Listening","73 Liminary Road,,,County Antrim,Northern Ireland,BT42 3HN"]
[10023950,"ü","Active Luton","Wigmore hall,Eaton Green Road,Wigmore Valley Park,Bedfordshire,England,LU2 9JB"]
[10541655,"ü","Active Nation","Thornhill Road,,,Hampshire,England,SO16 7AY"]
[10041384,"ü","Active Newham","The Old Dispensary,30 Romford Road,,Greater London,England,E15 4BZ"]
[10043454,"ü","Active Norfolk","Po Box 5,Easton,,Norfolk,England,NR9 5DX"]
[10041876,"ü","Active Northumberland","Forum Way,,,Northumberland,England,NE23 6YB"]
[10038908,"ü","Active Stirling Limited","No 23,15 Borrowmeadow Road,,Fife,Scotland,FK7 7UW"]
[10569460,"ü","Active Support Education Centre","Unit 1 Britannia Estates, Leagrave Road,,,,,LU3 1RJ"]
[10024272,"ü","Acton and West London College","Acton Centre,Gunnersbury Lane,,Greater London,England,W3 8UX"]
[10036426,"ü","Acton Church of England Primary Academy","Chester Road,Acton,,Cheshire,England,CW5 8LG"]
[10030822,"ü","Acton Health Centre","31-65 Church Road,,,Greater London,England,W3 8QE"]
[10023077,"ü","Acton High School","Gunnersby Lane,,,Greater London,England,W3 8EY"]
[10006841,"ü","Acton Housing Association","113 Uxbridge Road,,,Greater London,England,W5 5TL"]
[10027253,"ü","Acton Park Primary School","Box Lane,,,Wrexham,Wales,LL12 8BT"]
[10038200,"ü","Acton Primary School","Lambert Drive,Acton,,Suffolk,England,CO10 0US"]
[10025548,"ü","ACUS","5 Coventry Innovation Village,Cheetah Road,,West Midlands,England,CV1 2TL"]
[10054973,"ü","ADA College","Senate House,Malet Street,,,England,WC1E 7HU"]
[10016982,"ü","Adactus Housing Association Limited","Turner House,56 King Street,,Lancashire,England,WN7 4LJ"]
[10016993,"ü","Adactus Housing Group Limited","Turner House,56 King Street,,Lancashire,England,WN7 4LJ"]
[10030552,"ü","Adam House Medical Centre","85-91 Derby Road,,,Derbyshire,England,NG10 5HZ"]
[10031902,"ü","Adamsdown Primary School","System Street,,,South Glamorgan,Wales,CF24 0JF"]
[10014494,"ü","Adamsrill Primary School","Adamsrill Road,,,Greater London,England,SE26 4AQ"]
[10571625,"ü","Ada National College for Digital Skills","Broad Lane, Tottenham Hale,,,,,N15 4AG"]
[10000497,"ü","ADAS","Chatteris Road,Mepal,Otterburn,Cambridgeshire,England,CB6 2BA"]
[10579051,"ü","Ad Astra Academy Trust",",,,,,"]
[10579050,"ü","Ad Astra Academy Trust","Hartlepool Innovation Centre Venture Court Queens Meadow Business Park,Hartlepool,,County Durham,England,TS25 5TG"]
[10567313,"ü","Ad Astra Infant School","Sherborn Crescent, Canford Heath,,,,,BH17 8AP"]
[10037259,"ü","Adat Yeshua Messianic Synagogue","34 Eastern Crescent,,,Norfolk,England,NR7 0UF"]
[10004869,"ü","Adcote School Educational Trust Limited","Adcote,Little Ness,,Shropshire,England,SY4 2JY"]
[10575117,"ü","Adcote School for Girls","Little Ness,,,,,SY4 2JY"]
[10041018,"ü","Addaction","1 Station Road,,,County Durham,England,DH8 5RL"]
[10013622,"ü","Addaction","67-69 Cowcross Street,,,Greater London,England,EC1M 6PU"]
[10033422,"ü","Addaction Limited","Station Road,,,Derbyshire,England,DE7 5LD"]
[10035518,"ü","Addaction Walsall","231 Stafford Street,,,West Midlands,England,WS2 8DF"]
[10039929,"ü","ADDENBROOKES CHARITABLE TRUST","CAMBRIDGE UNIVERSITY HOSPITALS NHS FT,ADDENBROOKES HOSPITAL,HILLS ROAD,Cambridgeshire,England,CB2 0QQ"]
[10541656,"ü","Addenbrookes Nhs Trust","Addenbrookes Hospital,Hills Road,,Cambridgeshire,England,CB2 0QQ"]
[10029953,"ü","Adderlane County First School","Broomhill Road,,,Northumberland,England,NE42 5HX"]
[10572925,"ü","Adderley CofE Primary School","Adderley,,,,,TF9 3TF"]
[10570792,"ü","Adderley Nursery School","Adderley Road, Saltley,,,,,B8 1EH"]
[10570793,"ü","Adderley Primary School","Arden Road, Saltley,,,,,B8 1DZ"]
[10029050,"ü","Addey and Stanhope Secondary School","472 New Cross Road,,,Greater London,England,SE14 6TJ"]
[10028861,"ü","Addiction Dependency Solutions","135-141 Oldham Street,,,Greater Manchester,England,M4 1LN"]
[10041779,"ü","Addiction NI","40 Elmwood Avenue,,,County Antrim,Northern Ireland,BT9 6AZ"]
[10038261,"ü","Addiction Problem Advisory Service","36 Park Row,,,Nottinghamshire,England,NG1 6GR"]
[10015799,"ü","Addiction Recovery Agency","Kings Court,King Street,,Avon,England,BS1 4EE"]
[10015599,"ü","Addiction Services","Council Offices,P O Box 6,,Dunbartonshire,Scotland,G82 3PU"]
[10026528,"ü","Addiewell Primary School","Church Street,,,,England,EH55 8PG"]
[10564731,"ü","Addingham Parish Council","The Old School,Main Street,Addingham,West Yorkshire,England,LS29 0NS"]
[10018511,"ü","Addingham Primary School","Bolton Road,Addingham,,West Yorkshire,England,LS29 0NR"]
[10541657,"ü","Addington Fund","Unit 9,Barford Exchange,Wellesbourne Road\nBarford,,England,CV35 8AQ"]
[10013798,"ü","Addington High School","Fairchildes Avenue,New Addington,,Surrey,England,CR0 0AH"]
[10028860,"ü","Addington Medical Centre","46 Station Road,,,Hertfordshire,England,EN5 1QH"]
[10006842,"ü","Addington School","Loddon Bridge Road,Woodley,,Berkshire,England,RG5 4BS"]
[10572254,"ü","Addington School","Woodlands Avenue, Woodley,,,,,RG5 3EU"]
[10016765,"ü","Addiscombe Catholic Housing Association Limited","The Presbytery,147 Bingham Road,Addiscombe,Surrey,England,CR0 7EN"]
[10037201,"ü","Addison's Disease SelfHelp Grp The","Noel Hawks                              ,Secretary, Adshg                        ,Po Box 45445,Greater London,England,SE26 6YR"]
[10567002,"ü","Addison Primary School","Addison Gardens, Blythe Road,,,,,W14 0DT"]
[10030553,"ü","Adelaide Medical Centre","Adelaide Road,,,Wiltshire,England,SP10 1HA"]
[10036740,{"$f":"CHAR(252)","v":"ü"},"Adelaide Medical Centre","111 Adelaide Road,,,Greater London,England,NW3 3RY"]
[10035278,"ü","Adelaide Primary School","Walker Street,,,East Yorkshire,England,HU3 2RA"]
[10006843,"ü","Adelaide School","Adelaide Street,,,Cheshire,England,CW1 3DT"]
[10027422,"ü","Adelaide Street Family Practice","118 Adelaide Street,,,Lancashire,England,FY1 4LN"]
[10566440,"ü","Adel Beck","East Moor Lane, Adel,,,,,LS16 8EB"]
[10566442,"ü","Adel Primary School","Tile Lane, Adel,,,,,LS16 8DY"]
[10566441,"ü","Adel St John the Baptist Church of England Primary School","Long Causeway, Adel,,,,,LS16 8EX"]
[10021179,"ü","Adeyfield School","Longlands,,,Hertfordshire,England,HP2 4DE"]
[10034396,"ü","Adhar Project","St. Peters Road,,,Leicestershire,England,LE2 1DH"]
[10006844,"ü","Adisham CEP School","The Street,Adisham,,Kent,England,CT3 3JW"]
[10006845,"ü","ADIT East","The Business Centre,Station Road,Histon,Cambridgeshire,England,CB4 9LQ"]
[10013099,"ü","ADIT East Midlands","39 The Paddock,,Chalfont St. Peter,Buckinghamshire,England,SL9 0JJ"]
[10023324,"ü","ADIT London","34 Onslow Gardens,,,Greater London,England,SW7 3AQ"]
[10013337,"ü","ADIT North East","Regus, 116,Quayside, Rotterdam House,Room 309 (2nd Floor),Tyne and Wear,England,NE1 3DY"]
[10013052,"ü","ADIT North West","9 The Croft,,Euxton,Lancashire,England,PR7 6LH"]
[10005630,"ü","ADIT South East","Wesley House,Bull Hill,,Surrey,England,KT22 7AH"]
[10013368,"ü","ADIT South West","The Johnsons Group Ltd,Office 12,James Street West,Somerset,England,BA1 2BU"]
[10013872,"ü","ADIT West Midlands","Unit G0.16,Aston Science Park, Faraday Wharf, Holt Street,,West Midlands,England,B7 4BB"]
[10019005,"ü","Adjudicator to HM Land Registry","Procession House,55 Ludgate House,,Greater London,England,EC4M 7JW"]
[10031903,"ü","Adlington Primary School","Park Road,Adlington,,Lancashire,England,PR7 4JA"]
[10566444,"ü","Adlington Primary School","Brookledge Lane, Adlington,,,,,SK10 4JX"]
[10566445,"ü","Adlington St Paul's Church of England Primary School","Railway Road, Adlington,,,,,PR6 9QZ"]
[10051199,"ü","Administration of Radioactive Substances Advisory Committee","Chilton,,,,England,OX11 0RQ"]
[10051200,"ü","Administrative Court","Strand,,,,England,WC2A 2LL"]
[10023204,"ü","Administrative Justice and Tribunals Council","81 Chancery Lane,,,Greater London,England,WC2A 1BQ"]
[10029111,"ü","Administrative Office Estate","Crown Building,Cathays Park,,South Glamorgan,Wales,CF10 3NQ"]
[10013046,"ü","Admiral Lord Nelson School","Dundas Lane,,,Hampshire,England,PO3 5XT"]
[10042868,"ü","Admirals Academy","Admirals Way,,,Suffolk,England,IP24 2JT"]
[10051201,"ü","Admiralty Court",",,,,,"]
[10033244,"ü","Adoption Uk","LINDEN HOUSE,55 The Green,South Bar Street,Oxfordshire,England,OX16 9AB"]
[10033819,"ü","Adopt Limited Belfast","72 HIGH STREET,BELFAST,,County Antrim,Northern Ireland,BT1 2BE"]
[10038093,"ü","ADSIS","2 Hargreaves Court,Dyson Way,Staffordshire Technology Park,Staffordshire,England,ST18 0WN"]
[10566446,"ü","Adswood Primary School","Garners Lane, Adswood,,,,,SK3 8PQ"]
[10020855,"ü","ADT College","100 West Hill,,Putney,Greater London,England,SW15 2UT"]
[10013393,"ü","Adullam Homes HA Limited","Adullam Homes Housing Association Ltd, 11-13,The Old Courthouse,11-13 New Road,Cheshire,England,WA13 9DX"]
[10006847,"ü","Adullam Homes Housing Association Limited","Peak House,Farm House Way,Great Barr,West Midlands,England,B43 7SE"]
[10015642,"ü","Adult College Lancaster The","White Cross Education Centre,Quarry Road,,Lancashire,England,LA1 3SE"]
[10000403,"ü","Adult Continuing Education","Park Road,Winslow,,Buckinghamshire,England,MK18 3RB"]
[10023215,"ü","Adult Dyslexia Organisation ADO","Flat 36,Nevil House,Loughborough Estate,Greater London,England,SW9 7TW"]
[10021109,"ü","Adult Education Centre","Borough of Poole,Oakdale Centre,Wimbourne Road,Dorset,England,BH15 3DL"]
[10034397,"ü","Adult Mental Health","Hampshire Partnership NHS Trust,RW1 Payables 4815,Phoenix House,Hampshire,England,PO16 7ES"]
[10015836,"ü","Adults Supporting Adults","Railton House,East Road Business Estate,,Lincolnshire,England,NG34 7EQ"]
[10023740,"ü","Adult Training Centre The","The Highway,,Croesyceiliog,Torfaen,Wales,NP44 2HF"]
[10011879,"ü","Adur Carers Association","The Carers Centre,Pond Road,,West Sussex,England,BN43 5WU"]
[10006454,"ü","Adur District Council","Civic Centre,Ham Road,,West Sussex,England,BN43 6PR"]
[10035519,"ü","ADUR MEDICAL GROUP","SOUTHWICK,,,East Sussex,England,BN42 4WA"]
[10036848,"ü","Advanced Primary Care Service","Euston House,Euston Way,,Shropshire,England,TF3 4LY"]
[10021767,"ü","Advanced Procurement for Universities and Colleges Limited","9 Sighthill Court,,,Lothian,Scotland,EH11 4BN"]
[10042009,"ü","Advanced Propulsion Centre UK Limited","Somerset House,,,West Midlands,England,B25DJ"]
[10566205,"ü","Advance Education","Unit 5, Unimix House, Abbey Road, Park Royal,,,,,NW10 7TR"]
[10004621,"ü","Advance Housing and Support Limited","2 Witan Way,,,Oxfordshire,England,OX8 6FE"]
[10041182,"ü","Advance School Limited","Highbury Playing Fields,Highbury Avenue,,Greater London,England,NW7 0OO"]
[10043375,"ü","Advancing Quality Allience","Cross Street,,,Greater Manchester,England,M33 7FT"]
[10037240,"ü","Advantage Africa Limited","26a Market Place,,,Buckinghamshire,England,MK46 4BA"]
[10032796,"ü","Advantage South West","Advantage SW LLP,South Somerset House,Alvington,Somerset,England,BA22 8WN"]
[10570601,"ü","Adventure Care Ltd","Hilltop Cottage, Quarnford,,,,,SK17 0TJ"]
[10038909,"ü","Adventure Dolphin","Whitchurch Road,Pangbourne,,Oxfordshire,England,RG8 7DA"]
[10037268,"ü","Adventurelink","64 Edward Street,,,East Sussex,England,BN2 0JR"]
[10023236,"ü","Advice For Life","Unit 11,E-Space South,26 St. Thomas Place,Cambridgeshire,England,CB7 4EX"]
[10582869,"ü","ADVICE UK","ADVICE UK,ACTIVE HEADQUARTERS,Address\n101e Universal House 88-94 Wentworth Street, LONDON, E1 7SA, GB\nPhone\n0300 777 0107\nD-U-N-S\n29-760-8127\nRegistration #\n02023982,,,"]
[10006851,"ü","Advisory, Conciliation and Arbitration Service","22nd Floor,Euston Tower,286 Euston Road,Greater London,England,NW1 3JJ"]
[10004388,"ü","Advisory and Inspection Services","The Eastbourne Centre,Station Road,,Nottinghamshire,England,NG17 5FF"]
[10021788,"ü","Advisory Committee for the Public Lending Right","Richard House,Sorbonne Close,,,England,TS17 6DA"]
[10051202,"ü","Advisory Committee on Animal Feedingstuffs","Aviation House,125 Kingsway,,,England,WC2B 6NH"]
[10051203,{"$f":"CHAR(252)","v":"ü"},"Advisory Committee on Business Appointments","1 Horse Guards Road,,,,England,SW1A 2HQ"]
[10021789,"ü","Advisory Committee on Clinical Excellence Awards","LG 04-05,Wellington House,,Greater London,England,SE1 8UG"]
[10051204,"ü","Advisory Committee on Conscientious Objectors","MoD Legal Advisors,6th Floor, Zone 1,Main Building\nWhitehall,,England,SW1A 2HB"]
[10019925,"ü","Advisory Committee on Hazardous Substances (HSAC)","4/D1,Ashdown House,123 Victoria Street,Greater London,England,SW1E 6DE"]
[10051205,"ü","Advisory Committee on Novel Foods and Processes","Aviation House,125 Kingsway,,,England,WC2B 6NH"]
[10019926,"ü","Advisory Committee on Packaging","Zone 7/F8,Ashdown House,123 Victoria Street,Greater London,England,SW1E 6DE"]
[10019928,"ü","Advisory Committee on Releases to the Environment","Zone 4/E6,Ashdown House,123 Victoria Street,Greater London,England,SW1E 6DE"]
[10019911,"ü","Advisory Committee on Statute Law","Statutory Publications Office,1st Floor, Selborne House,54-60 Victoria Street,Greater London,England,SW1E 6QW"]
[10051206,"ü","Advisory Committee on the Microbiological Safety of Food","Aviation House,125 Kingsway,,,England,WC2B 6NH"]
[10051366,"ü","Advisory Committees on Justices of the Peace","Seventh Floor,102 Petty France,,,England,SW1H 9AJ"]
[10019910,"ü","Advisory Committees on Justices of the Peace","Selborne House,54-60 Victoria Street,,Greater London,England,SW1E 6QW"]
[10019966,"ü","Advisory Council on the Misuse of Drugs","6th Floor, Peel Building,2 Marsham Street,,Greater London,England,SW1P 4DF"]
[10051207,"ü","Advisory Group on Military Medicine","Lichfield Support Unit,,,,England,WS14 9PY"]
[10023202,"ü","Advisory Panel on Public Sector Information","St. Clements House,2-16 Colegate,,Norfolk,England,NR3 1BQ"]
[10031904,"ü","Advocacy First","Unit F Clan Works,1A Howard Road,,Kent,England,BR1 3QJ"]
[10035188,"ü","Advocacy in Action","243 High Street,,,Surrey,England,RH4 1RT"]
[10042166,"ü","Advocacy Matters Wales","Canton House,,,South Glamorgan,Wales,CF51JH"]
[10005657,"ü","Adwick Park Junior School","Windmill Balk Lane,,,South Yorkshire,England,DN6 7SH"]
[10032449,"ü","Adwick Washington Infant School","Stafford Road,Woodlands,,South Yorkshire,England,DN6 7LW"]
[10006853,"ü","AEA Technology","Thurso,,,Perthshire,Scotland,KW14 7TZ"]
[10004622,"ü","AEA Technology Consultancy Services","Harwell,,,Oxfordshire,England,OX11 0RA"]
[10006809,"ü","Aedas","Sunlight House,Quay Street,,Greater Manchester,England,M3 3JZ"]
[10582528,"ü","AED Donate","69 High St,,,Staffordshire,England,ST15 8AD"]
[10037488,"ü","Aegir Community School","Gainsborough Educational Village,Sweyn Lane,Gainsborough,Lincolnshire,England,DN21 1PB"]
[10025626,"ü","Aelfgar Centre","Taylors Lane,,,Staffordshire,England,WS15 2AA"]
[10012420,"ü","Aelwyd Housing Association","58 Richmond Rd,,,South Glamorgan,Wales,CF2 3AT"]
[10035153,"ü","AELWYD HOUSING ASSOCIATION Limited","56-58 RICHMOND RD,,,South Glamorgan,Wales,CF24 3ET"]
[10574412,"ü","Aerodrome Primary Academy","Goodwin Road,,,,,CR0 4EJ"]
[10540943,"ü","Aeromedical Evacuation Control Centre","Brize Norton,,,,England,OX18 3LX"]
[10041529,"ü","Aeronautical Information Documents Unit","Northolt Airfield,West End Road,,Middlesex,England,HA4 6NG"]
[10006385,"ü","AES ASU RLC 5 Div","DM Kineton,Marlborough Barracks,,Warwickshire,England,CV47 2UL"]
[10034398,"ü","Aesica Queenborough Limited","3rd Floor, Quorum 5,Quorum Business Park,Benton Lane,Tyne and Wear,England,ME11 5EL"]
[10005907,"ü","Afan College","Margam,,,West Glamorgan,Wales,SA13 2AL"]
[10019093,"ü","AFBI","18a Newforge lane,,,Antrim,Northern Ireland,BT9 5PX"]
[10028735,"ü","Affinity Healthcare","Cheadle Royal Healthcare,100 Wilmslow Road,Heald Green,Cheshire,England,SK8 3DG"]
[10040631,"ü","Affinity Teaching School Alliance","2 The Old Grammar School,School Road,Kibworth,Leicestershire,England,LE8 0EW"]
[10541658,"ü","Affinity Trust","1 St. Andrews Court,Wellington Street,,,England,OX9 3WT"]
[10016915,"ü","Affinity Trust Limited","Maple House,157-159 Masons Hill,,Kent,England,BR2 9HY"]
[10570271,"ü","Afifah School","86 Clifton Street, Old Trafford,,,,,M16 9GN"]
[10024645,"ü","Afon Taf High School","Yew Street,,,Mid Glamorgan,Wales,CF46 4ED"]
[10038466,"ü","Afon Y Felin Primary School","Heol Y Parc,North Cornelly,,Mid Glamorgan,Wales,CF33 4PA"]
[10038910,"ü","AFPP Limited","Daisy Ayris House,42 Freemans Way,,North Yorkshire,England,HG3 1DH"]
[10015665,"ü","Africa Centre The","38 King Street,,,Greater London,England,WC2E 8JT"]
[10029122,"ü","Africa Inland Mission International","Halifax Place,,,Nottinghamshire,England,NG1 1QN"]
[10541659,"ü","African Caribbean Care Group","Claremont Centre,2 Jarvis Road,,Greater Manchester,England,M15 5FS"]
[10028884,"ü","African Caribbean Project","2 Bath Place,,,Warwickshire,England,CV31 3AQ"]
[10005317,"ü","Afro Caribbean Housing Association Limited","(MVSC) The Vestry Hall,,,Surrey,England,CR4 2ZP"]
[10012261,"ü","After Adoption","12-14 Chapel Street,,,Greater Manchester,England,M3 7NH"]
[10025514,"ü","AFV Gunnery School","Lulworth Camp,,,Dorset,England,BH20 5QF"]
[10018051,"ü","Aga Khan Foundation United Kingdom","3 Cromwell Gardens,,,Greater London,England,SW7 2HB"]
[10016766,"ü","Agamemnon Housing Association Limited","HMS Nelson,,,Hampshire,England,PO1 3HH"]
[10019030,"ü","Agbrigg and Belle Vue Community Association","Montague Street,,,West Yorkshire,England,WF1 5BB"]
[10042455,"ü","A G Carrick Ltd","Unit 6-7,Warren Business Park,Knockdown,Wiltshire,England,GL8 8QY"]
[10006854,"ü","AGC Band","AGC Centre,Worthy Down,,Hampshire,England,SO21 2RG"]
[10038911,"ü","Age Concern B and Nes","18 Kingsmead Square,,,Somerset,England,BA1 2AE"]
[10013067,"ü","Age Concern Barking and Dagenham","The White House, 884,Green Lane,,Essex,England,RM8 1BX"]
[10541660,"ü","Age Concern Barnet","The Ann Owens Centre,Oak Lane,,,England,N2 8LT"]
[10024640,"ü","Age Concern Barnsley","1A Wilthorpe Road,,,Yorkshire,England,S75 1JF"]
[10015125,"ü","Age Concern Barrow and District","Lakeland House,Abbey Road,,Cumbria,England,LA14 1XL"]
[10023630,"ü","Age Concern Bradford and District","19-25 Sunbridge Road,,,West Yorkshire,England,BD1 2AY"]
[10022178,"ü","Age Concern Cardiff","91-93 Caerphilly Road,,,South Glamorgan,Wales,CF14 4AE"]
[10028886,"ü","Age Concern Central Lancashire","Arkwright House,Stoneygate,,Lancashire,England,PR1 3XT"]
[10020159,"ü","Age Concern Cheshire","314 Chester Road,Hartford,,Cheshire,England,CW8 2AB"]
[10035520,"ü","Age Concern CSO","Chapel Street,,,Gwent,Wales,NP13 2ND"]
[10023508,{"$f":"CHAR(252)","v":"ü"},"Age Concern Cymru","Unit 13-14,Neptune Court,Vanguard Way,South Glamorgan,Wales,CF24 5PJ"]
[10024199,"ü","Age Concern Day centre","Common Road,,,Buckinghamshire,England,HP10 9NS"]
[10541661,"ü","Age Concern Eastbourne","William & Patricia Venton Centre,6-12 Kilburn Terrace,Junction Road,East Sussex,England,BN21 3QY"]
[10035797,"ü","Age Concern East Midlands","The Old School House,Manor House Street,,Lincolnshire,England,LN9 5HF"]
[10026498,"ü","Age Concern Enterprises","Linhay House,Eastern Road,,Devon,England,TQ13 7UP"]
[10020177,"ü","Age Concern for Norfolk","300 St Faiths Road,Old Catton,,Norfolk,England,NR6 7BJ"]
[10016271,"ü","Age Concern Hackney","22 Dalston Lane,,,Greater London,England,E8 3AZ"]
[10015108,"ü","Age Concern Haselmere","Hasleway,Haslemere & District Community Centre,Lion Green,Surrey,England,GU27 1LD"]
[10562000,"ü","Age Concern Heathfield & District","Cherry Tree Cottage,Rushlake Green,,East Sussex,England,TN21 9QG"]
[10026133,"ü","Age Concern Herefordshire and Worcestershire","6 Sansome Street,,,Worcestershire,England,WR1 1UH"]
[10023470,"ü","Age Concern Horsham","David Bryce Day Centre,New Street,,West Sussex,England,RH13 5EL"]
[10020160,"ü","Age Concern Hounslow","Alexandra House,Albany Road,,Middlesex,England,TW8 0NE"]
[10044109,"ü","Age Concern Kingston Upon Thames TA Staywell","14 Nelson Road,,,,England,KT3 5EA"]
[10026762,"ü","Age Concern Knowsley","Nutgrove Villa,1 Griffiths Road,Huyton,Merseyside,England,L36 6NA"]
[10024448,"ü","Age Concern leeds","7 Eastgate,Floor 3,,West Yorkshire,England,LS2 7LY"]
[10013475,"ü","Age Concern Liverpool","5 Sir Thomas Street,,,Merseyside,England,L1 6BW"]
[10014632,"ü","Age Concern Manchester","Swan Buildings,20 Swan Street,,Greater Manchester,England,M4 3JW"]
[10015546,"ü","Age Concern Metro","The Jubilee Centre,Mosley Avenue,,Greater Manchester,England,BL9 6PQ"]
[10042043,"ü","Age Concern Mid Mersey","Mansion House Victoria Park,,,,England,WA102UE"]
[10028811,"ü","Age Concern Morgannwg","Principality House,31 Taff Street,,Mid Glamorgan,Wales,CF37 4TR"]
[10020416,"ü","Age Concern Northampton and County","Cliftonville Road,,,Northamptonshire,England,NN1 5BU"]
[10029181,"ü","Age Concern Pembrokeshire","37 Merlins Hill,,,Pembrokeshire,Wales,SA61 1PE"]
[10040535,"ü","Age Concern Plymouth","The River View Centre,Astor Drive,,Devon,England,PL4 9RD"]
[10021940,"ü","Age Concern Scotland","Causewayside House,160 Causewayside,,Lothian,Scotland,EH9 1PR"]
[10541662,"ü","Age Concern Shrewsbury","76 Mardol,,,Shropshire,England,SY1 1PZ"]
[10019134,"ü","Age Concern South Lakeland","Age Concern,17 Finkle Street,,Cumbria,England,LA9 4AB"]
[10022365,"ü","Age Concern Stockport","56 Wellington Street,,,Cheshire,England,SK1 3AQ"]
[10022919,"ü","Age Concern Sunderland","Bradbury Centre,Grange House,Stockton Road,Tyne and Wear,England,SR2 7AQ"]
[10021900,"ü","Age Concern Tower Hamlets","82 Russia Lane,,,Greater London,England,E2 9LU"]
[10025606,"ü","Age Concern Walsall","Suite 10, Bridge House,47-55 Bridge Street,,West Midlands,England,WS1 1JQ"]
[10015808,"ü","Age Concern Warwickshire","8-10 Clemens Street,,,Warwickshire,England,CV31 2DL"]
[10030962,"ü","Age Concern Whitstable","The Connie Packington Day Centre,Vulcan Close,,Kent,England,CT5 4LZ"]
[10015864,"ü","Age Concern Wirral","42-44 Market Street,,,Merseyside,England,CH41 5BT"]
[10024702,"ü","Age Concern York","Granville Terrace,,,North Yorkshire,England,YO10 3DY"]
[10561772,"ü","Age Cymru Gwynedd a Mon","39 Stryd Y Llyn,,,Gwynedd,Wales,LL55 2AE"]
[10016767,"ü","Aged Merchant Seamens Homes","27 Trafalgar Square,Hendon,,Tyne and Wear,England,SR1 2BW"]
[10578307,"ü","Age Exchange","The Exchange, ,No 11 Blackheath Village,,Greater London,England,SE3 9LA"]
[10006856,"ü","Agency for Jewish Education","Bet Meir,44a Albert Road,,Greater London,England,NW4 2SJ"]
[10541663,"ü","Age NI","3 Lower Crescent,,,,Northern Ireland,BT7 1NR"]
[10027476,"ü","Age UK (Head Office)","Tavis House,,1-6 Tavistock Square,,,England,WC1H 9NA"]
[10055420,"ü","Age UK Birmingham","42 Warwick Road,,,West Midlands,England,B73 6ST"]
[10541664,"ü","Age Uk Bournemouth","700 Wimborne Road,,,Dorset,England,BH9 2EG"]
[10541665,"ü","Age UK East Sussex","54 Cliffe High Street,,,East Sussex,England,BN7 2AN"]
[10583017,"ü","Age UK Kensington & Chelsea",",,,,,"]
[10541006,"ü","Age Uk Lancashire","61-63 St. Thomas's Road,,,Lancashire,England,PR7 1JE"]
[10579318,"ü","Age UK Leicester Shire & Rutland","Lansdowne House,113 Princess Road East,,Leicestershire,England,LE1 7LA"]
[10054332,"ü","Age Uk Lewisham & Southwark","Stones End Day Centre,11 Scovell Road,,,England,SE1 1QQ"]
[10541666,"ü","Age UK Northumberland Ltd","The Round House,Lintonville Parkway,,Northumberland,England,NE63 9JZ"]
[10541667,"ü","Age UK Sutton","Civic Offices,St. Nicholas Way,,,England,SM1 1EA"]
[10541668,"ü","Age UK Wakefield District","7 Bank Street,,,West Yorkshire,England,WF10 1JD"]
[10023585,"ü","A G Gibson Medical Practice","Norwich Road,Saxlingham Nethergate,,Norfolk,England,NR15 1TP"]
[10578807,"ü","AGH Solutions Ltd","Airedale General Hospital,Skipton Road,Steeton,West Yorkshire,England,BD20 6TD"]
[10034399,"ü","Agilisys Limited","Level 2,26-28 Hammersmith Grove,Hammersmith,West Midlands,England,B65 9AE"]
[10006857,"ü","Agricultural Food Science Centre","Veterinary Sciences Division,,,County Antrim,Northern Ireland,BT5 3SD"]
[10019949,"ü","Agricultural Land Tribunals England","Government Buildings (Block 3),Burghill Road,Westbury on Trym,Somerset,England,BS10 6NJ"]
[10022293,"ü","Agricultural Research Institute of Northern Ireland","AFBI Headquarters,Newforge Lane,,County Antrim,Northern Ireland,BT9 5PX"]
[10019943,"ü","Agricultural Wages Board for England and Wales","Area 3A,Ergon House,Horseferry Road,Greater London,England,SW1P 2AL"]
[10021790,"ü","Agricultural Wages Board for Northern Ireland","c/o DARD (Farm Policy Division),Room 910  Dundonald House,Upper Newtownards Road,County Antrim,Northern Ireland,BT4 3SB"]
[10021791,"ü","Agricultural Wages Committees for England and Wales","AWCs Support Section,Government Building,Spa Road East,Powys,Wales,CF10 3NQ"]
[10006859,"ü","Agriculture and Food Science Centre","Central Stores,Newforge Lane,,County Antrim,Northern Ireland,BT9 5PX"]
[10025426,"ü","Agriculture and Horticulture Development Board (AHDB)","Stoneleigh Park,,,,England,CV8 2TL"]
[10578864,"ü","Agriculture and Rural Economy Directorate","St Andrews House,Regent Road,,,Scotland,EH1 3DG"]
[10019442,"ü","Agri Food and Biosciences Institute","Dard Plant Testing Station,50 Houston Road,,County Antrim,Northern Ireland,BT6 9SH"]
[10006860,"ü","Agudas Israel Housing Association Limited","206 Lordship Road,,,Greater London,England,N16 5ES"]
[10567263,{"$f":"CHAR(252)","v":"ü"},"Ahavas Torah Boys Academy","Levi House, Bury Old Road,,,,,M7 4QX"]
[10042616,"ü","Ahmadiyya Muslim Association Jaidad Uk","16 Gressenhall Road,,,Middlesex,England,SW18 5QL"]
[10014558,"ü","Aidans and Oswalds Roman Catholic Primary","Roman Road,,Royton,Lancashire,England,OL2 5PQ"]
[10572748,"ü","Aidenswood","48 Parson Street,,,,,CW12 4ED"]
[10022708,"ü","Aidis Trust","16A Charlotte Close,,Talbot Village,Dorset,England,BH12 5HR"]
[10014420,"ü","Aik Saath","323 High Street,,,Berkshire,England,SL1 1TX"]
[10028979,"ü","Aileymill Primary School","Norfolk Road,,,Strathclyde,Scotland,PA16 0JG"]
[10001572,"ü","Ailsa House Residential Home","64 - 66 Genesta Road,Westcliff-on-sea,,Essex,England,SS0  8DB"]
[10029741,"ü","Ailsa Nursery Centre","The Loaning,,,Strathclyde,England,ML1 3NQ"]
[10042054,"ü","Ailsworth Medical Centre","32 Main Street,,,Cambridgeshire,England,PE57AF"]
[10000499,"ü","Ailwyn School","Hollow Lane,Ramsey,,Cambridgeshire,England,PE26 1DG"]
[10038914,"ü","Aim Awards","10 Newmarket Court,Newmarket Drive  Off Ascott Drive,,Derbyshire,England,DE24 8NW"]
[10562349,"ü","AIM Education","Unit 10,Swinnow Grange Mills,Stanningley Road,West Yorkshire,England,LS13 4EP"]
[10572764,"ü","Aim Habonim","51 Rigby Street,,,,,M7 4NX"]
[10031905,"ü","Aim Higher","The Enterprise Centre,Puma Way,,West Midlands,England,CV1 2TT"]
[10569935,"ü","Ainderby Steeple Church of England Primary School","Station Lane, Morton-on-Swale,,,,,DL7 9QR"]
[10030987,"ü","Ainsdale Centre for Health and Wellbeing","164 Sandbrook Road,,,Merseyside,England,PR8 3RJ"]
[10025277,"ü","Ainsdale Church of England Primary School","Sandbrook School,,,Merseyside,England,PR8 3JE"]
[10043082,"ü","Ainsdale Community Centre","688 Liverpool Road,,,Merseyside,England,PR8 3NQ"]
[10006861,"ü","Ainsdale High School","Sandringham Road,Ainsdale,,Merseyside,England,PR8 2PJ"]
[10006862,"ü","Ainslie Wood Primary School","140 Ainslie Wood Road,Chingford,,Greater London,England,E4 9DD"]
[10013730,"ü","Ainsworth Nursery School","47 Acklam Road,,,Greater London,England,W10 5YU"]
[10031906,"ü","Ainthorpe Primary School","Ainthorpe Grove,Willerby Road,,East Yorkshire,England,HU5 5EB"]
[10006863,"ü","Aintree Davenhill Primary","Aintree Lane,,,Lancashire,England,L10 8LE"]
[10003934,"ü","Aintree University Hospitals NHS Foundation Trust","University Hospital Aintree,Longmoor Lane,,Merseyside,England,L9 7AL"]
[10012505,"ü","Air Accidents Investigation Branch","Berkshire Copse Road,,,Hampshire,England,GU11 2HH"]
[10541669,"ü","Air Ambulance Service Trading Ltd",",,,,England,CV23 9QA"]
[10020872,"ü","Air Balloon Hill Infant School","Hillside Road,St. George,,Avon,England,BS5 7PB"]
[10030934,"ü","Air Balloon Hill Primary School","Hillside Road,St George,,Somerset,England,BS5 7PB"]
[10003264,"ü","Airborne Initiative Scotland Limited","Glenconnar Centre,Abington,,Strathclyde,Scotland,ML12 6SG"]
[10579372,"ü","Air Command, RAF High Wycombe",",,,,,"]
[10003552,"ü","Airdrie Academy","South Commonhead Avenue,,,Strathclyde,Scotland,ML6 6PW"]
[10025538,"ü","Airdrie CAB","14 Anderson Street,,,Lanarkshire,England,ML6 OAA"]
[10003265,"ü","Airdrie Sheriff Court","Graham St,,,Strathclyde,Scotland,ML6 6EE"]
[10038007,"ü","Airedale Academy","Crewe Road ,Airedale,,West Yorkshire,England,WF10 3JU"]
[10006601,"ü","Airedale and Wharfedale College","Calverley Lane,Horsforth,,West Yorkshire,England,LS18 4RQ"]
[10037978,"ü","Airedale Junior","Fryston Road ,Airedale,,West Yorkshire,England,WF10 3EP"]
[10006602,"ü","Airedale NHS Foundation Trust","Skipton Road,Steeton,,West Yorkshire,England,BD20 6TD."]
[10037347,"ü","Aire River Catchment Trust (Charity)","38 Morton Lane,East Morton,,West Yorkshire,England,BD20 5RS"]
[10037688,"ü","Aire Rivers Trust","Rain Charm House,Kyl Cober Parc,Stoke Climsland,Cornwall,England,PL17 8PH"]
[10024587,"ü","Aire Valley Homes Leeds","FREEPOST RRLU-UYBZ-UHKH,Navigation House,8 George Mann Road,West Yorkshire,England,LS10 1DJ"]
[10040711,"ü","Aire View Infant School","Aire View,Silsden,,West Yorkshire,England,BD20 0AW"]
[10025620,"ü","AIREVILLE SCHOOL","Gargrave Road,,,North Yorkshire,England,BD23 1UQ"]
[10016768,"ü","Aire Wharfe Community Housing Trust Limited","Trust House,5 New Augustus Street,,West Yorkshire,England,BD1 5LL"]
[10000404,"ü","Airflow Developments Limited","Lancaster Road,Cressex Business Park,,Buckinghamshire,England,HP12 3QP"]
[10040218,"ü","Airlie Primary School","Airlie,,,Angus,Scotland,DD8 5NP"]
[10019648,"ü","Airlies Primary School","Broadhill Road,,,Cheshire,England,SK15 1HQ"]
[10027728,"ü","Air Liquide Limited","AIR LIQUIDE LTD,COLESHILL,,Tyne and Wear,England,B46 1JY"]
[10033050,"ü","Airmyn Park Primary School","Percy Drive,Airmyn,,East Yorkshire,England,DN14 8NZ"]
[10041484,"ü","Airports Commission","Sanctuary Buildings,Great Smith Street,,Greater London,England,SW1P 3BT"]
[10027808,"ü","Air Products Plc","2 MILLENNIUM GATE,41-61 MOLESEY ROAD, HERSHAM,,Cheshire,England,CW1 6AP"]
[10019929,"ü","Air Quality Expert Group","7/F15,Ashdown House,123 Victoria Street,Greater London,England,SW1E 6DE"]
[10040414,"ü","Air Test and Evaluation Special Division","D Flying,Building 419,MoD Boscombe Down,Wiltshire,England,SP4 0JF"]
[10025101,"ü","Airth Primary School","Elphinstone Crescent,,Airth,Falkirk,Scotland,FK2 8JX"]
[10572614,"ü","Airthrie School With Hillfield Dyslexia Trust","27-29 Christchurch Road,,,,,GL50 2NY"]
[10018872,"ü","Air Training Corps","Boundary Farm,Sawpitt Street,Dunham Massey,Cheshire,England,WA14 5SJ"]
[10041882,"ü","Air Training Corps, Haslemere","Wey Hill,,,Surrey,England,GU27 1BX"]
[10023593,"ü","Air Training Corps Dudley","Territorial Army,5 Vicar Street,,West Midlands,England,DY2 8RH"]
[10024061,"ü","Air Training Corps Edmonton","58a Galliard Road,,,Greater London,England,N9 7LS"]
[10044016,"ü","Air Training Corps Surbiton","110 Leatherhead Road,,,,England,KT9 2HY"]
[10023328,"ü","Air Training Corps Wimborne","237 Cutlers Place,,,Dorset,England,BH21 2HY"]
[10013865,"ü","Airways Court Housing","Airways Court Housing Ltd,139 Appleford Road,,Berkshire,England,RG30 3NT"]
[10016769,"ü","Airways Housing Group Limited","Airways House,2 Langley Road,,Berkshire,England,SL3 7AA"]
[10017526,"ü","Airways Housing Society Limited","Spelthorne House,Thames Street,,Middlesex,England,TW18 4TA"]
[10013538,{"$f":"CHAR(252)","v":"ü"},"Aish Hatorah UK Limited","379 Hendon Way,,,Greater London,England,NW4 3LP"]
[10028624,"ü","Aish International Leadership","1117 Finchley Road,,,Greater London,England,NW11 0QB"]
[10032979,"ü","Aiskew Leeming Bar Church of England Primary School","2A Leeming Lane,,,Yorkshire,England,DL7 9AU"]
[10022113,"ü","Aitkenbar Primary School","Whiteford Avenue,,,Dunbartonshire,Scotland,G82 3JL"]
[10006864,"ü","Ajex Housing Association Limited","Ajex House,East Bank,,Greater London,England,N16 5RT"]
[10574584,"ü","Akaal Primary School","Harrington Street,,,,,DE23 8NT"]
[10565651,"ü","Akaal Primary School","Harrington Street,Pear Tree,,Derbyshire,England,DE23 8PB"]
[10572083,"ü","Akeley Wood Junior School (Independent)","Wicken Park, Wicken,,,Buckinghamshire,England,MK19 6DA"]
[10572940,"ü","Akeley Wood Senior School (Independent)","Akeley Wood,,,,,MK18 5AE"]
[10028090,"ü","Ak Medical Management Limited","15-17 FAIRFAX DRIVE,,,Essex,England,SS0 9AG"]
[10567021,"ü","Akroydon Primary Academy","Rawson Street North, Boothtown,,,,,HX3 6PU"]
[10003266,"ü","Aksa Housing Association Limited","57 Union Street,,,Lancashire,England,OL1 1HH"]
[10031907,"ü","Akwaaba Ayeh","40 Chandos St,Off St Peters Rd,,Leicestershire,England,LE2 1BL"]
[10038915,"ü","Alabare Christian Care And Support","33 Brown Street,,,Wiltshire,England,SP1 2AS"]
[10005930,"ü","Alabare Christian Care Centre","33 Brown Street,,,Wiltshire,England,SP1 2BJ"]
[10036756,"ü","AL-AKRAM TRUST","Normanton House,Village Street,,Derbyshire,England,DE23 8DF"]
[10582966,"ü","Alameda Middle School","Station Road,Ampthill,,Bedfordshire,England,MK45 2QR."]
[10566391,"ü","Al-Ameen Primary School","Stanfield House, 447 Warwick Road,,,,,B11 2JR"]
[10577417,"ü","Alamiyah School",",,,,,RM8 2ES"]
[10006865,"ü","Alamo Housing Co Operative Limited","43 Hanley Road,,,Greater London,England,N4 3DU"]
[10571606,"ü","Alanbrooke School","Alanbrooke Barracks, Topcliffe,,,,,YO7 3SF"]
[10014061,"ü","Alan D Box Limited","201 Radford Road,Hyson Green,,Nottinghamshire,England,NG7 5GT"]
[10565346,"ü","Al Aqsa School","The Wayne Way,,,Leicestershire,England,LE5 4PP"]
[10024487,"ü","ALARM","Ladysmith House,High Street,,Devon,England,EX10 8LN"]
[10568940,"ü","Al Ashraaf Secondary School","102-105 Whitechapel, High Street,,,,,E1 7RA"]
[10571337,"ü","Al-Ashraf Primary School","Al-Ashraf Cultural Centre, Stratton Road,,,,,GL1 4HB"]
[10576322,"ü","Al-Ashraf Secondary School for Girls","Sinope Street,,,,,GL1 4AW"]
[10035521,"ü","Alastair Ross Medical Practice","Breightmet Fold Lane,,,Greater Manchester,England,BL2 6NT"]
[10006866,"ü","Alban Academy","Silver Street,Great Barford,,Bedfordshire,England,MK44 3HZ"]
[10572834,"ü","Alban City School","7 Hatfield Road,,,,,AL1 3RR"]
[10021012,"ü","Alban Wood Primary School and Nursery","The Brow,,,Hertfordshire,England,WD25 7NX"]
[10038801,"ü","Albany Academy","Bolton Road,,,Lancashire,England,PR7 3AY"]
[10571254,"ü","Albany Infant and Nursery School","Grenville Drive, Stapleford,,,,,NG9 8PD"]
[10040845,"ü","Albany Junior School","Pasture Road,Stapleford,,Nottinghamshire,England,NG9 8HR"]
[10573169,"ü","Albany PRU","Beard Road,,,,,IP32 6SA"]
[10003926,"ü","Albany School","Bell Lane,,,Middlesex,England,EN3 5PA"]
[10015039,"ü","Albany School The","Broadstone Road,,,Essex,England,RM12 4AJ"]
[10572941,"ü","Albany Village Primary School","Albany,,,,,NE37 1UA"]
[10029766,"ü","Albemarle Primary School","Princes Way,,,Greater London,England,SW19 6JP"]
[10569627,"ü","Albert Bradbeer Primary Academy","Turves Green, Longbridge,,,,,B31 4RD"]
[10018022,"ü","Albert Elliott Primary School","Rembrandt Avenue,,,Tyne and Wear,England,NE34 8RZ"]
[10005888,"ü","Albert Primary School","Albert Road,,,Vale of Glamorgan,Wales,CF64 1BX"]
[10573895,"ü","Albert Pritchard Infant School","Crew Road,,,,,WS10 9QG"]
[10012059,"ü","Albert Pritchard Infant School","Crew Road,,,West Midlands,England,WS10 9QE"]
[10038916,"ü","Albert Street Medical Centre","63 Albert Street,,,Warwickshire,England,CV21 2SN"]
[10566449,"ü","Albert Village Primary School","Occupation Road, Albert Village,,,,,DE11 8HA"]
[10006868,"ü","Albion Archaeology","St Marys Church,St Marys Street,,Bedfordshire,England,MK42 0AS"]
[10541670,"ü","Albion Foundation","Ford Street,,,West Midlands,England,B67 7QY"]
[10019396,"ü","Albion High School","1 London Street,,,Greater Manchester,England,M6 6QT"]
[10016770,"ü","Albion Housing Co operative Limited","4 St Pauls Drive,Mount Pleasant,,Tyne and Wear,England,DH4 7SH"]
[10043534,"ü","Albion in The Community","Village Way,Falmer,,East Sussex,England,BN1 9BL"]
[10572949,"ü","Albion Primary School","Albion Street,,,,,SE16 7JD"]
[10020878,"ü","Albion Street Group Health Practice","87 Albion Street,,,Greater London,England,SE16 7JX"]
[10023257,"ü","Albion Surgery The","6 Pincott Road,,,Kent,England,DA6 7LP"]
[10014727,"ü","Albourne Church of England Primary School","The Street,Albourne,,West Sussex,England,BN6 9DH"]
[10020556,"ü","Albrighton Parish Council","34 Station Road,,,West Midlands,England,WV7 3QG"]
[10566451,"ü","Albrighton Primary School & Nursery","New House Lane, Albrighton,,,,,WV7 3QS"]
[10042732,"ü","Alburgh With Denton CE VC Primary School","School Road,Alburgh,,Norfolk,England,IP20 0BW"]
[10566289,"ü","Al-Burhan Grammar School","Spring Road Centre, 258 Spring Road, Tyseley,,,,,B11 3DW"]
[10573699,"ü","Albury Church of England Voluntary Aided Primary School","Church End,,,,,SG11 2JQ"]
[10012424,"ü","Albyn Housing Association","98-100 High Street,Invergordon Business Centre,,Highlands,Scotland,IV18 0DL"]
[10006869,"ü","Albyn School for Girls","17-23 Queens Road,,,Aberdeenshire,Scotland,AB15 4PB"]
[10541671,"ü","ALC Business Solutions","Malling House,Church Lane,,East Sussex,England,BN7 2DZ"]
[10022566,"ü","Alcester Grammar School","Birmingham Road,,,Warwickshire,England,B49 5ED"]
[10020191,{"$f":"CHAR(252)","v":"ü"},"Alcester High School Technology College","Gerard Road,,,Warwickshire,England,B49 6QQ"]
[10020164,"ü","Alcohol and Drug Services","87 Oldham Street,,,Greater Manchester,England,M4 1LW"]
[10020022,"ü","Alcohol and Education Research Council","Room 178,Queen Anne Business Centre,28 Broadway,Greater London,England,SW1H 9JX"]
[10006870,"ü","Alcohol Recovery Project","68 Newington Causeway,,,Greater London,England,SE1 6DF"]
[10566453,"ü","Alconbury CofE Primary School","School Lane, Alconbury,,,,,PE28 4EQ"]
[10019890,"ü","Alcott Hall Junior and Infant School","Lime Grove,,,,England,B37 7PY"]
[10570875,"ü","Aldborough Primary School","231 Aldborough Road South, Seven Kings,,,,,IG3 8HZ"]
[10043205,"ü","Aldborough Primary School","Alby Hill,,,Norfolk,England,NR11 7PH"]
[10035316,"ü","Aldbrough Primary School","Headlands Road,Aldbrough,,East Yorkshire,England,HU11 4RR"]
[10566455,"ü","Aldbury Church of England Primary School","Stocks Road, Aldbury,,,,,HP23 5RT"]
[10575779,"ü","Aldeburgh Primary School","Park Road,,,,,IP15 5EU"]
[10036994,"ü","Aldenham Parish Council","1 Aldenham Avenue,,,Hertfordshire,England,WD7 8HL"]
[10038917,"ü","Aldenham School","The Bursary,Aldenham Road,,Hertfordshire,England,WD6 3AJ"]
[10566203,"ü","Alder Bridge School","Bridge House, Mill Lane, Padworth,,,,,RG7 4JU"]
[10043025,"ü","Alder Brook Primary Partnership Centre","42 Walnut Road,Eccles,,Greater Manchester,England,M30 8LE"]
[10036168,"ü","Alderbrook Primary School","Oldridge Road,,,Greater London,England,SW12 8PP"]
[10006124,"ü","Alderbrook School","Blossomfield Road,,,West Midlands,England,B91 1SN"]
[10029670,"ü","Alderbury and West Grimstead School","Firs Road,Alderbury,,Wiltshire,England,SP5 3BD"]
[10569423,"ü","Aldercar Infant School","Godkin Drive, Langley Mill,,,,,NG16 4GL"]
[10004393,"ü","Aldercar School","Daltons Close,Langley Mill,,Nottinghamshire,England,NG16 4HL"]
[10568420,"ü","Alder Community High School","Mottram Old Road, Gee Cross,,,,,SK14 5NJ"]
[10006871,"ü","Alder Community High School","Fields Farm Road,Hattersley,,Cheshire,England,SK14 3NP"]
[10570858,"ü","Alder Coppice Primary School","Northway, Sedgley,,,,,DY3 3PS"]
[10003267,"ü","Alder Grange High School","Calder Road,,,Lancashire,England,BB4 8HW"]
[10003935,"ü","Alder Hey Childrens NHS Foundation Trust","Eaton Road,,,Merseyside,England,L12 2AP"]
[10006872,"ü","Alder King","Pembroke House,15 Pembroke Road,,Gloucestershire,England,BS8 3BA"]
[10573703,"ü","Alderley Edge Community Primary School","Church Lane,,,,,SK9 7UZ"]
[10034400,"ü","Alderley Edge Medical Practice","16 GEORGE ST,,,Cheshire,England,SK9 7EP"]
[10020221,"ü","Alderley Edge School for Girls (Independent)","Wilmslow Road,,,Cheshire,England,SK9 7QE"]
[10025417,"ü","Alderman Blaxill School","Paxman Avenue,,,Essex,England,C02 9DQ"]
[10018412,"ü","Alderman Bolton C P School","Longdin Street,,,Cheshire,England,WA4 1PW"]
[10043502,"ü","Alderman Cogan's C of E Primary School","Whitworth Street,,,East Yorkshire,England,HU9 3HJ"]
[10037159,"ü","Alderman Jacobs County Primary School","Drybread Road,Whittley,,Devon,England,PE7 1XJ"]
[10034363,"ü","Alderman Knight School","Ashchurch Road,,,Gloucestershire,England,GL20 8JJ."]
[10573043,"ü","Alderman Knight School","Ashchurch Road,,,,,GL20 8JJ"]
[10565266,"ü","Alderman Payne Primary School","9 Main Road,Parson Drove,,,England,PE13 4JA"]
[10020192,"ü","Alderman Peel High School","Market Lane,,,,England,NR23 1RB"]
[10026351,"ü","Alderman Pounder Infant School","Eskdale Drive,Beeston,,Nottinghamshire,England,NG9 5FN"]
[10002323,"ü","Alderman Quilley School","Cherbourg Road,,,Hampshire,England,SO50 5EL"]
[10030180,"ü","Alderman Richard Hallam Primary School","Avebury Avenue,,,Leicestershire,England,LE4 0FQ"]
[10024651,"ü","Aldermans Green Community Primary School","Aldermans Green Road,,,West Midlands,England,CV2 1PP"]
[10015322,"ü","Alderman Swindell First School","Beresford Road,,,Norfolk,England,NR30 4AB"]
[10020716,"ü","Alderman White School","Chilwell Lane,Bramcote,,Nottinghamshire,England,NG9 3DU"]
[10566459,"ü","Aldermaston C.E. Primary School","Wasing Lane, Aldermaston,,,,,RG7 4LX"]
[10571300,"ü","Aldermoor Farm Primary School","Acorn Street, Stoke Aldermoor,,,,,CV3 1DP"]
[10019216,"ü","Aldermoor Health Centre","Aldermoor Close,Lord's Wood,,Hampshire,England,SO16 5ST"]
[10571814,"ü","Aldersbrook Primary School","Harpenden Road, Wanstead,,,,,E12 5HL"]
[10036691,"ü","Aldersbrook Primary School","HARPENDEN ROAD,,,Greater London,England,E125HL"]
[10026161,"ü","Aldersley High School","Barnhurst Lane,,,West Midlands,England,WV8 1RT"]
[10027094,"ü","Alderton Infants School","Alderton Hall Lane,,,Essex,England,IG10 3HE"]
[10572956,"ü","Alderwasley Hall School","Alderwasley,,,,,DE56 2SR"]
[10038918,"ü","Alderwood Primary School","Rainham Close,Eltham,,Greater London,England,SE9 2JH"]
[10038227,"ü","Alde Valley School","Seaward Avenue,,,Suffolk,England,IP16 4BG"]
[10567916,"ü","Aldine House Secure Children's Centre","75 Limb Lane, Dore,,,,,S17 3ES"]
[10571976,"ü","Aldingbourne Primary School","Westergate Street, Westergate,,,,,PO20 3QR"]
[10020800,"ü","Aldington Primary School","Roman Road,Aldington,,Kent,England,TN25 7EE"]
[10016772,"ü","Aldridge and Brownhills Housing Trust Limited","13 Silver Court,High Street,Brownhills,West Midlands,England,WS8 6HA"]
[10029852,"ü","Aldridge Manor House Youth Training","Aldridge Manor House,Little Aston Road,,West Midlands,England,WS9 8NJ"]
[10021980,"ü","Aldridge School","Tynings Lane,Aldridge,,West Midlands,England,WS9 0BG"]
[10574197,"ü","Aldrington CofE Primary School","Eridge Road,,,,,BN3 7QD"]
[10570876,"ü","Aldro School","Lombard Street, Shackleford,,,,,GU8 6AS"]
[10567986,"ü","Aldryngton Primary School","Off Silverdale Road, Earley,,,,,RG6 7HR"]
[10037519,"ü","Aldwickbury School","Wheathampstead Road,Harpenden,,Hertfordshire,England,AL5 1AD"]
[10021046,"ü","Aldworth Science College","Western Way,,,Hampshire,England,RG22 6HA"]
[10028263,{"$f":"CHAR(252)","v":"ü"},"Aldwyck Housing Charity Limited",",,,,,"]
[10000170,"ü","Aldwyck Housing Group Limited","6 Houghton Hall Business Park,Porz Avenue,,Bedfordshire,England,LU5 5UZ"]
[10018489,"ü","Aldwyn County Primary School","Lumb Lane,,Audenshaw,Greater Manchester,England,M34 5SF"]
[10024738,"ü","Alec Hunter Humanities College","Stubbs Lane,,,Essex,England,CM7 3NR"]
[10579097,"ü","Alec Reed Academy","Bengarth Road,,,,England,UB5 5LQ"]
[10041392,"ü","Alehousewells School","Bremner Way,,,Aberdeenshire,Scotland,AB51 5FW"]
[10563071,"ü","Aletheia Anglican Academies Trust","Meadow Road,,,,England,DA11 7LS"]
[10041125,"ü","A Level Content Advisory Board","36 Epsom Road,,,Surrey,England,GU1 3LE"]
[10042239,"ü","Alexander Devine Children's Hospice Service","Unit 15,,,Berkshire,England,SL63LW"]
[10570209,"ü","Alexander First School","Kenneally, Oakley Green,,,,,SL4 4XP"]
[10572090,"ü","Alexander Hosea Primary School","Honeybourne Way, Wickwar,,,,,GL12 8PF"]
[10031908,"ü","Alexander Hosea Primary School","Honeybourne Way,Wickwar,,Gloucestershire,England,GL12 8NH"]
[10027941,"ü","Alexander House","15 PRINCES ROAD,WIMBLEDON,,Greater London,England,SW19 8RQ"]
[10034401,"ü","Alexander Mcleod Junior School","FUSCHIA ST,ABBEY WOOD,,Greater London,England,SE2 0QS"]
[10037500,"ü","Alexander Peden Primary","West Main Street,Harthill,,,Scotland,ML7 5TU"]
[10044168,"ü","Alexanders college","Bawdsey Manor,Bawdsey,,,England,IP12 3AZ"]
[10006125,"ü","Alexander Stadium","Walsall Rd,Perry Barr,,West Midlands,England,B42 2LR"]
[10014256,"ü","Alexandra County First School","Ashington Alexandra County First School,Moorhouse Lane,,Northumberland,England,NE63 9LP"]
[10006126,"ü","Alexandra High School","Alexandra High School,Alexandra Road,,West Midlands,England,DY4 7NR"]
[10038783,"ü","Alexandra House","Alexander House,Ash Tree Road,,North Yorkshire,England,HG5 0UB"]
[10570100,"ü","Alexandra Infants' School","Melville Road, Normacot,,,,,ST3 4PZ"]
[10574937,"ü","Alexandra Infant School","Kent House Road,,,,,BR3 1JG"]
[10570099,"ü","Alexandra Junior School","Meir Road, Normacot,,,,,ST3 7JG"]
[10023070,"ü","Alexandra Junior School","Cator Road,Sydenham,,Greater London,England,SE26 5DS"]
[10021438,"ü","Alexandra Nursery School","Martha Street,Willows lane,,Lancashire,England,BL3 4AH"]
[10006874,"ü","Alexandra Palace","Wood Green,Woodgreen,,Greater London,England,N22 7AY"]
[10035993,"ü","Alexandra Park Junior School","Brook Lane,,,Greater Manchester,England,OL8 2BE"]
[10039912,"ü","Alexandra Park Primary School","Bombay Road,,,Greater Manchester,England,SK3 9RF"]
[10021349,"ü","Alexandra Park School","Bidwell Gardens,,,Greater London,England,N11 2AZ"]
[10027227,"ü","Alexandra Primary School","Western Road,,,Greater London,England,N22 6UH"]
[10574001,"ü","Alexandra Primary School","Denbigh Road,,,,,TW3 4DU"]
[10572961,"ü","Alexandra School","Alexandra Road,,,,,KT2 6SE"]
[10563182,"ü","Alexandra School","Alexandra Avenue,,,,England,HA2 9DX"]
[10026961,"ü","Alexian Brothers Nursing Homes","St. Marys Road,,,Greater Manchester,England,M40 0BL"]
[10030745,"ü","Alex Road Resource Centre","Alexandra Road,,,Devon,England,EX32 8BA"]
[10040246,"ü","Alexs Wish Limited","5 Oldfield Lane,,,Leicestershire,England,LE7 7QD"]
[10020575,"ü","Al Falah School","48 Kenninghall Road,,Clapton,Greater London,England,E5 8BY"]
[10018454,"ü","Alford Academy","Murray Terrace,,,Aberdeenshire,Scotland,AB33 8PY"]
[10038514,"ü","Alford Primary School","Greystone Road,Alford,,Aberdeenshire,Scotland,AB33 8TY"]
[10574556,"ü","Alford Primary School","Hanby Lane,,,,,LN13 9BJ"]
[10031909,"ü","Alford Town Council","Corn Exchange,Market Place,,Lincolnshire,England,LN13 9EB"]
[10028716,"ü","Alford War Memorial Hospital","Station Road,,,Lincolnshire,England,LN13 9JB"]
[10562269,"ü","Alfred Salter Primary School","Quebec Way,,,,England,SE16 7LP"]
[10025833,"ü","Alfred Street Junior School","Alfred Street,,,Northamptonshire,England,NN10 9YS"]
[10572474,"ü","Alfred Sutton Primary School","148 Wokingham Road,,,,,RG6 1JR"]
[10031031,"ü","Alfreton Grange Arts College","Grange Street,,,Derbyshire,England,DE55 7JA"]
[10043516,"ü","Alfreton Leisure Centre","Alfreton Park,,,Derbyshire,England,DE55 7BD"]
[10043936,"ü","Alfreton Nursery School","Grange Street,,,Derbyshire,England,DE55 7JA"]
[10572139,"ü","Alfreton Park Community Special School","Alfreton Park, Wingfield Road,,,,,,DE55 7AL"]
[10001006,"ü","Alfreton Park School","Alfreton Park,Wingfield Road,,Derbyshire,England,DE55 6HW"]
[10001877,"ü","Alfriston Clergy House","The Old Clergy House,Alfriston,,East Sussex,England,BN26 5TL"]
[10024845,"ü","Alfriston School","Penn Road,Knotty Green,,Buckinghamshire,England,HP9 2TS"]
[10015979,"ü","Alfriston School","North Road,,Alfriston,East Sussex,England,BN26 5XB"]
[10573153,"ü","Al-Furqaan Preparatory School","Bath Street,,,,,WF13 2JR"]
[10571689,"ü","Al-Furqan Community College (Boys)","279 Formans Road, Tyseley,,,,,B11 3BZ"]
[10006603,"ü","Alhambra Theatre","Moly Street,,,West Yorkshire,England,BD7 1 AJ"]
[10021389,"ü","Al Hijrah School","Cherrywood Centre,Burbidge Road,Bordesley Green,West Midlands,England,B9 4US"]
[10020190,"ü","Al Hira School","99-103 Clifton Road,Balsall Heath,,West Midlands,England,B12 8SR"]
[10567827,"ü","Al Huda Academy (Jamia Al-Hudaa)","Ouseburn Croft, Darnall,,,,,S9 3FY"]
[10570791,"ü","Al Huda Girls' School","74-76 Washwood Heath Road, Saltley,,,,,B8 1RD"]
[10572641,"ü","Al-Huda Primary School","3 Hennon Street,,,,,BL1 3EH"]
[10016773,"ü","Alice Coralie Glyn Homes","10 Parkway,,,Hertfordshire,England,AL8 6HG"]
[10016774,"ü","Alice Dale","Trelawney House,Chardstock,,Devon,England,EX13 7EN"]
[10574540,"ü","Alice Ingham Catholic Primary School, A Voluntary Academy","Halifax Road,,,,,OL16 2NU"]
[10571273,{"$f":"CHAR(252)","v":"ü"},"Alice Model Nursery School","14 Beaumont Grove, Stepney,,,,,E1 4NQ"]
[10572380,"ü","Al-Ihsaan Community College","1 Kamloops Crescent,,,,,LE1 2HX"]
[10572675,"ü","Al-Ikhlaas Primary School","35 Norfolk Street,,,,,BB9 7TN"]
[10572403,"ü","Al Islah Girls' High School","108 Audley Range,,,,,BB1 1TF"]
[10541311,"ü","Al Islamia Institute For Education","5-7 Evington St,,,Leicestershire,England,LE2 0SA"]
[10022735,"ü","Alison Lea Medical Centre","Alison Lea,East Kilbride,,Strathclyde,Scotland,G74 3HW"]
[10043326,"ü","Alive Leisure","Lynnsport And Leisure Park,,,Norfolk,England,PE30 2NB"]
[10027334,"ü","Alive TV","Cheswick Lane,,Grenoside,Yorkshire,England,S35 8NN"]
[10566030,"ü","Al Jamiatul Islamiyah","Mount St Joseph's Convent, Willows Lane, Deane,,,,,BL3 4HF"]
[10566463,"ü","Alkborough Primary School","Whitton Road, Alkborough,,,,,DN15 9JG"]
[10032707,"ü","Al- Khair Foundation","109-119 CHERRY ORCHARD ROAD,,,Greater London,England,CRO 6BE"]
[10572811,"ü","Al Khair School","61-63 Causeway Green Road,,,,,B68 8LA"]
[10572406,"ü","Al-Khair School","109-117 Cherry Orchard Road,,,,,CR0 6BE"]
[10566171,"ü","Alkrington Primary School","Manor Road, Alkrington, Middleton,,,,,M24 1JZ"]
[10012101,"ü","Allanson Street County Primary School","Gaskell Street,Parr,,Merseyside,England,WA9 1PL"]
[10037501,"ü","Allanton Primary School","Dura Road,Allanton,,,Scotland,ML7 5AB"]
[10033245,"ü","Allbrook School","The Old School,Pitmore Road,,Hampshire,England,SO50 4LW"]
[10029614,"ü","All Cannings CE Primary School","Chandlers Lane,All Cannings,,Wiltshire,England,SN10 3PG"]
[10000030,"ü","All Childrens Integrated Primary School","The Walled Garden,Ring Street,,Antrim,Northern Ireland,BT33 0ND"]
[10560263,"ü","Allenbourn Middle School","East Borough,,,,England,BH21 1PL"]
[10560049,"ü","Allenbourn Middle School","East Borough,,,,England,BH21 1PL"]
[10018595,"ü","Allenbourn Middle School (*)","East Borough,,,Dorset,England,BH21 1PL"]
[10572971,"ü","Allenby Primary School","Allenby Road,,,,,UB1 2HX"]
[10566465,"ü","Allendale Primary School","Leadgate, Allendale,,,,,NE47 9PT"]
[10571296,"ü","Allen Edwards Primary School","Studley Road, Stockwell,,,,,SW4 6RP"]
[10006879,"ü","Allen Hall College","28 Beaufort Street,Chelsea,,Greater London,England,SW3 5AA"]
[10029372,"ü","Allen House Surgery","80 Middle Street,,,Kent,England,CT14 6HL"]
[10006880,"ü","Allens Croft Primary School","Allens Croft Road,Kings Heath,,West Midlands,England,B14 6RP"]
[10566466,"ü","Allenton Primary School","Brookhouse Street, Allenton,,,,,DE24 9BB"]
[10006881,"ü","Allerdale Borough Council","Allerdale House,New Bridge Lane,,Cumbria,England,CA14 3YJ"]
[10577847,"ü","Allergy UK","Planwell House,35 Edgington Way,,,England,DA14 5BH"]
[10566468,"ü","Allerton Bywater Primary School","Leeds Road, Allerton Bywater,,,,,WF10 2DR"]
[10030462,"ü","Allerton Church of England Primary School","Lingfield Approach,,,West Yorkshire,England,LS17 7HL"]
[10021146,"ü","Allerton Grange School","Talbot Avenue,,,West Yorkshire,England,LS17 6SF"]
[10020305,"ü","Allerton High School","King Lane,,,West Yorkshire,England,LS17 7AG"]
[10027050,"ü","Allerton Primary School","Garforth Street,Allerton,,West Yorkshire,England,BD15 7HB"]
[10026195,"ü","Allerton Road Surgery","Allerton Road,,,Greater London,England,N16 5UF"]
[10004507,"ü","Allertonshire School","Brompton Road,,,North Yorkshire,England,DL6 1ED"]
[10041443,"ü","Allesley Hall Primary School","199 Winsford Avenue,,,West Midlands,England,CV5 9NG"]
[10014184,"ü","Allesley Primary School","Antrim Close,Allesley,,West Midlands,England,CV5 9FY"]
[10566469,"ü","Allestree Woodlands School","Blenheim Drive, Allestree,,,,,DE22 2LW"]
[10017876,"ü","Alleyn's School (Independent)","Townley Road,Dulwich,,Greater London,England,SE22 8SU"]
[10568579,"ü","Alleyn Court Preparatory School","Wakering Road, Great Wakering,,,,,SS3 0PW"]
[10024116,"ü","Alleynes High School","Oulton Cross,Oulton Road,,Staffordshire,England,ST15 8DT"]
[10024142,"ü","All Faiths Childrens Community School","Gun Lane,,Strood,Kent,England,ME2 4UF"]
[10027233,"ü","All Farthing Primary School","St Ann's Crescent,,Wandsworth,Greater London,England,SW18 2LR"]
[10035114,"ü","ALL HALLOWS BY THE TOWER CHURCH","BYWARD ST,,,Greater London,England,EC3R 5BJ"]
[10018617,"ü","All Hallows Catholic High School","Brooklands Avenue,,,Cheshire,England,SK11 8LB"]
[10042011,"ü","All Hallows Catholic High School","Crabtree Avenue,,,Lancashire,England,PR1 0LN"]
[10020942,"ü","All Hallows Catholic School","Weybourne Road,,,,England,GU9 9HF"]
[10568417,"ü","All Hallows CofE Primary School","Priory Road, Gedling,,,,,NG4 3JZ"]
[10565900,"ü","All Hallows Healthcare Trust","Station Rd,Ditchingham,,,England,NR35 2QL"]
[10020076,"ü","All Hallows Hospital","Station Road,,Ditchingham,Suffolk,England,NR35 2QL"]
[10002892,"ü","Allhallows Primary School","Avery Way,Allhallows,,Kent,England,ME3 9HR"]
[10014638,"ü","All Hallows RC High School","Weaste Lane,,,Greater Manchester,England,M5 5JH"]
[10577361,"ü","All Hallows RC High School",",,,,,M6 8AA"]
[10004976,"ü","All Hallows School Trust","Cranmore Hall,East Cranmore,,Somerset,England,BA4 4SF"]
[10037578,"ü","ALLIANCE HOMES","40 Martingale Way,,,Somerset,England,BS23 3SS"]
[10019857,"ü","Alliance House Foundation","Alliance House,12 Caxton Street,,Greater London,England,SW1H OQS"]
[10038920,"ü","Alliance Learning","The Hurst Building,Horwich Loco Estate,Chorley New Road,,Greater Manchester,England,BL6 5UE"]
[10027693,"ü","Alliance Medical","1 BRICK LANE,,,Cheshire,England,AL7 4HX"]
[10024278,"ü","Alliance of Sector Skills Councils","28 Castle Street,,,Lothian,Scotland,EH2 3HT"]
[10579624,"ü","Allied Health, South Lincolnshire Ltd","40 North Road,,,Lincolnshire,England,PE10 9BT"]
[10579514,"ü","Allied Protection Ltd",",,,,,"]
[10002149,{"$f":"CHAR(252)","v":"ü"},"Allied Rapid Reaction Corps","UCPSM2,Imjin Barracks, (formerly RAF Innsworth),,Gloucestershire,England,GL3 1HW"]
[10029056,"ü","Allington Primary School","Hildenborough Crescent,Allington,,Kent,England,ME16 0PG"]
[10566473,"ü","Allington with Sedgebrook Church of England Primary School","Marston Lane, Allington,,,,,NG32 2DY"]
[10566474,"ü","Allithwaite CofE Primary School","Church Road, Allithwaite,,,,,LA11 7RD"]
[10002590,"ü","All Nations Christian College","Easneye,,,Hertfordshire,England,SG12 8LX"]
[10006875,"ü","All Nations Revival Church","Love Lane,,,Greater London,England,CR4 3YA"]
[10028264,"ü","Allnutt Mill Housing Co-Operative Limited",",,,,,"]
[10016775,"ü","Allonby Almshouses","North Lodge,Allonby,,Cumbria,England,CA15 6QQ"]
[10566475,"ü","Allonby Primary School","Moss Lane, Allonby,,,,,CA15 6QG"]
[10035524,"ü","Allport Limited","Faraday Road,,,West Sussex,England,RH10 9PX"]
[10025208,"ü","Allport Surgery","43 Bridle Road,,,Merseyside,England,CH62 6EE"]
[10035523,"ü","ALL SAINT'S PCC","PETWORTH RD,,,Surrey,England,GU8 5LT"]
[10041560,"ü","All Saints, Featherstone, Church of England (A) Junior, Infant and Nursery School","North Close,Featherstone,,West Yorkshire,England,WF7 6BQ"]
[10573277,"ü","All Saints' Academy, Cheltenham","Blaisdon Way,,,,,GL51 0WH"]
[10570262,"ü","All Saints' and St Richard's Church of England Primary School","School Hill, Old Heathfield,,,,,TN21 9AE"]
[10041131,"ü","All Saints' C.E. (Aided) Junior School","Dogsthorpe Road,,,Cambridgeshire,England,PE1 3PW"]
[10035787,"ü","All Saints' Catholic School    ","Broomhill Lane,Mansfield,,Nottinghamshire,England,NG19 6BW            "]
[10566520,"ü","All Saints' Catholic Voluntary Aided Primary School","Oakfield, Anfield,,,,,L4 2QG"]
[10569404,"ü","All Saints' Catholic Voluntary Aided Primary School","Kitswell Road, Lanchester,,,,,DH7 0JG"]
[10579252,"ü","All Saints' Church",",,,,,"]
[10042895,"ü","All Saints' Church of England","Cheadle Road,,,Staffordshire,England,ST13 5QY"]
[10567924,"ü","All Saints' Church of England Voluntary Aided Primary School, Dovercourt","Main Road, Dovercourt,,,,,CO12 4HT"]
[10569451,"ü","All Saints' Church of England Voluntary Controlled Primary School, Lawshall","The Street, Lawshall,,,,,IP29 4QA"]
[10572657,"ü","All Saints' CofE Primary School","3-19 Hanover Road,,,,,SW19 1EB"]
[10579320,"ü","All Saints' C of E Primary School","Vicarage Road,,,Suffolk,England,CB8 8JE"]
[10567491,"ü","All Saints' CofE Primary School NW2","Cricklewood Lane, Childs Hill,,,,,NW2 2TH"]
[10569177,"ü","All Saints Academy","Blair Avenue, Ingleby Barwick,,,,,TS17 5BL"]
[10040812,"ü","All Saints Academy","1 Queen Street,Darfield,,South Yorkshire,England,S73 9EY"]
[10041765,"ü","All Saints Academy (CoE)","45 Wretton Road,Stoke Ferry,,Norfolk,England,PE33 9QJ"]
[10037796,"ü","All Saints Academy Dunstable","All Saints Academy,,Houghton Road,Bedfordshire,England,LU5 5AB"]
[10541399,"ü","All Saints Anglican/Methodist Primary School","Top Street,Elston,,,England,NG23 5NP"]
[10575987,"ü","All Saints Babbacombe CofE Primary School","Quinta Road,,,,,TQ1 3RN"]
[10572970,"ü","All Saints Benhilton CofE Primary School","All Saints Road,,,,,SM1 3DA"]
[10577442,"ü","All Saints Carshalton Church of England Primary School",",,,,,SM5 3DW"]
[10573251,"ü","All Saints Catholic College","Birch Lane,,,,,SK16 5AP"]
[10015638,"ü","All Saints Catholic College","Kenyon Avenue,,,Cheshire,England,SK16 5AR"]
[10015231,"ü","All Saints Catholic High School Huddersfield","Bradley Road,,,West Yorkshire,England,HD2 2JT"]
[10003936,"ü","All Saints Catholic High School Liverpool","Bewley Drive,Kirkby,,Merseyside,England,L32 9PQ"]
[10014014,"ü","All Saints Catholic High School Sheffield","Granville Road,,,South Yorkshire,England,S2 2RJ"]
[10000618,"ü","All Saints Catholic Primary School","Cedar Road,,,Cheshire,England,M33 5NW"]
[10565594,"ü","All Saints Catholic Primary School","Church Street,,,,England,SK13 7RJ"]
[10568465,"ü","All Saints Catholic Primary School, Golborne, Wigan","Hazel Grove, Golborne,,,,,WA3 3LU"]
[10015138,"ü","All Saints Catholic School","Layhams Road,,,Kent,England,BR4 9HN"]
[10573443,"ü","All Saints Catholic Voluntary Academy","Broomhill Lane,,,,,NG19 6BW"]
[10039792,"ü","All Saints CE Primary","Norreys Avenue,,,Berkshire,England,RG40 1UX"]
[10040174,"ü","All Saints CE Primary School","Tamar Way , Didcot , Oxfordshire , UK . OX11 7QH,,,Oxfordshire,England,OX11 7QH"]
[10573569,"ü","All Saints CEVA Primary School and Nursery","Castle Street,,,,,NN8 1LS"]
[10040849,"ü","All Saints CE VC Primary School","Giles Lane,Bishops Caundle,,Dorset,England,DT9 5NQ"]
[10032370,"ü","All Saints Church","Westbourne Road,Queens Park,,Bedfordshire,England,MK40 4LD"]
[10025401,"ü","All Saints Church","Vicarage,Blenheim Grove,,Greater London,England,SE15 4QS"]
[10043810,"ü","All Saints Church","Belwell Lane,,,West Midlands,England,B74 4TR"]
[10037466,"ü","All Saints Church","the Vicarage,Coach Lane,,Oxfordshire,England,SN7 8AB"]
[10031910,"ü","All Saints Church Castle Camps","Ambleside,High Street,Castle Camps,Cambridgeshire,England,CB21 4SN"]
[10001878,"ü","All Saints Church Crowborough","All Saints Hall,Chapel Green,,East Sussex,England,TN6 1ED"]
[10034402,"ü","All Saints Church Grasby","3 Spa Top,Caistor,,Lincolnshire,England,LN7 6RB"]
[10032289,"ü","All Saints Church in Wales Primary School","Clapper Lane,Wrexham,,,Wales,LL12 8RW"]
[10035309,"ü","All Saints Church of England Academy Plymouth","Honicknowle Lane,,,Devon,England,PL5 3NE"]
[10041179,"ü","All Saints Church of England Infant School","The Priors,Off Mitchell Road,,Warwickshire,England,CV12 9HP"]
[10006742,"ü","All Saints Church of England JI School Halifax","Dudwell Lane,,,West Yorkshire,England,HX3 0SD"]
[10035990,"ü","All Saints Church of England Jnr School","Upper Beulah Hill,Upper Norwood,,Greater London,England,SE19 3LG"]
[10032324,"ü","All Saints Church of England Junior School","Nelson Avenue,,,Warwickshire,England,CV34 5LY"]
[10002038,"ü","All Saints Church of England Junior School Hessle","Northolme Road,,,East Yorkshire,England,HU13 9JD"]
[10018016,"ü","All Saints Church of England Primary School","Brockley Avenue,,,Tyne and Wear,England,NE34 0TS"]
[10037666,"ü","All Saints Church of England Primary School","Easby Drive,,,West Yorkshire,England,LS29 9BE"]
[10026349,{"$f":"CHAR(252)","v":"ü"},"All Saints Church of England Primary School","Boughton Green Road,,,Northamptonshire,England,NN2 7AJ"]
[10025073,"ü","All Saints Church of England Primary School","Stibbard,,,Norfolk,England,NR21 OLT"]
[10013753,"ü","All Saints Church of England Primary School","Moor Road,,,Lancashire,England,PR7 2LR"]
[10041432,"ü","All Saints Church of England Primary School","Warwick Road,Leek Wootton,,Warwickshire,England,CV35 7QR"]
[10032680,"ü","All Saints Church of England Primary School","116 Oakleigh Road North,Whetstone,,Greater London,England,N20 9EZ"]
[10025593,"ü","All Saints Church of England Primary School","Cross Aysgarth Mount,,,West Yorkshire,England,LS9 9AD"]
[10023032,"ü","All Saints Church of England Primary School","Ashby Road,,,Leicestershire,England,LE67 3LB"]
[10031911,"ü","All Saints Church of England Primary School","Ravensmoor Close,Moor Lane,North Hykeham,Humberside,England,LN6 9AB"]
[10029767,"ü","All Saints Church of England Primary School","Putney Common,,,Greater London,England,SW15 1HL"]
[10038872,"ü","All Saints Church of England Primary School","Bassett Street,Sapcote,,Leicestershire,England,LE9 4FB"]
[10576599,"ü","All Saints Church of England Primary School","Strathmore Avenue,,,,,CV1 2AF"]
[10576443,"ü","All Saints Church of England Primary School","St Catherine's Road,,,,,SO23 0PS"]
[10575237,"ü","All Saints Church of England Primary School","Magpie Hall Road,,,,,ME4 5JY"]
[10575327,"ü","All Saints Church of England Primary School","Maud Street,,,,,OL12 0EL"]
[10572969,"ü","All Saints Church of England Primary School","All Saints,,,,,EX13 7LX"]
[10572383,"ü","All Saints Church of England Primary School","1 Little Horton Green,,,,,BD5 0NG"]
[10575163,"ü","All Saints Church of England Primary School","Long Street,,,,,LE18 2AH"]
[10570983,"ü","All Saints Church of England Primary School, Bexhill","All Saints Lane, Sidley,,,,,TN39 5HA"]
[10576209,"ü","All Saints Church of England Primary School, Freshwater","School Green Road,,,,,PO40 9AX"]
[10572060,"ü","All Saints Church of England Primary School, Stand","Rufford Drive, Whitefield,,,,,M45 8PL"]
[10012162,"ü","All Saints Church of England Primary School Culcheth","Culcheth Lane,Newton Heath,,Greater Manchester,England,M40 1LS"]
[10023484,"ü","All Saints Church of England Primary School Horsham","Tylden Way,,,,West Sussex,England,RH12 5JB"]
[10569763,"ü","All Saints Church of England Primary School Marple","Brickbridge Road, Marple,,,,,SK6 7BQ"]
[10568846,"ü","All Saints Church of England Primary School Stockport","Churchill Street, Heaton Norris,,,,,SK4 1ND"]
[10006876,"ü","All Saints Church of England Primary School Swinderby","High Street,Swinderby,,Lincolnshire,England,LN6 9LU"]
[10026720,"ü","All Saints Church of England School","School Lane,Bednall,,Staffordshire,England,ST17 0SD"]
[10001425,"ü","All Saints Church of England School Weymouth","Sunnyside Road,,,Dorset,England,DT4 9BJ"]
[10026240,"ü","All Saints Church of England VC Primary School","School Road,,Trysull,Staffordshire,England,WV5 7HR"]
[10567836,"ü","All Saints Church of England Voluntary Aided Primary School, Datchworth","Hollybush Lane, Datchworth,,,,,SG3 6RE"]
[10568566,"ü","All Saints Church of England Voluntary Aided Primary School, Great Oakley","Beaumont Road, Great Oakley,,,,,CO12 5BA"]
[10569452,"ü","All Saints Church of England Voluntary Aided Primary School, Laxfield","Framlingham Road, Laxfield,,,,,IP13 8HD"]
[10576910,"ü","All Saints Church of England Voluntary Aided Primary School, Newmarket","Vicarage Road,,,,,CB8 8JE"]
[10031912,"ü","All Saints Church Office","Quay Turn,1 Quay Street,,Worcestershire,England,WR1 2JJ"]
[10001007,"ü","All Saints Church Ripley","Church Office,Moseley Street,,Derbyshire,England,DE5 3DA"]
[10572355,"ü","All Saints Church School","Ladies Walk, Yeovil Road,,,,,TA15 6XG"]
[10567864,"ü","All Saints CofE (C) First School","Oak Road, Denstone,,,,,ST14 5HT"]
[10573714,"ü","All Saints CofE (C) First School","Church Leigh,,,,,ST10 4PT"]
[10571225,"ü","All Saints CofE (C) First School","Church Lane, Standon,,,,,ST21 6RN"]
[10566482,"ü","All Saints CofE (C) Primary School","Furlong Close, Alrewas,,,,,DE13 7EF"]
[10038877,"ü","All Saints CofE (cc) Primary School","Highlands Drive,,,Essex,England,CM9 6HY"]
[10570642,"ü","All Saints CofE (VC) Primary School","Bourne Avenue, Ranton,,,,,ST18 9JU"]
[10571563,"ü","All Saints CofE Aided Infant School","Tilford Road, Tilford,,,,,GU10 2DA"]
[10574023,"ü","All Saints CofE Infant School","Dimple Road,,,,,DE4 3HX"]
[10561765,"ü","All Saints C of E Infants School","13 Common Road,Huthwaite,,,England,NG17 2JR"]
[10042367,"ü","All Saints C of E Junior Academy","Githa Road,,,East Sussex,England,TN35 5JU"]
[10577065,"ü","All Saints CofE Junior School","Westborough Road,,,,,SL6 4AR"]
[10577152,"ü","All Saints CofE Primary School","Wilford Road,,,,,B71 1QN"]
[10568223,"ü","All Saints CofE Primary School","Devon Street, Farnworth,,,,,BL4 7PY"]
[10568371,"ü","All Saints CofE Primary School","Bishops Avenue, Fulham,,,,,SW6 6ED"]
[10583391,"ü","All Saints C of E Primary School","Culcheth Lane,,,Greater Manchester,England,M40 1LS"]
[10575697,"ü","All Saints CofE Primary School (Marsh)","Osborne Street,,,,,TQ12 2DJ"]
[10042754,"ü","All Saints C of E Primary School & Nursery","Knebley Crescent,,,Warwickshire,England,CV10 7AT"]
[10574276,"ü","All Saints CofE VC Infants School","Fishers Mead,,,,,TA22 9EN"]
[10012173,"ü","All Saints Community Education","Mill Mount Lane,,,Yorkshire,England,YO24 1BJ"]
[10006877,"ü","All Saints Community Primary","Nere Road,Waddington,,Lincolnshire,England,LN5 9NX"]
[10034391,"ü","All Saints CW Primary School","Ael-y-Bryn,Llanedeyrn,,South Glamorgan,Wales,CF23 9LF"]
[10029624,"ü","All Saints East Clevedon Church of England Primary School","All Saints Lane,Clevedon,,Avon,England,BS21 6AU"]
[10035522,"ü","All Saints Fleet","Church Road,,,Hampshire,England,GU51 4NB"]
[10022845,"ü","All Saints Haque Centre","25-27 Vicarage Road,,,West Midlands,England,WV2 1BZ"]
[10036915,"ü","All Saints Interchurch Va Primary School","County Road,,,Cambridgeshire,England,PE15 8ND"]
[10026138,"ü","All Saints Junior School","Leawood Road,,,Hampshire,England,GU51 5AJ"]
[10001008,"ü","All Saints Junior School","Hurds Hollow,,,Derbyshire,England,DE4 3LA"]
[10025473,"ü","All Saints Junior School (Free)","Brownlow Road,,,Berkshire,England,RG1 6NP"]
[10005225,"ü","All Saints Middle School","Acton Lane,Sudbury,,Suffolk,England,CO10 0AA"]
[10566990,{"$f":"CHAR(252)","v":"ü"},"All Saints National Academy","High Street, Bloxwich,,,,,WS3 3LP"]
[10578549,"ü","All Saints Parochial Church Council","8 Castle St,,,Buckinghamshire,England,HP13 6RF"]
[10002591,"ü","All Saints Pastoral Centre","London Colney,,,Hertfordshire,England,AL2 1AF"]
[10031913,"ü","All Saints Playgroup and Pre School","43 Gorse Road,,,Northamptonshire,England,NN16 9TE"]
[10040907,"ü","All Saints Pre School","7 Dalton Terrace,,,West Yorkshire,England,WF10 5RA"]
[10000906,"ü","All Saints Primary","School Office,Slatefell,,Cumbria,England,CA13 9BH"]
[10005889,"ü","All Saints Primary School","Plas Cleddau,Cwm Talwg,,Vale of Glamorgan,Wales,CF62 7FG"]
[10026343,"ü","All Saints Primary School","Tatenhall Lane,Rangemore,,,England,DE13 9RW"]
[10568483,"ü","All Saints Primary School","Belle Vue Street, Gorton,,,,,M12 5PW"]
[10043033,"ü","All Saints Primary School","2 Blackheath Vale,,,Greater London,England,SE3 0TX"]
[10002592,"ü","All Saints Primary School Bishops Stortford","Parsonage Lane,,,Hertfordshire,England,CM23 5BE"]
[10035044,"ü","All Saints RC Primary School","Heol Yr Ysgol,Ebbw Vale,,,Wales,NP23 6QP"]
[10022417,"ü","All Saints Roman Catholic Comprehensive School and Technology","Terling Road,,,Greater London,England,RM8 1JT"]
[10020217,"ü","All Saints Roman Catholic High School  ","Haslingden Road,Rawtenstall,,Lancashire,England,BB4 6SJ"]
[10034403,"ü","All Saints Roman Catholic Primary School","Chestnut Grove,,,Merseyside,England,L20 4LX"]
[10574475,"ü","All Saints Roman Catholic Primary School","Green Lane East,,,,,YO7 1NB"]
[10004394,"ü","All Saints Roman Catholic School","Broomhill Lane,,,Nottinghamshire,England,NG19 6TW"]
[10566248,"ü","All Saints School","School Road, Lessingham, Stalham,,,,,NR12 0DJ"]
[10037162,"ü","All Saints School","Mill Road,Winfarthing,Diss,Norfolk,England,IP22 2DZ"]
[10026059,"ü","All Saints School","Tamar Way,,Didcot,Oxfordshire,England,OX11 &QH"]
[10583075,"ü","All Saints School","School Hill,Gresford,,Wrexham,Wales,LL12 8RW"]
[10004506,"ü","All Saints School Kirkby Overflow","Main Street,Kirkby Overblow,,North Yorkshire,England,HG3 1HD"]
[10050974,"ü","All Saints Trust t/a St Gregory's Catholic Science College","Donnington Road,,,,England,HA3 0NB"]
[10577336,"ü","All Saints Upton Church of England Voluntary Controlled Primary School",",,,,,WA8 4PG"]
[10019903,"ü","All Saints VA Church of England Primary School","High Street,Netheravon,,Wiltshire,England,SP4 9PJ"]
[10034404,"ü","All Saints Westbury Holy Saviour","12 CHURCH RD,,,Wiltshire,England,BA13 3BT"]
[10020863,"ü","All Saint Voluntary Aided Church of England School","Blair Avenue,Ingleby Barwick,,,England,TS17 5BL"]
[10031914,"ü","All Seasons Leisure Centre","Water Street,,,Lancashire,England,PR7 1EX"]
[10576532,"ü","All Souls' Church of England Primary School","Stanley Road,,,,,CT19 4LG"]
[10572912,"ü","All Souls Catholic Primary School","Abercorn Road,,,,,CV5 8ED"]
[10576162,"ü","All Souls Church of England Primary School","Rye Street,,,,,OL10 4DF"]
[10574286,"ü","All Souls CofE Primary School","Foley Street,,,,,W1W 7JJ"]
[10023693,"ü","All Souls College","High Street,,,Oxfordshire,England,ox1 4al"]
[10006878,"ü","All Souls Housing Association Limited","2 All Souls Place,,,Greater London,England,W1N 3DB"]
[10577328,"ü","Al-Mahad-Al-Islami",",,,,,S9 5FP"]
[10025285,"ü","Alma Medical Centre","31 Alma Road,,,Dorset,England,BH9 1BP"]
[10023510,"ü","Alma Park Primary School","Errwood Road,Levenshulme,,Greater Manchester,England,M19 2PF"]
[10572033,"ü","Alma Primary","Friern Barnet Lane, Whetstone,,,,,N20 0LP"]
[10570505,"ü","Alma Primary School","Alma Road, Ponders End,,,,,EN3 4UQ"]
[10566195,"ü","Al-Markaz Academy","Sm Complex, Beckside Lane, Off Beckside Road,,,,,BD7 2JX"]
[10036231,"ü","Almeida Theate","ALMEIDA STREET,,,Greater London,England,N1 1TA"]
[10022421,"ü","Almeley Primary School","Almeley,,,Herefordshire,England,HR3 6LH"]
[10572736,"ü","Al-Mizan School","46 Whitechapel Road,,,,,E1 1JX"]
[10022883,"ü","Almondbury Church of England Infant and Nursery","Longcroft,,,,England,HD5 8XW"]
[10024175,"ü","Almondbury High School","Fernside Avenue,,,West Yorkshire,England,HD5 8PQ"]
[10572976,"ü","Almond Hill Junior School","Almonds Lane,,,,,SG1 3RP"]
[10021961,"ü","Almond Housing Association Limited","Shiel House,,,,Scotland,EH54 5EW"]
[10031915,"ü","Almondsbury Church of England Primary School","Sundays Hill,Almondsbury,,Gloucestershire,England,BS32 4DS"]
[10036975,"ü","Almondsbury Parish Council","24A Gloucester Road,Almondsbury,,Gloucestershire,England,BS32 4AD"]
[10016776,"ü","Almshouse Charities United Charities","Northumberland Court,Northumberland Avenue,,South Yorkshire,England,HU2 0LR"]
[10016777,"ü","Almshouse Charity","2 The Glebe,,,Kent,England,TN11 8DR"]
[10016778,"ü","Almshouse Charity of Andrew Windsor","8 Pengilly Road,,,Surrey,England,GU9 7XQ"]
[10016779,"ü","Almshouse Charity of Anne F Howis and Emma F Howis","23 Rectory Grove,,,Greater London,England,SW4 0DX"]
[10016780,"ü","Almshouse Charity of Elizabeth Smith","c/o Hanover Housing Association,Hanover House,1 Bridge Close,Middlesex,England,TW18 4TB"]
[10016471,"ü","Almshouse Charity of Elizabeth Stephenson The","20 The Meadows,Cherry Burton,,East Yorkshire,England,HU17 7RL"]
[10016781,"ü","Almshouse Charity of Hannah Rawson","46 Mowson Lane,Worrall,,South Yorkshire,England,S35 0AJ"]
[10016783,"ü","Almshouse of St John the Baptist and St J Evangelist","c/o Porter Dodson,The Abbey Close,,Dorset,England,DT9 3LH"]
[10016784,"ü","Almshouses of Miss Anne Hopkins Smith","28 Carey Way,,,Buckinghamshire,England,MK46 4DR"]
[10016785,"ü","Almshouses of William and Rebecca Pearce","Bilney House,East Bilney,,Norfolk,England,NR20 4HW"]
[10569728,"ü","Al Mumin Primary and Secondary School","Clifton Street, Manningham,,,,,BD8 7DA"]
[10566478,"ü","Alne Primary School","Main Street, Alne,,,,,YO61 1RT"]
[10041578,"ü","Alness Academy School","Dalmore Road,,,Highlands,Scotland,IV17 0UY"]
[10571128,"ü","Al-Noor College","21 Shakespeare Street, Sparkhill,,,,,B11 4RU"]
[10568034,"ü","Al-Noor Primary School","Newton Industrial Estate, Eastern Avenue,,,,,RM6 5SD"]
[10025334,{"$f":"CHAR(252)","v":"ü"},"Alnwick First School","The Avenue,,,Northumberland,England,NE66 1UL"]
[10051732,"ü","Alnwick Infirmary","South Road,,,Northumberland,England,NE66 2NS"]
[10030425,"ü","Aloeric Primary School","St. Michaels Road,Melksham,,Wiltshire,England,SN12 6HN"]
[10025490,"ü","Alperton Community School","Stanley Avenue,,,Greater London,England,HA0 4JE"]
[10030746,"ü","Alpha Grove Youth","Community Centre,,,Greater London,England,E14 8LH"]
[10027775,"ü","Alpha Hospitals","1 VINCENT SQUARE,,,Greater Manchester,England,BL8 2BS"]
[10016787,"ü","Alpha Housing Co operative Limited","Fairgate House,205 Kings Road,Tysley,West Midlands,England,B11 2AA"]
[10031040,"ü","Alpha Housing Limited","Edgewater Business Park,,,County Antrim,Northern Ireland,BT3 9JQ"]
[10040887,"ü","Alpha Preparatory School","21 Hindes Road,,,Greater London,England,HA1 1SH"]
[10028265,"ü","Alpha Rsl Limited",",,,,,"]
[10016786,"ü","Alpha R S L Limited","Prenton Way,North Cheshire Trading Estate,Prenton,,England,CH43 3DU"]
[10566480,"ü","Alphington Primary School","Wheatsheaf Way, Alphington,,,,,EX2 8RQ"]
[10042737,"ü","Alpington & Bergh Apton CE VA Primary School","Wheel Road,Alpington,,Norfolk,England,NR14 7NH"]
[10566481,"ü","Alresford Primary School","Ford Lane, Alresford,,,,,CO7 8AU"]
[10582926,"ü","Alrewas Parish Council","56 Rykneld Street,Alrewas,,Staffordshire,England,DE13 7AX"]
[10572469,"ü","Al-Risalah","145 Upper Tooting Road,,,,,SW17 7TJ"]
[10572453,"ü","Al-Sadiq and Al-Zahra Schools","134 Salusbury Road,,,,,NW6 6PF"]
[10038921,"ü","Alsager Doctors Prop","12 Sandbach Road South,Alsager,,Staffordshire,England,ST7 2AD"]
[10006882,"ü","Alsager Highfields Community Primary School","Fairview Avenue,Alsager,,Staffordshire,England,ST7 2NW"]
[10022078,"ü","Alsager School","Hassall Road,Alsager,,Staffordshire,England,ST7 2HR"]
[10025537,"ü","ALSG Centre for Training","29-31 Ellesmere Street,,,Lancashire,England,M27 OLA"]
[10038922,"ü","AlShirkatul Islamiyyah","22 Deer Park Road,,,Greater London,England,SW19 3TL"]
[10021397,"ü","Alsop High School A Technology College The","Queen's Drive,,,Merseyside,England,L4 6SH"]
[10015402,"ü","Alston Hall College","Alston Hall,Longridge,,Lancashire,England,PR3 3BP"]
[10031916,"ü","Alston Lane Catholic Primary School","Preston Road,Longbridge,,Lancashire,England,PR3 3BJ"]
[10041920,"ü","Alston Moor Federation","Garrigill Road,,,Cumbria,England,CA9 3UF"]
[10021643,"ü","Alston Primary School","Alston Road,,,West Midlands,England,BG9 5UN"]
[10567024,"ü","Alston Primary School","Alston Road, Bordesley Green East,,,,,B9 5UN"]
[10572979,"ü","Alt Academy","Alt Lane,,,,,OL8 2EL"]
[10566485,"ü","Altarnun Community Primary School","Five Lanes, Altarnun,,,,,PL15 7RZ"]
[10569154,"ü","Alt Bridge School","Wellcroft Road, Huyton,,,,,L36 7TA"]
[10563440,"ü","Alt Bridge Secondary Support Centre",",,,,,L36 7TA"]
[10014424,"ü","Alternative Centre for Education","Queensdown School Road,,,East Sussex,England,BN1 7LA"]
[10568095,"ü","Alternative Centre of Education","First Floor 51 Market Square, Edmonton,,,,,N9 0TZ"]
[10018667,"ü","Alternative Education Service","Cleadon Park Education Centre,Off Park Avenue,,Tyne and Wear,England,NE34 8QL"]
[10029250,"ü","Alternative Futures Group","Unit 16,Lion Court,Kings Drive,,Merseyside,England,L34 1BN"]
[10018052,"ü","Alternative Futures Limited","Alternative Futures Ltd,Anita Samuels Centre,4 Ellison Grove,Merseyside,England,L36 9GA"]
[10541673,"ü","Alternatives Wd Cds","3 Quay Street,,,,Scotland,G82 1LG"]
[10019167,"ü","Altham Church of England Primary School","Burnley Road,Altham,,Lancashire,England,BB5 5UH"]
[10018686,"ü","Althorpe and Keadby Primary School","Station Road,Keadby,,South Humberside,England,DN17 3BN"]
[10028266,"ü","Alt Housing Co-Operative Limited",",,,,,"]
[10572980,"ü","Altmore Infant School","Altmore Avenue,,,,,E6 2BX"]
[10003733,"ü","Altnagelvin Hospitals Health and Social Services","Purchasing Office Estates Services,Altnagelvin Area Hospital,Glenshane Road,County Londonderry,Northern Ireland,BT47 6SB"]
[10043733,"ü","Altofts Junior School",",,,,,"]
[10013824,"ü","Alton Castle","Castle Hill Road,Alton,,Staffordshire,England,ST10 4TT"]
[10002324,"ü","Alton College","Old Odiham Road,,,Hampshire,England,GU34 2LX"]
[10575578,"ü","Alton Infant School","Normandy Street,,,,,GU34 1DH"]
[10572981,"ü","Alton Park Junior School","Alton Park Road,,,,,CO15 1DL"]
[10572999,"ü","Alton School","Anstey Lane,,,,,GU34 2NG"]
[10563187,"ü","Altrincham Baptist Church","Hale Road,,,,England,WA14 2EW"]
[10576799,"ü","Altrincham CofE (Aided) Primary School","Townfield Road,,,,,WA14 4DS"]
[10019444,"ü","Altrincham college of Arts","Green Lane,Timperley,,Cheshire,England,WA15 8QW"]
[10030693,"ü","Altrincham County Court","Trafford Courthouse,Ashton Lane,,Greater Manchester,England,M33 7WX"]
[10006883,"ü","Altrincham Girls Grammar School","Cavendish Road,,,Cheshire,England,WA14 2NL"]
[10042788,"ü","Altrincham Grammar School for Boys","Marlborough Road,,,Cheshire,England,WA14 2RS"]
[10567056,"ü","Altrincham Preparatory School","Marlborough Road, Bowdon,,,,,WA14 2RR"]
[10000619,"ü","Altrincham Sports Centre","Oakfield Road,,,Cheshire,England,WA15 8EW"]
[10020410,"ü","Altringham Grammar School for Boys","Altringham Grammar School for Boys,Marlborough Road,,Cheshire,England,WA14 2RS"]
[10029443,"ü","ALT VALLEY COMMUNITY TRUST","The Communiversity,Altcross Road,,Merseyside,England,L11 0BS"]
[10025551,"ü","Altwen Primary School","Alltwen Hill,Pontardawe,,West Glamorgan,Wales,SA8 3AB"]
[10036061,"ü","Altwood Church of England School","Altwood Road,,,Berkshire,England,SL6 4PU"]
[10572983,"ü","Altwood CofE Secondary School","Altwood Road,,,,,SL6 4PU"]
[10541674,"ü","Alumasc Exterior Building Products Ltd",",,,,England,WA9 4JG"]
[10022432,"ü","Alumwell Business and Enterprise College (West Walsall E-ACT Academy)","Primley Avenue,,,West Midlands,England,WS2 9UA"]
[10575918,{"$f":"CHAR(252)","v":"ü"},"Alumwell Infant School","Primley Avenue,,,,,WS2 9UP"]
[10575917,"ü","Alumwell Junior School","Primley Avenue,,,,,WS2 9UP"]
[10575916,"ü","Alumwell Nursery School","Primley Avenue,,,,,WS2 9UP"]
[10036757,"ü","Alun High School","Wrexham Road,,,Flintshire,Wales,CH7 1EP"]
[10021527,"ü","Alvanley Primary School","Manley Road,,Alvanley,Cheshire,England,WA6 9DD"]
[10024974,"ü","Alva Primary School","144 Brook Street,,,Clackmannanshire,Scotland,FK12 5AW"]
[10019060,"ü","Alvaston Junior Community School","Elvaston Lane,Alvaston,,Derbyshire,England,DE24 0PU"]
[10016344,"ü","Alvechurch Church of England Middle School","Tanyard Lane,Alvechurch,,West Midlands,England,B48 7LN"]
[10566497,"ü","Alvechurch CofE Middle School","Birmingham Road, Alvechurch,,,,,B48 7TA"]
[10029684,"ü","Alveley Primary School","Daddlebrook Road,Alveley,,Shropshire,England,WV15 6JT"]
[10566500,"ü","Alverstoke Church of England Aided Junior School","The Avenue, Alverstoke,,,,,PO12 2JS"]
[10029440,"ü","Alverstoke Community Infant School","Ashburton Road,,,Hampshire,England,PO12 2LH"]
[10566501,"ü","Alverthorpe St Paul's CofE (VA) School 3-11yrs","St Paul's Drive, Alverthorpe,,,,,WF2 0BT"]
[10029634,"ü","Alverton Community Primary School","Toltuff Crescent,,,Cornwall,England,TR18 4QD"]
[10040073,"ü","Alverton Community Primary School","Mount Road,,,North Yorkshire,England,DL6 1RB"]
[10037797,"ü","Alverton Day Nursery Limited","Toltuff Crescent,,,Cornwall,England,TR18 4QD"]
[10570742,"ü","Alver Valley Infant and Nursery School","21 Falcon Meadows Way, Rowner,,,,,PO13 8AA"]
[10570741,"ü","Alver Valley Junior School","21 Falcon Meadows Way, Rowner,,,,,PO13 8AA"]
[10032615,"ü","Alveston Church of England Primary School","Knights Lane,Tiddington,,Warwickshire,England,CV37 7BZ"]
[10027054,"ü","Alway Infant School","Aberthaw Road,,,Monmouthshire,Wales,NP19 9QP"]
[10566503,"ü","Alwoodley Primary School","Cranmer Rise, Alwoodley,,,,,LS17 5HX"]
[10575469,"ü","Alwyn Infant School","Mulberry Walk,,,,,SL6 6EU"]
[10016790,"ü","Alwynn Housing Society Limited","Managing Agent c/o Alwynn HSL,Labyrinth Properties Limited,12a Birmingham Road,West Midlands,England,B72 1QG"]
[10019551,"ü","Alyth Community Learning Base","Albert Street,,,,Scotland,PH11 8AX"]
[10019552,"ü","Alyth Primary","Albert Street,,,,Scotland,PH11 8AX"]
[10027048,"ü","Alzeimers Society","Calderdale and District Branch,8 Kings Cross Street,,Yorkshire,England,HX1 2SH"]
[10579106,"ü","Alzheimer's Society",",,,,,"]
[10040336,"ü","Alzheimer Scotland","22 Drumsheugh Gardens,,,Lothian,Scotland,EH3 7RN"]
[10582556,"ü","Alzheimers Research UK","3 Riverside,Granta Park,,,,CB21 6AD"]
[10018053,"ü","Alzheimers Society","43-44 Crutched Friars,,,,England,EC3N 2AE"]
[10001429,"ü","Alzheimers Society","65 Ballywater Road,Millisle,,County Down,Northern Ireland,BT22 2HS"]
[10031917,"ü","Amaani Tallawah","Amaani Tallawah,14 Robin Hood Chase,St Anns,Nottinghamshire,England,NG3 4EZ"]
[10043226,"ü","Amadeus Primary Academies Trust","Hurst Road.,,,Greater London,England,DA5 3JR"]
[10541675,"ü","Amanat Charity Trust","578 St. Helens Road,,,Greater Manchester,England,BL3 3SJ"]
[10055253,"ü","Amateur Swimming Association","3 Oakwood Drive,,,Leicestershire,England,LE11 3QF"]
[10024056,"ü","Amazing Heights","C/O Common Word,6 Mount Street,,Greater Manchester,England,M2 5NS"]
[10039570,"ü","Amazings Social Business The","3Rd Floor  Fergusson House,124-128 City Road,,Greater London,England,EC1V 2NJ"]
[10001011,"ü","Ambergate Primary School","Toadmoor Lane,,,Derbyshire,England,DE56 2GN"]
[10042258,"ü","Ambergate Sports College","Dysart Road,,,Lincolnshire,England,NG317DG"]
[10570674,"ü","Amberleigh Therapeutic School","The Oaks, Redhill,,,,,TF2 9NZ"]
[10013808,"ü","Amberley Church of England First School","School Road,Amberley,,West Sussex,England,BN18 9NB"]
[10032524,"ü","Amberley Parochial School","Amberley,,,Gloucestershire,England,GL5 5JG"]
[10014837,"ü","Amberley Primary School","East Bailey,,,Tyne and Wear,England,NE12 6SQ"]
[10034219,"ü","Amberley Ridge School","Rodborough Common,,,Gloucestershire,England,GL5 5DB"]
[10577377,"ü","Amber Valley & Erewash Support Centre",",,,,,DE21 5LF"]
[10035105,"ü","Amber Valley Association for Mental Health","Suite 4a, East Mill,,,Derbyshire,England,DE56 2UA"]
[10001009,"ü","Amber Valley Borough Council","Town Hall,Market Place,,Derbyshire,England,DE5 3BT"]
[10018054,"ü","Amber Valley Housing Limited","P.O.Box 6458,Asher Lane,,Derbyshire,England,DE5 3BF"]
[10579489,"ü","Ambitions Academies Trust","91 Evering Avenue,,,,Dorset,England,BH12 4JG"]
[10563208,"ü","Ambition School Leadership","65 Kingsway,,,,England,WC2B 6TD"]
[10042918,"ü","Ambitious About Autism","Ambitious About Autism,,,Middlesex,England,N10 3JA"]
[10566011,"ü","Ambitious College","Pears Campus At the College of North East London, Tottenham Green Centre, Clyde Road, South Tottenham,,,,,N15 4RX"]
[10021981,"ü","Amblecote Primary School","School Drive,,,,England,DY8 4DQ"]
[10031918,"ü","Amble First School","Edwin Street,Amble,,Northumberland,England,NE65 0EF"]
[10031919,"ü","Amble Links 1st School","Links Avenue,,,Northumberland,England,NE65 0SA"]
[10024132,"ü","Amble Middle School","South Avenue,Amble,,Northumberland,England,NE65 0ND"]
[10568274,"ü","Ambler Primary School and Children's Centre","Blackstock Road, Finsbury Park,,,,,N4 2DR"]
[10037681,"ü","Ambleside Church of England Primary School","Vicarage Road,,,Cumbria,England,LA22 9DH"]
[10031920,"ü","Ambleside Parish Centre","Vicarage Road,,,Cumbria,England,LA22 9DH"]
[10026150,"ü","Ambleside Primary School","Minver Crescent,,,Nottinghamshire,England,NG8 5PN"]
[10000907,"ü","Ambleside Youth Hostel","Waterhead,,,Cumbria,England,LA22 OEU"]
[10042298,"ü","Amble Town Council","THE QUAYSIDE,,,Northumberland,England,NE65 0AP"]
[10541676,"ü","Ambrose Allen Charity","2 Franklin Avenue,,,Hampshire,England,RG26 4ET"]
[10578648,"ü","Ambulance Radio Programme","32 Southwark Bridge Road,,,Greater London,England,SE1 9EU"]
[10022043,{"$f":"CHAR(252)","v":"ü"},"Ambulance Service College","44 Copperfields Way,,,Essex,England,RM3 OXE"]
[10043018,"ü","Amelia Methodist Trust, the","Amelia Trust Farm,Trewallter,,,Wales,CF62 3AS"]
[10579168,"ü","AMERA International","25 Meadow Way,Theale,,Berkshire,England,RG7 4AU"]
[10042204,"ü","Ameresco Limited","60 Buckingham Palace Road,,,Greater London,England,SW1W 0AH"]
[10020359,"ü","American Community School Limited The","Portsmouth Road,,,,England,KT11 1BL"]
[10042039,"ü","American Museum in Britain, the","Claverton Manor,,,Somerset,England,BA27BD"]
[10015233,"ü","American School The","Waverley Place,,,Greater London,England,NW8 0NP"]
[10000405,"ü","Amersham and Wycombe College","Chesham Campus,Lycrome Road,,Buckinghamshire,England,HP5 3LA"]
[10039930,"ü","Amersham and Wycombe College","Stanley Hill,,,Buckinghamshire,England,HP7 9HN"]
[10023146,"ü","Amersham Community Centre","Chiltern Avenue,,,Buckinghamshire,England,HP6 5AH"]
[10000476,"ü","Amersham School The","Stanley Hill,,,Buckinghamshire,England,HP7 9HH"]
[10000406,"ü","Amersham Town Council","The Court House,King George V Road,,Buckinghamshire,England,HP6 5ST"]
[10024813,"ü","Amersham Vale Training Practice","10 Amersham Vale,,,Greater London,England,SE14 6LD"]
[10541458,"ü","Amery Hill School","Amery Hill,,,Hampshire,England,GU34 2BZ"]
[10026975,"ü","Amesbury Archer School","Shears Drive,Archers Gate,,Wiltshire,England,SP4 7XX"]
[10025186,"ü","AMESBURY PRIMARY SCHOOL","Kitchener Road,Amesbury,,Wiltshire,England,SP4 7AX"]
[10023042,"ü","Amesbury School","Hazel Grove,Hindhead,,,England,GU26 6BL"]
[10564819,"ü","Amesbury Town Council",",,,,,"]
[10038812,"ü","Am Fire and Security Group","Unit 7, English Business Park,,,East Sussex,England,BN3 7ET"]
[10019079,"ü","AMH Action Mental Health","Knockbracken healthcare Park,Saintfield Road,,County Antrim,Northern Ireland,BT8 8BH"]
[10020353,"ü","Amherst School","Witches Lane,,,Kent,England,TN13 2AX"]
[10013830,"ü","Amicus Group Limited","Building 1060,Kent Science Park,Broadoak Road,Kent,England,ME9 8AG"]
[10019298,"ü","Amicus Horizon Group","60 Bell Road,Sittingbourne,,,England,ME10 4HE"]
[10051388,"ü","Amicus Trust","31A Prebend Street,,,Bedfordshire,England,MK40 1QN"]
[10566510,"ü","Amington Heath Primary School and Nursery","Quince, Amington,,,,,B77 4EN"]
[10028714,"ü","Ami Stockton Hall Hospital","Stockton Hall,The Village,Stockton On The Forest,North Yorkshire,England,YO32 9UN"]
[10006885,"ü","Amitabha Buddhist Centre","St Audries House,West Quantoxhead,,Somerset,England,TA4 4DS"]
[10006886,"ü","Amlwch Leisure Centre","Pentrefelin,,,Gwynedd,Wales,LL68 9LS"]
[10022803,"ü","Ammanford Infant School","Walter Road,,,Carmarthenshire,Wales,SA18 2NF"]
[10022804,"ü","Ammanford Junior School","High Street,,,Dyfed,Wales,SA18 2Ns"]
[10023648,"ü","Ammanford Nursery School","High Street,,,Dyfed,Wales,SA18 2NS"]
[10043155,"ü","Amman Tawe Partnership","1 Graig Road,Gwaun Cae Gurwen,,,Wales,SA18 1EG"]
[10000597,"ü","Amman Valley School","Margaret Street,,,Carmarthenshire,Wales,SA18 2NW"]
[10017990,"ü","Amnesty International","Peter Benenson House,1 Easton Street,,Greater London,England,WC1X 0DW"]
[10006887,"ü","Amotherby Community Primary School","Meadowfield,Amotherby,Malton,Yorkshire,England,YO17 6TG"]
[10019760,"ü","Ampertaine Primary School","94 Kilrea Road,Upperlands,,County Londonderry,Northern Ireland,BT46 5SB"]
[10566511,"ü","Ampfield Church of England Primary School","Knapp Lane, Ampfield,,,,,SO51 9BT"]
[10001120,"ü","Amphibious Trials and Training Unit Royal Marines","Instow,,,Devon,England,EX39 4JH"]
[10018055,"ü","Ampleforth Abbey","Ampleforth Abbey,Ampleforth College,,Yorkshire,England,YO62 4EN"]
[10022358,"ü","Ampleforth Abbey Trust","Ampleforth College,,,North Yorkshire,England,Y062 4EY"]
[10013991,"ü","Ampleforth College (Independent)","Ampleforth College,,,Yorkshire,England,YO62 4EY"]
[10572987,"ü","Ampleforth College (Independent)","Ampleforth,,,,,YO62 4ER"]
[10022859,"ü","Ampleforth Surgery","Back Lane,Ampleforth,,Yorkshire,England,YO62 4EF"]
[10566514,"ü","Ampney Crucis Church of England Primary School","School Lane, Ampney Crucis,,,,,GL7 5SD"]
[10566515,"ü","Amport Church of England Primary School","The Green, Amport,,,,,SP11 8BA"]
[10037479,"ü","AMPTHILL PRACTICE","57-59 Crowndale Road,,,Greater London,England,NW1 1TN"]
[10051959,"ü","Ampthill Town Council","66 Dunstable Street,Ampthill,,Bedfordshire,England,MK45 2JS"]
[10571235,"ü","Amwell View School","Station Road, Stanstead Abbotts,,,,,SG12 8EH"]
[10570735,"ü","Amy Johnson Primary School","Mollison Drive, Roundshaw,,,,,SM6 9JN"]
[10001430,"ü","Anahilt Primary School","248 Ballynahinch Road,,,County Down,Northern Ireland,BT26 6BP"]
[10562215,"ü","ANAND SUBRAMANIAN","6 Greenacres Drive,,,,England,PE21 7LJ"]
[10019761,"ü","Ancaster Church of England Primary School","Mercia Drive,,,Lincolnshire,England,NG32 3QQ"]
[10029000,"ü","Ancho Housing Association","Sovereign House,Academy Road,,Strathclyde,Scotland,KA12 8RL"]
[10029152,"ü","Anchor Housing","Ambler Mill,,,West Yorkshire,England,BD1 4RP"]
[10022401,"ü","Anchorsholme Primary School","Eastpines Drive,,,Lancashire,England,FY5 3RX"]
[10006890,"ü","Anchor Trust","First Floor 408 Strand,,,Greater London,England,WC2R 0NE."]
[10569594,"ü","Ancora House School","Countess of Chester Health Park, Liverpool Road,,,,,CH2 1BQ"]
[10030426,"ü","Andalusia Acedemy Bristol","Old School Building,Redcross Street,,Somerset,England,BS2 0BA"]
[10043304,"ü","An Daras Multi Academy","Roydon Road,,,Cornwall,England,PL15 8HL"]
[10006891,"ü","Anderida First Housing Association Limited","34 STAINER ROAD,,,Kent,England,TN10 4DT"]
[10566405,"ü","Anderida Learning Centre","Neville Mews, 6a Neville Road,,,,,BN22 8HR"]
[10541677,"ü","Anderson Finance",",,,,England,NW1 9LN"]
[10004111,"ü","Andersons","2 Institution Rd,,,Moray,Scotland,IV30 1RP"]
[10571131,"ü","Anderton Park Primary School","Dennis Road, Sparkhill,,,,,B12 8BL"]
[10566443,{"$f":"CHAR(252)","v":"ü"},"Anderton Primary School","Babylon Lane, Adlington,,,,,PR6 9NN"]
[10024699,"ü","Andover and District Mencap","Southend Road,,,Hampshire,England,SP10 2DN"]
[10541678,"ü","Andover Baptist Church","Charlton Road,,,Hampshire,England,SP10 3JH"]
[10016472,"ü","Andover Charities The","c/o Talbot Walker Solicitors,16 Bridge Street,,Hampshire,England,SP10 1BJ"]
[10574121,"ü","Andover Church of England Primary School","East Street,,,,,SP10 1EP"]
[10002360,"ü","Andover Cricklade College","Charlton Road,,,Hampshire,England,SP10 1EJ"]
[10044175,"ü","Andover Education Centre","Smannell Road,Smannell,,Hampshire,England,SP11 6JP"]
[10033820,"ü","Andover Medical Centre","270-282 HORNSEY ROAD,,,Greater London,England,N7 7QZ"]
[10026754,"ü","Andover Mind","Westbrook Close,South Street,,Hampshire,England,SP10­­ 2BN"]
[10041825,"ü","Andover Primary School","50A Drumachlie Park,,,Angus,Scotland,DD9 7BU"]
[10013262,"ü","Andoversford Primary School","Gloucester Road,,Andoversford,Gloucestershire,England,GL54 4HR"]
[10014855,"ü","Andrew Ewing Primary School","Westbrook Road,,,Middlesex,England,TW5 0NB"]
[10013268,"ü","Andrews Endowed Primary School","Andrews Endowed Primary School,London Road,Holybourne,Hampshire,England,GU34 4EL"]
[10567468,"ü","Andrews Lane Primary School","Andrews Lane, Cheshunt,,,,,EN7 6LB"]
[10016473,"ü","Anerley Housing Co operative Limited The","The Market Building,195 High Street,,Middlesex,England,TW8 8LB"]
[10565554,"ü","Aneurin Bevan Local Health Board",",,,,,"]
[10008484,"ü","Aneurin Bevan University Health Board","Mamhilad House,Mamhilad Park Estate,,Torfaen,Wales,NP4 0YP"]
[10042349,"ü","Aneurin Leisure","Regain Building,Mill Lane,,Gwent,Wales,NP23 6GR"]
[10025716,"ü","A New Direction London","1 Bridge Terrace,,,Greater London,England,E15 4BG"]
[10024195,"ü","Anfield Infant School","Anfield Road,,,Merseyside,England,L4 OTB"]
[10021124,"ü","Anfield Junior School","Anfield Road,,,Merseyside,England,L4 0TN"]
[10019795,"ü","Angel Foundation The","Borough Road,,Sunderland,,England,SR1 1HW"]
[10035100,"ü","ANGELL TOWN EMB Limited","LANGPORT HOUSE,,,Greater London,England,SW9 7HN"]
[10027056,"ü","Angelman Syndrome Support Education and Research Trust","5 St Leonards,Thames Ditton,,,England,KT7 0RJ"]
[10570410,"ü","Angel Oak Academy","Burcher Gale Grove, Peckham,,,,,SE15 6FL"]
[10572993,"ü","Angel Road Infant School","Angel Road,,,,,NR3 3HR"]
[10036541,"ü","Angel Road Junior School","Angel Road,,,Norfolk,England,NR3 3HS"]
[10016788,"ü","Angiers Almshouse Charity","9 St Martin's Street,,,Oxfordshire,England,OX10 0AL"]
[10020239,"ü","Anglesey Leisure Centre","Kingslans Road,Trearddur Bay,Holyhead,,Wales,LL65 2YE"]
[10003263,"ü","Anglesey Local Health Board",",,,,,"]
[10013940,"ü","Anglesey Primary Academy","Clarence House,,,Staffordshire,England,DE14 3LG"]
[10041593,"ü","Anglesey Primary School","Anglesey Street,,,West Midlands,England,B19 1RA"]
[10006892,"ü","Angley School","Angley Road,,,Kent,England,TN17 2PJ"]
[10037885,"ü","Anglia Cancer Network","56 Exning Road,,,Suffolk,England,CB8 7JG"]
[10028267,"ü","Anglia Crown Catering",",,,,,"]
[10028268,"ü","Anglia Housing Group Limited",",,,,,"]
[10582685,"ü","Anglian Community Enterprise (ACE) Community Interest Co",",,,,,"]
[10032365,"ü","Anglian Community Enterprise CIC","Kennedy House,Kennedy Way,Clacton on Sea,Essex,England,CO15 4AB"]
[10006894,"ü","Anglia Railways","2nd Floor,St Clare House,Princes Street,Suffolk,England,IP1 1LY"]
[10564996,"ü","Anglia Ruskin Student Union","Bishop Hall Lane,,,Essex,England,CM1 1SQ"]
[10001573,"ü","Anglia Ruskin University","Bishops Hall Lane,,,Essex,England,CM1 1SQ"]
[10023182,"ü","Anglia Support Partnership","Kingfisher House,Kingfisher Way,Hinchingbrooke Business Park,Cambridgeshire,England,PE29 6FH"]
[10038923,"ü","Anglican Consultative Council","St Andrews House,16 Tavistock Crescent,,Greater London,England,W11 1AP"]
[10033035,"ü","Anglo European College of Chiropractic","13-15 Parkwood Road,,,Dorset,England,BH5 2DF"]
[10020325,"ü","Anglo European School","Willow Green,,,Essex,England,CM4 0DJ"]
[10021928,"ü","Angmering School The","Station Road,,,,England,BN16 4HH"]
[10024598,"ü","Angram Bank Primary School","Kinsey Road,High Green,,South Yorkshire,England,S35 4HN"]
[10031921,"ü","Anguishs Educational Foundation","1 Woolgate Court,St. Benedicts Street,,Norfolk,England,NR2 4AP"]
[10582945,"ü","Angus Alive","Angus House, Orchardbank Business Park,,,,Aberdeenshire,Scotland,DD8 1AN"]
[10006896,"ü","Angus Council","7 The Cross,St James Road,,Angus,Scotland,DD8 1BX"]
[10023388,"ü","Angus Housing Association","93 High Street,,,Angus,Scotland,DD11 1DP"]
[10006898,"ü","Anheddau Cyf","42a Fford Caregybi,,,Gwynedd,Wales,LL57 2EU"]
[10042401,"ü","Animal and Plant Health Agency","Central Veterinary Laboratory,,,Surrey,England,KT15 3NB"]
[10005226,"ü","Animal Health Trust","Lanwades Park,Kenford,,Suffolk,England,CB8 7UU"]
[10541679,"ü","Animal Rescue Group","Brittons Farm,Waterloo Road,,Berkshire,England,RG40 3BZ"]
[10037207,"ü","Animals Asia Foundation","3 Ashleigh Meadow                       ,Tregondale Farm,,,England,PL14 3RG"]
[10051208,"ü","Animals in Science Committee",",,,,,"]
[10015021,"ü","Anite Public Sector Limited","353 Buckingham Avenue,,,Berkshire,England,SL1 4PF"]
[10038924,"ü","Anjuman E Burhani London","Mohammedi Park,5 Rowdell Road,,Middlesex,England,UB5 6AG"]
[10567009,"ü","Ankermoor Primary Academy","Rene Road, Bolehall,,,,,B77 3NW"]
[10566523,"ü","Anlaby Primary School","First Lane, Anlaby,,,,,HU10 6UE"]
[10037380,"ü","Anna Freud Centre","12 Maresfield Gardens,,,Greater London,England,NW3 5SU"]
[10028950,"ü","Anna Freud Centre The","12 Maresfield Gardens,,,Greater London,England,NW3 5SU"]
[10026918,"ü","Annan Academy","St. Johns Road,,,Dumfries & Galloway,Scotland,DG12 6AP"]
[10042427,{"$f":"CHAR(252)","v":"ü"},"Annandale Surgery","Annandale Surgery,239 Mutton Lane,,Hertfordshire,England,EN6 2AS"]
[10563667,"ü","ANNANDALE TRANSPORT INITIATIVE","72-74 High Street,,Lockerbie,,Dumfriesshire,,,DG11 2AA"]
[10042105,"ü","Annanhill Primary School","Grange Campus,,,Strathclyde,Scotland,KA12EW"]
[10567994,"ü","Annan School","Annan Farm, Easons Green,,,,,TN22 5RE"]
[10029733,"ü","Anna Ritchie School The","Grange Gardens,,,Cambridgeshire,England,AB42 2AP"]
[10037055,"ü","Annat Bank Practice","Frank Wood Way,,,Angus,Scotland,DD10 8TY"]
[10001574,"ü","Anna Victoria Nursing Home","Peace Haven,Pole Barn Lane,,Essex,England,CO13 9NH"]
[10570409,"ü","Ann Bernadt Nursery School","29 Chandler Way, Peckham,,,,,SE15 6DT"]
[10573160,"ü","Ann Cam Church of England Primary School","Bayfield Gardens,,,,,GL18 2BH"]
[10576628,"ü","Annecy Catholic Primary School","Sutton Avenue,,,,,BN25 4LF"]
[10571049,"ü","Ann Edwards Church of England Primary School","Berkeley Close, South Cerney,,,,,GL7 5UW"]
[10030181,"ü","Annemount School","18 Holne Chase,,,Greater London,England,N2 0QN"]
[10050956,"ü","Annesley Primary and Nursery School","Forest Road,Kirkby-in-Ashfield,,,England,NG17 9BW"]
[10023416,"ü","Annfield Medical Centre","16 Annfield Place,,,Strathclyde,Scotland,G31 2XE"]
[10032768,"ü","Annfield Plain County Junior School","Front Street,Annfield Plain,,County Durham,England,DH9 7ST"]
[10566526,"ü","Annfield Plain Infant School","Northgate, Annfield Plain,,,,,DH9 7UY"]
[10041066,"ü","Ann Harris Academy Trust The","The Ann Harris Academy Trust,St John'S Primary School,Redfield Road,Somerset,England,BA3 2JN"]
[10013004,"ü","Annie Holgate Junior School","Annie Holgate Junior School,High Leys Road,Hucknall,Nottinghamshire,England,NG15 6EZ"]
[10030877,"ü","Annie Lennard School","The Oval,,,West Midlands,England,B67 6LE"]
[10016474,"ü","Annie Sutton and Hoult Memorial Houses The","Sterne House,Lodge Lane,,Derbyshire,England,DE1 3WD"]
[10020417,"ü","Anns Grove Primary School","Anns Road,,,South Yorkshire,England,S2 3DJ"]
[10016789,"ü","Ann Smyths Almshouses","17 Margate Road,,,Suffolk,England,IP3 9DE"]
[10033821,"ü","Ansaar","112 MELBOURNE ROAD,,,Leicestershire,England,LE2 0DS"]
[10041603,"ü","ANSA Environmental Services Limited","Westfields,Middlewich Road,,Cheshire,England,CW11 1HZ"]
[10583643,"ü","Ansbury","3 Kingland Road,,,Dorset,England,BH15 1SH"]
[10566527,"ü","Ansdell Primary School","Lansdowne Road, Ansdell,,,,,FY8 4DR"]
[10003559,"ü","Ansdell Primary School","Lansdowne Road,,,Lancashire,England,F78 4DR"]
[10019135,"ü","Ansford Academy","Castle Cary,,,Somerset,England,BA7 7JJ"]
[10006900,"ü","Anshen Dyer","88 Grays Inn Road,,,Greater London,England,WC1X 8AA"]
[10568552,"ü","Anson CofE (A) Primary School","Main Road, Great Haywood,,,,,ST18 0SU"]
[10572997,"ü","Anson Primary School","Anson Road,,,,,NW2 4AB"]
[10561980,"ü","Anstey Community Library","Paper Mill Close,Anstey,,Leicestershire,England,LE7 7AU"]
[10572998,"ü","Anstey First School","Anstey,,,,,SG9 0BY"]
[10043796,"ü","Anstey Junior School","Eastbrooke Road,,,Hampshire,England,GU34 2DR"]
[10037957,"ü","Anstey Parish Council","Jubilee Hall,Stadon Road,Anstey,Leicestershire,England,LE7 7AY"]
[10006901,"ü","Anston Brook Primary School","Ryton Road,Anston,,South Yorkshire,England,S25 4DN"]
[10570107,"ü","Anston Greenlands Primary School","Edinburgh Drive, North Anston,,,,,S25 4HD"]
[10013748,"ü","Anston Hillcrest Primary School","Hawthorne Avenue,Anston,,South Yorkshire,England,S25 5GR"]
[10026610,"ü","Anston Medical Centre","15, Quarry Lane,,North Anston,South Yorkshire,England,S25 4DB"]
[10006902,"ü","Anston Parish Council","The Parish Hall,Ryton Road,North Anston,South Yorkshire,England,S25 4DL"]
[10566187,"ü","Anston Park Infant School","Park Avenue, Off Nursery Road, North Anston,,,,,S25 4BT"]
[10023784,"ü","Anston Park Infant School","23 All Saints Meadows,Laughton Common,Dinnington,South Yorkshire,England,S25 3UD"]
[10006903,"ü","Anston Park Junior School","Park Avenue,North Anston,,South Yorkshire,England,S25 2QZ"]
[10006888,"ü","An Teach Irish Housing Association Limited","Haringey Irish Centre,Pretoria Road,,Greater London,England,N17 8DX"]
[10025345,"ü","Anthony Bek Community Primary School","Rotherham Road,Peasley,,Derbyshire,England,NG19 7PG"]
[10037912,"ü","Anthony Curton C of E Primary School","The Chase,,,,Cambridgeshire,England,PE14 7NG"]
[10029412,"ü","Anthony Gell School","Wood Street,Wirksworth,,Derbyshire,England,DE4 4DX"]
[10018056,"ü","Anthony Nolan Trust","Anthony Nolan Trust,2-3 Heathgate Place,75-87 Agincourt Road,Greater London,England,NW3 2NU"]
[10040728,"ü","Antingham and Southrepps Community Primary School","Southrepps,,,Norfolk,England,NR11 8UG"]
[10026797,"ü","Anti-Slavery International","Thomas Clarkson House,The Stableyard,Broomgrove Road,Greater London,England,SW9 9TL"]
[10577014,"ü","Anton Infant School","Wellesley Road,,,,,SP10 2HF"]
[10573118,"ü","Anton Junior School","Barlows Lane,,,,,SP10 2HA"]
[10036037,"ü","Antonshill Primary School","Stenhousemuir,,,Stirlingshire,Scotland,FK5 4JW"]
[10573003,"ü","Antony Church of England School","Antony,,,,,PL11 3AD"]
[10015920,"ü","Antony Church of England School","Torpoint,,,Cornwall,England,OL11 3AD"]
[10028121,"ü","Antrim/Ballymena","UNIT 17 &18,GALGORM COURTYARD,,County Antrim,Northern Ireland,BT42 1hl"]
[10562323,"ü","Antrim and Newtownabbey Borough Council","50 Stiles Way,,,,Northern Ireland,BT41 2UB"]
[10042498,"ü","Antrim and Newtownabbey District Council","50 Stiles Way,,,County Antrim,Northern Ireland,BT41 2UB"]
[10038025,"ü","Antrim Area Hospital","Antrim Area Hospital,45 Bush Road,,County Antrim,Northern Ireland,bt41 2px"]
[10033715,"ü","Antrim Board Centre","17 Lough Road,,Antrim,Antrim,Northern Ireland,BT41 4DH"]
[10006904,"ü","Antrim Borough Council","The Steeple,Steeple Road,,County Antrim,Northern Ireland,BT41 1BJ"]
[10012441,"ü","Antrim Coast Medical Practice","7 The Cloney,Glenarm,,County Antrim,Northern Ireland,BT44 0AB"]
[10033615,"ü","Antrim Court Office","Courthouse,30 Castle Way,,County Antrim,Northern Ireland,BT41 4AQ"]
[10022332,"ü","Antrobus St Marks School","School Lane,Antrobus,,Cheshire,England,CW9 6LB"]
[10033822,{"$f":"CHAR(252)","v":"ü"},"Antur Nantlle","CANOLFAN CYMDAETHASOL,TALYSARN PENYGROES,,Gwynedd,Wales,LL54 6HL"]
[10000598,"ü","Antur Teifi","Business Park,Aberard,,Carmarthenshire,Wales,SA38 9DB"]
[10030923,"ü","Apache PT - MOD","DES & S Box 188,Building 231 West,Agusta Westland, Lysander Road,Somerset,England,BA20 2YB"]
[10564906,"ü","APASEN","30 Copenhagen Place,,,,England,E14 7FF"]
[10006906,"ü","Apex Housing Group","10 Butcher Street,,,County Londonderry,Northern Ireland,BT48 6HL"]
[10572808,"ü","Apex Primary School","60-62 Argyle Road,,,,,IG1 3BG"]
[10006127,"ü","Apka Housing Association Limited","13 Caldmore Green,Caldmore,,West Midlands,England,WS1 3RL"]
[10030471,"ü","Apley Wood Primary School","Pool Farm Avenue,Apley,,Shropshire,England,TF1 6FQ"]
[10037457,"ü","Aplus Training Limited","Bradninch Court,Castle Street,,Devon,England,EX4 3PJ"]
[10035395,"ü","APM Group Limited","Sword House,Totteridge Road,,Buckinghamshire,England,HP13 6DG"]
[10006907,"ü","Apna Ghar Housing Association Limited","The Disability Alliance Ctr Old Refecto,Central Middx Hosp Acton Lane Park Roya,,Greater London,England,NW10 7NS"]
[10023033,"ü","Apna Sahara Limited","230 Frodingham Road,,,South Humberside,England,DN15 7NW"]
[10020965,"ü","Apostolic Church","19 Penbrae Road,,,West Lothian,Scotland,EH51 0EJ"]
[10033823,"ü","Apostolic Church TA Saron Christian Fellowship","56 YNYSCENDWYN ROAD,YSTRADGYNLAIS,,,Wales,SA9 1BH"]
[10000908,"ü","Appleby Grammar School","School Office,,,Cumbria,England,CA16 6XU"]
[10041279,"ü","Appleby Primary School","Station Road,,,Cumbria,England,CA16 6TX"]
[10024031,"ü","Applecroft JMI School","Applecroft Road,,,Hertfordshire,England,AL8 6JZ"]
[10024307,"ü","Apple Dental Practice","97, High Street,,,Gloucestershire,England,BS36 1RD"]
[10001116,"ü","Appledore Community Primary School and Nursery","Richmond Road,Appledore,,Devon,England,EX39 1PF"]
[10563441,"ü","Applefields School",",,,,,YO31 0LW"]
[10570974,"ü","Appleford School","Elston Lane, Shrewton,,,,,SP3 4HL"]
[10031922,"ü","Applegarth Infant And Nursery School","Bygrove,Fieldway,New Addington,Surrey,England,CR0 9DL"]
[10036777,"ü","Applegarth Nursing Home","243 Newtown Road,,,Cumbria,England,CA2 7LT"]
[10576883,"ü","Applegarth Primary School","Upwell Road,,,,,DL7 8QF"]
[10006909,"ü","Applemore College","Roman Road,Dibden Purlier,,Hampshire,England,SO45 4RQ"]
[10566234,"ü","Apple Orchard Slinfold","Apple Orchard, Five Oaks Road, Slinfold,,,,,RH13 0RQ"]
[10575996,"ü","Appleshaw St Peter's CofE Primary School","Ragged Appleshaw,,,,,SP11 9HR"]
[10577239,"ü","Appleton Academy","Woodside Road,,,,,BD12 8AL"]
[10026445,"ü","Appleton Academy","Wilson Road,,Wyke,Yorkshire,England,BD12 9PX"]
[10022812,"ü","Appleton Church of England Primary School","Church Road,Appleton,,Oxfordshire,England,OX13 5JL"]
[10004206,"ü","Appleton Primary School","Appleton Road,,,North Humberside,England,HU5 4PG"]
[10566532,"ü","Appleton Roebuck Primary School","Main Street, Appleton Roebuck,,,,,YO23 7DN"]
[10001575,"ü","Appleton School","Croft Road,,,Essex,England,SS7 5RN"]
[10018502,"ü","Appleton Thorn Primary School","Arley Road,Appleton,,Cheshire,England,WA4 4RW"]
[10566533,"ü","Appleton Wiske Community Primary School","Front Street, Appleton Wiske,,,,,DL6 2AA"]
[10541680,"ü","Appleton Wiske Minibuses",",,,,England,DL6 2BD"]
[10036232,"ü","Apple Tree Centre","MEATHOP PARK FARM,,,Cumbria,England,LA11 6RF"]
[10030554,"ü","Appletree Day Nursery","Spring Lane,,,Somerset,England,BA1 6NY"]
[10569910,"ü","Appletree Gardens First School","Appletree Gardens, Monkseaton,,,,,NE25 8XS"]
[10043509,"ü","Appletree Medical Practice","47a Town Street,,,Derbyshire,England,DE56 4GG"]
[10041385,"ü","Apple Tree Medical Practice","4 Wheatsheaf Court,Burton Joyce,,Nottinghamshire,England,NG14 5EA"]
[10031923,"ü","Appletree Nursery School","Milking Stile Lane,,,Lancashire,England,LA1 5QB"]
[10575489,"ü","Appletree School","Natland,,,,,LA9 7QS"]
[10566534,"ü","Appley Bridge All Saints Church of England Primary School","Finch Lane, Appley Bridge,,,,,WN6 9DT"]
[10568595,"ü","Applied Educational Solutions","10 Central Parade, Green Street,,,,,EN3 7HG"]
[10051209,"ü","Appointed person for England and Wales under the Proceeds of Crime Act 2002",",,,,,"]
[10006910,"ü","Approach Housing Association Limited","242 Streatham High Road,,,Greater London,England,SW16 1BB"]
[10541681,"ü","Approach Supporting Older Minds","Cauldon Chambers,10 Stoke Road,,Staffordshire,England,ST4 2DP"]
[10019989,"ü","Apsley Paper Trail","Apsley Mills Cottage,London Road,,Hertfordshire,England,HP3 9RL"]
[10579369,"ü","APUC",",,,,,"]
[10042305,"ü","AQA Education Limited","Devas Street,,,,Greater Manchester,England,M156EX"]
[10027004,"ü","Aquaterra","1-11 Ironmonger Row baths,,,Greater London,England,EC1V 3QF"]
[10566536,"ü","Aqueduct Primary School","Castlefields Way, Aqueduct,,,,,TF4 3RP"]
[10002212,"ü","Aquinas College","Nangreave Road,,,Greater Manchester,England,SK2 6TH"]
[10031924,"ü","Aquinas Diocesan Grammar School","518 Ravenhill,,,County Antrim,Northern Ireland,BT6 0BY"]
[10028269,"ü","Aquinas Street Housing Co-Operative Limited",",,,,,"]
[10013658,"ü","Arable Group The","Manor farm, Lower End,Daglingworth,,Gloucestershire,England,GL7 7AH"]
[10000171,"ü","Aragon Housing Association Limited","Katherine's House,Dunstable Street,Ampthill,Bedfordshire,England,MK45 2JP"]
[10030182,"ü","Aragon Primary School","Aragon Road,,,Surrey,England,SM4 4QU"]
[10028270,"ü","Aramark - Epsom Hospital",",,,,,"]
[10002213,"ü","Arawak Walton Housing Association Limited","23 Manor Street,,,Greater Manchester,England,M12 6HE"]
[10040565,"ü","Arboretum Primary School","Corden Street,,,Derbyshire,England,DE23 8GP"]
[10573849,"ü","Arboretum Primary School","Corden Street,,,,,DE23 8GP"]
[10036149,"ü","Arboretum Surgery","76 Monks Road,,,Lincolnshire,England,LN2 5HU"]
[10006916,{"$f":"CHAR(252)","v":"ü"},"Arborfield and Barkham Churches","The Rectory,Church Lane,,Berkshire,England,RG2 9HZ"]
[10572480,"ü","Arbour House","15 Glendinning Avenue,,,,,DT4 7QF"]
[10039571,"ü","Arbours Primary Academy The","Havelock Academy,Holyoake Road,,Lincolnshire,England,DN32 8JH"]
[10020418,"ü","Arbourthorne Junior School","Eastern Avenue,,,South Yorkshire,England,S2 2GQ"]
[10020419,"ü","Arbourthorne NI School","Eastern Avenue,,,South Yorkshire,England,S2 2GQ"]
[10036389,"ü","Arbour Vale School","Farnham Road,Farnham Royal,,Berkshire,England,SL2 3AE"]
[10037502,"ü","Arbroath Academy","Glenisla Drive,Arbroath,,Angus,Scotland,DD11 5JD"]
[10037371,"ü","Arbroath Citizens Advice Bureau","11 Millgate,,,Angus,Scotland,DD11 1NN"]
[10040068,"ü","Arbroath High School","Keptie Road,,,Angus,Scotland,DD11 3BN"]
[10036498,"ü","Arbroath Medical Centre","7 Hill Place,,,Angus,Scotland,DD11 1AD"]
[10041343,"ü","Arbury Primary School","Carlton Way,,,Cambridgeshire,England,CB4 2DE"]
[10006917,"ü","Arbury Road Baptist Church","20 Arbury Road,,,Cambridgeshire,England,CB24 2JE"]
[10029545,"ü","ARC","10A Marsden Street,,,Derbyshire,England,S40 1JY"]
[10021292,"ü","Arc 21","Duncrue Complex,,,County Antrim,Northern Ireland,BT3 9BP"]
[10571634,"ü","Archbishop Courtenay Primary School","Eccleston Road, Tovil,,,,,ME15 6QN"]
[10573264,"ü","Archbishop Wake Church of England Primary School","Black Lane,,,,,DT11 8SW"]
[10040604,"ü","Arddleen CP School","Arddleen,,,Powys,Wales,SY22 6RT"]
[10030183,"ü","Ards College","Library Resource Centre,,,County Down,Northern Ireland,BT23 7ED"]
[10019318,"ü","Arena Network","Pencoed Technology Park,Pencoed,,South Glamorgan,Wales,CF35 5HZ"]
[10574600,"ü","Ark Franklin Primary Academy","Harvist Road,,,,,NW6 6HJ"]
[10006933,"ü","Arlington Care Association Limited","25 Station Road,Harlesden,,Greater London,England,NW10 4UJ"]
[10006935,"ü","Armagh Planetarium","College Hill,,,County Antrim,Northern Ireland,BT6 9DB"]
[10563442,"ü","Arnold Academy",",,,,,MK45 4JZ"]
[10032368,"ü","Arnot St Mary School","Walton on the Hill,Walton,,Merseyside,England,L4 4ED"]
[10026299,"ü","Arts and Business Group","Nutmeg House,60 Gainsford Street,,Greater London,England,SE1 2NY"]
[10035460,"ü","Arunside Primary School","Blackbridge Lane,Horsham,West Sussex,Hertfordshire,England,RH12 1RR"]
[10033616,"ü","ASCERT","23 Bridge Street,,,County Antrim,Northern Ireland,BT28 1XZ"]
[10030185,"ü","Ashby Castle Day Nursery","North Street,,,Leicestershire,England,LE65 1HS"]
[10036188,"ü","Ashdown Medway Accomodation Trust","10 Chelmar Road,,,Kent,England,ME4 4PB"]
[10015928,"ü","Ashfield Homes","Head Office,Broadway,Brook Street,Nottinghamshire,England,NG17 1AL"]
[10566357,"ü","Ashgate Specialist Support Primary School","Crossacres Road, Peel Hall, Wythenshawe,,,,,M22 5DR"]
[10038784,"ü","Ashlands Primary School","Leeds Road,,Ikley,,England,LS29 8YJ"]
[10028272,"ü","Ashmere Care Homes Nhssp",",,,,,"]
[10040970,"ü","Ashton House School","South Point ,22 Brook Road,,Hampshire,England,SO41 3PW"]
[10566578,"ü","Ashton-under-Hill First School","Elmley Road, Ashton-under-Hill,,,,,WR11 7SW"]
[10038934,"ü","Asia Challenge Team","Operation Mobilisation Uk Ltd,The Quinta,,Shropshire,England,SY10 7LT"]
[10051733,"ü","Aspire the Wycombe Grange","56 Amersham Hill,,,Buckinghamshire,England,HP13 6PQ"]
[10031792,"ü","Assemblies Of God Incorporated","Light House Christian Centre,28 Maxwell Street,,Dumfries & Galloway,Scotland,DG2 7AN"]
[10006977,"ü","Association of Charity Shops","224 Shoreditch High Street,,,Greater London,England,E1 6PJ"]
[10036235,"ü","Assumption Africa","20-22 KENSINGTON SQUARE,,,Greater London,England,W8 5HN"]
[10567343,"ü","Astmoor Primary School","Kingshead Close, Castlefields,,,,,WA7 2JE"]
[10572382,"ü","Aston University Engineering Academy","1 Lister Street,,,,,B7 4AG"]
[10006986,"ü","ASU HQ","Regents Park Barracks,Albany Street,,Greater London,England,NW1 4AL"]
[10030558,"ü","Atherstone Surgery","1 Ratcliffe Road,,,Warwickshire,England,CV9 1EU"]
[10021300,"ü","Auchinleck Health Centre","182 Main Street,,,Ayrshire,Scotland,KA18 2AY"]
[10019855,"ü","Audenshaw School","Hazel Street,,Audenshaw,Greater Manchester,England,M34 5NB"]
[10022833,"ü","Auriol Junior School","Vale Road,Stoneleigh,Ewell,Surrey,England,KT19 0PJ"]
[10576533,"ü","Avanti House Primary School","Stanmore,,,,,HA7 3JB"]
[10035755,"ü","Avon and Somerset Constabulary","PO Box 37,Portishead,,Somerset,England,BS20 8QJ"]
[10041586,"ü","AVR Group","Unit 16-24,Attenburys Lane,Timperley,Greater Manchester,England,WA14 5QN"]
[10044131,"ü","Axbridge First School Academy","Stiby Road,,,Somerset,England,BA21 3EP"]
[10576962,"ü","Aylesbury Grammar School","Walton Road,,,,,HP21 7RP"]
[10000152,"ü","Ayrshire Central Hospital","Supplies Service,Ayrshire Central Hospital,Kilwinning Road,Ayrshire,Scotland,KA12 8SS"]
[10014028,"ü","AZ Housing Care and Support","139 Appleford Road,,,Berkshire,England,RG30 3NT"]
[10042743,"ü","Back on the Map","Hendon Branch Library,67 Toward Road,,Tyne and Wear,England,SR2 8JG"]
[10566639,"ü","Badshot Lea Village Infant School","Badshot Lea Road, Badshot Lea,,,,,GU9 9LE"]
[10030193,"ü","Baillieston Community Library","141 Main Street,,,Strathclyde,Scotland,G69 6AA"]
[10570787,"ü","Balksbury Infant School","Floral Way, Salisbury Road,,,,,SP10 3QP"]
[10013256,"ü","Ballikinrain School","Ballikinrain School,Fintry Road,Balfron,Strathclyde,Scotland,G63 0LL"]
[10017415,"ü","Balsall Heath Housing Co operative Limited","c/o Moseley & District Housing Ass,106 Alcester Road,Moseley,West Midlands,England,B13 8EF"]
[10041365,"ü","Bangladesh Youth and Cultural Shomiti","30-32 Biddulph Street,,,Leicestershire,England,LE2 1BF"]
[10004288,"ü","Banham Primary School","Crown Street,Banham,,Norfolk,England,NR16 2EX"]
[10023241,"ü","Banstead Community Junior School","The Horseshoe,,,Surrey,England,SM7 2BQ"]
[10041176,"ü","Barford Primary School","Chapel Street,Barford,,Norfolk,England,NR94AB"]
[10027792,"ü","Barlborough NHS Treatment Centre","2 LINDRICK WAY,BARLBOROUGH,,Derbyshire,England,S43 4XE"]
[10030196,"ü","Barmulloch Community Library","46 Wallacewell Quadrant,,,Strathclyde,Scotland,G21 3PX"]
[10021644,"ü","Barnard Castle School","Newgate,,Barnard Castle,County Durham,England,DL12 8UN"]
[10007046,"ü","Barnet Enfield and Haringey Mental Health NHS Trust","Avon Villa,Chase Farm Hospital,The Ridgeway,Middlesex,England,EN2 8JL"]
[10007048,"ü","Barnsley Metropolitan Borough Council","Town Hall,Church Street,,South Yorkshire,England,S70 2TA"]
[10573134,"ü","Barrington Primary School","Barrington Road,,,,,DA7 4UN"]
[10566702,"ü","Barrowford St Thomas Church of England Primary School","Wheatley Lane Road, Barrowford,,,,,BB9 6QT"]
[10034417,"ü","Barton Group Parishes","THE VICARAGE,POOLEY BRIDGE,,Cumbria,England,CA10 2LT"]
[10023231,"ü","Barwell Church of England Junior School","HIGH STREET,,,Leicestershire,England,LE9 8DS"]
[10025095,"ü","Baskerville School","Fellows Lane,,,West Midlands,England,B17 9TS"]
[10039573,"ü","Bassingham Surgery The","20 Torgate Lane,Bassingham,,Lincolnshire,England,LN5 9HF"]
[10004982,"ü","Bath Friends Housing Association Limited","The Friends Meeting House,York Street,,Somerset,England,BA1 1NG"]
[10035664,"ü","Baughurst Parish Council","51 Sheridan Crescent,Baughurst,,Hampshire,England,RG26 5HQ"]
[10566739,"ü","Baydon St Nicholas Church of England Primary School","Ermin Street, Baydon,,,,,SN8 2JJ"]
[10041752,"ü","Baynards Primary School","Townsend Road,Tiptree,,Essex,England,CO50ND"]
[10577068,"ü","Beachborough School","Westbury,,,,,NN13 5LB"]
[10043841,"ü","Beaconsfield High School","Wattleton Road,,,Buckinghamshire,England,HP9 1RR"]
[10007069,"ü","Bearsden and Milngavie District Council","100 Milngavie Rd,Bearsden,,Strathclyde,Scotland,G61 2TQ"]
[10032845,"ü","Beatrix Potter Primary School","Magdalen Road,,,Greater London,England,SW18 3ER"]
[10007072,"ü","Beaumont Hill School","Glebe Road,,,County Durham,England,DL1 3EB"]
[10577432,"ü","Beckfoot Phoenix","Braithwaite Avenue,,,,West Yorkshire,England,BD22 6HZ"]
[10571715,"ü","Bede's Senior School","The Dicker, Upper Dicker,,,,,BN27 3QH"]
[10015921,"ü","Bedewell Primary School","Coleridge Square,,,Tyne and Wear,England,NE31 1QD"]
[10000184,"ü","Bedfordshire Police","Woburn Road,,,Bedfordshire,England,MK43 9AX"]
[10029874,"ü","Beechcroft Infants School","Beechcroft Road,,,Wiltshire,England,SN2 7QE"]
[10575568,"ü","Beech Grove School","Nonington,,,,,CT15 4FB"]
[10025210,"ü","Beecroft Lower School","Westfield Road,,,Bedfordshire,England,LU6 1DW"]
[10566778,"ü","Beer Church of England Primary School","Mare Lane, Beer,,,,,EX12 3NB"]
[10572608,"ü","Beit Shvidler Primary School","261 Hale Lane,,,,,HA8 8NX"]
[10014442,"ü","Belfast Visitor and Convention Bureau","47 Donegall Place,,,County Antrim,Northern Ireland,BT1 5AD"]
[10567589,"ü","Belgrave School","10 Upper Belgrave Road, Clifton,,,,,BS8 2XH"]
[10566423,"ü","Bell Lane Academy","Bell Lane, Ackworth,,,,,WF7 7JH"]
[10030205,"ü","Belmont Primary School","Belmont Road,,,Dumfries & Galloway,Scotland,DG9 7BH"]
[10029416,"ü","Bembridge Church of England Primary School","Steyne Road,,,Isle of Wight,England,PO35 5UH"]
[10023391,"ü","Benenden School Kent Limited","Cranbrook Road,Benenden,,Kent,England,TN17 4AA"]
[10021156,"ü","Bengeo Primary School","The Avenue,,,Hertfordshire,England,SG14 3DX"]
[10566814,"ü","Bentilee Nursery School","Dawlish Drive, Bentilee,,,,,ST2 0HW"]
[10016828,"ü","Bere Forest Housing Association Limited","Pennyfarthing House,3 Chesil Street,,Hampshire,England,SO23 0HU"]
[10575299,"ü","Berkeley Primary School","Marsden Drive,,,,,DN15 8AH"]
[10031826,"ü","Berrow Primary School","Rugosa Drive,Berrow,,Somerset,England,TA8 2LJ"]
[10577312,"ü","Bessemer Grange Primary School",",,,,,SE5 8HP"]
[10036857,"ü","Betws Primary School","Bettws,,,Bridgend,Wales,CF32 8TB"]
[10577405,"ü","Beverley Joint Sixth",",,,,,"]
[10024417,"ü","Bexley Grammar School","Danson Lane,,,,England,DA16 2BL"]
[10022501,"ü","Bickleigh on Exe Church of England Primary School","Bickleigh,,,Devon,England,EX16 8RE"]
[10026112,"ü","Bield Housing & Care","Craighall Business Park,7 Eagle Street,,Strathclyde,England,G4 9XA"]
[10567096,"ü","Biggin Hill Primary School","Biggin Avenue, Bransholme,,,,,HU7 4RL"]
[10037753,"ü","Billinghay Ce Primary School","Fen Road,Billinghay,,Lincolnshire,England,LN4 4HU"]
[10013101,"ü","BioRegional","24,Helios Road,,Surrey,England,SM6 7BZ"]
[10013796,"ü","Birchington Church of England Primary School","Park Lane,,,Kent,England,CT7 0AS"]
[10575247,"ü","Birkbeck College","Malet Street,,,,,WC1E 7HX"]
[10028025,"ü","Birkdale Clinic - Rotherham The","CLIFTON LANE,,,South Yorkshire,England,S65 2AJ"]
[10041829,"ü","Birmingham Children's Hospital Pharmacy Limited","Steelhouse Lane,,,West Midlands,England,B4 6NH"]
[10030768,"ü","Birmingham Magistrates","Victoria Law Courts,Corporation Street,,West Midlands,England,B4 6QA"]
[10018070,"ü","Birmingham Royal Ballet","Birmingham Royal Ballet,,39 Thorp Street,West Midlands,England,B5 4AU"]
[10577237,"ü","Bishop's Hatfield Girls' School","Woods Avenue,,,,,AL10 8NL"]
[10000914,"ü","Bishop Goodwin Junior School","Harold Street,,,Cumbria,England,CA2 4HG"]
[10013633,"ü","Bishop Ramsey Secondary School","Hume Way,,,Middlesex,England,HA4 8EE"]
[10032540,"ü","Bishops Lydeard Church  Of England Primary School","Mount Street,Bishops Lydeard,,Somerset,England,TA4 3AN"]
[10033837,"ü","Bishops Waltham Surgery","THE SURGERY,LOWER LANE,,Hampshire,England,SO32 1GR"]
[10574214,"ü","Bishop Wordsworth's Grammar School","Exeter Street,,,,,SP1 2ED"]
[10003284,"ü","Blackburn College","Feilden Street.,,,Lancashire,England,BB2 1LH"]
[10575422,"ü","Black Combe Junior School","Moor Road,,,,,LA18 5DT"]
[10007147,"ü","Blackfriars Housing For Young Limited","Christchurch House,4 Chancel Street,,Greater London,England,SE1 0UX"]
[10576274,"ü","Blackpool Gateway Academy","Seymour Road,,,,,FY1 6JH"]
[10031841,"ü","Bladon Church of England Primary School","Park Street,Bladon,,Oxfordshire,England,OX20 1RW"]
[10027968,"ü","Blakelands NHS Treatment Centre","SMEATON CLOSE,BLAKELANDS,,Buckinghamshire,England,MK14 5HR"]
[10569977,"ü","Blanche Nevile School","Burlington Road, Muswell Hill,,,,,N10 1NJ"]
[10019448,"ü","Blenheim High School","Longmead Road,,,Surrey,England,KT19 9BH"]
[10540914,"ü","BLEWBURY PARISH COUNCIL","83 Dibleys Blewbury,,,,,OX11 9PU"]
[10566983,"ü","Blisworth Community Primary School","Courteenhall Road, Blisworth,,,,,NN7 3DD"]
[10566144,"ü","Bluebell Park School","Cawthorne Walk, Southdene, Kirkby,,,,,L32 3XP"]
[10016244,"ü","Blue Triangle Housing","100 Berkely Street,Charing Cross,,Strathclyde,Scotland,G3 7HU"]
[10051212,"ü","Board of Trustees of the Royal Botanic Gardens Kew",",,,,,"]
[10026393,"ü","Boghall primary School","Elizabeth Drive,,,West Lothian,Scotland,EH48 1JB"]
[10573793,"ü","Boldmere Infant School and Nursery","Cofield Road,,,,,B73 5SD"]
[10035263,"ü","BOLTON COMMUNITY TRANSPORT","Unit a1,,,Greater Manchester,England,BL3 6DG"]
[10023926,"ü","Bolton Wise Limited","The Quest Centre,Brownlow Way,,Greater Manchester,England,BL1 3UB"]
[10028286,"ü","Bonham and Strathleven Tenants Co-Operative Limited",",,,,,"]
[10575544,"ü","Boothferry Primary School","Newport Street,,,,,DN14 6TL"]
[10567028,"ü","Boroughbridge High School","Wetherby Road, Boroughbridge,,,,,YO51 9JX"]
[10003647,"ü","Boston Borough Council","Municipal Buildings,West Street,,Lincolnshire,England,PE21 8QR"]
[10016846,"ü","Boughey Roddam Housing Association","23 Station Road,,,Shropshire,England,TF10 7EN"]
[10051215,"ü","Boundary Commission for England",",,,,,"]
[10541721,"ü","Bournemouth Borough Council (Lac Team)","Town Hall,St. Stephens Road,,Dorset,England,BH2 6LL"]
[10007192,"ü","Bournville College of Further Education","Bristol Road South,Northfield,,West Midlands,England,B31 2AJ"]
[10566823,"ü","Boutcher Church of England Primary School","93 Grange Road, Bermondsey,,,,,SE1 3BW"]
[10023217,"ü","Bower Park School","Havering Road,,,Essex,England,RM1 4YY"]
[10567052,"ü","Bow Street School","Pace Centre, Bow Street,,,,,WV14 7NB"]
[10020696,"ü","Brabyns Preparatory School  ","34-36 Arkwright Road,,,Greater Manchester,England,SK6 7DB"]
[10019561,"ü","Braco Primary","Braco,,,Stirlingshire,Scotland,FK15 9QD"]
[10565969,"ü","Bradfield C.E. Primary School","Cock Lane, Southend, Bradfield,,,,,RG7 6HR"]
[10032638,"ü","Bradford Diocese","Kadugli House,Elmsley Street,Steeton,West Yorkshire,England,BD20 6SE"]
[10573337,"ü","Bradworthy Primary Academy","Bradworthy,,,,,EX22 7RT"]
[10567078,"ü","Braishfield Primary School","Common Hill Road, Braishfield,,,,,SO51 0QF"]
[10015271,"ü","Brambles Primary Academy","Kedward Avenue,,,Cleveland,England,TS3 9DB"]
[10023214,"ü","Brampton Manor Academy","Roman Road,,,Greater London,England,E6 3SQ."]
[10016856,"ü","Brandrams Housing Co operative Limited","Flat 1,Brandrams Wharf,127-131 Rotherhithe Street,Greater London,England,SE16 4NF"]
[10036598,"ü","Braunstone Community Primary School","17 Cort Crescent,,,Leicestershire,England,LE3 1QH"]
[10570292,"ü","Braybrook Primary School","Braybrook, Orton Goldhay,,,,,PE2 5QL"]
[10576890,"ü","Breakwater Academy","Valley Road,,,,,BN9 9UT"]
[10043101,"ü","Brecon Cathedral","Cathedral Close,,,,Wales,LD3 9DP"]
[10021274,"ü","Brentside High School","Greenford Avenue,,,Greater London,England,W7 1JJ"]
[10018076,"ü","Brentwood Roman Catholic Diocesan Trust","Diocese Of Brentwood,,Cathedral Of St Mary & St Helens,Ingrave Road,Essex,England,CM15 8AT"]
[10574063,"ü","Brickhouse Primary School","Dudhill Road,,,,,B65 8HS"]
[10574447,"ü","Bridge House Independent School","Grantham Road,,,,,PE21 7NL"]
[10006618,"ü","Bridge Street Medical Practice","3 Bridge Street,,,West Yorkshire,England,LS21 1BQ"]
[10041032,"ü","Bridgewater Family Medical Practice","Bridgewater Family Medical Practice,Bridgewater Street,,Shropshire,England,SY13 1QH"]
[10031864,"ü","Bridlington Sports College","Bessingby Road,,,North Humberside,England,YO16 4QU"]
[10027756,"ü","Brighton and Hove Integrated Care Service","PRESTAMEX HOUSE,171-173 PRESTON ROAD,,East Sussex,England,BN1 6AG"]
[10567143,"ü","Brightwalton C.E. Aided Primary School","Common Lane, Brightwalton,,,,,RG20 7BN"]
[10567144,"ü","Brigstock Latham's Church of England Primary School","Latham Street, Brigstock,,,,,NN14 3HD"]
[10021417,"ü","Briscoe Lane Primary School","Briscoe Lane,,,Greater Manchester,England,M40 2TB"]
[10007249,"ü","Bristol Family Homeless Trust","24 All Hallows Road,Easton,,Gloucestershire,England,BS5 0HW"]
[10007265,"ü","British Airports Authority","Carolson House Business Support Centre,Moss End Road,Hillingdon,Strathclyde,Scotland,G52 4RX"]
[10018081,"ü","British Diabetic Association","Diabetes Uk,10 Parkway,,Greater London,England,NW1 7AA"]
[10036638,"ü","British Forces Germany","HQ British Forces Germany,British Forces Post Office 140,,,,"]
[10541731,"ü","British Parking Association","41 Perrymount Road,,,West Sussex,England,RH16 3BN"]
[10014512,"ü","British School of Osteotherapy","Avon House,Borough High Street,,Greater London,England,SE1 1JE"]
[10019951,"ü","British Wool Marketing Board","Wool House,Roydsdale Way,Euroway Trading Estate,West Yorkshire,England,BD4 6SE"]
[10035743,"ü","Broadfield Primary School","Goddard Street,,,Greater Manchester,England,OL8 1LH"]
[10575122,"ü","Broadlands Hall","Little Wratting,,,,,CB9 7UD"]
[10573407,"ü","Broad Town Church of England Primary School","Broad Town,,,,,SN4 7RE"]
[10042183,"ü","Brockhampton Academy Trust","Brockhampton,,,Worcestershire,England,WR65TD"]
[10568899,"ü","Brockhurst and Marlston House Schools","Marlston House, Hermitage,,,,,RG18 9UL"]
[10021393,"ü","Bromfords School The","Grange Avenue,,,Essex,England,SS12 0LZ"]
[10582814,"ü","Bromsgrove District and Redditch Borough Councils",",,,,,"]
[10037484,"ü","Bron-Brawf Cymru (Breast Test Wales)","18 Cathedral Road,,,South Glamorgan,Wales,CF1 9LJ"]
[10022529,"ü","Brookfield Junior School Larkfield","Swallow Road,Larkfield,,,England,ME20 6PY"]
[10019225,"ü","Brookland Junior School","Elm Drive,,,Hertfordshire,England,EN8 ORX"]
[10574151,"ü","Brook Street Primary School","Edward Street,,,,,CA1 2JB"]
[10570774,"ü","Broomhill Bank School","Broomhill Road, Rusthall,,,,,TN3 0TB"]
[10002932,"ü","Broomleigh Housing Association Limited","Maple House,157-159 Masons Hill,,Kent,England,BR2 9HY"]
[10003302,"ü","Broughton Jewish Cassel Fox Primary School","Legh Road,,,Greater Manchester,England,M7 4RT"]
[10567200,"ü","Brownhills West Primary School","Shannon Drive, Brownhills,,,,,WS8 7LA"]
[10007305,"ü","Bruce Grove Jnr School","Sperline Road,,,Greater London,England,N17 6UH"]
[10564503,"ü","Brunel Pension Partnership",",,,,,"]
[10007310,"ü","Bryncoch Church in Wales Primary School","Furzeland Drive,Bryncock,,West Glamorgan,Wales,SA10 7UG"]
[10055315,"ü","BST Partnership","2358 Stratford Road, Hockley Heath,,,,,B94 6QS"]
[10038987,"ü","Buckinghamshire Community Foundation","Foundation House,119A Bicester Road,,Buckinghamshire,England,HP19 9BA"]
[10582927,"ü","Buckingham Youth Clubs Ltd","London Road,,,Buckinghamshire,England,MK18 1AS"]
[10573506,"ü","Buglawton Primary School","Buxton Old Road,,,,,CW12 2EL"]
[10040225,"ü","Bulwell Academy The","Squires Avenue,,,Nottinghamshire,England,NG6 8HG"]
[10019803,"ü","Bungay Road Practice","St Johns Road,,,Suffolk,England,NR35 1LP"]
[10030019,"ü","Burgate School and Sixth Form","Salisbury Road,,,Hampshire,England,SP6 1EZ"]
[10007328,"ü","Burlington Danes School CE","Wood Lane,,,Greater London,England,W12 0HR"]
[10007330,"ü","Burnley Brow Community School","Victoria Street,Chadderton,,Lancashire,England,OL9 0BY"]
[10031637,"ü","Burntstump Seely C of E Primary Academy","Burnt Stump Hill,Arnold,,Nottinghamshire,England,NG5 8PQ"]
[10029506,"ü","Burraton Community Primary School","LOWER BURRATON,,,Devon,England,PL12 4LT"]
[10567252,"ü","Burton Agnes Church of England Voluntary Controlled Primary School","Rudston Road, Burton Agnes,,,,,YO25 4NE"]
[10000503,"ü","Bury CoE Primary School","Owls End,Bury,,Cambridgeshire,England,PE26 2NJ"]
[10022808,"ü","Bury Hospice","Dumers Lane,,Radcliffe,Greater Manchester,England,M26 2QD"]
[10002936,"ü","Business Academy Bexley","Yarnton Way,,,Kent,England,DA18 4DW"]
[10040848,"ü","Buswells Lodge Primary School","Beauville Drive,,,Leicestershire,England,LE4 0PT"]
[10041867,"ü","Buxton Primary School","Aylsham Road,Buxton,,Norfolk,England,NR10 5EZ"]
[10573115,"ü","Byron Primary School","Barkerend Road,,,,,BD3 0AB"]
[10036059,"ü","C.M.A Community Nursery Limited","26 Lampard Grove,,,Greater London,England,N16 6XB"]
[10023621,"ü","Cadoxton Nursery School","Victoria Park Road,,,Vale of Glamorgan,Wales,CF63 2JS"]
[10541095,"ü","Caister Infant, Nursery School and Childrens Centre","Kingston Avenue,Caister-on-Sea,,Norfolk,England,NR30 5ET"]
[10580822,{"$f":"CHAR(252)","v":"ü"},"Calan DVS",",,,,,"]
[10573549,"ü","Caldmore Primary Academy","Carless Street,,,,,WS1 3RH"]
[10560227,"ü","Callywith College","College Road,,,Cornwall,England,TR1 3XX"]
[10029845,"ü","Cambell Infants School","Langley Crescent,,,Greater London,England,RM9 6TD"]
[10021269,"ü","Cambo First School","Cambo First School,Cambo,Blyth,Northumberland,England,NE61 4BE"]
[10038992,"ü","Cambridge Avenue Medical Centre","Cambridge Avenue,Bottesford,,South Humberside,England,DN16 3LG"]
[10039934,"ü","CAMBRIDGE PRIMARY EDUCATION TRUST T","HISTON & IMPINGTON JUNIOR SCHOOL,THE GREEN,HISTON,Cambridgeshire,England,CB24 9JA"]
[10541745,"ü","Cambs & P'Boro Ccg","Phoenix House,Topcliffe Lane,Tingley,West Yorkshire,England,WF3 1WE"]
[10583349,"ü","Camden Carers Service","The Charlie Ratchford Centre,Belmont Street,,,England,NW1 8HF"]
[10016487,"ü","Cameron Walker Court Trust The","150 Boroughbridge Road,,,North Yorkshire,England,YO26 6AL"]
[10007382,"ü","Cams Lane Primary School","Cams Lane,Radcliffe,,Greater Manchester,England,M26 3SW"]
[10567312,"ü","Canewdon Endowed Church of England Voluntary Controlled Primary School","High Street, Canewdon,,,,,SS4 3QA"]
[10003553,"ü","Cansfield High Specialist Language College","Old Road,Ashton-in-Makerfield,,Lancashire,England,WN4 9TP"]
[10566887,"ü","Canterbury Cross Primary School","Canterbury Road, Birchfield,,,,,B20 3AA"]
[10567319,"ü","Capel-le-Ferne Primary School","Capel Street, Capel-le-Ferne,,,,,CT18 7HB"]
[10018417,"ü","Capita Business Services","71 Victoria Street,Westminster,,Greater London,England,SW1H 0XA"]
[10566029,"ü","Captain Webb Primary School","Webb Crescent, Pool Hill, Dawley,,,,,TF4 3DU"]
[10007400,"ü","Cardiff Council","City Hall,Cathays Park,,South Glamorgan,Wales,CF10 3ND"]
[10018982,"ü","Cardinal Newman Catholic School","The Upper Drive,,,East Sussex,England,BN3 6ND"]
[10035536,"ü","Careers Resource Centre","56-58 Ann Street,,,County Antrim,Northern Ireland,BT1 4EG"]
[10572697,"ü","Carfax College","39-42 Hythe Bridge Street,,,,,OX1 2EP"]
[10035147,{"$f":"CHAR(252)","v":"ü"},"CARLETON CLINIC","MEETING ROOM-MEETING ROOM,,,Cumbria,England,CA1 1PY"]
[10032377,"ü","Carlisle Youth Zone","Victoria Place,,,Cumbria,England,CA1 1LR"]
[10037566,"ü","Carmarthen Town Council","St Peters Civic Hall,Nott Square,,Carmarthenshire,Wales,SA31 1PG"]
[10566413,"ü","Carmountside Primary Academy","Woodhead Road, Abbey Hulton,,,,,ST2 8DJ"]
[10036816,"ü","Carpenters Primary School","Friendship Way,,,Greater London,England,E15 2JQ"]
[10541591,"ü","Carroll Group","Atlantic House,Dunnings Bridge Road,,Merseyside,England,L30 4TH"]
[10036508,"ü","Cashes Green Primary School","Hillcrest Road,,,Gloucestershire,England,GL5 4NL"]
[10567336,"ü","Castle Camps Church of England (Controlled) Primary School","Church Lane, Castle Camps,,,,,CB21 4TH"]
[10025046,"ü","Castle Community School","Mill Road,,,Kent,England,CT14 9BD"]
[10006627,"ü","Castle Hall School and Language College","Richard Thorpe Avenue,,,West Yorkshire,England,WF14 9PH"]
[10036499,"ü","Castle Partnership Academy Trust","Eastern Avenue,,,Suffolk,England,CB9 9JE"]
[10567347,"ü","Castleton CofE Primary School","Back Street, Castleton,,,,,S33 8WE"]
[10037775,"ü","Castle View Enterprise Academy","Cartwright Road,,,Tyne and Wear,England,SR5 3DX"]
[10568741,"ü","Caterham Preparatory School","Mottrams, Harestone Valley Road,,,,,CR3 6YB"]
[10031053,"ü","Cathedral Primary School","Firpark Street,,,Strathclyde,England,ML1 2PR"]
[10042779,"ü","Causeway Coast and Glens Borough Council","66 Portstewart Road,,,County Antrim,Northern Ireland,BT52 1EY"]
[10567356,"ü","Cavendish Church of England Primary School","The Green, Cavendish,,,,,CO10 8BA"]
[10571793,"ü","Caverstede Nursery School","Caverstede Road, Walton,,,,,PE4 6EX"]
[10026537,"ü","Cedarbank Special School","Cedarbank,,,West Lothian,Scotland,EH54 6DR"]
[10037033,"ü","Cefn Community Council","Cefn Community Council,Well Street,Cefn Mawr,Wrexham,Wales,LL14 3AE"]
[10564535,"ü","CEH Edinburgh",",,,,,"]
[10013769,"ü","Central Enfield City Learning Centre","270 Park Road,,,Greater London,England,N8 8JY"]
[10044176,"ü","Central Primary School","Milburn Road,,,Northumberland,England,NE63 0AX"]
[10013471,"ü","Central Stores","Station Road,West End,,West Lothian,Scotland,EH47 4LE"]
[10563679,"ü","CENTRES FOR SEAFARERS","12-14 Queens Terrace,,,Hampshire,England,SO14 3BP"]
[10036784,"ü","Ceredigon Mid Wales NHS Trust","Bronglais General Hospital,,,Dyfed,Wales,SY23 1ER"]
[10041997,"ü","Chadwick Centre and Medical Short Stay School","Owen Road,,,Lancashire,England,LA12BL"]
[10003794,"ü","Chalkhill Primary School","Barnhill Road,,,Middlesex,England,HA9 9YP"]
[10567391,"ü","Challock Primary School","Church Lane, Challock,,,,,TN25 4BU"]
[10021021,{"$f":"CHAR(252)","v":"ü"},"Channel School The","Park Farm Road,,,Kent,England,CT19 5DN"]
[10014588,"ü","Chapel Grange School","Rhodesway,,,West Yorkshire,England,BD8 0DQ"]
[10029981,"ü","Chard Town Council","Holyrood Lace Mill,,,Somerset,England,TA20 1PP"]
[10024320,"ü","Charity Share","42 Curtain Road,,,Greater London,England,EC2A 3NH"]
[10034460,"ü","Charles Dickens School","Toulmin Street,,,Greater London,England,SE1 1AF"]
[10036760,"ü","Charlton Park Academy","Charlton Park Road,,,Greater London,England,SE7 8HX"]
[10018104,"ü","Chartered Institute of Personnel and Development","151 The Broadway,,,Greater London,England,SW19 1JQ"]
[10021098,"ü","Charterhouse School","Charterhouse,Brook Hall,Charterhouse,Surrey,England,GU7 2DX"]
[10567426,"ü","Chasetown Community School","Church Street, Chasetown,,,,,WS7 3QL"]
[10032516,"ü","Chaulden Infants School","School Row,Chaulden,,Hertfordshire,England,HP1 2JU"]
[10567443,"ü","Cheetwood Primary School","Waterloo Road, Cheetham,,,,,M8 8EJ"]
[10001019,"ü","Chellaston School","Swarkestone Road,Chellaston,,Derbyshire,England,DE73 1UA"]
[10021233,"ü","Cheltenham Borough Homes","Clarence Street,,,Gloucestershire,England,GL50 3JU"]
[10038754,"ü","Cherry Fold Community Primary","Cog Lane,,,Lancashire,England,BB11 5JS"]
[10042175,"ü","Cherry Trees Montessori Nursery","Flempton Road,,,,England,IP286QJ"]
[10004637,"ü","Cherwell District Council","Bodicote House,Bodicote,,Oxfordshire,England,OX15 4AA"]
[10029536,"ü","Cheshire Health Agency","1829 Building,The Countess Of Chester Health Park,,Cheshire,England,CH2 1DU"]
[10016104,"ü","Chesterfield Royal Hospital NHS Foundation Trust","Calow,,,Derbyshire,England,S44 5BL"]
[10039026,"ü","Chetwynd Primary Academy","Chetwynd Road,Toton,,Nottinghamshire,England,NG9 6FW"]
[10002952,"ü","Cheyne Middle School","Jefferson Road,,,Kent,England,ME12 3BP"]
[10043512,"ü","Chiddenbrook Surgery","Threshers,,,Devon,England,EX17 3JJ"]
[10041735,{"$f":"CHAR(252)","v":"ü"},"Children's Hospital Charity The","Western Bank,,,South Yorkshire,England,S10 2TH"]
[10033347,"ü","Childrens Services Department","GROUND FLOOR,The Bluebell Centre,West Mall,West Midlands,England,B37 5TN"]
[10052613,"ü","Child Support Agency","Po Box 55,,,West Midlands,England,DY5 1YL"]
[10563670,"ü","CHILTERN WOOD SCHOOL","Faulkner Way,Downley,,Buckinghamshire,England,HP13 5HB"]
[10005943,"ü","Chippenham College","Cocklebury Road,,,Wiltshire,England,SN15 3QD"]
[10567339,"ü","Chivenor Primary School","Farnborough Road, Castle Vale,,,,,B35 7JA"]
[10025690,"ü","Chorley County Court","Chorley County Court,59 St Thomas?s Road,,Lancashire,England,PR7 1JE"]
[10566608,"ü","Chowbent Primary School","Laburnum Street, Atherton,,,,,M46 9FP"]
[10563691,"ü","Christ Church CE Primary School","Church Street,Walshaw,,Greater Manchester,England,BL8 3AX"]
[10051458,"ü","Christ Church C Of E Infant School","Victoria Street,,,,England,NG24 4UT"]
[10571315,"ü","Christ Church CofE Primary School","Tapton View Road, Stonegravels,,,,,S41 7JU"]
[10002955,"ü","Christ Church Primary School Erith","Lesney Park Road,,,Kent,England,DA8 3DG"]
[10018113,"ü","Christian Vision","I M Group Ltd,Ryder Street,,West Midlands,England,B70 0EJ"]
[10571495,"ü","Christ The King Catholic Primary School, Thornbury","Easton Hill Road, Thornbury,,,,,BS35 1AW"]
[10035127,"ü","Chryston Parish Church","109 Main Street,,,Lanarkshire,England,G69 9LA"]
[10029806,"ü","Churchdown Parton Manor Junior School","Craven Drive,,,Gloucestershire,England,GL33 3DR"]
[10576198,"ü","Churchfield CofE Primary Academy","Sandy Lane,,,,,WS15 2LB"]
[10573713,"ü","Church Langley Community Primary School","Church Langley,,,,,CM17 9TH"]
[10024376,"ü","Church of England","Archbishops Council,Church House,Great Smith Street,Greater London,England,SW1P 3AZ"]
[10034475,"ü","Church Street Medical Centre","11b Church Street,Eastwood,,Nottinghamshire,England,NG16 3BS"]
[10016499,"ü","Cinque Cottages The","19 Kings Road,Wimbledon,,Greater London,England,SW19 8PL"]
[10023211,"ü","City Academy The","Russell Town Avenue,,,Somerset,England,BS5 9JH"]
[10043354,"ü","City Heights E-ACT Academy","33 Abbots Park,,,Greater London,England,SW2 3PW"]
[10027217,"ü","City in the Community","Manchester City Football Club,City of Manchester Stadium,Sport City,Greater Manchester,England,M11 3FF"]
[10018119,"ü","City of London Academy Southwark Limited","240 Lynton Road,Bermondsey,,Greater London,England,SE1 5LA"]
[10026971,"ü","City South Manchester Housing Trust","Turing House,Archway,,Greater Manchester,England,M15 5RL"]
[10024008,"ü","City West Homes","21 Grosvenor Place,,,Greater London,England,SW1X 7EA"]
[10043356,"ü","C J Charitable Trust","7-8 Brookside,,,Cambridgeshire,England,CB2 1JE"]
[10018762,"ü","Clapton Park Management Organisation","1-3 Ladybower Court,Gilpin Square,Clapton Park,  Hackney,Greater London,England,E5 0HB"]
[10039034,"ü","Clarendon Dental Spa Llp","9 Woodhouse Square,Clarendon Road,,West Yorkshire,England,LS3 1AD"]
[10015812,"ü","Clawton Primary School","Clawton,,,Devon,England,EX22 6QN"]
[10567574,"ü","Claygate Primary School","Foley Road, Claygate,,,,,KT10 0NB"]
[10026290,"ü","Cleeve School","Two Hedges Road,Bishops Cleeve,,Gloucestershire,England,GL52 8AE"]
[10000776,"ü","Cleveland College of Art and Design","Green Lane,,,Cleveland,England,TS5 7RJ"]
[10035639,"ü","Cleves School","Oatlands Avenue,,,Surrey,England,KT13 9TS"]
[10007611,"ü","Clifton: A Community Arts School","Middle Lane,,,South Yorkshire,England,S65 2SN"]
[10041143,"ü","Clinton Primary School","Caesar Road,,,Warwickshire,England,CV8 1DL"]
[10572038,"ü","Clover Hill Community Primary School","Glenhurst Drive, Whickham,,,,,NE16 5SJ"]
[10573777,"ü","Clyst Hydon Primary School","Clyst Hydon,,,,,EX15 2ND"]
[10023984,"ü","Cntre 33","33 Clarendon Street,,,Cambridgeshire,England,CB1 1JX"]
[10007627,"ü","Coast and Country Housing","14 Ennis Square,,Dormanstown,,,North Yorkshire,England,TS10 5JR"]
[10567616,"ü","Coddington CofE Primary and Nursery School","Brownlows Hill, Coddington,,,,,NG24 2QA"]
[10561882,"ü","Coed Cymru CYF","The Old Sawmills,Tregynon,,,Wales,SY16 3PL"]
[10001627,{"$f":"CHAR(252)","v":"ü"},"Colbayns High School","Pathfields Rd,,,Essex,England,CO15 3JL"]
[10567624,"ü","Cold Norton Primary School","St Stephens Road, Cold Norton,,,,,CM3 6JE"]
[10577423,"ü","Coleham Primary School",",,,,,SY3 7EN"]
[10572496,"ü","College Green School and Services","161 College Road,,,,,NW10 3PH"]
[10007647,"ü","College of North East London","High Road,,,Greater London,England,N15 4RU"]
[10567902,"ü","Collierley Primary School","Front Street, Dipton,,,,,DH9 9DJ"]
[10018638,"ü","Collingwood School","Stobhillgate,,,Northumberland,England,NE61 2HA"]
[10036846,"ü","Coltishall Primary School","5 St. Johns Close,Coltishall,,Norfolk,England,NR12 7HA"]
[10566836,"ü","Columbia Primary School","Columbia Road, Bethnal Green,,,,,E2 7RG"]
[10030033,"ü","Comet Nursery School","20 Halcomb Street,,,Greater London,England,N1 5RF"]
[10051237,"ü","Committee on Toxicity of Chemicals in Food, Consumer Products and the Environment","Aviation House,125 Kingsway,,,England,WC2B 6NH"]
[10043464,"ü","Community Building Services (CBS) Ltd","Community Building Services (Cbs) Ltd,Imperial Place,Maxwell Road,Hertfordshire,England,WD6 1JN"]
[10013446,"ü","Community Council of Shropshire","5 Claremont Buildings,,,Shropshire,England,SY1 1RJ"]
[10015554,"ü","Community Hygeine Concern","Manor Gardens Centre,6-9 Manor Gardens,,Greater London,England,N7 6LA"]
[10028907,"ü","Community Relations Council","Glendinning House,6 Murray Street,,County Antrim,Northern Ireland,BT1 6DN"]
[10541360,"ü","Compass Primary Academy","Windmill Avenue,,,Northamptonshire,England,NN15 7EA"]
[10015381,"ü","Compensation Agency Northern Ireland","Royston House,34 Upper Queen Street,,County Antrim,Northern Ireland,BT1 6FD"]
[10573823,"ü","Condover CofE Primary School","Condover,,,,,SY5 7AA"]
[10015312,"ü","Coniston Primary School","Epney Close,Patchway,,Avon,England,BS34 5LN"]
[10013675,"ü","Connexions Staffordshire","Foregate House,70 Foregate Street,,Staffordshire,England,ST16 2PX"]
[10015497,"ü","Connexions Suffolk","Orchard House,35-37 St Helen Street,,Suffolk,England,IP4 2JL"]
[10027238,"ü","Consumer Focus Scotland","Royal Exchange House,100 Queen Street,,Strathclyde,Scotland,G1 3DN"]
[10567672,"ü","Cookley Sebright Primary School","16 Lea Lane, Cookley,,,,,DY10 3TA"]
[10009849,"ü","Co-op Academy Priesthorpe","Priesthorpe Lane,Pudsey,,West Yorkshire,England,LS28 5SG"]
[10007714,"ü","Co Operative College","Stanford Hall,,,Leicestershire,England,LE12 5QR"]
[10021964,"ü","Copperworks Housing Co operative Limited","284 Royston Road,,,Strathclyde,Scotland,G21 2JB"]
[10007716,"ü","Copthall School","Pursley Road,Mill Hill,,Greater London,England,NW7 2EP"]
[10025319,"ü","Corfe Castle Church of England First School","East Street,Corfe Castle,Wareham,,England,BH20 5EE"]
[10574749,"ü","Corfe Hills School","Higher Blandford Road,,,,,BH18 9BG"]
[10566282,{"$f":"CHAR(252)","v":"ü"},"Cornwall College","Corporate Headquarters, Cornwall College St Austell, Tregonissey Road,,,,,PL25 4DJ"]
[10042867,"ü","Corpus Christi Catholic Primary School","Langbank Avenue,,,Warwickshire,England,CV3 2QP"]
[10030036,"ü","Corpusty Primary School","Norwich Road,,,Norfolk,England,NR11 6QG"]
[10043756,"ü","Coseley Medical Centre","32-34 Avenue Road,,,West Midlands,England,WV14 9DJ"]
[10033878,"ü","Cothill Educational Trust (Independent)","COTHILL HOUSE,COTHILL,,,England,OX13 6JL"]
[10012150,"ü","Cottenham Village College","High Street,Cottenham,,Cambridgeshire,England,CB4 8UA"]
[10014491,"ü","Counselling and Psychotherapy Central Awarding Body","P O Box 1768,,,Somerset,England,BA6 8YP"]
[10051241,"ü","Counter Fraud and Security Management Service",",,,,,"]
[10030145,"ü","Couper Institute Community Library","84 Clarkston Road,,,Strathclyde,Scotland,G44 3DA"]
[10016985,"ü","Coventry and Warwickshire YMCA","2nd Floor,Cash's Business Centre,Cash's lane,West Midlands,England,CV1 4PB"]
[10012278,"ü","Cowlersley Primary School","Main Avenue,Cowlersley,,West Yorkshire,England,HD4 5US"]
[10022466,"ü","Cox Green School","Highfield Lane,,,Berkshire,England,SL6 3AX"]
[10567728,"ü","Cradley CofE Primary School","Church Road, Cradley,,,,,B63 2UL"]
[10575046,"ü","Cranborne Primary School","Laurel Fields,,,,,EN6 2BA"]
[10577329,"ü","Cranmere Primary School",",,,,,KT10 8BE"]
[10573889,"ü","Cranmer Primary School","Cranmer Road,,,,,CR4 4XU"]
[10541797,"ü","Crawley Sea Cadets","T S Cossack,Longmere Road,,West Sussex,England,RH10 8ND"]
[10030581,"ü","Cregagh Surgery","36 Montgomery Road,,,County Antrim,Northern Ireland,BT6 9HL"]
[10565490,"ü","Creunant Primary School","School Road Crynant,Neath, Castell-nedd Port Talbot SA10 8NS,Wales,,,"]
[10573900,"ü","Criftins CofE Primary School","Criftins,,,,,SY12 9LT"]
[10038714,"ü","Cringleford CE VA Primary School","Cantley Lane,Cringleford,Norwich,Norfolk,England,NR4 6UG"]
[10039581,{"$f":"CHAR(252)","v":"ü"},"Croft Medical Centre The","2 Glen Road,Oadby,,Leicestershire,England,LE2 4PE"]
[10567763,"ü","Crondall Primary School","Croft Lane, Crondall,,,,,GU10 5QG"]
[10022921,"ü","Crondall Primary School","Croft lane,,,Surrey,England,GU10 5QQ"]
[10568363,"ü","Cross Farm Infant School","Gresham Way, Frimley Green,,,,,GU16 6LZ"]
[10025780,"ü","Crossrail","25 Canada Square,,,Greater London,England,E14 5LQ"]
[10567784,"ü","Crowle CofE First School","School Lane, Crowle,,,,,WR7 4AT"]
[10579486,"ü","Crown & Manor Boys Club","Wiltshire Row,,,Greater London,England,N1 5DH"]
[10563020,"ü","Crowthorne Old Age to Teen Society","Pinewood Avenue,,,Berkshire,England,RG45 6RQ"]
[10042762,"ü","Cruddas Park Early Years Centre","Brunel Terrace,,,Tyne and Wear,England,NE4 7NL"]
[10028107,"ü","Cuah Bassetlaw Treatment Centre","BASSETLAW DISTRICT GENERAL HOSPITAL,KILTON HILL,,Nottinghamshire,England,S81 0BD"]
[10027880,"ü","Cuah Ilkeston Treatment Centre","C/O ILKESTON COMMUNITY HOSPITAL,HEANOR ROAD,,Derbyshire,England,DE7 8LN"]
[10001139,"ü","Cullompton Community College","Exeter Road,,,Devon,England,EX15 1DX"]
[10037613,"ü","Cumberland School","Church Road,,Bamber Bridge,Lancashire,England,PR5 6EP"]
[10035544,"ü","Cumran Primary School","Clough,,,County Down,Northern Ireland,BT30 8RB"]
[10567285,"ü","Curbar Primary School","Calver Bridge, Calver,,,,,S32 3XA"]
[10051448,"ü","CVT Fundraising","Botton Village,Danby,,North Yorkshire,England,YO21 2NJ"]
[10004776,"ü","CYDAG Association of Welsh Medium Schools","Caereinion High School,Llanfair Caereinion,,Powys,Wales,SY21 0HW"]
[10039061,"ü","Dabd Redbridge","177 Valence Wood Road,,,Essex,England,RM8 3AJ"]
[10002617,"ü","Dacorum Borough Council","Civic Centre,Marlowes,Marlows,Hertfordshire,England,HP1 1HH"]
[10567809,"ü","Dallam Community Primary School","Boulting Avenue, Dallam,,,,,WA5 0JG"]
[10027425,"ü","Dame Alice Harpur School","Berry Hill,,Cardington,Bedfordshire,England,MK42 OBX"]
[10022729,"ü","Dane Court Grammar School","Broadstairs Road,,,Kent,England,CT10 2RT"]
[10032019,"ü","Danescourt Primary School","Danescourt Way,Llandaff,,South Glamorgan,Wales,CF5 2RB"]
[10028314,"ü","Darent Housing Co-Operative Limited",",,,,,"]
[10007821,"ü","Dartington Church of England Primary School","Shinners Bridge,Dartington,,Devon,England,TQ9 6JD"]
[10043083,"ü","Darwen Aldridge Enterprise Studio","19 Police Street,,,Lancashire,England,BB3 1AF"]
[10541809,"ü","Dasp Ltd","Queens Avenue,,,,England,DT1 2ET"]
[10014499,"ü","David Game College","David Game House,Notting Hill Gate,,Greater London,England,W11 3JS"]
[10021082,"ü","Dawlish Community College","Elm Grove Road,,,Devon,England,EX7 0BY"]
[10007838,{"$f":"CHAR(252)","v":"ü"},"Deaf Studies Trust","Technology house,16 Whiteladies Road,,Gloucestershire,England,BS8 2JG"]
[10032778,"ü","Dean Bank Primary School","Dean Bank,,,County Durham,England,DL178PP"]
[10567010,"ü","Dean Valley Community Primary School","Albert Road, Bollington,,,,,SK10 5HS"]
[10013819,"ü","Debut Services","H M S Heron,Royal Naval Air Station,Yeovilton,Somerset,England,BA22 8HT"]
[10021810,"ü","Defence College Management and Technology","Shrivenham,,,Wiltshire,England,SN6 8LA"]
[10042345,"ü","Defence Equipment and Support (Project Roc)","Abbey Wood,,,West Midlands,England,BS34 8JH"]
[10042208,"ü","Defence Relationship Management","51-61 Clifton Street,,,Greater London,England,EC24AY"]
[10025086,"ü","Delapre Medical Centre","Gloucester Avenue,,,Northamptonshire,England,NN4 8QF"]
[10035313,"ü","Delves Lane Junior School","Delves Lane,,,County Durham,England,DH8 7ES"]
[10016346,"ü","Denbigh High School","Alexandra Avenue,,,Bedfordshire,England,LU3 1HE"]
[10015419,"ü","Denman College","Marcham,,,Oxfordshire,England,OX13 6NW"]
[10051249,"ü","Department for Communities (Northern Ireland)","Causeway Exchange,1-7 Bedford Street,,,Northern Ireland,BT2 7EG"]
[10051368,"ü","Department of Health (Northern Ireland)","Castle Buildings,Stormont,,,Northern Ireland,BT4 3SQ"]
[10038300,"ü","Department of Trade and Industry","Redundancy Payments Service,Ladywell House,,Mid Lothian,Scotland,EH12 7UR"]
[10013840,"ü","Derby Racial Equality Council","31 Normanton Road,,,Derbyshire,England,DE1 2GJ"]
[10043898,"ü","Derbyshire Police Federation","Unit 104,Coney Green Business Centre,Wingfield View\nClay Cross,Derbyshire,England,S45 9JW"]
[10015696,"ü","Derwent Shared Services","Laurie House,22 Colyear Street,,Derbyshire,England,DE1 1LJ"]
[10027214,"ü","Development and Selection Centre - Army","adsc,,,Staffordshire,England,WS14 9PY"]
[10013102,"ü","Devizes Town council","Devizes Town Council, Town Hall,St. Johns Street,,Wiltshire,England,SN10 1BN"]
[10576672,"ü","Devonshire Park Primary School","Temple Road,,,,,CH42 9JX"]
[10035549,"ü","DFP Public Service Commission","10 CROMAC PLACE,,,County Antrim,Northern Ireland,BT7 2JB"]
[10041521,"ü","DialARide","7th Floor ,Templar House ,82 - 87 High Holborn,Greater London,England,WC1V 6NU "]
[10019165,"ü","Digital Bridge","27 Provost Street,,,Greater London,England,N1 7NH"]
[10567901,"ü","Dinnington First School","Sycamore Avenue, Dinnington Village,,,,,NE13 7JY"]
[10032038,"ü","Diocese Of Peterborough (CoE)","Diocesan Resource Office,,Bouverie Court,6 The Lakes,Northamptonshire,England,NN4 7YD"]
[10033679,"ü","Director Financial Management","Financial Management Shared Service Centre Invoicing And Revenue,Mersey House,Drury Lane,Merseyside,England,L2 7PX"]
[10024946,"ü","Direct Rail Services (DRS)","Kingsmoor Depot,Etterby Road,Etterby,Cumbria,England,ca3 9nz"]
[10023308,"ü","DISec","4th Floor, Zone J,Main Building,Whitehall,Greater London,England,SW1A 2HB"]
[10575080,"ü","Ditchling (St Margaret's) Church of England Primary School","Lewes Road,,,,,BN6 8TU"]
[10575603,"ü","Dixons Kings Academy","Northside Road,,,,,BD7 2AN"]
[10020459,"ü","Doctors Troughton","The Health Centre,High Street,,,England,DL10 7LD"]
[10007941,"ü","Donaldsons Crown Prosecution Service","Century House,11 St Peters Square,,Lancashire,England,M2 3DN"]
[10019208,"ü","Don Valley Academy","Scawthorpe,,,South Yorkshire,England,DN5 9DD"]
[10033136,"ü","Dornoch Medical Practice","Shore Road,,,Highlands,Scotland,IV25 3LS"]
[10021032,"ü","Dorothy Stringer High School","Loder Road,,,East Sussex,England,BN1 6PZ"]
[10025740,"ü","Douglas Academy","Mains Estate,,Milngavie,Strathclyde,Scotland,G62 7HL"]
[10575047,"ü","Dover, St Mary's Church of England Primary School","Laureston Place,,,,,CT16 1QX"]
[10034522,"ü","Dovercourt Swimming Pool","WICK LANE,,,Essex,England,CO12 3TA"]
[10573795,"ü","Downe House","Cold Ash,,,,,RG18 9JJ"]
[10036489,"ü","Downs Ce Primary School","OWEN SQUARE,,WALMER,Kent,England,CT14 7TL"]
[10007964,"ü","Dr A A Stephen and Partners","Linden Avenue Medical Centre,Linden Avenue,,Northamptonshire,England,NN15 7NX"]
[10574051,"ü","Draycott and Rodney Stoke Church of England First School","Draycott,,,,,BS27 3SD"]
[10026575,"ü","Drayton Park Combined School","Bala Way,,Bletchley,,Buckinghamshire,England,MK2 3HJ"]
[10013058,"ü","Dr Chau and Partners","The Surgery, 18,New Wokingham Road,,Berkshire,England,RG45 6JL"]
[10032046,"ü","Dr Eddington and Partners","Kings Road Surgery,204 Kings Road,,Middlesex,England,HA2 9SH"]
[10033790,"ü","Dr Hatton and Dr Hunt","Francklin Road,Lowdham,Nottingham,Nottinghamshire,England,NG14 7GB"]
[10573387,"ü","Driffield Junior School","Bridlington Road,,,,,YO25 5HN"]
[10041207,"ü","Dr J K Bansel","15 Westbourne Road                      ,Edgbaston,,West Midlands,England,B15 3TR"]
[10043109,"ü","Dr McFarland and Partners","Lisburn Health Centre,25 Linenhall Street,,County Antrim,Northern Ireland,BT28 1LU"]
[10576585,"ü","Dronfield Stonelow Junior School","Stonelow Road,,,,,S18 2EP"]
[10030619,"ü","Dr Pa Joseph","New Road Medical Centre,,,Essex,England,RM17 6NG"]
[10027917,"ü","Dr Ra Catteralls Practice","ST.BARNABAS HOSPICE,36 NETTLEHAM ROAD,,Lincolnshire,England,LN2 1RE"]
[10030623,"ü","Dr Silvers Surgery","234 Fore Street,,,Greater London,England,N18 2LY"]
[10029028,"ü","Dr T G Harland and Partners Surgery","84 King Street,,,Kent,England,ME141DZ"]
[10039093,"ü","Dr Tobin and Partners","The Surgery,Boundary Road  Grayshott,,Surrey,England,GU26 6TX"]
[10023262,"ü","Dr Wilson and Partners","Cottingham Medical Centre,17-19 South Street,,,England,HU16 4AJ"]
[10020672,"ü","Dudley Grid for Learning","Ahsleigh House,Ednam Road,,West Midlands,England,DY1 1HL"]
[10039101,"ü","Duke Street Surgery","4 Duke Street,,,Cumbria,England,LA14 1LF"]
[10008002,"ü","Dulwich Hamlet Junior School","Dulwich Village,Dulwich,,Greater London,England,SE21 7AL"]
[10028863,"ü","Dunblane High School","Old Doune Road,,,Stirlingshire,Scotland,FK15 9EW"]
[10014755,"ü","Dunham on Trent Church of England Primary School","Laneham Road,Dunham on Trent,Newark,Nottinghamshire,England,NG22 0UL"]
[10039103,"ü","Dunnies Social Club","28 Higher Road,Halewood,,Merseyside,England,L25 0QQ"]
[10023119,"ü","Durham Community Business College","Bracken Court,,,County Durham,England,DH7 7NG"]
[10566629,"ü","Durham Trinity School & Sports College","Dunholme Close, Aykley Heads,,,,,DH1 5WB"]
[10037735,"ü","Dyfed Archelogical Trust","The Shire Hall, Carmarthen Street,,,Carmarthenshire,Wales,SA19 6AF"]
[10541838,"ü","E:Merge (Uk) Company Limited","18 Pawson Street,,,West Yorkshire,England,BD4 8BY"]
[10019981,"ü","Eagle House School","224 London Road,,,Surrey,England,CR4 3HD"]
[10003817,"ü","Ealing Tertiary College","Acton Centre,Mill Hill Road,,Middlesex,England,W3 8UX"]
[10576471,"ü","Earlswood Infant and Nursery School","St John's Road,,,,,RH1 6DZ"]
[10041451,"ü","Earsham C.E. V.A. Primary School","School Road,Earsham,,Norfolk,England,NR35 2TF"]
[10027779,"ü","East Anglias Childrens Hospices","CHURCH LANE,MILTON,,Cambridgeshire,England,CB24 6AB"]
[10028745,"ü","Eastbourne Clinic","21 Grange Road,,,East Sussex,England,BN21 4HE"]
[10000660,"ü","East Cheshire NHS Trust","District General Hospital,Cooper Building,Victoria Road,Cheshire,England,SK10 3BL"]
[10541843,"ü","East Durham Community Transport","Unit 7B,3 Cook Way,North West Industrial Estate\nPeterlee,,England,SR8 2HY"]
[10029797,"ü","Eastern and Coastal Kent Community Health NHS Trust","110-120 Upper Pemberton,Kennington,,Kent,England,TN25 4AZ"]
[10042622,"ü","Eastfield Primary School","Eastfield Road,Thurmaston,,Leicestershire,England,LE4 8FP"]
[10037642,"ü","East Kilbride and District Housing Association","2 Old Coach Road,,,Strathclyde,Scotland,G75 4DP"]
[10022671,"ü","Eastlea Community School","Exning road,,Canning Town,Greater London,England,E16 4ND"]
[10008052,"ü","East Manchester Education Action Zone","Manchester City Council,187 Grey Mare Lane,Beswick,Greater Manchester,England,M11 3ND"]
[10568044,"ü","Eastoft Church of England Primary School","Yorkshireside, Eastoft,,,,,DN17 4PG"]
[10033096,"ü","East Point Academy","Kirkley Run,,,Suffolk,England,NR33 0UQ"]
[10541845,"ü","East Sussex W.R.A.S","8 Shaw Barn,Whitesmith,,East Sussex,England,BN8 6JD"]
[10578276,"ü","East West Railway Company","Great Minster House,,33 Horseferry Road,,,England,SW1P 4DR"]
[10043385,"ü","Eastwood Village Primary School","Eldon Road,,,South Yorkshire,England,S65 1RD"]
[10028111,"ü","Ebor Clinical Services Limited","109-119 FRONT STREET,,,North Yorkshire,England,YO1 7NP"]
[10024087,"ü","Eckington Camms Primary School","Camms Close,Eckington,,South Yorkshire,England,S21 4AU"]
[10024064,"ü","e College ac Limited","Blue Anchor Cottage,Blue Anchor Road,Penclawdd,West Glamorgan,Wales,SA4 3JQ"]
[10572407,"ü","Eden Girls' Leadership Academy , Manchester","11 Balmfield Street,,,,,M8 0SP"]
[10568352,"ü","Edgeborough School","Edgeborough, Frensham,,,,,GU10 3AH"]
[10043633,"ü","Edison Primary School","Heston House,Vicarage Farm Road,,Greater London,England,TW5 0AH"]
[10032073,"ü","Edith Weston Primary School","Weston Road,Edith Weston,,Leicestershire,England,LE15 8HQ"]
[10577391,"ü","Educational Diversity",",,,,,FY3 9JW"]
[10042746,"ü","Education Workforce Council","Eastgate House,35-43 Heol Casnewydd,,Mid Glamorgan,Wales,CF24 0AB"]
[10028895,{"$f":"CHAR(252)","v":"ü"},"Edwina Hart AM","9 Pontardulais Road,Gorseinon,,West Glamorgan,Wales,SA4 4FE"]
[10013588,"ü","Effra Early Years Centre","37 Effra Parade,Lambeth,,Greater London,England,SW2 1PL"]
[10033917,"ü","Elbank Centre","LOVERS WALK,,,Dumfries & Galloway,Scotland,DG1 1LR"]
[10012359,"ü","Electoral Commission","Trevelyan House,Great Peter Street,,Greater London,England,SW1P 2HW"]
[10013218,"ü","Elizabethan High School","Elizabethan High School,Queen Street,,Nottinghamshire,England,DN22 7BH"]
[10008118,"ü","Elizabeth House Association","94 Redcliffe Gardens,,,Greater London,England,SW10 9HH"]
[10024805,"ü","Ellesmere College","Ellesmere Road,,,Leicestershire,England,LE3 1BE"]
[10568110,"ü","Elloughton Primary School","Stockbridge Road, Elloughton,,,,,HU15 1HN"]
[10568077,"ü","Elmhurst School for Dance","249 Bristol Road, Edgbaston,,,,,B5 7UH"]
[10036484,"ü","Elm Park Primary School","SOUTH END ROAD,,,Essex,England,RM12 5UA"]
[10039907,"ü","Elrick Primary School","Rowan Drive,,,Aberdeenshire,Scotland,AB32 6QB"]
[10014608,"ü","Elton High School","Walshaw Road,,,Lancashire,England,BL8 1RN"]
[10574180,"ü","Emersons Green Primary School","Emersons Green,,,,,BS16 7GA"]
[10014217,"ü","Emmanuel Parish Church","Emmanuel Parish Church Leyton, Emmanuel Vicarage,149 Hitcham Road,Leyton,Greater London,England,E17 8HL"]
[10028896,"ü","Emmaus Church of England and Catholic Primary School","Fir Tree Drive South,Croxteth,,Merseyside,England,L12 0JE"]
[10008142,"ü","Empty Homes Agency","195-7 Victoria Street,,,Greater London,England,SW1E 5NE"]
[10574186,"ü","Endike Academy","Endike Lane,,,,,HU6 7UR"]
[10008150,"ü","Energy Saving Trust","21 Dartmouth Street,,,Greater London,England,SW1H 9BP"]
[10040921,"ü","England Rugby Football Schools Union","C/O Treasurer ,18 Multon Road,,Greater London,England,SW18 3LH"]
[10020627,"ü","English National Ballet","Markova House,39 Jay Mews,,Greater London,England,SW7 2ES"]
[10541859,"ü","Enterprize Group Holdings",",,,,England,SW1V 2WF"]
[10573852,{"$f":"CHAR(252)","v":"ü"},"Epping Primary School","Coronation Hill,,,,,CM16 5DU"]
[10005385,"ü","Epsom and St Helier University Hospitals NHS Trust","Dorking Road,,,Surrey,England,SM5 1AA"]
[10008177,"ü","Ermine Community Infant School","Thuresway Drive,,,Lincolnshire,England,LN2 2OH"]
[10021713,"ü","Escape Studios","Shepherds Way,Rockley Road,,Greater London,England,W14 ODA"]
[10019692,"ü","Esh Winning Primary School","The Wynds,Esh Winning,,County Durham,England,DH7 9BE"]
[10001655,"ü","Essex County Fire and Rescue Service","County Fire & Rescue Service HQ,Rayleigh Close Rayleigh Road Hutton,Hutton,Essex,England,CM13 1AL"]
[10043252,"ü","ETGAR","Jhub,Haskell House, ,152 West End Lane,Greater London,England,NW6 1SD"]
[10008195,"ü","Eurest Sutcliffe","Ranmoor Hall,Belgrave Road,,South Yorkshire,England,S10 3LL"]
[10565209,"ü","Evendons Primary School Trust","161 Finchampstead Road,,,Berkshire,England,RG40 3HD"]
[10568172,"ü","Evercreech Church of England Primary School","Paradise Crescent, Evercreech,,,,,BA4 6EH"]
[10017050,"ü","Ewart Road Housing Co operative Limited","44 Wastdale Road,,,Greater London,England,SE23 1HN"]
[10038128,"ü","Exeter College Accountancy Training","Finance Department,Hele Road,,Devon,England,EX4 4JS"]
[10025678,"ü","Exeter Northcott Theatre","Stocker Road,,,Devon,England,EX4 4QB"]
[10008211,"ü","Export Assist","Welsh Assembly Government,Cathays Park,,South Glamorgan,Wales,CF10 3NQ"]
[10034556,"ü","Face Advice Centre","118 FERHAM RD,,,South Yorkshire,England,S61 1DY"]
[10038040,"ü","Fairfield Medical Centre","Lower Road,,,Surrey,England,KT23 4DH"]
[10571084,"ü","Fairhaven Church of England Voluntary Aided Primary School","School Road, South Walsham,,,,,NR13 6DZ"]
[10019024,"ü","Fairlands Middle School","Masons Way,,,Somerset,England,BS27 3PG"]
[10039128,"ü","Faith Temple Ministries","54 Butler Way,Kempston,,Bedfordshire,England,MK42 8UF"]
[10583741,"ü","Falkirk Community Trust","Suite 1A,The Falkirk Stadium,4 Stadium Way,Stirlingshire,Scotland,FK2 9EE"]
[10572534,"ü","Falkner House","19 Brechin Place,,,,,SW7 4QB"]
[10028332,"ü","Family HA Birkenhead and Wirral Limited","Marcus House,Marcus Street,,Merseyside,England,ch41 3ny"]
[10566226,"ü","Far Forest Lea Memorial CofE Primary School","New Road, Far Forest, Rock,,,,,DY14 9TQ"]
[10041809,"ü","Farndon St Peters Primary School","Sandhill Road,Farndon,,Nottinghamshire,England,NG24 4TE"]
[10034309,"ü","Farringtons School","Perry Street,,,Kent,England,BR7 6LR"]
[10041074,"ü","Faversham Municipal Charities","Faversham Municipal Charities,5 Almshouses,South Road,Kent,England,ME13 7LU"]
[10568244,"ü","Featherstone Academy","The Avenue, Featherstone,,,,,WV10 7AS"]
[10036325,"ü","Felixstowe Town Council","Town Hall,,,Suffolk,England,IP11 2AG"]
[10001665,"ü","Felmore Primary School","Davenants,Pitsea,,Essex,England,SS13 1QX"]
[10000528,"ü","Fenstanton and Hilton Primary School","School Lane,Fenstanton,,Cambridgeshire,England,PE28 9JR"]
[10029029,"ü","Fernwood Village Hall","Rubys Avenue,Fernwood,,Nottinghamshire,England,NG24 3RS"]
[10022163,"ü","Fieldhead Junior Infant and Nursery School","Charlotte Close,Birstall,,West Yorkshire,England,WF17 9BX"]
[10576990,"ü","Field Junior School","Watford Field Road,,,,,WD18 0AZ"]
[10004525,"ü","Filey Town Council","Council Offices,Queen Street,,North Yorkshire,England,YO14 9HE"]
[10574263,"ü","Finchley and Acton Yochien School","Finchley,,,,,N3 1UE"]
[10008269,"ü","Fire and Civil Defence Authority","London Fire Brigade HQ ,2nd Floor,169 Union Street,,England,SE1 0LL"]
[10000945,"ü","Fire Services National Benevolent Fund","Eamont Pk,Eamont Bridge,Eamont Bridge,Cumbria,England,TQ13 0DG"]
[10572939,"ü","First Base","Airfield Road,,,,,IP32 7PJ"]
[10033013,"ü","First-Tier Tribunal (Estate Agents)","45 Bedford Square,,,Greater London,England,WC1B 3DN"]
[10021825,"ü","Fisheries Conservancy Board for Northern Ireland","1 Mahon Road,Portadown,,County Antrim,Northern Ireland,BT62 3EE"]
[10033932,"ü","Fitness Northern Ireland","THE ROBINSON CENTRE,MONTGOMERY ROAD,,County Antrim,Northern Ireland,BT6 9HS"]
[10033528,"ü","Five Islands School","Carn Thomas,St. Mary's,,Isles Of Scilly,England,TR21 0JY"]
[10037984,"ü","Flanshaw J and I","Flanshaw Road  ,Flanshaw,,West Yorkshire,England,WF2 0AS"]
[10568145,"ü","Flexible Learning Centre","204 Slade Road, Erdington,,,,,B23 7RJ"]
[10021993,"ü","Flixton Girls High School","Flixton Road,,,Greater Manchester,England,M41 5DR"]
[10028070,"ü","Fmc Tipton Dialysis Centre","BATEMAN HOUSE,46-50 HORSELEY HEATH,,West Midlands,England,DY4 7AA"]
[10579024,"ü","Folkestone & Hythe District Council",",,,,,"]
[10028921,"ü","Football Foundation The","Whittington House,19 - 30 Alfred Place,,Greater London,England,WC1E 7EA"]
[10014800,"ü","Forestdale Primary School","Wareham Road,Frankley,,West Midlands,England,B45 0JS"]
[10035596,"ü","Forest Gate Church","Youth And Community Building,New Road,,Gloucestershire,England,GL17 0BX"]
[10043182,"ü","Forest Peoples Programme","1C Fosseway Business Centre,,,Gloucestershire,England,GL56 9NQ"]
[10576345,"ü","Forge Wood Primary School","Somerley Drive,,,,,RH10 3SW"]
[10565454,"ü","Fort Augustus and Glenmoriston Community Company","Po Box 2 Auchterawe,Fort Augustus, Highland PH32 4WA,Scotland,,,"]
[10024102,"ü","Forty Limited","BCL School,Woodberry Down Centre,,Greater London,England,N4 2SH"]
[10582686,"ü","Foulsham & Bintree Baby Toddler & Playgroup",",,,,,"]
[10569601,"ü","Fountains Earth, Lofthouse Church of England Endowed Primary School","Fountains Earth, Lofthouse,,,,,HG3 5RZ"]
[10569630,"ü","Foxford School and Community Arts College","Grange Road, Longford,,,,,CV6 6BB"]
[10044194,"ü","Foxton Primary School","11 Hardman Road,Foxton,,Cambridgeshire,England,CB22 6RN"]
[10033185,"ü","Framlingham Sire Robert Hitchams","CEVAP SCHOOL,College Road,,Suffolk,England,IP13 9EP"]
[10041154,"ü","Fraserburgh South Park School","Philorth Avenue,,,Aberdeenshire,Scotland,AB43 9QB"]
[10013900,"ü","Freehold Community School","Sidmouth Street,,,Lancashire,England,OL9 7RG"]
[10016436,"ü","Free Range Housing Co operative Limited","c/o Mosscare Housing Limited,101 Great Western Street,Moss Side,Greater Manchester,England,M14 4AA"]
[10020725,"ü","Frettenham First School","School Road,Frettenham,,Norfolk,England,NR12 7LL"]
[10032119,"ü","Friends Institute","220 Moseley Road,,,West Midlands,England,B12 0DG"]
[10037104,"ü","Frithwood Primary School","Carew Road,,,Hertfordshire,England,HA6 3NJ"]
[10575028,"ü","Frodsham Manor House Primary School","Langdale Way,,,,,WA6 7LE"]
[10034565,"ü","Fryent Primary School","KINGSBURY,,,Greater London,England,NW9 8JD"]
[10012304,"ü","Fulwell Infant School","Ebdon Lane,Fulwell,,Tyne and Wear,England,SR6 8ED"]
[10001670,"ü","Furtherwick Park School","Furtherwick Rd,,,Essex,England,SS8 7AZ"]
[10014355,"ü","Fusion21","The Barn,Shevingtons Lane,Tower Hill,Merseyside,England,L33 1XA"]
[10005976,"ü","G6 CIS Army HQ","Army Headquarters, Ramillies Bldg, Marlborough Lines, Monxton Road,,,Hampshire,England,SP11 8HJ"]
[10043772,"ü","Galleywall Primary City of London Academy",",,,,,"]
[10572611,"ü","Garden City Montessori School","269 Icknield Way,,,,,SG6 4UE"]
[10024891,"ü","Garendon High School","Thorpe Hill,,,Leicestershire,England,LE11 4SQ"]
[10014346,"ü","Garth Surgery The","The Garth Surgery,Rectory Lane,,Cleveland,England,TS14 7DJ"]
[10571747,"ü","Gatehouse School","Sewardstone Road, Victoria Park,,,,,E2 9JG"]
[10572377,"ü","Gateway School","1 High Street,,,,,HP16 9AA"]
[10575632,"ü","Gatten and Lake Primary School","Oaklyn Gardens,,,,,PO37 7DG"]
[10561774,"ü","Gearies Primary School","Waremead Road,,,,England,IG2 6TF"]
[10030717,"ü","General Consumer Council","Elizabeth House,116 Holywood Road,,County Antrim,Northern Ireland,BT4 1NY"]
[10024131,"ü","George Dixon International School","City Road,,,West Midlands,England,B17 8LF"]
[10564697,"ü","George Spicer Primary School","Southbury Road,,,,England,EN1 1YF"]
[10022813,"ü","George Watsons College","67-71 Colinton Road,,,Mid Lothian,Scotland,EH10 5EG"]
[10032271,"ü","Gibralter Barracks","New SNCO Mess,Gibralter Barracks,,,England,GU17 9LP"]
[10568432,"ü","Gildersome Primary School","Town Street, Gildersome,,,,,LS27 7AB"]
[10568436,"ü","Gillamoor Church of England Voluntary Controlled Primary School","Main Street, Gillamoor,,,,,YO62 7HX"]
[10018015,"ü","Girlguiding UK","17-19 Buckingham Palace Road,,,Greater London,England,SW1W 0PT"]
[10023796,"ü","Gladstone Primary","Sherrick Green,,,Greater London,England,NW10 1LB"]
[10005200,"ü","Glasgow City Council","108 Ingram Street,,,Strathclyde,Scotland,G1 1ET"]
[10039158,"ü","Glasgow Simon Community","472 Ballater Street,,,Strathclyde,Scotland,G5 0QW"]
[10040268,"ü","Glastonbury Abbey House","Chilkwell Street,,,Somerset,England,BA6 8DH"]
[10016246,"ü","Glenburn Nursery","Colonsay Road,,,Renfrewshire,Scotland,PA3 1AW"]
[10566926,"ü","Glenfield Infant School","Rossington Way, Bitterne,,,,,SO18 4RN"]
[10042866,"ü","Glen Lee","Wavell Road,,,Hampshire,England,SO18 4SB"]
[10040269,"ü","Global Generation Church","Unit 2, Westwood Business Park,,,Kent,England,CT9 4JJ"]
[10016793,"ü","Gloucester Greyfriars Housing Association Limited","2 St Michael's Court,Brunswick Road,,Gloucestershire,England,GL1 1JB"]
[10017089,"ü","Glympton Almshouse Trust","Ludwell Farm,Glympton,,Oxfordshire,England,OX20 1AZ"]
[10568458,"ü","Gobowen Primary School","School Lane, Gobowen,,,,,SY11 3LD"]
[10575764,"ü","Godmanchester Bridge Academy","Park Lane,,,,,PE29 2NL"]
[10014331,"ü","Golden Jubilee National Hospital","Golden Jubilee National Hospital,Beardmore Street,,Dunbartonshire,Scotland,G81 4HX"]
[10013119,"ü","Gomeldon County Primary School","Gomeldon School,,Gomeldon,Wiltshire,England,SP4 6JZ"]
[10036440,"ü","Good Hope Hospitals NHS Trust","Estates Department,Rectory Road,,West Midlands,England,B75 7RR"]
[10024893,"ü","Goole Academy","Centenary Road,,,East Yorkshire,England,DN14 6AN"]
[10024641,"ü","Gorse Hill Primary School","Burleigh Road,,,Lancashire,England,M32 OPF"]
[10026326,"ü","Gospel Oak School","Mansfield Road,,,Greater London,England,NW3 2JB"]
[10561782,"ü","Government Banking Service","Southern House 7th Floor Wellesley Grove,,,,,CR9 1WW"]
[10018593,"ü","Government Connect","Thirlmere Suite,Paragon Business Park,Chorley New Road,Greater Manchester,England,BL6 6HG"]
[10039165,"ü","Gp Services Staffs 2","Basford House,511 Etruria Road,,Staffordshire,England,ST4 6HT"]
[10008421,"ü","Grampian NHS Board","Summerfield House,2 Eday Road,,Moray,Scotland,AB15 6RE"]
[10008422,"ü","Grampian Valuation Joint Board","Woodhill House,Westburn Road,,Aberdeenshire,Scotland,AB16 5GE"]
[10029774,"ü","Grand Union Housing group","Katherines House,Dunstable Street,Ampthill,Bedfordshire,England,MK45 2JP"]
[10566333,"ü","Grange Park Preparatory School","13 The Chine, Grange Park, Winchmore Hill,,,,,N21 2EA"]
[10568808,"ü","Grange Valley Primary School","Heyes Avenue, Haydock,,,,,WA11 0XQ"]
[10008425,"ü","Grasmere Nursery School","Icknield Way,,,Bedfordshire,England,LU3 2BT"]
[10025533,"ü","Grateley House School","Grateley,,,Hampshire,England,SP11 8TA"]
[10041497,"ü","Greasley Parish Council","Dovecote Road,Newthorpe,,Nottinghamshire,England,NG16 3QN"]
[10018748,"ü","Great Budworth Church of England Primary School","School Lane,Great Budworth,,Cheshire,England,CW9 6HQ"]
[10021144,"ü","Greater Easterhouse Womens Aid","0/1, 5,Kildermorie Path,,Strathclyde,Scotland,G34 9EJ"]
[10008438,"ü","Greater Manchester Police Authority","Salford Civic Centre,Chorley Road,Swinton,Lancashire,England,M27 5DA"]
[10025851,"ü","Great Linford Primary School","St. Leger Drive,Great Linford,,Buckinghamshire,England,MK14 5BL"]
[10013718,"ü","Great Sutton Medical Centre","Old Chester Road,Great Sutton,,Cheshire,England,CH66 3SP"]
[10568593,"ü","Greatworth Primary School","Helmdon Road, Greatworth,,,,,OX17 2DR"]
[10033946,"ü","Great Yarmouth Swimming Club","BOARDED BARN FARM,ORMESBY,,Norfolk,England,NR29 3QH"]
[10017098,"ü","Green Dragon Lane Housing Co operative Limited","The Market Building,195 High Street,,Middlesex,England,TW8  8LB"]
[10014493,"ü","Greenfields St Marys Church of England School","Manchester Road,,Greenfield,Lancashire,England,OL3 7DW"]
[10568598,"ü","Greengates Primary School","31 Stockhill Road, Greengates,,,,,BD10 9AX"]
[10018172,"ü","Greenhouse Kids Club","Caroline Place,,,Cambridgeshire,England,CB1 1BL"]
[10017304,"ü","Greenoak Housing Association Limited","155 Goldsworth Road,,,Surrey,England,GU21 6LS"]
[10035237,"ü","Greenvale School","Waters Road,,,Greater London,England,SE6 1UF"]
[10041978,"ü","Greenwood Academy","Dreghorn,,,Strathclyde,Scotland,KA114HL"]
[10029863,"ü","Greetland Academy The","School Street,,Greetland,West Yorkshire,England,HX4 8JB"]
[10032537,"ü","Greyfriars Medical Centre","33 - 37 Castle Street,,,Dumfries & Galloway,Scotland,DG1 1DL"]
[10028357,"ü","Grimsby and Cleethorpes YMCA",",,,,,"]
[10041716,"ü","Grosvenor Community Associates Limited","Grosvenor Street,,,Merseyside,England,CH44 1AQ"]
[10542042,"ü","Groundwork Manchester Salford and Trafford Limited","Trafford Ecology Park,Lake Road,,,England,M17 1TU"]
[10576680,"ü","Grovelands Primary School","Terrace Road,,,,,KT12 2EB"]
[10041660,"ü","Grove Surgery The","83 The Grove,,,Dorset,England,BH23 2EZ"]
[10021319,"ü","Guilden Sutton Primary School","Guilden Sutton Primary School,Arrowcroft Road,Guilden Sutton,Cheshire,England,CH3 7ES"]
[10566791,"ü","Guildford Nursery School and Children's Centre","Hazel Avenue, Bellfield,,,,,GU1 1NR"]
[10016749,"ü","Gundreda Housing Association Limited","2nd Floor - Eastbourne House,22-24 Guildridge Road,,East Sussex,England,BN21 4SA"]
[10000863,"ü","Gweal an Top Infant and Nursery School","School Lane,East End,,Cornwall,England,TR15 2ER"]
[10028176,"ü","Gwent Deputy","MAMHILAD HOUSE,MAMHILAD PARK ESTATE,PONTYPOOL,,Wales,NP4 0YP"]
[10036408,"ü","Haberdashers Askes Crayford Academy","Iron Mill Lane,,,Kent,England,DA1 4RS"]
[10572786,"ü","Haddon Dene School","57 Gladstone Road,,,,,CT10 2HY"]
[10025850,"ü","Hady Primary School","Hady Lane,,,Derbyshire,England,S41 0DF"]
[10028155,"ü","Hairmyres and Stonehouse Hospitals NHS Trust","Hairmyres Hospital,,East Kilbride,Strathclyde,Scotland,G75 8RG"]
[10568664,"ü","Hale Preparatory School","Broomfield Lane, Hale,,,,,WA15 9AS"]
[10025873,"ü","Hallbrook Primary School","1 Hallbrook Road,,,Leicestershire,England,LE9 6WX"]
[10570596,"ü","Hall School Wimbledon","Stroud Crescent, Putney Vale,,,,,SW15 3EQ"]
[10039180,"ü","Halton Lodge Primary School","Grangeway,,,Cheshire,England,WA7 5LU"]
[10004527,"ü","Hambleton District Council","Civic Centre,Stone Cross,,North Yorkshire,England,DL6 2UU"]
[10027298,"ü","Hamilton School The","55-57 Queens Road,,,Aberdeenshire,Scotland,AB15 4YP"]
[10002399,"ü","Hampshire Constabulary","West Hill,Romsey Road,,Hampshire,England,SO22 5DB"]
[10032178,"ü","Hampton In Arden Parish Council","Fentham Hall Complex,Marsh Lane,Hampton In Arden,West Midlands,England,B92 0AH"]
[10032689,"ü","Hampton Way Nursery School","Hampden Way,Southgate,,Greater London,England,N14 5DJ"]
[10006500,"ü","Handcross Primary School","London Road,Handcross,,West Sussex,England,RH17 6HB"]
[10569212,"ü","Hanover Primary School","Noel Road, Islington,,,,,N1 8BD"]
[10579480,"ü","Harbour School of Tipner","23 Tipner Lane,,,Hampshire,England,PO2 8RA"]
[10006191,"ü","Harden Housing Association Limited","Barnsley Hall,Barnsley Hall Road,,West Midlands,England,B91 0TX"]
[10568740,"ü","Harestock Primary School","Bramshaw Close, Harestock,,,,,SO22 6LU"]
[10017940,"ü","Harlequin Surgery","42-52 Nottingham Place,,,Greater London,England,W1U 5NY"]
[10034592,"ü","Harmoni Limited","Hanley Health & Well Being Centre,69-71 Stafford Street,Hanley,Staffordshire,England,ST1 1LF"]
[10568747,"ü","Harold Wood Primary School","Recreation Avenue, Harold Wood,,,,,RM3 0TH"]
[10022505,"ü","Harris Academy Bermondsey","55 Southwark,Park Road,,Greater London,England,SE16 3TZ"]
[10572743,"ü","Harris Primary Academy Purley Way","47 Propeller Crescent,,,,,CR0 4FE"]
[10003929,"ü","Harrow Churches Housing Association","Penn House,16 Peterborough Road,,Middlesex,England,HA1 2BQ"]
[10014405,"ü","Harrow High School","Gayton Road,,,Middlesex,England,HA1 2JG"]
[10018023,"ü","Harton County Infant and Nursery School","East Avenue,,,Tyne and Wear,England,NE34 6NX"]
[10568775,"ü","Hartshorne CofE Primary School","Main Street, Hartshorne,,,,,DE11 7ES"]
[10568787,"ü","Hasland Infant School","Eyre Street East, Hasland,,,,,S41 0PE"]
[10001933,"ü","Hastings College of Arts and Technology","Archery Road,,,East Sussex,England,TN38 0HX"]
[10019851,"ü","Hatch Beauchamp Church of England Primary School","Station Road,Hatch Beauchamp,,Somerset,England,TA3 6SQ"]
[10017124,"ü","Hatton Housing Trust Limited","180 High Street,,,Kent,England,TN9 1BD"]
[10030070,"ü","Haven CeMethodist Primary","School,,,East Sussex,England,BN23 5SW"]
[10570882,"ü","Havergal CofE (C) Primary School","School Lane, Shareshill,,,,,WV10 7LE"]
[10565763,"ü","Hawkesdown House School","27 Edge Street,,,,England,W8 7PN"]
[10569314,"ü","Hawthorn Primary School","Hawthorn Road, Kingstanding,,,,,B44 8QR"]
[10043535,"ü","Hayes School","Hayes Road,,,Devon,England,TQ4 5PJ"]
[10015765,"ü","Hayward School The","Maltese Road,,,Essex,England,CM1 2PA"]
[10014044,"ü","Hazelbury Junior School","Haselbury Road,,Edmonton,Greater London,England,N9 9TT"]
[10035462,"ü","HCC Social Services Technician Services","Technician Services,Unit 26 Mitchell Close,Segensworth East,Hampshire,England,PO15 5SE"]
[10006643,"ü","Headrow Housing Group Limited","Ingots Buildings,Cemetery Road,Yeadon,West Yorkshire,England,LS19 7SP"]
[10541920,"ü","Headway The Brain Injury Association",",,,,England,NG6 8SF"]
[10043556,"ü","Health and Safety Executive (Leeds)","The Lateral,,,West Yorkshire,England,LS11 9AT"]
[10042513,"ü","Health Education East Midlands","I Mere Way,,,Nottinghamshire,England,NG11 6JS"]
[10038683,"ü","Healthwatch Nottinghamshire","Unit 2-3,Byron Business Centre,Duke Street, Hucknall,Nottinghamshire,England,NG15 7HP"]
[10006194,"ü","Heart of England Care","Bridge House Annex,Paper Mill End,509 Aldridge Road,West Midlands,England,B23 5XN"]
[10043236,"ü","Heart of Worcestershire College","Slideslow Drive,,,Worcestershire,England,B60 1PQ"]
[10572832,"ü","Heathfield Academy","7 Aberdeen Road,,,,,CR0 1EQ"]
[10036326,"ü","Heathland School","Eastcote Lane,,,Greater London,England,HA2 9AG"]
[10562858,"ü","Heathland Whitefriars Federation","Eastcote Lane,,,,,England,HA2 9AG"]
[10023700,"ü","Heaton Mersey Medical Practice","460, Didsbury rd,Heaton,Mersey,Greater Manchester,England,sk4 3bt"]
[10032205,"ü","Hedon Group Practice","Market Hill House,Hedon,,East Yorkshire,England,HU12 8JD"]
[10008585,"ü","Help Age International","1st Floor,York House,207-221 Pentonville Road,Greater London,England,N1 9UZ"]
[10568870,"ü","Hemington Primary School","Main Street, Hemington,,,,,DE74 2RB"]
[10023688,"ü","Hemsby Primary School","School Lane,Hemsby,,Norfolk,England,NR29 4LH"]
[10568893,"ü","Henleaze Junior School","Park Grove,,Henleaze,,,,,BS9 4LG"]
[10015074,"ü","Henry Compton School","Kingwood Road,Fulham,,Greater London,England,SW6 6SN"]
[10023929,"ü","Henry Moore Foundation","Henry Moore Institute,74 The Headrow,,West Yorkshire,England,LS1 3AH"]
[10033194,"ü","Herdley Bank First School","Coanwood,,,Northumberland,England,NE49 0QT"]
[10004088,"ü","Heriot Watt University","Riccarton,Currie,,Mid Lothian,Scotland,EH14 4AS"]
[10014876,"ü","Her Majestys Court Service Wales Region","Area Director's Office,Ebberston Road West,,Clwyd,Wales,LL28 4AP"]
[10017140,"ü","Herring House Trust","Bauleah House,51 Saint Nicholas Road,,Norfolk,England,NR30 1NR"]
[10004665,"ü","Hertford College","Catte Street,,,Oxfordshire,England,OX1 3BW"]
[10043979,"ü","Hertingfordbury Cowper Primary School","Birch Green,,,,,SG14 2LR"]
[10003964,"ü","Heswall County Primary","Whitfield Lane,,,Merseyside,England,CH60 7SD"]
[10033531,"ü","Hetton Lyons Nursery School","Four Lane Ends,,,Tyne and Wear,England,DH5 0AH"]
[10541284,"ü","Heybridge Parish Council","Colchester Road,Heybridge,,Essex,England,CM9 4AL"]
[10568947,"ü","Higham Ferrers Nursery and Infant School","Wharf Road, Higham Ferrers,,,,,NN10 8BQ"]
[10034609,"ü","High Burton Church of England C First School","High Burton C of E (C) First School,Northfield Lane,Kirkburton,West Yorkshire,England,HD8 OQT"]
[10021641,"ü","High Ercall School","Church Road,,,Shropshire,England,TF6 6AF"]
[10568955,"ü","Higher Openshaw Community School","Saunton Road, Higher Openshaw,,,,,M11 1AJ"]
[10026063,"ü","Highfield Primary School","Highfield Road,Winchmore Hill,,Greater London,England,N21 3HE"]
[10008626,"ü","Highgate Wood School","Monternotte Road,,,Greater London,England,N8 8RN"]
[10568934,"ü","High Hurstwood Church of England Primary School","Chillies Lane, High Hurstwood,,,,,TN22 4AD"]
[10018733,"ü","Highland Wellbeing Alliance","Pavilion,4 Fairways Business Park,,Inverness-shire,Scotland,IV2 6AA"]
[10012122,"ü","High Street Primary","High Street,Stonehouse,,Devon,England,PL1 3SJ"]
[10021194,"ü","Highworth Warneford School","Shrivenham Road,Highworth,,Wiltshire,England,SN6 7BZ"]
[10574060,"ü","Hilden Grange School","Dry Hill Park Road,,,,,TN10 3BX"]
[10576332,"ü","Hillcrest Slinfold School","Slinfold,,,,,RH13 0QX"]
[10564979,"ü","Hillingdon Manor School","Harlington Road,,,,England,UB8 3HD"]
[10044052,"ü","Hillside Primary School","Field Avenue,,,Staffordshire,England,ST2 7AS"]
[10000536,"ü","Hills Road Sixth Form College","Hills Road,,,Cambridgeshire,England,CB2 2PE"]
[10568987,"ü","Hilmarton Primary School","Compton Road, Hilmarton,,,,,SN11 8SG"]
[10566610,"ü","Hindsford CofE Primary School","Lodge Road, Atherton,,,,,M46 9BL"]
[10003754,"ü","Historic Environment Scotland","Longmore House, Salisbury Place,,,Mid Lothian,Scotland,EH9 1SH"]
[10032938,"ü","HM Courts Service Wales Region","Churchill House,Churchill Way,,South Glamorgan,Wales,CF10 2HH"]
[10581123,"ü","HMP & YOI Kirklevington Grange","Yarm,,,North Yorkshire,England,TS15 9PA"]
[10002145,"ü","HM Prison and Young Offenders Institution Eastwood Park","Eastwood Park,Falfield,,Gloucestershire,England,GL12 8DB"]
[10001353,"ü","HM Prison Dorchester","7 North Square,,,Dorset,England,DT1 1JD"]
[10005989,"ü","HM Prison Erlestoke","Main Office,,,Wiltshire,England,SN10 5TU"]
[10005421,"ü","HM Prison Latchmere House","Church Road,Ham Common,,Surrey,England,TW10 5HH"]
[10024315,"ü","HM Prison Service Procurement Service Unit Chorley","Conway House,Ackhurst Business Park,,Lancashire,England,PR7 1NY"]
[10002024,"ü","HM Prison Wolds","Everthorpe,,,East Yorkshire,England,HU15 2JZ"]
[10583506,"ü","HM YOI Portland","104 The Grove,Easton,Portland,,,DT5 1DL"]
[10000681,"ü","HM Young Offenders Institution Thorn Cross","Arley Road,Appleton Thorn,,Cheshire,England,WA4 4RL"]
[10573671,"ü","Hockley Primary School","Chevening Gardens,,,,,SS5 4UR"]
[10569020,"ü","Holbrook Primary School","The Street, Holbrook,,,,,IP9 2PZ"]
[10569025,"ü","Hollesley Primary School","School Lane, Hollesley,,,,,IP12 3RE"]
[10008702,"ü","Hollingworth Business and Enterprise College","Cornfield Street,Milnrow,,Greater Manchester,England,OL16 3DR"]
[10576596,"ü","Holly Lodge Primary School","Stratford Road,,,,,GU12 5PX"]
[10002786,"ü","Holme Lacy College","Holme Lacey,,,Herefordshire,England,HR2 6LL"]
[10576184,"ü","Holsworthy Church of England Primary School","Sanders Lane,,,,,EX22 6HD"]
[10576284,"ü","Holtsmere End Junior School","Shenley Road,,,,,HP2 7JZ"]
[10575968,"ü","Holy Cross Catholic Primary School","Queens Drive,,,,,SN3 1AR"]
[10575296,"ü","Holy Family Catholic Primary School","Marlowe Avenue,,,,,SN3 2PT"]
[10021267,"ü","Holy Family Roman Catholic Primary School","Mansel Road West,,,Hampshire,England,S016 9LP"]
[10008719,"ü","Holyhead High School","Alderley Terrace,,Holyhead,Gwynedd,Wales,LL65 1NP"]
[10570235,"ü","Holy Saviour Roman Catholic Primary School, Nelson","Holland Place, Off Reedyford Road,,,,,BB9 8HD"]
[10570849,"ü","Holy Trinity Church of England (Aided) Primary School","Crawford Street, Seaton Carew,,,,,TS25 1BZ"]
[10565543,"ü","Holy Trinity C of E Primary School","Trinity Walk,,,,England,NW3 5SQ"]
[10024074,"ü","Holy Trinity C of E Primary School","Effra Road,,,Greater London,England,SW19 8PW"]
[10024947,"ü","Holywell Primary School","School Road,Rubery,Redwell,West Midlands,England,B45 9EY"]
[10579428,"ü","Home Office DDat",",,,,,"]
[10043944,"ü","Home Start Ashfield","17 Percival Crescent,,,Nottinghamshire,England,NG17 2AU"]
[10033311,"ü","HomeStart Leicester","8-10 West Walk,,,Leicestershire,England,LE1 7NA"]
[10037866,"ü","Honourable Artillery Company The","Armoury House,City Road,,Greater London,England,EC1Y 2BQ"]
[10021258,"ü","Hope and Homes for Children","East Clyffe,,,Yorkshire,England,SP3 4LZ"]
[10026359,"ü","Hope School and College","Kelvin Grove,,,Lancashire,England,WN3 6SP"]
[10024890,"ü","Hope Valley College","Castleton Road,Hope,,Derbyshire,England,S33 6SD"]
[10575409,"ü","Hornbeam Primary School","Mongeham Road,,,,,CT14 9PQ"]
[10569078,"ü","Horningsham Primary School","Church Street, Horningsham,,,,,BA12 7LW"]
[10541931,"ü","Horses & Ponies Protection Association","Taylor Building,Shores Hey Farm,Halifax Road\nBriercliffe,Lancashire,England,BB10 3QU"]
[10006511,"ü","Horsham District Council","Park House,North Street,,West Sussex,England,RH12 1RL"]
[10051745,"ü","Hospice of St. Francis","Spring Garden Lane,,,Hertfordshire,England,HP4 3GW"]
[10016534,"ü","Hospital of The Blessed Mary The","Cathedral Offices,The Royal Chantry,,West Sussex,England,PO19 1PX"]
[10018185,"ü","Hounslow Cultural and Community Services","Centrespace Treaty Centre,High Street,,,England,TW3 1ES"]
[10575313,"ü","Hounslow Heath Infant and Nursery School","Martindale Road,,,,,TW4 7HE"]
[10541937,"ü","Housing Pendle Limited","Town Hall,Albert Road,,Lancashire,England,BB8 0AQ"]
[10021773,"ü","Howells School","x,,,Denbighshire,Wales,LL16 3EN"]
[10008776,"ü","HQ 4 Div","Mercury Block,Steels Road,,Hampshire,England,GU11 2DP"]
[10040421,"ü","HQ Londist","Chaplain's Branch,Wellington Barracks,Birdcage Walk,Greater London,England,SW1E 6HQ"]
[10583049,"ü","Hugh Christie School","White Cottage Road,,,,,TN10 4PU"]
[10002026,"ü","Hull College","Queen's Gardens,,,,East Yorkshire,England,HU1 3DG"]
[10541943,"ü","Humberside Fleet Management","Police Station,Wyke Way,Melton,,England,HU14 3BQ"]
[10021419,"ü","Humberside Independent Care Association Limited","Unit 1/4 Anchor Court,160 Francis Street,,North Humberside,England,HU2 8DT"]
[10017175,"ü","Hundred Houses Society Limited","51 Scotland Road,,,Cambridgeshire,England,CB4 1QW"]
[10031321,"ü","Hunslet Moor Primary School","Fairford Avenue,Hunslet,,West Yorkshire,England,LS11 5EL"]
[10033971,"ü","Huntspill Projects","OLD PAWLETT ROAD,WEST HUNTSPILL,,Somerset,England,TA9 3RQ"]
[10022699,"ü","Hurst Community College The","Brimpton Road,Baughurst,,Hampshire,England,RG26 5NL"]
[10028866,"ü","Huttoft Primary School","Church Lane,Huttoft,,Lincolnshire,England,LN13 9RE"]
[10569156,"ü","Hylton Castle Primary School","Caithness Road, Hylton Castle,,,,,SR5 3RE"]
[10033972,"ü","Icis Information For Life","35 WORTHING ROAD,EAST PRESTON,,West Sussex,England,BN16 1BQ"]
[10582874,"ü","Ickburgh School","Ickburgh School,,Kenworthy Road, Hackney,,,,,E9 5RB"]
[10031327,"ü","Ihr Trust","University Of London,Senate House, Room 220,Malet Street,Greater London,England,WC1E 7HU"]
[10035277,"ü","Imagematch Social Enterprise CIC","Unit 2,Nexus,Roushill,Shropshire,England,SY1 1PT"]
[10026411,"ü","Imperial College Union","Beit Hall,Prince Consort Road,,Greater London,England,SW7 2BB"]
[10043220,"ü","Improvement & Efficiency Social Enterprise","Robert Denholm House,Bletchingley Road,Nutfield,Surrey,England,RH1 4HW"]
[10044170,"ü","Inclusion Group, the","23-27 Albert Square,Meadowside,,Angus,Scotland,DD1 1DJ"]
[10039224,"ü","Independent Schools Association","1 Boys British School,East Street,,Essex,England,CB10 1LS"]
[10574339,"ü","Ingatestone Infant School","Fryerning Lane,,,,,CM4 0DF"]
[10040542,"ü","Ingeus Training Limited","The Learning Centre 3 Kings Court,Kingsway South,Team Valley Trading Estate,Tyne and Wear,England,NE11 0SH"]
[10569186,"ü","Inkersall Primary Academy","Inkersall Green Road, Inkersall,,,,,S43 3SE"]
[10051289,"ü","Insolvency Practitioners Tribunal","4 Abbey Orchard Street,,,,England,SW1P 2HT"]
[10579307,"ü","Inspiring Primaries Academy Trust","Church Lane,,,Leicestershire,England,LE17 5EU"]
[10036289,"ü","Institute of Credit Management","THE WATER MILL STATION ROAD,,,Rutland,England,W2 3NA"]
[10013064,"ü","Institute of Plumbing and Heating Engineering The","Institute of Plumbing & Heating Engineering,64 Station Lane,,Essex,England,RM12 6NB"]
[10021666,"ü","Interact","Parkway,,,Essex,England,CM2 7PX"]
[10013385,"ü","International Presbyterian Church","International Presbyterian Church, 53,Drayton Green,,Greater London,England,W13 0JE"]
[10013332,"ü","International Psychoanalytical Association IPA Trust Limited","Broomhills,Woodside Lane,,Greater London,England,N12 8UD"]
[10004805,"ü","Inverclyde Council","Municipal Buildings,35 King street,,Renfrewshire,Scotland,PA15 2UH"]
[10571033,"ü","Iona School","310 Sneinton Dale, Sneinton,,,,,NG3 7DN"]
[10037004,"ü","Irby and Bratoft Village Hall","Brambleberry Lane,Irby in the Lane,Nr Skegness,Lincolnshire,England,PE24 5DQ"]
[10576929,"ü","Ironville and Codnor Park Primary School","Victoria Street,,,,,NG16 5NB"]
[10013759,"ü","Islamia Primary School","129 Salusbury Road,,,Greater London,England,NW6 6PE"]
[10576845,"ü","Isleworth Town Primary School","Twickenham Road,,,,,TW7 6AB"]
[10025398,"ü","Iver Parish Council","45B High Street,,,Buckinghamshire,England,SL0 9ND"]
[10574444,"ü","Iver Village Infant School","Grange Way,,,,,SL0 9NT"]
[10032698,"ü","Jacobs Engineering (UK) Limited","Sheldon Court,1A Wagon Lane,,West Midlands,England,B26 3DU"]
[10562908,"ü","James Montgomery Academy Trust","Brampton Road,Wath-upon-Dearne,,South Yorkshire,England,S63 6BB"]
[10040680,"ü","Jangchub Ling Buddhist Centre","Jangchub Ling Buddhist Centre,1a Sydney Road,,West Midlands,England,B64 5BA"]
[10567829,"ü","Jefferson House","The Old Vicarage, Darnhall School Lane,,,,,CW7 1JT"]
[10031339,"ü","Jesse Gray Primary School","Musters Road,West Bridgford,,Nottinghamshire,England,NG2 7DD"]
[10012372,"ü","Job Centre Plus","236 Grays Inn Road,,,Greater London,England,WC2X 8HL"]
[10033002,"ü","John Cabot Academy","Woodside Road,,Kingswood,Gloucestershire,England,BS15 8BD"]
[10040141,"ü","John Davies Primary School","Barker Street,Huthwaite,,Nottinghamshire,England,NG17 2LH"]
[10016748,"ü","John Higgs Almshouses","Dimple House,Dimple Road,,Derbyshire,England,DE4 3JX"]
[10550079,"ü","John Of Gaunt School","Wingfield Road,,,Wiltshire,England,BA14 9EH"]
[10033535,"ü","Johnstown Infant School","Melyd Avenue,Johnstown,,West Glamorgan,Wales,LL14 2TB"]
[10051295,"ü","Joint Nature Conservation Committee",",,,,,"]
[10569220,"ü","Jordans School","Puers Lane, Jordans,,,,,HP9 2TE"]
[10018199,"ü","JTL","Stafford House,120/122 High Street,,Kent,England,BR6 0JS"]
[10023209,"ü","Judicial Appointments Commission","1A Tothill Street,,,Greater London,England,SW1H 9LJ"]
[10571947,"ü","Julian's School","16 Wolfington Road, West Norwood,,,,,SE27 0JF"]
[10055163,"ü","Kaleidoscope Project","Integra House,1 Vaughan Court,Coedkernew,,Wales,NP10 8BD"]
[10036646,"ü","KC21","The Kings Centre,High Street,Aldershot,Surrey,England,GU11 1DJ"]
[10006657,"ü","Keighley College","Accommodation and Associated Services,Cavendish Street,,West Yorkshire,England,BD21 3DF"]
[10041158,"ü","Keir Hardie Memorial School","Brannock Road,,,Strathclyde,Scotland,ML1 5DU"]
[10008942,"ü","Kelvin Grove Primary School","Kirkdale,Sydenham,,Greater London,England,SE26 6BB"]
[10022617,"ü","Kendrick Girls Grammar School","London Road,,,Berkshire,England,RG1 5BN"]
[10568380,"ü","Kennington Primary School","Kennington Road, Fulwood,,,,,PR2 8ER"]
[10576466,"ü","Kensington Junior School","St John's Road,,,,,DE7 5PA"]
[10040947,"ü","Kent County Agricultural Society","Kent Event & Exhibition Ctr,Detling,,Kent,England,ME14 3JF"]
[10003062,"ü","Kent Primary Care Agency","11 Station Rd,,,Kent,England,ME14 1QH"]
[10014725,"ü","Kesteven and Sleaford High School","Jermyn Street,,,Lincolnshire,England,NG34 7RS"]
[10572686,"ü","Kew Riverside Primary School","37 Courtlands Avenue,,,,,TW9 4ES"]
[10040992,"ü","Khalsa College London","University Building,35 Pinner Road,,Greater London,England,HA1 4ES"]
[10031354,"ü","Kiddi Caru Day Nursery","496 Streatham High Road,Streatham,,Greater London,England,SW16 3QF"]
[10573582,"ü","Kilgarth School","Cavendish Street,,,,,CH41 8BA"]
[10569276,"ü","Killinghall Church of England Primary School","Otley Road, Killinghall,,,,,HG3 2DW"]
[10574957,"ü","Kimbolton St James CofE Primary School","Kimbolton,,,,,HR6 0HQ"]
[10025170,"ü","King's High School for Girls (Independent)","Smith Street,,,Warwickshire,England,CV34 4HJ"]
[10001821,"ü","King Edmund School The","Vaughan Close,,,Essex,England,SS4 1TL"]
[10008965,"ü","King Edward VII Hospital For Officers","5-10 Beaumont St,,,Greater London,England,W1N 2AA"]
[10039248,"ü","King Edward Vi School","Church Street,,,Warwickshire,England,CV37 6HB"]
[10025447,"ü","King James I School","South Church Road,,,County Durham,England,DL14 7JZ"]
[10033681,"ü","Kingsbury School","Tamworth Road,Kinsbury,,Warwickshire,England,B78 2LF"]
[10022627,"ü","Kings Church of England School The","Regis Road,Tettenhall,,West Midlands,England,WV6 8XG"]
[10569306,"ü","Kingsdown and Ringwould CofE Primary School","Glen Road, Kingsdown,,,,,CT14 8DD"]
[10022185,"ü","Kingshill Church of England Primary School","Pound Lane,Nailsea,,Gloucestershire,England,BS48 2NP"]
[10574974,"ü","Kingslea Primary School","Kings Road,,,,,RH13 5PS"]
[10035443,"ü","Kingsmead Primary School","Kingsmead Way,London,,Greater London,England,E9 5PP"]
[10006766,"ü","Kings Mill School","Victoria Road,,,Yorkshire,England,YO25 6UG"]
[10571453,"ü","Kings Oxford","St Joseph's Hall, Temple Road,,,,,OX4 2UJ"]
[10034643,"ü","Kingston Centre","Fairway,,,Staffordshire,England,ST16 3TW"]
[10030127,"ü","Kingston Grammar School","London Road,,,Surrey,England,KT2 6PY"]
[10562504,"ü","Kingsway Community Primary School","Baker Avenue,,,,England,CV31 3HB"]
[10025527,"ü","Kingswood Park Care Home","Kingswood Road,,,Cambridgeshire,England,PE15 9RT"]
[10019594,"ü","Kinross Primary","Station Road,,,Perth and Kinross,Scotland,KY13 8TG"]
[10574995,"ü","Kirkbride Primary School","Kirkbride,,,,,CA7 5JR"]
[10022418,"ü","Kirkby College","Tennyson Street,Kirkby-in-Ashfield,,Nottinghamshire,England,NG17 7DH"]
[10003377,"ü","Kirkham Grammar School","Rugby Road,Kirkham,,Lancashire,England,PR4 2BM"]
[10023960,"ü","Kirk Sandall Junior School","Magnolia Close,Kirk Sandall,,South Yorkshire,England,DN3 1JG"]
[10040037,"ü","Kirtlington Church of England Primary School","Heyford Road,Kirtlington,,Oxfordshire,England,OX5 3HL"]
[10030904,"ü","Knaphill Lower School","Chobham Rd  Knaphill,,,Surrey,England,GU21 2SX"]
[10568459,"ü","Knole Development Centre","Cygnet Hospital, Godden Green,,,,,TN15 0JR"]
[10026031,"ü","Knox Academy","Pencaitland Road,,,East Lothian,Scotland,EH41 4DT"]
[10031369,"ü","Kyle Medical Practice","Lochalsh Healthcare Centre,Station Road,,,Scotland,IV40 8AE"]
[10039264,"ü","L'Arche Preston","3 Moor Park Avenue,,,Lancashire,England,PR1 6AS"]
[10025711,"ü","Lacon Childe School","Love Lane,,,Shropshire,England,DY14 8PE"]
[10571512,"ü","Lady Elizabeth Hastings' CofE VA Primary School, Thorp Arch","Dowkell Lane, Thorp Arch,,,,,LS23 7AQ"]
[10576945,"ü","Lady Modiford's Church of England (Voluntary Aided) Primary School","Walkhampton,,,,,PL20 6JR"]
[10569396,"ü","Laindon Park Primary School & Nursery","Church Hill, Laindon,,,,,SS15 5SE"]
[10015314,"ü","Lakeside School","Naylors Road,,,Merseyside,England,L27 2YA"]
[10569402,"ü","Lambourn C.E. Primary School","Greenways, Lambourn,,,,,RG17 7LJ"]
[10022268,"ü","Lanarkshire Health Board","Area Board Headquarters,14 Beckford Street,,Strathclyde,Scotland,ML3 0TA"]
[10020042,"ü","Lancashire County Developments","Robert House,2 Starkie Street,,Lancashire,England,PR1 3LU"]
[10576787,"ü","Lancaster Ryelands Primary School","Torrisholme Road,,,,,LA1 2RJ"]
[10568369,"ü","Landmark International School","9 Church Lane, Fulbourn,,,,,CB21 5EP"]
[10042249,"ü","Land Warfare Centre","Imber Road,,,Wiltshire,England,BA12 0DJ"]
[10570509,"ü","Langdon Park Community School","Bright Street, Poplar,,,,,E14 0RZ"]
[10550161,"ü","Langley House Trust","House of St. Martin,Langford Lane,Pen Elm,Somerset,England,TA2 6NU"]
[10570382,"ü","Langside School","Langside Avenue, Parkstone,,,,,BH12 5BN"]
[10571297,"ü","Lansdown Park Academy","Stockwood Lane, Stockwood,,,,,BS14 8SJ"]
[10572887,"ü","La Petite Ecole Bilingue","90 Oxford Gardens,,,,,W10 5UW"]
[10568087,"ü","Lark Hill Nursery School","Northgate Road, Edgeley,,,,,SK3 9PH"]
[10569437,"ü","Latimer AP Academy","194 Freston Road, Latimer Road Station,,,,,W10 6TT"]
[10030864,"ü","Latin Mass Society","11-13 Macklin St,,,Greater London,England,WC2B 5NH"]
[10038772,"ü","Laurencekirk Primary School","Frain Drive,,,Aberdeenshire,Scotland,AB30 1EG"]
[10541982,"ü","Lawrence Weston Community Transport","117-119 Long Cross,,,Somerset,England,BS11 0LP"]
[10021123,"ü","Lea Community Primary School","Lea Community Primary School,Greavestown Lane,Lea,Lancashire,England,PR2 1PD"]
[10042032,"ü","Leap Valley Medical Centre","Beaufort Road,,,Gloucestershire,England,BS166UG"]
[10027095,"ü","Learning and Skills Improvement Service","Friars House,Manor House Drive,,West Midlands,England,CV1 2TE"]
[10009066,"ü","Lea St Marys Catholic Primary School","Darkinson Lane,Lea Town,,Lancashire,England,PR4 0RJ"]
[10006663,"ü","Leeds Arts University","Blenheim Walk,,,Yorkshire,England,LS2 9AQ"]
[10014650,"ü","Leeds Jewish Care Services","311 Stonegate Road,,,West Yorkshire,England,LS17 6AZ"]
[10009079,"ü","Leeds Nuffield Hospitals","81-89 Great George Street,,,West Yorkshire,England,LS1 3BR"]
[10577134,"ü","Leesland Church of England Controlled Infant School","Whitworth Road,,,,,PO12 3NL"]
[10042157,"ü","Leicester & Leicestershire SCITT","Hinckley Road,,,Leicestershire,England,LE30TJ"]
[10550102,"ü","Leicestershire & Rutland Wildlife Trust","The Old Mill,9 Soar Lane,,,England,LE3 5DE"]
[10003609,"ü","Leicestershire County Council","Abington House,Station Road,Glenfield,Leicestershire,England,LE18 2DP"]
[10039869,"ü","Leigh Academies Trust","Green Street,Green Road,,Kent,England,DA1 1QE"]
[10019846,"ü","Leisure East Devon Limited","Bicton College,East Budleigh,Budleigh Salterton,Devon,England,EX9 7BY"]
[10542073,"ü","Leopold Primary School","Hawkeshead Road,Harlesden,,,England,NW10 9UR"]
[10034656,"ü","Lepton Library","Highgate Lane,Lepton,,West Yorkshire,England,HD8 0HH"]
[10569497,"ü","Levenshulme High School","Crossley Road, Levenshulme,,,Greater Manchester,England,M19 1FS"]
[10578249,"ü","Lewisham Council",",,,,,"]
[10567033,"ü","Leys Farm Junior School","Park Avenue, Bottesford,,,,,DN17 2PB"]
[10581199,"ü","LFC Foundation","Anfield Road,,,Merseyside,England,L4 0TH"]
[10028573,"ü","Licensed Trade Charity","London Road,,,Berkshire,England,SL5 8DR"]
[10042243,"ü","Lighthorne Heath County Primary School","Stratford Road,,,,England,CV33 9TW."]
[10012989,"ü","LILLIPUT Church of England VC FIRST SCHOOL","Lilliput First School, 51,Lilliput Road,,Dorset,England,BH14 8JX"]
[10035448,"ü","Limpsfield Grange School","89 Bluehouse Lane,Oxted,,Surrey,England,RH8 0RZ"]
[10003694,"ü","Lincoln College","Monks Road,,,Lincolnshire,England,LN2 5HQ"]
[10003685,"ü","Lincolnshire Police","PO Box 999,,,Lincolnshire,England,LN5 7PH"]
[10031393,"ü","Lindisfarne Middle School","Lindisfarne Road,,,Northumberland,England,NE66 1AX"]
[10575099,"ü","Lindridge St Lawrence CE Primary School","Lindridge,,,,,WR15 8JQ"]
[10039276,"ü","Link Community Development Limited","19B Compton Terrace,Islington,,Greater London,England,N1 2UN"]
[10563466,"ü","Linwood School",",,,,,BH9 1AJ"]
[10024418,"ü","Liscard Primary School","Withens Lane,,,Merseyside,England,CH45 7NQ"]
[10030696,"ü","Lisson Grove Health Centre","Gateforth Street,Hendon,,Greater London,England,NW8 8EG"]
[10574578,"ü","Littlecoates Primary Academy","Harlow Street,,,,,DN31 2QX"]
[10027717,"ü","Little Haven Benfleet","DAWS HEATH ROAD,,THUNDERSLEY,Essex,England,SS7 2LH"]
[10575767,"ü","Little Parndon Primary School","Park Mead,,,,,CM20 1PU"]
[10021275,"ü","Little Thetford Church of England School","Little Thetford V.P. School,Green Hill,Little Thetford,Cambridgeshire,England,CB6 3HD"]
[10031399,"ü","Little Weighton Church of England Primary School","White Gap Road,Little Weighton,,,England,HU20 3XE"]
[10023965,"ü","Liverpool Learning and Skills Council","Pt 4th Floor,The Plaza,Old Hall Street,Merseyside,England,L3 9QJ"]
[10009161,"ü","Living Space Limited","38 Marsh Hill,,,Greater London,England,E9 5PE"]
[10036109,"ü","Livin Housing Limited","Farrell House Unit A2,,Arlington Way,Spennymoor,County Durham,England,DL16 6NL"]
[10030453,"ü","Llanfair Dyffryn Clwyd School","Llanfair Dyfffryn Clwyd,,,Clwyd,Wales,LL15 2RU"]
[10042340,"ü","Llanrwst Primary School","Glanrhyd,,,Conwy,Wales,LL26 0EY"]
[10040592,"ü","Local Goverment Boundary Commission for Scotland","Thistle House.,91 Haymarket Terrace,,Lothian,Scotland,EH12 5HD"]
[10036042,"ü","Lochaline Primary School","And Fire Station,Lochaline,,Argyll & Bute,Scotland,PA34 5XT"]
[10569562,"ü","Lochinver House School","Heath Road, Little Heath,,,,,EN6 1LW"]
[10020534,"ü","Loddon Vale Practice NHS The","Hurricane Way,Woodley,,Berkshire,England,RG5 4UX"]
[10019599,"ü","Logierait Primary","Ballinluig,,,Perth and Kinross,Scotland,PH9 0LG"]
[10006008,"ü","Logistic Support Unit","AES Building 66 Azimghur Barracks,Colerne,,Wiltshire,England,SN14 8QY"]
[10002676,"ü","London Borough of Hackney","Town Hall,Mare Street,,Greater London,England,E8 1EA"]
[10017258,"ü","London City YMCA","8 Errol Street,,,Greater London,England,EC1Y 8SE"]
[10019312,"ü","London Fields Primary School","Westgate Street,,,Greater London,England,E8 3RL"]
[10031020,"ü","London Metropolitan Archives","40 Northampton Road,,,Greater London,England,ec1r 0hb"]
[10010808,"ü","London Oratory School The","Seagrave Road,,,Greater London,England,SW6 1RX"]
[10574510,"ü","Lonesome Primary School","Grove Road,,,,,CR4 1SD"]
[10574776,"ü","Longdon Park School","Hilton Road,,,,,DE65 6GU"]
[10031404,{"$f":"CHAR(252)","v":"ü"},"Longfields Primary School","Longfields,,,Oxfordshire,England,OX26 6QL"]
[10041135,"ü","Longleaze Pre-School","Byron Avenue,Royal Wootton Bassett,,Wiltshire,England,SN4 8BA"]
[10577258,"ü","Long Mountain CofE Primary School","Worthen,,,,,SY5 9HT"]
[10569621,"ü","Long Whatton Church of England Primary School and Community Centre","The Green, Long Whatton,,,,,LE12 5DB"]
[10017267,"ü","Lord Leycesters Hospital","High Street,,,Warwickshire,England,CV34 4BH"]
[10577210,"ü","Lordship Lane Primary School","Wood Green,,,,,N22 5PS"]
[10569658,"ü","Lostock Gralam CofE Primary School","School Lane, Lostock Gralam,,,,,CW9 7PT"]
[10034172,"ü","Loughborough Estate Man Brd Limited The","10 FEATLEY ROAD,,,Greater London,England,SW9 7LJ"]
[10016614,"ü","Loughton Almshouse Charity","Springboard House,2a Claughton Road,,Greater London,England,E13 9PN"]
[10050961,"ü","Lowdham CE Primary School","Main Street,Lowdham,,,England,NG14 7BE"]
[10018386,"ü","Lowfield School","Dijon Avenue,,,North Yorkshire,England,Y024 3DD"]
[10023024,"ü","LPFA London Pensions Fund Authority","Dexter House,2 Royal Mint Court,,Greater London,England,EC3N 4LP"]
[10569694,"ü","Luddington and Garthorpe Primary School","High Street, Luddington,,,,,DN17 4QP"]
[10576191,"ü","Ludlow Infant and Nursery School Academy","Sandpits Road,,,,,SY8 1HG"]
[10032654,"ü","Lumley Junior School","Cocken Lane,Great Lumley,,County Durham,England,DH3 4JJ"]
[10572671,"ü","Lycee Francais Charles de Gaulle","35 Cromwell Road,,,,,SW7 2DG"]
[10575217,"ü","Lydeard St Lawrence Community Primary School","Lydeard St Lawrence,,,,,TA4 3SF"]
[10569704,"ü","Lympne Church of England Primary School","Octavian Drive, Lympne,,,,,CT21 4JG"]
[10564563,"ü","LYONSDOWN SCHOOL TRUST LIMITED","3 Richmond Road,,,Hertfordshire,England,EN5 1SA"]
[10003410,"ü","Mabs Cross Primary School","Standishgate,,,Lancashire,England,WN1 1XL"]
[10009247,"ü","Macmillan Cancer Relief","89 Albert Embankment, Lambeth,,,Greater London,England,SE1 7UQ"]
[10575477,{"$f":"CHAR(252)","v":"ü"},"Madani Secondary Girls' School","Myrdle Street,,,,,E1 1HL"]
[10025565,"ü","Maes Marchog Primary School","School Road,Dyffryn Cellwen,,West Glamorgan,Wales,SA10 9LB"]
[10043834,"ü","Magna Vitae Trust for Leisure & Culture","Enterprise Centre,Lincoln Way,Fairfield Industrial Estate,Lincolnshire,England,LN11 0LS"]
[10040537,"ü","Magpas","Centenary House,St. Marys Street,,Cambridgeshire,England,PE29 3PE"]
[10034676,"ü","Maidwell Hall School","Maidwell,,,Northamptonshire,England,NN6 9JG"]
[10024806,"ü","Malinslee School","Brunel Road,,,,England,TF3 2HZ"]
[10024512,"ü","Maltby St Marys Roman Catholic Primary","Muglet Lane,Maltby,,South Yorkshire,England,S66 7JU"]
[10026367,"ü","Manchester College The","Ashley Lane,,,Greater Manchester,England,M9 4WU"]
[10576320,"ü","Manchester Enterprise Academy","Simonsway, Wythenshawe,,,Greater Manchester,England,M22 9RH"]
[10017283,"ü","Manchester Unity Housing Association Limited","Odd Fellows House,40 Fountain Street,,Greater Manchester,England,M2 2AB"]
[10043913,"ü","Manor Academy, the","Park Hall Road,Mansfield Woodhouse,,Nottinghamshire,England,NG19 8QA"]
[10566096,"ü","Manor Cottage","The Waterfront, Chancellors Road, Hammersmith Embankment,,,,,W6 9RU"]
[10014630,"ü","Manor Green Primary School","Lady Margaret Road,,Ifield,West Sussex,England,RH11 ODU"]
[10022156,"ü","Manor Park Primary School and Nursery","Manor Park North,,,Cheshire,England,WA16 8DB"]
[10023491,"ü","Mansfield School","Albert Road,Aston,,West Midlands,England,B6 5NH"]
[10575272,"ü","Maple Infants' School","Maple Road,,,,,KT6 4AL"]
[10562149,"ü","Maples Family Medical Practice [","35 Hill Street,,,Leicestershire,England,LE10 1DS"]
[10569746,"ü","Marchwood Church of England Infant School","Twiggs Lane, Marchwood,,,,,SO40 4ZE"]
[10041552,"ü","Marham Infant School","Cedar Road,Upper Marham,,Norfolk,England,PE33 9LT"]
[10028431,"ü","Marie Curie",",,,,,"]
[10569419,"ü","Marish Primary School","Swabey Road, Langley,,,,,SL3 8NZ"]
[10001724,"ü","Mark Hall School","First Avenue,,,Essex,England,CM17 9LR"]
[10029629,"ü","Marlborough Primary School","Morice Square,,,Devon,England,PL1 4NJ"]
[10005022,"ü","Married Quarters Officer Rnas Yeovilton - Army","Building 499 Little Yeovilton,Ilchester,,Somerset,England,BA22 8HT"]
[10012512,"ü","Marshall Aid Commemoration Commission","North America Team,Room WH2/330,King Charles Street,Greater London,England,SW1A 2PA"]
[10039301,"ü","Marsh Medical Practice","Keeling Street,North Somercotes,,Lincolnshire,England,LN11 7QU"]
[10031430,"ü","Marton and District Aided Primary School","School Lane,Marton,,Cheshire,England,SK11 9HD"]
[10568092,"ü","Mary Howard CofE (VC) Primary School","School Lane, Edingale,,,,,B79 9JJ"]
[10570218,"ü","Mary Paterson Nursery School","13 Riverton Close, Off Ashmore Road,,,,,W9 3DS"]
[10009277,{"$f":"CHAR(252)","v":"ü"},"Matilda Community Day Nursery","Matilda House,St Katharines Way,,Greater London,England,E1 9OQ"]
[10569789,"ü","Mawsley Primary School","Scholars Row, Mawsley,,,,,NN14 1GZ"]
[10576978,"ü","Mayfield Primary School","Warwick Road,,,,,CB4 3HN"]
[10574324,"ü","Maypole Primary School","Franklin Road,,,,,DA2 7UZ"]
[10024944,"ü","MDPGA","Building 41 RNAD Coulport,PO BOX 1,Cove,Strathclyde,Scotland,G84 0PD"]
[10572994,"ü","Meadowhead Junior School","Anglesey Street,,,,,BB2 4QG"]
[10014013,"ü","Meadows Primary School The","The Meadows C P School,Newcastle Road,Madeley Heath,Cheshire,England,CW3 9JX"]
[10569355,"ü","Meadow View Farm School","c/o Brookland Farm House, Kirkby Road,,,,,LE9 8FT"]
[10004439,"ü","Meden School","Burns Lane,Warsop,,Nottinghamshire,England,NG20 0QN"]
[10574227,"ü","Medina College","Fairlee Road,,,,,PO30 2DX"]
[10576371,"ü","Medway UTC","South Side Three Rd,,,,,ME4 4FQ"]
[10029524,"ü","Meethill School","School Road,,,Aberdeenshire,Scotland,AB42 2BF"]
[10569810,"ü","Melling St Wilfrid Church of England Primary School","Lodge Lane, Melling,,,,,LA6 2RE"]
[10566806,"ü","Mendip Partnership School","Abbots Court, Benedict Street,,,,,BA6 9NP"]
[10004905,"ü","Meole Brace School","Longden Road,,,Shropshire,England,SY3 9DW"]
[10003095,"ü","Meopham Secondary School","Wrotham Road,,,Kent,England,DA13 0AH"]
[10023295,"ü","Mere and Moses Housing","Edinburgh House,New Street,,Shropshire,England,Sy4 5DB"]
[10023246,"ü","Merlin Housing Society","Merlin Housing Society,Riverside Court Building 2,Bowling Hill, Chipping Sodbury,Gloucestershire,England,BS37 6JX"]
[10026034,"ü","Mersey Gateway Project","Unit 15, 1st Floor,Turnstone Business Park,Mulberry Avenue,Cheshire,England,WA8 0NW"]
[10041699,"ü","Merseyside Community Rehabilitation Company","Burlington House,Crosby Road North,,Merseyside,England,L22 0PJ"]
[10009307,"ü","Merton Infant School","Romsey Close,,,Northamptonshire,England,RG24 9HB"]
[10000313,{"$f":"CHAR(252)","v":"ü"},"Met Office","Alexandria 1,Fitzroy Road,,Berkshire,England,EX1 3PB"]
[10039317,"ü","Michaela Community School","79 Nursery Road,,,Greater London,England,SW9 8BU"]
[10041666,"ü","Michael Sobell Sinai School","Shakespeare Drive,,,,England,HA3 9UD"]
[10033105,"ü","Middleforth Church of England Primary School","Hill Road South,Penwortham,,Lancashire,England,PR1 9YE"]
[10025760,"ü","MIDDLETON CHENEY COUNTY PRIMARY","Main Road,Middleton Cheney,,Northamptonshire,England,OX17 2PD"]
[10006212,"ü","Midland Area Housing Association Limited","St Georges Court,1 Albion Street,,West Midlands,England,B1 3AH"]
[10542019,"ü","Midlothian Sure Start",",,,,England,EH22 5DG"]
[10018229,"ü","Migrant Helpline","The Rendezvous,Eastern Docks,,Kent,England,CT16 1JA"]
[10040161,"ü","Milford Haven Port Authority","Gorsewood Drive,Hakin,,Pembrokeshire,Wales,SA73 3EP"]
[10035834,"ü","Millbrook Combined School","Mill End Road,,,Buckinghamshire,England,HP12 4BA"]
[10570228,"ü","Millbrook Primary School","Bank Road, Off Huddersfield Road,,,,,SK15 3JX"]
[10009331,"ü","Millfield Primary School","Catshill Road,Brownhills,,Staffordshire,England,WS8 6BN"]
[10006216,"ü","Mill Lodge Primary School","Aqueduct Road,Shirley,,West Midlands,England,B90 1BT"]
[10035139,"ü","Milton Baptist Church","Baytree Road,,,,England,BS22 8HJ"]
[10039318,"ü","Milton Keynes Ymca","402 North Row,Central Milton Keynes,,Buckinghamshire,England,MK9 2NL"]
[10569942,"ü","Milton St John's CofE Primary School","Mill Lane, Mossley,,,,,OL5 0BN"]
[10044023,"ü","Ministry of Justice HQ Estates","102 Petty France,,,,England,SW1H 9AJ"]
[10023428,"ü","Miriam Lord Community Primary School","Bavaria Place,,,West Yorkshire,England,BD8 8RG"]
[10023364,"ü","Missing People","Roebuck House,,284 Upper Richmond Road West,East Sheen,Greater London,England,SW14 7JE"]
[10034017,"ü","MkAct","ACORN HOUSE,MIDSUMMER BOULEVARD,,Buckinghamshire,England,MK9 3HP"]
[10020497,"ü","Modbury Health Centre","Poundwell Meadow,,,Devon,England,PL21 0QL"]
[10004330,"ü","MOD RAF (Norfolk)","50 Fifers Lane,,,Norfolk,England,NR6 6HW"]
[10027062,"ü","Momentum","75 Park Road,,,Greater London,England,KT2 6DE"]
[10036796,"ü","Monklands District General Hospital","Main Street,,,Strathclyde,Scotland,ML5 3BN"]
[10573817,"ü","Monkton Prep School","Combe Down,,,,,BA2 7ET"]
[10042947,"ü","Montessori St. Nicholas","University House,11-13 Lower Grosvenor Place,,Middlesex,England,SW1W 0EX"]
[10033707,"ü","Montgomery Primary School      ","White Road,Sparkbrook,Birmingham,West Midlands,England,B11 1EH             "]
[10031452,"ü","Moor End County Primary School","White Ash Lane,Oswaldtwistle,,Lancashire,England,BB5 3JG"]
[10035986,"ü","Moorlands Junior School","Temple Road,,,Greater Manchester,England,M33 2LP"]
[10041504,{"$f":"CHAR(252)","v":"ü"},"Moortown Primary School","Shadwell Lane,,,West Yorkshire,England,LS17 6DR"]
[10577450,"ü","Morehall Primary",",,,,,CT19 4PN"]
[10575459,"ü","Moreton Hall School","Mount Road,,,,,IP32 7BJ"]
[10025202,"ü","Morley Primary School","Main Road,Morley,,Derbyshire,England,DE7 6DF"]
[10019366,"ü","Morton School","Wigton Road,,,Cumbria,England,CA2 6LB"]
[10043668,"ü","Mosaic Shaping Disability Services","2 Oak Spinney Park,Ratby Lane,Leicester Forest East,Leicestershire,England,LE3 3AW"]
[10019381,"ü","Mosslands School","Mosslands Drive,,,Merseyside,England,CH45 8PJ"]
[10575453,"ü","Moulsford Preparatory School","Moulsford-on-Thames,,,,,OX10 9HR"]
[10039328,"ü","Mountfields Lodge Primary School","Epinal Way,,,Leicestershire,England,LE11 3GE"]
[10020588,"ü","Mount Pleasant Primary School","Ruskin Avenue,Rogerstone,,,Wales,NP10 0AB"]
[10015200,"ü","Mounts Bay Academy","Boscathnoe Lane,,,Cornwall,England,TR18 3JT"]
[10000059,"ü","Moyle District Council","Sheskburn House,7 Mary Street,,Antrim,Northern Ireland,BT54 6QH"]
[10018974,"ü","Much Birch School","Much Birch,,,Herefordshire,England,HR2 8HL"]
[10029861,"ü","Muggington Church of England Primary School","Church Lane,Muggington,,Derbyshire,England,DE6 4PL"]
[10043434,{"$f":"CHAR(252)","v":"ü"},"Multistory","Town Hall,Lodge Road,,West Midlands,England,B70 8DY"]
[10012038,"ü","Muscliff Primary School","Broadway Lane,,,Dorset,England,BH8 0AB"]
[10569865,"ü","My Choice School-Ocean Pearl","Mill Green Business Estate, Mill Green Road,,,,,RH16 1XQ"]
[10027181,"ü","Mytchett Primary School","Hamesmoor Road,Mytchett,Camberley,,England,GU16 6JB"]
[10025371,"ü","Naburn Church of England Primary","Naburn,,,Yorkshire,England,YO10 4PP"]
[10031469,"ü","Nant Celyn Primary School","Henllys Way,,,Gwent,Wales,NP44 7DJ"]
[10036674,"ü","National Apprenticeship Service","Upper Ground,1 Victoria Street,,Greater London,England,SW1H 0ET"]
[10015054,"ü","National Association of Schoolmasters Union of Womer Teachers","Hillscourt Education Centre,Rose Hill,Rednal,West Midlands,England,B45 8RS"]
[10573983,"ü","National College for High Speed Rail","Dartmouth Middleway,,,,,B7 4AP"]
[10023322,"ü","National Fallen Stock Company Limited","PO Box 5788,Winterhill House,,Buckinghamshire,England,MK10 1BB"]
[10566179,"ü","National Institute for Conductive Education","Cannon Hill House, Russell Road, Moseley,,,,,B13 8RD"]
[10025016,"ü","National Nuclear Laboratory","Sellafield,,,Cumbria,England,CA20 1PG"]
[10564836,"ü","National Police Chiefs Council","10 Victoria Street,,,,England,SW1H 0NN"]
[10022362,"ü","National Specialist Commissioning Advisory Group","Wellington House (Ground Floor),133-155 Waterloo Road,,Greater London,England,SE1 8UG"]
[10027750,"ü","Nations Healthcare Limited","BELVEDERE ROAD,,,West Yorkshire,England,BD10 0EP"]
[10569991,"ü","Nayland Primary School","Bear Street, Nayland,,,,,CO6 4HZ"]
[10043896,"ü","Necton Church of England Primary School","School Road,Necton,,Norfolk,England,PE37 8HT"]
[10000561,"ü","Nene Housing Society Limited","Manor House,57 Lincoln Road,,Cambridgeshire,England,PE1 2RR"]
[10570008,"ü","Netherfield Primary School","Chandos Street, Netherfield,,,,,NG4 2LR"]
[10572219,"ü","Netherwood Academy","Dove Valley Way, Wombwell,,,,,S73 8FE"]
[10570026,"ü","Nettlesworth Primary School","Front Street, Nettlesworth,,,,,DH2 3PF"]
[10039334,"ü","Newark and Notts Ag Soc","The Showground,Lincoln Road,,,England,NG24 2NY"]
[10015726,"ü","Newbold Riverside Primary School","Newbold Road,,,Warwickshire,England,CV21 1EH"]
[10576897,"ü","New Brighton Primary School","Vaughan Road,,,,,CH45 1LH"]
[10570060,"ü","Newburn Manor Nursery School","Townfield Gardens, Newburn,,,,,NE15 8PY"]
[10039824,"ü","Newcastle International Airport","Woolsington,,,Northumberland,England,NE13 8BZ"]
[10009463,"ü","New City Primary School","New City Road,Plaistow,,Greater London,England,E13 9PY"]
[10038456,"ü","New Devon Clinical Commissioning Group","Devon County Hall,Topsham Road,,Devon,England,ex2 4ql"]
[10042581,"ü","New Dover Road Surgery","10 New Dover Road,,,Kent,England,CT1 3AP"]
[10572387,{"$f":"CHAR(252)","v":"ü"},"New Forest Small School","1 Southampton Road,,,,,SO43 7BU"]
[10570011,"ü","New Heights High School","Naylorsfield Drive, Netherley,,,,,L27 1XY"]
[10570081,"ü","New Horizon Community School","Newton Hill House, Newton Hill Road,,,,,LS7 4JE"]
[10568480,"ü","Newland College","Newland Park, Gorelands Lane,,,,,HP8 4AD"]
[10039952,"ü","NEWLIFE TRADING Limited","NEWLIFE CENTER,,HEMLOCK WAY,,Staffordshire,England,WS11 7GF"]
[10014573,"ü","New Milton Infant School","Dane Bank Avenue,,,Cheshire,England,CW2 8AE"]
[10014917,"ü","Newport County Borough Council","Building Services Division,Telford Depot,Telford Street,Gwent,Wales,NP19 OES"]
[10043079,"ü","Newport Primary School","Frambury Lane,Newport,,Essex,England,CB11 3PU"]
[10035111,"ü","NEW ROAD METHODIST CHURCH","NEW ROAD,,,West Midlands,England,DY8 1PA"]
[10542037,"ü","New Testament Church Of God","3 Rickfords Hill,,,,England,HP20 2RT"]
[10041162,"ü","Newtonhill Primary School","St Michael's Road,,,Aberdeenshire,Scotland,AB39 3XW"]
[10575190,"ü","Newtons Primary School","Lowen Road,,,,,RM13 8QR"]
[10570055,"ü","New Whittington Community Primary School","London Street, New Whittington,,,,,S43 2AQ"]
[10043626,"ü","NHS Airedale, Wharfdale and Craven Clinical Commissioning Group","Station Road,Steeton,,West Yorkshire,England,BD20 6RB"]
[10043604,"ü","NHS Birmingham South & Central Clinical Commissioning Group","Bartholomew House,142 Hagley Road,,West Midlands,England,B16 9PA"]
[10029356,"ü","NHS Business Services Centre Mold","Preswylfa, Hendy Road,,,Flintshire,Wales,CH7 1PZ"]
[10040503,"ü","NHS Castle Point and Rochford Clinical Commissioning Group","1st Floor Phoenix Place,Christopher Martin Road,,Essex,England,SS14 3HG"]
[10038461,"ü","NHS Cumbria Clinical Commissioning Group","Bridge Lane,,,Cumbria,England,CA11 8HX"]
[10038696,"ü","NHS East Lancashire Clinical Commissioning Group","Walshaw House,Regent Street,,Lancashire,England,BB9 8AS"]
[10038497,"ü","NHS England","PO Box 16738,,,Worcestershire,England,B97 9PT"]
[10022213,"ü","NHS Halton and St Helens","Lister Road,Astmoor,,Cheshire,England,WA7 1TW"]
[10038881,{"$f":"CHAR(252)","v":"ü"},"NHS Herts Valley's Clinical Commissioning Group","Charter House,Parkway,,Hertfordshire,England,AL8 6JL"]
[10055035,"ü","NHS Lanarkshire Newmains Health Centre","17 Manse Road, Newmains,,,Lanarkshire,England,ML2 9AX"]
[10040433,"ü","NHS Merseyside Commissioning Support Unit","1829 Building, Countess of Chester Health Park,Liverpool Road,,Cheshire,England,CH2 1HJ"]
[10024505,"ü","NHS National Innovation Centre","University of Warwick Campus,Gibbet Hill Road,,West Midlands,England,CV4 7AL"]
[10025009,"ü","NHS North of Tyne","Bevan House, 1 Esh Plaza,Sir Bobby Robson,WayGreat Park,Tyne and Wear,England,NE13 9BA"]
[10040823,"ü","NHS Plymouth","Mount Gould Hospital,Mount Gould Road,,Devon,England,PL4 7QD"]
[10002244,"ü","NHS Salford","Suite 19, 21-23,Fifth Floor,,St James House\nPendleton Way,Greater Manchester,England,M6 5FW"]
[10019056,"ü","NHS Sickle Cell and Thalassaemia Screening Programme","Department of Public Health,Capital House,42 Weston street,Greater London,England,SE1 3QD"]
[10014470,"ü","NHS Southwark","Southwark Primary Care Trust,Woodmill Building,Neckinger,Berkshire,England,SE16 3QN"]
[10039887,"ü","NHS Thanet Clinical Commissioning Group","PO Box 9,,,Kent,England,CT9 1XZ"]
[10016332,"ü","NHS Western Cheshire","1829 Building,The Countess Of Chester Health Park,,Cheshire,England,CH2 1UL"]
[10041013,"ü","NHS West London Clinical Commissioning Group","15 Marylebone Road,,,Greater London,England,NW1 5JD"]
[10012316,"ü","Nields JI School","Nields Road,Slaithwaite,,West Yorkshire,England,HD7 5HT"]
[10009522,"ü","Ninety Six Riggendale Road Housing Association Limited","6 Balham New Road,Balham,,Greater London,England,SW12 9PG"]
[10015020,"ü","Nishkam Civic Assocation","219 Soho Road,,,West Midlands,England,B21 9SN"]
[10031078,"ü","Nomad Trust Lincoln","15A Monks Road,,,Lincolnshire,England,LN2 5HL"]
[10017334,"ü","Noreast Spennymoor Housing Society Limited","Messrs Appletons,22 High Street,,Cleveland,England,TS18 1LS"]
[10542053,"ü","Norfolk Library & Information Servs","County Hall,Martineau Lane,,Norfolk,England,NR1 2DH"]
[10022983,"ü","Norman Pannell School","Brownhill Bank,,Netherley,Merseyside,England,L27 7AE"]
[10032605,"ü","Normanton-on-Soar Community Primary School","Normanton-on-Soar,Main Street,,Leicestershire,England,LE12 5HB"]
[10019261,"ü","Northampton Northgate School","Queens Park Parade,Kingsthorpe,,Northamptonshire,England,NN2 6LR"]
[10000060,"ü","North and West Belfast HSS Trust","Everton Complex Mater Infirmorum Hospital,45-51 Crumlin Road,,Antrim,Northern Ireland,BT14 7GB"]
[10013632,"ü","Northaw Primary School","Vineyards Road,Northaw Village,,Hertfordshire,England,EN6 4PB"]
[10021952,"ü","Northbrook Primary School","Bannister Drive,,,Lancashire,England,PR25 2GB"]
[10021742,"ü","North Claines Parish Council","North Claines Parish Council,The Old Library Centre,65 Ombersley Street East,Worcestershire,England,WR9 8QS"]
[10023269,"ü","North Devon Hospice","Deer Park,Rumsam Road,,Devon,England,EX32 OHU"]
[10000061,"ü","North Eastern Education and Library Board","County Hall,182 Galgorm Road,,Antrim,Northern Ireland,BT42 1HN"]
[10023620,"ü","North East Leeds City Learning Centre","North East Leeds City Learning Centre,Talbot Avenue,,West Yorkshire,England,LS17 6SF"]
[10037149,"ü","Northern Advisory Council for Further Education","Citygate,St James' Boulevard,,Tyne and Wear,England,NE1 4JE"]
[10023935,{"$f":"CHAR(252)","v":"ü"},"Northern Ireland Chest Heart and Stroke Association","21 Dublin Road,,,County Antrim,Northern Ireland,BT2 7HB"]
[10021852,"ü","Northern Ireland Electrical Training Trust","Ballymena Business Development Centre,Units 57-62,62 Fenaghy Road,County Antrim,Northern Ireland,BT42 1FL"]
[10015996,"ü","Northern Ireland Policing Board","Waterside Tower,31 Clarendon Road,Clarendon Dock,County Antrim,Northern Ireland,BT1 3BG"]
[10009601,"ü","Northfield College","38-40 Upper Park Road,Salford,,Lancashire,England,M7 4QZ"]
[10567242,"ü","Northgate School","Edgware Community Hospital, Burnt Oak Broadway,,,,,HA8 0AD"]
[10041667,"ü","North Islington Nursery","110-112 Tollington Park,,,Greater London,England,N4 3RB"]
[10013178,"ü","North Lakes School","North Lakes School,Huntley Avenue,,Cumbria,England,CA11 8NU"]
[10029839,"ü","North Liverpool Academy","120 Heyworth Street,,,Merseyside,England,L5 OSQ"]
[10570130,"ü","North Newton Community Primary School","Church Road, North Newton,,,,,TA7 0BG"]
[10018244,"ü","North of England Zoological Society","Chester Zoo,Caughall Road,Upton,Cheshire,England,CH2 1LH"]
[10009556,"ü","North Road Medical Practice","182 North Road,,,South Glamorgan,Wales,CF14 3XQ"]
[10042257,"ü","North Somerset Levels Internal Drainage Board","The Grange,,,,England,BS24 6RR"]
[10028975,"ü","Northumbria Learning","6 Charlotte Square,,,Tyne and Wear,England,NE18XF"]
[10040077,"ü","North Walsham High School","Spenser Avenue,,,Norfolk,England,NR28 9HZ"]
[10029388,"ü","Northway And Fairway School","THE FAIRWAY,MILL HILL,,Greater London,England,NW7 3HS"]
[10003110,"ü","North West Kent College Of Technology","Miskin Road,,,Kent,England,DA1 2LU"]
[10019264,"ü","Northwick Manor Junior School","Northwick Road,,,Worcestershire,England,WR3 7EA"]
[10570167,"ü","Northwood Broom Academy","Keelings Road, Northwood,,,,,ST1 6QA"]
[10043100,"ü","Norton C of E Primary School","Cold Elms,Norton,,Gloucestershire,England,GL2 9LJ"]
[10017351,{"$f":"CHAR(252)","v":"ü"},"Norwich Consolidated Charities","10 Golden Dog Lane,,,Norfolk,England,NR3 1BP"]
[10009612,"ü","Notre Dame High School Norwich","Surrey Street,,,Norfolk,England,NR1 3PB"]
[10026731,{"$f":"CHAR(252)","v":"ü"},"Nottingham CVS","7 Mansfield Road,,,Nottinghamshire,England,NG1 3FB"]
[10561781,"ü","Nottingham Hebrew Congregation","Shakespeare Villas,Shakespeare Street,,Nottinghamshire,England,NG1 4FQ"]
[10020100,"ü","Nottinghamshire Learning and Skills Council","Castle Marina Road,Castle Marina Park,,Nottinghamshire,England,NG7 1TN"]
[10017355,"ü","Novas Ouvertures Group Limited","Chancery House,Paradise Street,,Merseyside,England,L1 3HE"]
[10038488,"ü","NPS Property Consultants Limited","16 Central Avenue,St. Andrews Business Park,,Norfolk,England,NR7 0HR"]
[10039378,"ü","NTCG Northampton","New Testament Church Of God,College Street,,Northamptonshire,England,NN1 2QP"]
[10039616,"ü","Nuffield Practice The","Welch Way,,,Oxfordshire,England,OX28 6JQ"]
[10570021,"ü","Nunnykirk Centre for Dyslexia","Nunnykirk Hall, Netherwitton,,,,,NE61 4PB"]
[10578949,"ü","oakfield academy frome","Oakfield Road.,,,Somerset,England,BA11 4JF"]
[10576177,"ü","Oakfield House School","Salwick,,,,,PR4 0YH"]
[10025127,"ü","Oakgrove School","Venturer Gate,Middleton,,Buckinghamshire,England,MK10 9JQ"]
[10002311,"ü","Oaklands Catholic School","Stakes Hill Road,,,Hampshire,England,PO7 7BW"]
[10030278,"ü","Oakleigh House School (Independent)","38 Penlan Crescent,,,West Glamorgan,Wales,SA2 0RL"]
[10034984,"ü","OAK LODGE MEDICAL PRACTICE","OAK LODGE,,,Lanarkshire,England,ML3 7EN"]
[10043760,"ü","Oak Tree Primary School","Queens Road,Cheadle Hulme,,Greater Manchester,England,SK8 5HH"]
[10568860,"ü","Oakwood Learning Centre","New Biggin Lane, Heighington,,,,,DL2 2UH"]
[10054227,"ü","Oasis Academy Henderson Avenue","Henderson Avenue,,,Lincolnshire,England,DN15 7RW"]
[10054219,"ü","Oasis Academy Longmeadow","Broadcloth Lane,,,Wiltshire,England,BA14 7HE"]
[10054212,"ü","Oasis Academy Woodview","Woodview Drive,,,West Midlands,England,B15 2HU"]
[10028472,"ü","Ocs Limited",",,,,,"]
[10026567,"ü","Office for Civil Society","2nd Floor,Admiralty Arch,South Side, The Mall,Greater London,England,SW1A 2WH"]
[10029833,"ü","Office for Security and Counter-Terrorism","2 Marsham Street,,,Greater London,England,SW1P 4DF"]
[10055447,"ü","Office of the Police and Crime Commissioner for Leicestershire","St. Johns,Enderby,,Leicestershire,England,LE19 2BX"]
[10026461,"ü","Ogilvie School Campus","Ogilvie Way,,,West Lothian,Scotland,EH54 8HL"]
[10570255,"ü","Old Basford School","Percy Street, Old Basford,,,,,NG6 0GF"]
[10036280,"ü","Older People's Commisioner of Wales","MOUNT STUART SQUARE,,,Nottinghamshire,England,NG7 6BE"]
[10029708,"ü","Old Hall Peoples Partnership","Peoples Partnership Centre,Wing Close,Bentley,West Midlands,England,WS2 0LS"]
[10019703,"ü","Old Park School","Corbyn Road,Russels Hall,,West Midlands,England,DY6 9AW"]
[10580932,"ü","Olive Academies","95 Ditchling Road,,,East Sussex,England,BN1 4ST"]
[10024540,"ü","Oliver Goldsmith School","83 Peckham Road,,,Greater London,England,SE5 8UH"]
[10035901,"ü","One Church","Off Baneberry Road,,Gloucester,Gloucestershire,England,GL4 6NY"]
[10041714,"ü","Ongo Communities Limited","Meridian House,Normanby Road,,Lincolnshire,England,DN15 8QZ"]
[10009673,"ü","Opendoor Housing Trust","106 Weston Street,,,Greater London,England,SE1 3QB"]
[10000455,"ü","Open University","Walton Hall,,,Buckinghamshire,England,MK7 6AA"]
[10041602,"ü","Orbitas Brereavement Services Limited","Westfields,Middlewich Road,,Cheshire,England,CW11 1HZ"]
[10568642,"ü","Orchard Primary School","Holcroft Road, Hackney,,,,,E9 7BB"]
[10024304,"ü","Orders of St Johns Care","Langlands,Balfour Road,Blackbird,Oxfordshire,England,OX4 6AJ"]
[10580849,"ü","Ore Valley Housing Association","114-116 Station Road, Cardenden,,,Fife,Scotland,KY5 0BW"]
[10038017,"ü","Ormiston Bolingbroke Academy Trust","Barnfield Avenue,Murdishaw,,Cheshire,England,WA7 6EP"]
[10022776,"ü","Orrishmere Primary School","Worcester Road,,,Cheshire,England,Sk8 5NW"]
[10573688,"ü","Oswald Road Primary School","Chorlton-Cum-Hardy,,,,,M21 9PL"]
[10028476,"ü","Other NHS Sales - Telesales",",,,,,"]
[10575326,"ü","Oughton Primary and Nursery School","Mattocke Road,,,,,SG5 2NZ"]
[10573261,"ü","Our Lady & St. Bede Catholic Academy","Bishopton Road West,,,,,TS19 0QH"]
[10570437,"ü","Our Lady and St Joseph Catholic Primary School","Ramley Road, Pennington,,,,,SO41 8GY"]
[10024567,"ü","Our Lady and St Patricks Roman Catholic School","Fourth Avenue,,,Devon,England,TQ14 9DT"]
[10570563,"ü","Our Lady of Grace RC Primary School","Highfield Road, Prestwich,,,,,M25 3AS"]
[10031511,"ü","Our Lady Of Lourdes Roman Catholic Primary School (ASSISI Catholic Trust)","Manchester Drive,,,Essex,England,SS9 3HS"]
[10573759,"ü","Our Lady of Victories RC Primary School","Clareville Street,,,,,SW7 5AQ"]
[10021289,"ü","Our Ladys High School","Morecambe Road,,,Lancashire,England,LA1 2RX"]
[10041541,"ü","Our Lady?s Convent High School","6-16 Amhurst Park,,,Greater London,England,N16 5AF "]
[10031079,"ü","Outwoods Edge Primary School","21 Redwood Road,,,Leicestershire,England,LE11 2LD."]
[10023591,"ü","Overseas Service Pensions Scheme Advisory Board","Abercrombie House,Eaglesham Road,East Kilbride,Strathclyde,Scotland,G75 8EA"]
[10036572,"ü","Overton Grange School","36 Stanley Road,,,Surrey,England,SM2 6TQ"]
[10004696,"ü","Oxford Brookes University","Cheney Lane,Headington,,Oxfordshire,England,OX3 0BD"]
[10036115,"ü","Oxfordshire Playbus","Building 549,Brice Road,Upper Heyford,Oxfordshire,England,OX25 5TE"]
[10026900,"ü","Oxton St Saviours Church of England Aided Primary School","140 Holm Lane,,,Merseyside,England,CH43 2HT"]
[10041163,"ü","Oyne School","Oyne,,,Aberdeenshire,Scotland,AB52 6QT"]
[10027329,"ü","Padstow Town Council","Station House,Station Road,,Cornwall,England,PL28 8DA"]
[10570357,"ü","Palfrey Girls School","72 Queen Mary Street, Palfrey,,,,,WS1 4AB"]
[10570362,"ü","Pannal Primary School","Pannal Green, Pannal,,,,,HG3 1LH"]
[10000564,"ü","Papworth Hospital NHS Foundation Trust","Papworth Hospital,Everard,,Cambridgeshire,England,CB3 8RE"]
[10038651,"ü","Parenting Project The","Clopton Road,,,Warwickshire,England,CV37 6TE"]
[10572565,"ü","Park Community School","200 Dorset Road,,,,,SW19 3EF"]
[10540973,"ü","Park Hall Academy","Water Orton Road,,,West Midlands,England,B36 9HF"]
[10572004,"ü","Park Hall Academy","Carberry Way, Weston Coyney,,,,,ST3 5QU"]
[10574088,"ü","Parklands Community Primary School","Durnford Close,,,,,PO19 3AG"]
[10575763,"ü","Park Lane Primary School","Park Lane,,,,,CV10 8NL"]
[10565976,"ü","Park School Teaching Service","Roscow Fold Centre, Stephens Street, Breightmet,,,,,BL2 5DX"]
[10035186,"ü","Parkside Family Practice","6 Headley Road,,,Berkshire,England,RG5 4JA"]
[10043833,"ü","Park Street C of E Primary School","Lower Park Street,,,Cambridgeshire,England,CB5 8AR"]
[10021501,"ü","Parkwood Hall School","Beechenlea Lane,,,Kent,England,BR8 8DR"]
[10039411,"ü","Parrett Idb","1 Church Street,,,Somerset,England,TA9 3AE"]
[10009742,"ü","Parrs Wood High School","Wilmslow Road,East Didsbury,,Lancashire,England,M20 5PG"]
[10025207,"ü","Parwich Primary School","Parwich,,,Derbyshire,England,DE6 1QJ"]
[10017390,"ü","Pathmeads Housing Association Limited","Olympic Office Centre,,,Middlesex,England,HA9 0TB"]
[10002581,"ü","Pavilion Housing Association","Gordon House,Gordon Road,,Hampshire,England,GU11 1LD"]
[10019904,"ü","Paxton Green Group Practice","Paxton Green Health Centre,1 Alleyn Park,,Greater London,England,SE21 8AU"]
[10020311,"ü","Peacehaven Community School","Greenwich Way,,,East Sussex,England,BN10 8RB"]
[10566115,"ü","Pear Tree School","Toy Top Farm, Houghton Bank, Heighington,,,,,DL2 2UQ"]
[10042217,"ü","Peel Hall Primary","Greencourt Drive,,,Greater Manchester,England,M380BZ"]
[10029217,"ü","Peel Hall Primary School","Ashurst Road,,,Greater Manchester,England,M22 5AU"]
[10032511,"ü","Pembroke College","Trumpington Street,,,Cambridgeshire,England,CB2 1RF"]
[10019132,"ü","Pembury School","Lower Green Road,Pembury,,Kent,England,TN2 4EB"]
[10028712,"ü","Peninsula Health LLP","Candy Park,Old Hall Road,,Merseyside,England,CH62 3PE"]
[10025420,"ü","Penistone St Johns Church of England Infant School","Chapel Field Lane,Penistone,,South Yorkshire,England,S36 6FS"]
[10574582,"ü","Pennine Way Primary School","Harraby,,,,,CA1 3SN"]
[10037872,"ü","Penruddock Primary School","Penruddock,,,Cumbria,England,CA11 0QU"]
[10006746,"ü","Pentland Infant and Nursery School","Pentland Road,Savile Town,,West Yorkshire,England,WF12 9JR"]
[10029462,"ü","Pent Valley Technology College","Surrenden Road,,,Kent,England,CT19 4ED"]
[10037195,"ü","Peoples Palace Projects","Room W102,Finance Department            ,University Of London,,,England,E1 4NS"]
[10055050,"ü","Perry Beeches Academy Trust","Beeches Road,,,,England,B42 2PY"]
[10038733,"ü","Perth and District YMCA","5 Charlotte Street,,,Perth and Kinross,Scotland,PH1 5LW"]
[10570456,"ü","Perton Middle School","Gainsborough Drive, Perton,,,,,WV6 7NR"]
[10040961,"ü","Peterhouse Cambridge","Peterhouse,,,Cambridgeshire,England,CB2 1RD"]
[10043173,"ü","Pharmaceutical Services Negotiating Committee","3Rd Floor, Times House,,,Greater London,England,N1 9AW"]
[10009803,"ü","Phoenix Community Housing Co operative Limited","119 Roman Road,Bethnal Green,,Greater London,England,E2 0QN"]
[10566970,"ü","Phoenix Nursery School","Phoenix Street, Blakenhall,,,,,WV2 3JS"]
[10572720,"ü","Pier View Academy","42-44 Harmer Street,,,,,DA12 2AX"]
[10564909,"ü","Pilotlight","4-10 Heneage Lane,,,,England,EC3A 5DQ"]
[10570259,"ü","Pine Ridge Infant School","Esher Road, Old Dean Estate,,,,,GU15 4AW"]
[10000303,"ü","Pirbright Institute The","Pirbright Laboratory,Ash Road,Pirbright,Surrey,England,GU24 0NF"]
[10019613,"ü","Pitcairn Primary","Bridgton Brae,,,,Scotland,PH1 3LJ"]
[10009811,"ü","Planning Inspectorate","2 The Square Temple Quay House,Temple Quay,,Gloucestershire,England,BS1 6PN"]
[10036041,"ü","Plockton High School","Plockton,,,,Scotland,IV52 8TU"]
[10001959,"ü","Plumpton College","Ditchling Road,,,East Sussex,England,BN7 3AE"]
[10550204,"ü","Plymouth Utc Ltd T/A Utc Plymouth","Park Avenue,Devonport,,Devon,England,PL1 4RL"]
[10036532,"ü","Polebrook Primay School","Main Street,Polebrook,,Northamptonshire,England,PE8 5LN"]
[10040067,"ü","Police and Crime Commissioner of Cleveland","Middlesbrough Headquarters,Bridge Street West,,North Yorkshire,England,TS2 1AB"]
[10017417,"ü","Polish Retired Persons Housing Association Limited","24 Florence Road,,,Greater London,England,W5 3TX"]
[10563325,"ü","Polperro Community Council","Brentfields,,,Cornwall,England,PL13 2JJ"]
[10025190,"ü","Pontyberem Council","Memorial Hall,,Coal Brook Road,Pontyberem,,Dyfed,Wales,SA15 1HU"]
[10032655,"ü","Pope Pius X Catholic High School","Chestnut Avenue,Wath-upon-Dearne,,South Yorkshire,England,S63 7PQ"]
[10009824,"ü","Poppleton Road Primary School","Poppleton Road,,,Yorkshire,England,YO26 4UP"]
[10030539,"ü","Portglenone Health Centre","17 Townhill Road,,,County Antrim,Northern Ireland,BT44 8AD"]
[10041774,"ü","Portlethen Community Ambulance","23 St. Ternans Road,Newtonhill,,Aberdeenshire,Scotland,AB39 3PF"]
[10002481,"ü","Portsmouth Grammar School","High Street,,,Hampshire,England,PO1 2LN"]
[10570479,"ü","Portway Primary School","Stratford Road, Plaistow,,,,,E13 0JW"]
[10026949,"ü","Potteries Medical Centre","Beverley Drive,Bentilee,,Staffordshire,England,ST2 OJG"]
[10019484,"ü","Powys Local Health Board","Cwmbarn House,Mamhilad Park Estate,,,Wales,NP4 0XS"]
[10567168,"ü","Prendergast Ladywell School","Manwood Road, Brockley,,,,,SE4 1SA"]
[10034930,"ü","Presbytery The","Vergam Terrace,,,Dyfed,Wales,SA65 9DF"]
[10581132,"ü","Preston Care & Repair","Suite 4,Hamilton House,Leyland Business Park\nCenturion Way,Lancashire,England,PR25 3GR"]
[10575913,"ü","Priddy Primary School","Priddy,,,,,BA5 3BE"]
[10012174,"ü","Primrose Hill Community School","Tees Grove,Kings Norton,,West Midlands,England,B38 9DH"]
[10542107,{"$f":"CHAR(252)","v":"ü"},"Prince Philip Centre Phab Leeds","Prince Philip Centre,Scott Hall Avenue,,West Yorkshire,England,LS7 2HJ"]
[10573799,"ü","Princess Frederica CofE Primary School","College Road,,,,,NW10 5TP"]
[10029043,"ü","PRIORS FIELD SCHOOL TRUST LIMITED The","Priorsfield Road,Godalming,,Surrey,England,GU7 2RH"]
[10028012,"ü","Priory Grange Potters Bar","190 BARNET ROAD,,,Hertfordshire,England,EN6 2SE"]
[10027768,"ü","Priory Hospital Hayes Grove","PRESTONS ROAD,,,Kent,England,BR2 7AS"]
[10035063,"ü","Priory Primary School","Priory Road,,,East Yorkshire,England,HU5 5RU"]
[10006419,"ü","Prison Services College","Newbold,Revel,,Warwickshire,England,CV23 0TH"]
[10007343,"ü","Project Phoenix","Elm 1a Mod Abbywood,Station Road,,Gloucestershire,England,BS34 8JH"]
[10009872,"ü","Prospects College","Pegasus House,Bentalls,Pipp Hill Industrial Estate,Essex,England,SS14 3BX"]
[10573566,"ü","Prudhoe Castle First School","Castle Road,,,,,NE42 6PH"]
[10578214,"ü","Public Sector Audit Appintments",",,,,,"]
[10026704,"ü","Pulteney Practice The","35 Great Pulteney Street,,,Somerset,England,BA2 4BY"]
[10032574,"ü","Purbeck View School","Northbrook Road,,,Dorset,England,BH19 1PR"]
[10043678,"ü","Puss Bank School","Barracks Lane,,,Cheshire,England,SK10 1QJ"]
[10572889,"ü","Quainton Hall School","91 Hindes Road,,,,,HA1 1RX"]
[10577185,"ü","Queen's Crescent Primary School","Windsor Close,,,,,SN14 0QT"]
[10009898,"ü","Queen Elizabeth Grammar School","West Park Road,,,Lancashire,England,BB2 6DF"]
[10564714,"ü","Queen Elizabeths High School","Morton Terrace,,,,England,DN21 2ST"]
[10033672,"ü","Queen Katherine School The","Appleby Road,,,Cumbria,England,LA9 6PJ"]
[10568634,"ü","Queensgate College","192 Well Street, Hackney,,,,,E9 6QT"]
[10025918,"ü","Queensmead Primary Academy","Winstanley Drive,Braunstone,,Leicestershire,England,LE3 1PF"]
[10014805,"ü","Queensway Infant School and Nursery","Queensway,,,Norfolk,England,IP24 3DR"]
[10542111,"ü","R & T Management",",,,,England,MK42 8AX"]
[10039973,"ü","Radford Primary School","Lawrence Saunders Road,,,West Midlands,England,CV6 1HD"]
[10567178,"ü","Raeburn Primary School","Morland Avenue, Bromborough,,,,,CH62 6BD"]
[10009929,"ü","RAF Benson","Main Office,,,Oxfordshire,England,OX9 6AA"]
[10006769,"ü","RAF Leeming","Main Office,Dept SSS,,Yorkshire,England,DL7 9NJ"]
[10033412,"ü","Raglan Community Council","6 CHAPEL ORCHARD,,,Gwent,Wales,NP7 7BQ"]
[10018666,"ü","Rail Link Engineering","Union Railways North Ltd,2 ORIENT wAY,,Greater London,England,E10 5YA"]
[10576861,"ü","Rainham Village Primary School","Upminster Road South,,,,,RM13 9AA"]
[10019086,"ü","Ramsey Abbey School","The Abbey,Ramsey,,Cambridgeshire,England,PE26 1DH"]
[10570640,"ü","Rangeworthy Church of England Primary School","Wotton Road, Rangeworthy,,,,,BS37 7ND"]
[10576009,"ü","Raughton Head CofE School","Raughton Head,,,,,CA5 7DD"]
[10025876,"ü","Ravenor Primary School","Greenway Gardens,,,,England,UB6 9TT"]
[10017439,"ü","Ravenscroft Re Build Co operative Limited","26 St Andrews View,Highfield, Tower Hill,,Merseyside,England,L33 1ZF"]
[10032306,"ü","Rawmarsh Community School","Monkwood Road,Rawmarsh,,South Yorkshire,England,S62 7GA"]
[10009956,"ü","Rawthorpe Church of England Infant Nursery School","Rawthorpe Lane,Rawthorpe,,West Yorkshire,England,HD5 9NT"]
[10033585,"ü","Rc National Shrine Of Our Lady","Houghton St Giles,,,Norfolk,England,NR22 6EG"]
[10009959,"ü","Read On Write Away","c/o Derbyshire County Council,County Hall,,Derbyshire,England,DE4 3AG"]
[10012048,"ü","Reculver CEP School","Hillborough,,,Kent,England,CT6 6TA"]
[10042196,"ü","Redbrook C of E Primary School","Redbrook,,,Monmouthshire,Wales,NP25 4LY"]
[10018668,"ü","Redcar and Cleveland Social Services","Resource Centre,20 Grosmont Close,,Cleveland,England,TS10 4PJ"]
[10568332,"ü","Redgate Community Primary School","Redgate, Formby,,,,,L37 4EW"]
[10576033,"ü","Redlands Primary School","Redlands Lane,,,,,PO16 0UD"]
[10021782,"ü","Redmile Primary School The","6 Belvoir Road,,,Nottinghamshire,England,NG13 OGL"]
[10043990,"ü","Reed First School","Jacksons Lane, Reed,,,,,SG8 8AB"]
[10566368,"ü","Regent College","Sai House, 167 Imperial Drive,,,,,HA2 7JP"]
[10009982,"ü","Registered Inspectors of School Appeals","Sanctuary Buildings,Great Smith Street,,Greater London,England,SW1P 3BT"]
[10023825,"ü","Religious Society of Friends The","Friends Meeting House,150 Church Road,,Hertfordshire,England,WD17 4QB"]
[10031583,"ü","Rendell Primary School","Rendell Street,,,Leicestershire,England,LE11 1LL"]
[10025297,"ü","Research Equipment Affinity Group The","Leeds Innovation Centre,103 Clarendon Road,,West Yorkshire,England,LS2 9DF"]
[10038703,"ü","Restless Development","Faith House     ,2nd Floor,7 Tufton Street,Greater London,England,SW1P 3QB"]
[10003463,"ü","Revoe Primary School","Grasmere Road,,,Lancashire,England,FY1 5HP"]
[10034963,"ü","Rhiw Syr Dafydd Primary School","Maes-Y-Garn Road,,,Gwent,Wales,NP12 0NA"]
[10575974,"ü","Ribblesdale High School","Queens Road,,,,,BB7 1EJ"]
[10021371,"ü","Richard Hale School","Hale Road,,,Hertfordshire,England,SG13 8EN"]
[10016574,"ü","Richmond Fellowship Limited The","80 Holloway Road,Highbury,,Greater London,England,N7 8JG"]
[10015548,"ü","Richmond Infant School","Richmond Road,,,Kent,England,ME7 1LS"]
[10570690,"ü","Riddings Junior School","Church Street, Riddings,,,,,DE55 4BW"]
[10010015,"ü","Ridgewood School","Barnsley Road,,Scawsby,,South Yorkshire,England,DN5 7UB"]
[10002578,"ü","Ringwood Church of England Infant School","School Lane,,,Hampshire,England,BH24 1LG"]
[10010018,"ü","Ripley Infant School","Kirk Close,Ripley,,Derbyshire,England,DE5 3RY"]
[10024921,"ü","Rise Park Primary and Nursery","Bestwood Park Drive West,,,Nottinghamshire,England,NG5 5EL"]
[10012524,"ü","Riverhaven Limited","Estra House,Station Approach,Streatham,Greater London,England,SW16 6HW"]
[10031592,"ü","Riverside Health Centre","James Street West,,,Somerset,England,BA1 2BT"]
[10566969,"ü","Rivers Primary Academy","Mersey Road, Blakenall,,,,,WS3 1NP"]
[10013288,"ü","Riverwalk School","Riverwalk School,South Close,,Suffolk,England,IP33 3JZ"]
[10021574,"ü","Robert Bloomfield Middle School","Bloomfield Drive,,,Bedfordshire,England,SG17 5BU"]
[10022015,"ü","Robert Mellors Primary and Nursery School","Bonington Drive,,,Nottinghamshire,England,NG5 7EX"]
[10029658,"ü","Robertsbridge Community College","Knelle Road,,,East Sussex,England,TN32 5EA"]
[10043671,"ü","Rochdale Connections Trust","60 Drake Street,,,Greater Manchester,England,OL16 1PA"]
[10005700,"ü","Rockingham J and I School","Roughwood Road,Wingfield Estate,,South Yorkshire,England,S61 4HY"]
[10576091,"ü","Rodmell Church of England Primary School","Rodmell,,,,,BN7 3HF"]
[10002703,"ü","Roger de Clare First School","Station Road,,,Hertfordshire,England,SG11 1TF"]
[10020638,"ü","Roke Primary School","51 Little Roke Road,,,Surrey,England,CR8 5NF"]
[10570721,"ü","Romsley St Kenelm's CofE Primary School","Bromsgrove Road, Romsley,,,,,B62 0LF"]
[10044183,"ü","Ropsley C of E Primary School","School Lane,Ropsley,,,England,NG33 4BT"]
[10010050,"ü","Rosebank Primary School","Academy Street,,,Highlands,Scotland,IV12 4RB"]
[10566164,"ü","Rose Hill Primary School","Elmfield Drive, Rose Hill, Marple,,,,,SK6 6DW"]
[10572954,"ü","Rosewood Free School","Aldermoor Road,,,,,SO16 5NA"]
[10033609,"ü","Ross Shire Voluntary Action","Thorfin House,Bridgend Business Park,,Ross-shire,Scotland,IV15 9SL"]
[10577833,"ü","Rotherham RISE","22 Main Street,,,South Yorkshire,England,S60 1AJ"]
[10570730,"ü","Rothwell Haigh Road Infant School","Haigh Road, Rothwell,,,,,LS26 0NQ"]
[10036704,"ü","Rowanfield Junior School","Alstone Lane,,,Gloucestershire,England,GL51 8HY"]
[10570747,"ü","Rownhams St John's Church of England Primary School","Bakers Drove, Rownhams,,,,,SO16 8AD"]
[10576782,"ü","Roxbourne Primary School","Torbay Road,,,,,HA2 9QF"]
[10032932,"ü","Royal Airforce Club","128 Piccadilly,,,Greater London,England,W1J 7PY"]
[10038345,"ü","Royal College of Midwives","Kings House 2nd Floor,Kings Street,,West Yorkshire,England,LS1 2HH"]
[10043482,"ü","Royal Free Hospital Childrens School","Royal Free Hospital,Pond Street,,,England,NW3 2QG"]
[10032648,"ü","Royal Institution of Great Britain The","21 Albemarle Street,,,Greater London,England,W1S 4BS"]
[10023050,"ü","Royal London Society for the Blind","Dorton House,Seal,,Kent,England,TN15 0ED"]
[10044078,"ü","Royal Naval Fuel Depot","Thanckes,Wilcove,,Cornwall,England,PL11 2PG"]
[10044152,"ü","Royal School For The Blind, the",",,,,,"]
[10026129,"ü","Royal Welsh Agricultural Society The","Llanelwedd,,,Powys,Wales,LD2 3SY"]
[10010131,"ü","Royal Wolverhampton School","163 Penn Rd,,,West Midlands,England,WV3 0EG"]
[10013694,"ü","Rubery Nursery School","Leybrook Road,Rednal,,West Midlands,England,B45 9PB"]
[10575049,"ü","Rugby School","Lawrence Sheriff Street,,,Warwickshire,England,CV22 5EH"]
[10040990,"ü","Rural Community Council Of Essex","Threshelfords Bsns Park ,Inworth Road,,Essex,England,CO5 9SE"]
[10542134,"ü","Rural Support","Dungannon Road,,,,Northern Ireland,BT80 9AA"]
[10575658,"ü","Ruskin College","Old Headington,,,,,OX3 9BZ"]
[10043621,"ü","Rusthall Lodge Housing Association","Rusthall Lodge,Nellington Road,Rusthall,Kent,England,TN4 8SJ"]
[10560199,"ü","Ruthin School",",,,,Wales,LL15 1EE"]
[10029503,"ü","Rydon Primary School","RYDON ROAD,,KINGSTEIGNTON,Devon,England,TQ12 3LP  "]
[10041136,"ü","Ryton Park Primary School","Sparken Hill,,,Nottinghamshire,England,S80 1AW"]
[10569923,"ü","Sacred Heart Catholic Primary School","Danger Lane, Moreton,,,,,CH46 8UG"]
[10021447,"ü","Sacred Heart Primary School","Burlington Road,,,Surrey,England,KT3 4ND"]
[10573440,"ü","Sacred Heart RC Primary School","Broomfield Avenue,,,,,DL7 8UL"]
[10043311,"ü","Safe Families For Children","Venture House,,,County Durham,England,DH1 5TS"]
[10027388,"ü","Saint Andrews Surgery","166 Market Street,,,Hampshire,England,SO50 5PT"]
[10028879,"ü","Saint Clares Catholic Primary School","22 Robert Road,,,West Midlands,England,B20 3RT"]
[10574587,"ü","Saint Patrick's Catholic Primary School","Harrison Road,,,,,LE4 6QN"]
[10566148,"ü","Saints Peter and Paul Catholic Primary School","Moorfield, Tower Hill, Kirkby,,,,,L33 1DZ"]
[10034264,"ü","Salford Medical Centre","194-198 LANGWORTHY RD FAO DR A SALIM,,,Greater Manchester,England,M6 5PP"]
[10027152,"ü","Salix Homes","Diamond House,,2 Peel Cross Road,,Greater Manchester,England,M5 4DT"]
[10575309,"ü","Saltburn Primary School","Marske Mill Lane,,,,,TS12 1HJ"]
[10001224,"ü","Salvation Army South Western Division DHQ","6 Marlborough Court,Manaton Close,Matford Business Park,Devon,England,EX2 8PF"]
[10020592,"ü","Samuel Whites Infant School","Creswicke Avenue,,,,England,BS15 3PN"]
[10017488,"ü","Sandbach Almshouse Charity","The Gables,20 Crewe Road,,Cheshire,England,CW11 4NE"]
[10022632,"ü","Sandhill View School","Grindon Lane,,,Tyne and Wear,England,SR3 4EN"]
[10027129,"ü","Sandringham Primary School","Sandringham Road,Intake,,South Yorkshire,England,DN2 5LS"]
[10037384,"ü","Sandye Place Academy","Park Road,,,Bedfordshire,England,SG19 1JD"]
[10039474,"ü","Sasan Khazenifar","1 Harwood Gardens,Waterthorpe,,South Yorkshire,England,S20 7LE"]
[10583136,"ü","Save the Children International","St Vincent House,30 Orange Street,,Greater London,England,WC2H 7HH"]
[10024141,"ü","Saxon Way Primary School","Church Path,Ingram Road,,Kent,England,MC7 1SJ"]
[10027336,"ü","Scargill Junior School","Mungo Park Road,,,Kent,England,RM13 7PL"]
[10570826,"ü","Scawby Academy","West Street, Scawby,,,,,DN20 9AN"]
[10035565,"ü","School of Humanities and Social Science","7 West Road,Cambridge,,Cambridgeshire,England,CB3 9DT"]
[10033327,"ü","SCIO","2 Frewin Court,,,Oxfordshire,England,OX1 3HZ"]
[10015484,"ü","Scottish Ambulance Special Health Board","National Headquarters,Tipperlinn Road,,Lothian,Scotland,EH10 5UU"]
[10014937,"ü","Scottish Crop Research Institute The","Mylnefield,Invergowrie,,Angus,Scotland,DD2 5DA"]
[10010209,"ü","Scottish Enterprise Edinburgh and Lothian","Apex House,99 Haymarket Terrace,,Mid Lothian,Scotland,EH12 5HD"]
[10014069,"ü","Scottish Government Health Department","St Andrews House,,,Lothian,Scotland,EH1 3DG"]
[10036995,"ü","Scottish Qualification Authority","24 Wester Shawfair,,,Lothian,Scotland,EH22 1FD"]
[10033612,"ü","Scottish Training Foundation The","93 Princes Street,Ardeer,,Ayrshire,Scotland,KA22 8DQ"]
[10003483,"ü","Scripture Union Scotland","9 Canal Street,Rumbling Bridge,,Strathclyde,Scotland,G4 0AB"]
[10041516,"ü","Seaham Town Council","3-4 Adelaide Row,,,County Durham,England,SR7 7EF"]
[10572823,"ü","Seaton House School","67 Banstead Road South,,,,,SM2 5LH"]
[10032446,"ü","Sedgefield Borough Homes Limited","Green Lane Offices,,,County Durham,England,DL16 6JQ"]
[10571102,"ü","Sedley's Church of England Voluntary Aided Primary School","Church Street, Southfleet,,,,,DA13 9NR"]
[10575518,"ü","Selby Abbey Church of England Voluntary Controlled Primary School","New Lane,,,,,YO8 4QB"]
[10016686,"ü","Selwood Housing","Bryer Ash Business Park,Bradford Road,,Wiltshire,England,BA14 8RT"]
[10003157,"ü","Sense Trading","Unit 4 Bourne Industrial Park,Bourne Road,,Kent,England,DA1 4BZ"]
[10042031,"ü","SEO London","18 - 21 Hand Court,,,Greater London,England,WC1V6JF"]
[10542153,"ü","Serv Sussex",",,,,England,BN2 6RS"]
[10021121,"ü","Seven Kings High School","Ley Street,,,Essex,England,IG2 7BT"]
[10026942,"ü","Sgoiltean Ura LLP","Unit 8, Harbour View,Cromwell Street Quay,Stornoway,Western Isles,Scotland,HS1 2DF"]
[10576114,"ü","Shadsworth Infant School","Rothesay Road,,,,,BB1 2EL"]
[10031641,"ü","Shakespeare Primary School","400 Honicknowle Lane,,,Devon,England,PL5 3JU"]
[10018699,"ü","Sharnbrook Academy Federation","Seaforth Gardens,,,Bedfordshire,England,MK40 4TJ"]
[10577172,"ü","Shawfield Primary School","Winchester Road,,,,,GU12 6SX"]
[10010272,"ü","Shaw Ridge Primary School","Ridge Green,Shaw,,Wiltshire,England,SN5 5PU"]
[10026495,"ü","Sheffield Consolidation Project","The Portergate,257 Eccleshall Road,,Yorkshire,England,SN11 8NX"]
[10018804,"ü","Sheffield Trainers","433 Brightside Lane,,,South Yorkshire,England,S9 2RS"]
[10039490,"ü","Shelthorpe Community School","Woodthorpe Road,,,Leicestershire,England,LE11 2NF"]
[10570909,"ü","Shenington Church of England Primary School","Stocking Lane, Shenington,,,,,OX15 6NF"]
[10026850,"ü","Shepton Mallet Infants School","Waterloo Road,,,Somerset,England,BA4 5HE"]
[10570922,"ü","Shere CofE Aided Infant School","Gomshall Lane, Shere,,,,,GU5 9HB"]
[10571838,"ü","Sherwood Junior School","Sherwood Street, Warsop,,,,,NG20 0JT"]
[10032476,"ü","Shetland Charitable Trust","22-24 North Road,Lerwick,,,Scotland,ZE1 0NQ"]
[10039492,"ü","Shinfield Health Ctr","School Green,Shinfield,,Berkshire,England,RG2 9EH"]
[10577591,"ü","Shirley Community Primary School","Nuffield Road,,,Cambridgeshire,England,CB4 1TF"]
[10026215,"ü","Shoreditch Park Surgery","Rushton Street,,,Greater London,England,N1 5DR"]
[10570970,"ü","Shotley Community Primary School","Main Road, Shotley,,,,,IP9 1NR"]
[10562521,"ü","Shree Geeta Bhawan","107-117 Heathfield Road,Handsworth,,West Midlands,England,B19 1HL"]
[10041273,"ü","Shrubland Street Primary School","Shrubland Street Community School,Shrubland Street,,Warwickshire,England,CV31 2AR"]
[10018605,"ü","Sidley Community Primary School","Buxton Drive,,,East Sussex,England,TN39 4BD"]
[10020685,"ü","Sidney Stringer School","Cox Street,,,West Midlands,England,CV1 5NL"]
[10010295,"ü","Silsoe Research Institute","Wrest Park,Silsoe,,Bedfordshire,England,MK45 4HS"]
[10576317,"ü","Silvertrees Academy","Silvertrees Road,,,,,DY4 8NH"]
[10571000,"ü","Sinnington Primary School","Friars Hill, Sinnington,,,,,YO62 6SL"]
[10572773,"ü","Sirius Academy North","540 Hall Road,,,,,HU6 9BP"]
[10014158,"ü","Sir John Cass Foundation and Redcoat Secondary School","Stepney Way,,,Greater London,England,E1 0RH"]
[10570121,"ü","Sir Robert Pattinson Academy","Moor Lane, North Hykeham,,,,,LN6 9AF"]
[10024032,"ü","Sir William Stanier Community School","West Street,,,Cheshire,England,CW1 2PZ"]
[10041770,"ü","Sisters of Charity of Jesus and Mary","3 Hitchin Road,,,Hertfordshire,England,SG1 3BJ"]
[10001631,"ü","Sixth Form College Colchester The","North Hill,,,Essex,England,CO1 1SN"]
[10032634,"ü","Sketty Primary School","75 Carnglass Road,Sketty,,West Glamorgan,Wales,SA2 9HJ"]
[10021884,"ü","Skills for Logistics","14 Warren Yard,Warren Farm Office Village,Stratford Road,Buckinghamshire,England,MK12 5NW"]
[10017293,"ü","SLFHA Limited","Grosvenor House,125 High Street,,Surrey,England,CR0 9XP"]
[10017524,"ü","Sloswickes Almshouse Charity","19 Churchgate,,,Nottinghamshire,England,DN22 6PF"]
[10023329,"ü","Smiles on Broadway Dental Practice","152 The Broadway,,,Essex,England,SS1 3ES"]
[10033482,"ü","Snaresbrook Primary School","Meadow Walk,South Woodford,,Buckinghamshire,England,E18 2EN"]
[10576072,"ü","Snodland CofE Primary School","Roberts Road,,,,,ME6 5HL"]
[10033588,"ü","Social Market Foundation","11 Tufton St,,Westminster,Greater London,England,SW1P 3QB"]
[10028515,"ü","Sodexho Castlehill",",,,,,"]
[10035504,"ü","Soli House Catholic Youth Retreat Centre","Mill Lane,,,Warwickshire,England,CV37 6BJ"]
[10035104,"ü","SOMERCOTES PARISH COUNCIL","NOTTINGHAM RD,,,Derbyshire,England,DE55 4LY"]
[10571040,"ü","Somerleyton Primary School","The Green, Somerleyton,,,,,NR32 5PT"]
[10573362,"ü","Somerville Nursery School","Brentwood Street,,,,,CH44 4BB"]
[10012272,"ü","South Acton Early Excellence Centre","Castle Close,Acton,,Greater London,England,W3 8RX"]
[10583272,"ü","Southampton Citizens Advice Bureau","3 Kings Park Rd,,,,,SO15 2AT"]
[10029999,"ü","Southbank International School, Kensington (Independent)","36-38 Kensington Park,,,Greater London,England,W11 3BU"]
[10010339,"ü","South Camden Community School","Charrington Street,,,Greater London,England,NW1 1RG"]
[10001228,"ü","South Devon College","Newton Road,,,Devon,England,TQ2 5BY"]
[10577650,"ü","Southdowns Learning Trust","Ratton School Park Avenue,,,East Sussex,England,BN21 2XR"]
[10044029,"ü","South East Mobility and Rehabilitation Technology Centre",",,,,,"]
[10018460,"ü","Southern Association of Voluntary Action Groups for Europe SAVAGE","121a Winchester Road,Chandlers Ford,,Hampshire,England,SO53 2DR"]
[10020322,"ü","Southfield Community Primary School","Sandringham Close,,,Leicestershire,England,LE15 6SH"]
[10013660,"ü","Southfields Community College","333 Merton Road,,,Greater London,England,SW18 5JU"]
[10571053,"ü","South Green Junior School","Hickstars Lane, South Green,,,,,CM12 9RJ"]
[10031667,"ü","South Lakeland Voluntary Society For Blind","Stricklandgate House,,,Cumbria,England,LA9 4PU"]
[10561965,"ü","South Milford Community Primary School","Sand Lane,South Milford,,,England,LS25 5AU"]
[10004731,"ü","South Oxfordshire Housing Association Limited","Council Offices,Crowmarsh,,Oxfordshire,England,OX10 8HQ"]
[10579627,"ü","South Pennine Academies","87 Dryclough Road, ,Crosland Moor,,,,,HD4 5JA"]
[10021974,"ü","Southside Housing Association Limited","553 Shields Road,,,Strathclyde,Scotland,G41 2RW"]
[10575647,"ü","South View Infant and Nursery School","Off Shooters Way,,,,,RG21 5LL"]
[10004788,"ü","South Wales Borderers Museum","The Barracks,,,Powys,Wales,LD3 7EB"]
[10014233,"ü","Southwater Area Community Centre","Southwater Area Community CentreOffice, 1-2,Stainsby Street,,East Sussex,England,TN37 6LA"]
[10579562,"ü","South West London and St George's Mental Health NHS Trust","Springfield University Hospital,61 Glenburnie Rd,,Greater London,England,SW17 7DJ"]
[10034060,"ü","South Wight Medical Practice","THE SURGERY,BLACKGANG ROAD,,Isle of Wight,England,PO38 2BN"]
[10005723,"ü","South Yorkshire Passenger Transport Executive","PO Box 801,Exchange Street,,South Yorkshire,England,S2 5YT"]
[10026401,"ü","Space Studio Bunbury","Aspirations Campus, ,Ruskin Road,,,Oxfordshire,England,OX16 9HY"]
[10034288,"ü","Sparrow Farm Infant and Nursery School","Denham Road,,,,England,TW14 0DB"]
[10010396,"ü","Speedwell Technology College","Speedwell Road,Speedwell,,Gloucestershire,England,BS15 1NU"]
[10574249,"ü","Spelthorne School","Feltham Hill Road,,,,,TW15 1LP"]
[10043390,"ü","Spiral Health CIC","Sharoe Green Lane,Fulwood,,Lancashire,England,PR2 9HT"]
[10578030,"ü","Sport and Recreation Alliance","Burwood House,14-16 Caxton Street,,,England,SW1H 0QT"]
[10040513,"ü","Springboard Centre (Coalville ) Limited The","The Springboard Centre,Mantle Lane,,Leicestershire,England,LE67 3DW"]
[10034071,"ü","Springfield Primary Care Centre","SMEDLEY STREET,,,Greater London,England,SW8 2QZ"]
[10014304,"ü","Spring Grove Primary School","Spring Grove Primary School,Star Road,,Middlesex,England,TW7 4HB"]
[10042893,"ü","Spring Hill Primary School","Milton Road,,,Hampshire,England,SO15 2HQ"]
[10023580,"ü","Springwest Academy","Browell's Lane,FELTHAM,,Greater London,England,TW13 7EF"]
[10043271,"ü","Sprites Primary Academy","Stonechat Road,,,Suffolk,England,IP2 0SA"]
[10032479,"ü","Ss John Fisher And Thomas More Catholic High School","Gibfield Road,,,Lancashire,England,BB8 8JT"]
[10042362,"ü","St. Dominics Catholic Primary School","Inchbrook,,,Gloucestershire,England,GL5 5HP"]
[10541906,"ü","St. Joseph?s Catholic Primary School","St. Josephs Close,,,Worcestershire,England,WR9 0RY"]
[10577449,"ü","St. Paul's (Slade Green) Primary School",",,,,,DA8 2HX"]
[10029300,"ü","St. Sampsons Infant School","Bath Road,Cricklade,,Wiltshire,England,SN6 6AX"]
[10573650,"ü","Stafford Hall School","Cheltenham Place,,,,,HX3 0AW"]
[10573808,"ü","Stag Lane Infant and Nursery School","Collier Drive,,,,,HA8 5RU"]
[10028804,"ü","St Aidans High School","90-100 Waverley Drive,,,,Scotland,ML2 7EW"]
[10017571,"ü","Staincliffe Housing Association Limited","Elbolton,Hebden Road,Grassington,North Yorkshire,England,BD23 5LH"]
[10016013,"ü","St Albans Childrens Centre","Church Crescent,,,Hertfordshire,England,AL3 5JB"]
[10037507,"ü","St Aloysius' Primary School","1 Honeywell Crescent,Chapelhall,,Strathclyde,Scotland,ML6 8XW"]
[10573691,"ü","Stamford Green Primary School","Christ Church Mount,,,,,KT19 8LU"]
[10574311,"ü","Stamford St Gilberts Church of England Primary School","Foundry Road,,,,,PE9 2PP"]
[10576853,"ü","St Andrew's Church of England Primary School","Union Road,,,,,OL12 9QA"]
[10567942,"ü","St Andrew's CofE Methodist (Aided) Primary School","Pentland Road, Dronfield Woodhouse,,,,,S18 8ZQ"]
[10042283,"ü","St Andrew and St Francis Primary School","BELTON ROAD,,,Greater London,England,NW2 5PE"]
[10034072,"ü","St Andrew S Ce Infant School","UPPER CHURCH LANE,FARNHAM,,Surrey,England,GU9 7PW"]
[10010419,"ü","St Andrews Hospital","Billing Road,,,Northamptonshire,England,NN1 5DG"]
[10576527,"ü","Stanford Junior School","Stanford Road,,,,,BN1 5PR"]
[10576530,"ü","Stanley Park Junior School","Stanley Park Road,,,,,SM5 3JL"]
[10025238,"ü","Stanley St Andrews CE","Station Road,Stanley,,Derbyshire,England,DE7 6FB"]
[10570278,"ü","St Anne's Church of England Primary School","School Road, Oldland Common,,,,,BS30 6PH"]
[10010421,"ü","St Annes College","Woodstock Road,,,Oxfordshire,England,OX2 6HS"]
[10027959,"ü","St Anns Hospice Worsley","PEEL LANE,,LITTLE HULTON,Greater Manchester,England,M38 0FL"]
[10576128,"ü","St Anselm's Catholic Primary School","Roxborough Park,,,,,HA1 3BE"]
[10024524,"ü","St Anthonys Roman Catholic Primary School","Shadsworth Road,,,Lancashire,England,BB1 2HP"]
[10005900,"ü","Stanwell School","Archer Road,,,Vale of Glamorgan,Wales,CF64 2XL"]
[10563547,"ü","Starter Packs Glasgow","47 Burleigh Street,,,Lanarkshire,Scotland,G51 3LB"]
[10044112,"ü","St Augustine's Catholic Primary School","Henshall Avenue,Latchford,,,,WA4 1PY"]
[10037922,"ü","St Augustine's RC Primary School","Beechwood Avenue,,,County Durham,England,DL3 7HP"]
[10032595,"ü","St Augustines Primary School","Kilburn Park Road,,,,England,NW6 5XA"]
[10574472,"ü","St Barnabas CofE Primary School","Green Lane,,,,,WR3 8NZ"]
[10039525,"ü","St Barnabas Primary School","St Barnabas Road,,,Leicestershire,England,LE5 4BD"]
[10569449,"ü","St Bede's Catholic College","Long Cross, Lawrence Weston,,,,,BS11 0SU"]
[10023084,"ü","St Bedes Catholic Primary School","Preston Road,Clayton Green,,Lancashire,England,PR6 7EB"]
[10572216,"ü","St Benedict Biscop CofE Primary School","School Road, Wombourne,,,,,WV5 9DZ"]
[10570925,"ü","St Bernadette's Catholic Primary School","Church Lane, Shevington,,,,,WN6 8BD"]
[10568890,"ü","St Bernadette Catholic Voluntary Aided Primary School","Gladstone Road, Hengrove,,,,,BS14 9LP"]
[10042083,"ü","St Botolph's Church","5 Spire View,,,Lincolnshire,England,NG347RN"]
[10036039,"ü","St Brigid?s Primary School","52 Moyagall Road,Knockloughrim,,County Londonderry,Northern Ireland,BT45 8PG"]
[10574055,"ü","St Catherine's Catholic Primary School","Drovers Lane,,,,,CA11 9EL"]
[10029808,"ü","St Catherines High School","Holdsworth Road,,Holmfirth,North Yorkshire,England,HX2 9TH"]
[10031702,"ü","St Chads Church of England Primary School","Gladstone Street,,,Cheshire,England,CW7 4AT"]
[10019156,"ü","St Christophers Junior school","Tarbock Road,,Speke,Merseyside,England,L24 0SN"]
[10034878,"ü","St Clares Rc Primary School","Convent Drive,,,Leicestershire,England,LE67 3SF"]
[10569998,"ü","St Clement's Church of England Academy","Butlin Street, Nechells,,,,,B7 5NS"]
[10040608,"ü","St Constantine Parish Church","The Stennings,Chalbury Hgts Brill,Constantine,Cornwall,England,TR11 5UR"]
[10574950,"ü","St Cuthbert's CofE Junior School","Keward Avenue,,,,,BA5 1TS"]
[10026025,"ü","St Cuthberts Roman Catholic Primary School","Church Hill,,,County Durham,England,DL15 9DN"]
[10002179,"ü","St Davids Primary School","East Street,,,Gloucestershire,England,GL56 0LQ"]
[10044210,"ü","St Dunstans School Academy Trust","Wells Road,,,Somerset,England,BA6 9BU"]
[10017980,"ü","St Edmund Campion School","Sutton Road,Erdington,,West Midlands,England,B23 5XA"]
[10567348,"ü","St Edward's Church of England Primary School","Hanover Street,,Castleton,,,,OL11 3AR"]
[10015770,"ü","St Edwards Catholic Primary School","Wivern Place,,,Cheshire,England,WA7 1RZ"]
[10575831,"ü","St Elizabeth's College (The Congregation of the Daughters of the Cross of the Liege)","Perry Green,,,,,SG10 6EW"]
[10043752,"ü","Step By Step School",",,,,,"]
[10003633,"ü","Stephenson College","Thornborough Road,,,Leicestershire,England,LE67 3TN"]
[10573969,"ü","St Ethelbert's Catholic Primary School","Dane Park Road,,,,,CT11 7LS"]
[10043574,"ü","St Faiths C of E Infant School","West Parade,,,Lincolnshire,England,LN1 1QS"]
[10574536,"ü","St Francis de Sales Catholic Junior School","Hale Road,,,,,L4 3RL"]
[10054360,"ü","St Francis Xavier School","Venns Lane,,,,England,HR1 1DT"]
[10034088,"ü","St Gabriels Church","ALDERSBROOK ROAD / PARK ROAD,WANSTEAD,,Greater London,England,E12 5HH"]
[10574675,"ü","St George's Church of England Primary School","Heaviley,,,,,SK2 6NX"]
[10566817,"ü","St George and St Teresa Catholic Primary School","Mill Lane, Bentley Heath,,,,,B93 8PA"]
[10039788,"ü","St Georges Church of England Primary School","Kesteven Road,,,Lincolnshire,England,PE9 1SX"]
[10021521,"ü","St Georges Primary School","Clarence Road,,,Dorset,England,DT5 2BD"]
[10037997,"ü","St Giles CE VA J and I","Skinner Lane,,,West Yorkshire,England,WF8 1HG"]
[10041858,"ü","St Gregory's Catholic Science College","Donnington Road,,,Greater London,England,HA30NB"]
[10574238,"ü","St Helen and St Katharine","Faringdon Road,,,,,OX14 1BE"]
[10561981,"ü","St Helens C E V A Primary School","Brewhouse Hill,Wheathampstead,,Hertfordshire,England,AL4 8AN"]
[10017890,"ü","ST HELENS SCHOOL","Eastbury Road,,,,England,HA6 3AS"]
[10571165,"ü","St Hugh of Lincoln Catholic Primary School","Five Oaks Close, St John's,,,,,GU21 8TU"]
[10041993,"ü","St Ignatius Primary School","Loch Park,,,,Scotland,ML27EB"]
[10576567,"ü","Stimpson Avenue Academy","Stimpson Avenue,,,,,NN1 4LR"]
[10574723,"ü","St James' CofE Infant School","High Street,,,,,CA28 7PZ"]
[10575745,"ü","St James Church of England Primary School","Paringdon Road,,,,,CM18 7RH"]
[10565330,"ü","St James Medical Practice","St. James House Surgery,County Court Road,,Norfolk,England,PE30 5SY"]
[10022304,"ü","St James Roman Catholic Primary School","Ashurst Road,Ashurst,,Lancashire,England,WN8 6TN"]
[10569405,"ü","St John's Cathedral Catholic Primary School","Cottage View, Landport,,,,,PO1 1PX"]
[10571777,"ü","St John's Church of England Primary School","Brook Lane, Walsall Wood,,,,,WS9 9NA"]
[10576931,"ü","St John's Church of England Voluntary Aided Primary School, Ipswich","Victory Road,,,,,IP4 4LE"]
[10542198,"ü","St John'S Hospital","4-5 Chapel Court,,,Somerset,England,BA1 1SQ"]
[10542194,"ü","St John Ambulance (Cymru Wales Rhayader Division)","Rhayader Ambulance Station,Dark Lane,,,Wales,LD6 5DA"]
[10027274,"ü","St John Ambulance Oxfordshire","40 High Street,,,Oxfordshire,England,OX5 2DN"]
[10542193,"ü","St John Cymru Wales Pontypool Div",",,,,Wales,NP4 5SB"]
[10569382,"ü","St John Fisher Catholic Primary School","Tithebarn Road, Knowsley,,,,,L34 0HA"]
[10020646,"ü","St John Plessington Catholic College","Old Chester Road,Bebington,,,England,CH63 7LF"]
[10570156,"ü","St Johns Church of England Primary School","St John's Place, Northgate,,,,,CT1 1BD"]
[10000584,"ü","St Johns College","St Giles,,,Cambridgeshire,England,OX1 3JP"]
[10031735,"ü","St John The Baptish Frenchay Pcc","27 Wadham Drive,Frenchay,,Gloucestershire,England,BS16 1PF"]
[10012984,"ü","St John the Baptist Roman Catholic Primary School Padiham","St. John's Road,Padiham,,Lancashire,England,BB12 7BN"]
[10573070,"ü","St John with St Mark CofE Primary School","Athlone Avenue,,,,,BL9 5EE"]
[10577275,"ü","St Joseph's Catholic Primary School","Yeathouse Road,,,,,CA26 3PX"]
[10568280,"ü","St Joseph's Catholic Primary School","Chatsworth Road, Fishponds,,,,,BS16 3QR"]
[10573590,"ü","St Joseph's Catholic Primary School, Chorley","Cedar Road,,,,,PR6 0JF"]
[10570171,"ü","St Joseph's RC Primary School","Leavale Road, Norton,,,,,DY8 2DT"]
[10572663,"ü","St Joseph's School","33 Derby Road,,,,,NG1 5AW"]
[10571078,"ü","St Joseph Catholic Primary School","Ainsdale Road, South Oxhey,,,,,WD19 7DW"]
[10023493,{"$f":"CHAR(252)","v":"ü"},"St Josephs Convent School","64 Upper Redlands Road,,,Berkshire,England,RG1 5JT"]
[10036428,"ü","St Josephs RC Primary School","Cadogan Street,,,Greater London,England,SW3 2QT"]
[10569793,"ü","St Jude's Catholic Primary School","St Jude's Close, Maypole,,,,,B14 5PD"]
[10012269,"ü","St Judes Church of England Junior School","Bagshot Road,,,Surrey,England,TW20 0RU"]
[10031751,"ü","St Keyna County Primary School","Monouth Road,Keynsham,,Somerset,England,BS31 2JP"]
[10010515,"ü","St Lawrence Primary School (CoE)","Wharf Lane,,,Gloucestershire,England,GL7 3AU"]
[10565703,"ü","St Leonards Church","75 Long Street,Dordon,,Warwickshire,England,B78 1SW"]
[10023352,"ü","St Leonards Parish Church","1 St. Leonards Road,,,Strathclyde,Scotland,KA7 2PR"]
[10041692,"ü","St Luke's Church","St Luke's Vicarge,St. Lukes Road,,Essex,England,SS2 4AB"]
[10031755,"ü","St Lukes Hospice Plymouth","St Luke's At Pearn,Eggbuckland Road,Mannamead,Devon,England,PL3 5JP"]
[10033233,"ü","St Malachys Primary School","4 Ballymoney Road,Kilcoo,,County Down,Northern Ireland,BT34 5HZ"]
[10041350,"ü","St Margaret's Church of England Primary School","Arundel Road,Angmering,,West Sussex,England,BN16 4LP"]
[10015766,"ü","St Margaret Clitherows Catholic Primary School","St Margarets Grove,South Bank,,Cleveland,England,TS6 6TA"]
[10028067,"ü","St Margarets Somerset Hospice","HERON DRIVE,BISHOPS HULL,,Somerset,England,TA1 5HA"]
[10575263,"ü","St Mark's CofE Primary School","Manor Road,,,,,BN2 5EA"]
[10015344,"ü","St Marks Catholic School","106 Bath Road,,,Middlesex,England,TW3 3EJ"]
[10574788,"ü","St Martin's Church of England Voluntary Aided Primary School, Scarborough","Holbeck Hill,,,,,YO11 3BW"]
[10565928,"ü","St Martins School","The Derwent Campus, Bracknell Drive, Alvaston,,,,,DE24 0BT"]
[10577082,"ü","St Mary's Catholic Primary School","Westgate Road,,,,,BR3 5DE"]
[10036136,"ü","St Mary's Catholic Primary School","Canterbury Road,,,Greater London,England,NW6 5ST"]
[10573968,"ü","St Mary's Catholic Primary School, Crewe","Dane Bank Avenue,,,,,CW2 8AD"]
[10041900,"ü","St Mary's Church of England Primary School","High Street,Hatfield Broad Oak,,Essex,England,CM22 7HH"]
[10576586,"ü","St Mary's CofE (VA) Primary School","Stoney Lane,,,,,DY10 2LX"]
[10567945,"ü","St Mary's CofE Primary School","Church Street, Droylsden,,,,,M43 7BR"]
[10038731,"ü","St Mary's Parish Church","8 Church Road,Upton,,Merseyside,England,ch49 6jz"]
[10571424,"ü","St Mary's RC Primary School","Milner Street, Swinton,,,,,M27 4AS"]
[10035165,"ü","St Mary (CoE)","ST MARYS VICARAGE,,,Cheshire,England,CW8 3NJ"]
[10043598,"ü","St Mary & St George RC Church","Station Road,,,Devon,England,TQ9 5HW"]
[10031759,"ü","St Mary Magdalen Catholic Primary School","Buller Avenue,Penwortham,,Lancashire,England,PR1 9QQ"]
[10023290,"ü","St Marys Catholic Combined School","Devon Road,,,Dorset,England,BH15 3QQ"]
[10031764,"ü","St Marys C E Primary School","Brookpit Lane,Clymping,,West Sussex,England,BN17 5QU"]
[10030811,"ü","St Marys Church of England First School","Newfields,,,Northumberland,England,TD15 1SP"]
[10012021,"ü","St Marys Church of England Primary School Purton","College Road,,,Wiltshire,England,SN5 4AR"]
[10577834,"ü","St Marys On The Hill Primary School","142 Carnmoney Road,,,County Antrim,Northern Ireland,BT36 6JU"]
[10032484,"ü","St Marys RC Primary School","Smithy Lane,,,Lancashire,England,PR3 2QH"]
[10026476,"ü","St Marys Roman Catholic Primary School","10 Polbeth Road,,,,England,EH55  8SR"]
[10043449,"ü","St Matthew's Bloxham CE Primary School","Webb Ellis Road,,,Warwickshire,England,CV22 7AU"]
[10023423,"ü","St Matthews Church of England Voluntary Aided Primary","Portman Road,,,Suffolk,England,IP1 2AX"]
[10567329,"ü","St Meryl School","The Mead, Carpenders Park,,,,,WD19 5BT"]
[10036900,"ü","St Michael's Church of England Junior Mixed and Infant School","Maple Road,,,West Midlands,England,WS3 4JJ"]
[10573963,"ü","St Michael's CofE Primary School","Dalston,,,,,CA5 7LN"]
[10033447,"ü","St Michael At The North Gate Church","CORNMARKET ST,,,Oxfordshire,England,OX1 3EY"]
[10028899,"ü","St Michaels Church of England High School","St Michael's Road,Crosby,,Merseyside,England,L23 7UL"]
[10022997,"ü","St Michaels Hospice","Bartestree,,,Herefordshire,England,HR1 4HA"]
[10570961,"ü","St Monica Primary School","Bay Road, Sholing,,,,,SO19 8EZ"]
[10035706,"ü","St Nicholas Church","Deptford Green,,,Greater London,England,SE8 3DQ"]
[10575827,"ü","St Nicholas of Tolentine Catholic Primary School","Pennywell Road,,,,,BS5 0TJ"]
[10014914,"ü","St Nicholas School","Parsonage Road,,,Surrey,England,GU6 8BW"]
[10015537,"ü","Stockbridge Futures Partnership","Room 23, Townhall,Manchester Road,Stocksbridge,South Yorkshire,England,S36 2DT"]
[10542207,"ü","Stockport Sports Trust Ta Life Leisure","Landmark House,Station Road,Cheadle Hulme,Greater Manchester,England,SK8 7BS"]
[10019819,"ü","Stockwell Park High School","Clapham Road,,,Greater London,England,SW9 OAL"]
[10040772,"ü","Stoke and Stafforshire Partnership Trust","Morston House,The Midway,,Staffordshire,England,ST5 1QG"]
[10035961,"ü","Stoke-on-Trent and District Gingerbread Centre","Rothesay Court,Furnace Road,,Staffordshire,England,ST3 4LY"]
[10036749,"ü","Stokes Wood Primary School","Blackett Avenue,,,Leicestershire,England,LE3 9BX"]
[10576939,"ü","Stoneleigh Academy","Vulcan Street,,,,,OL1 4LJ"]
[10006407,"ü","Stonewater","Jephson House,1 Stoneleigh Road,Blackdown,Warwickshire,England,CV32 6RE"]
[10024234,"ü","Storlannn Naiseanton Na Gaidhlig","Head Office,11/12 Harbour View,Cromwell Stret Quay,Isle of Lewis,Scotland,HS1 2DF"]
[10018694,"ü","St Oswalds Church of England Primary School","Addison Road,,,Warwickshire,England,CV22 7DJ"]
[10040955,"ü","Stowmarket Town Council","Milton House,Milton Road South,,Suffolk,England,IP14 1EZ"]
[10575312,"ü","St Patrick's Catholic Primary School","Marston Road,,,,,ST16 3BT"]
[10032832,"ü","St Patrick's Roman Catholic Voluntary Aided Primary School","North Road Dipton,Flint Hill,,County Durham,England,DH99BB"]
[10039910,"ü","St Patricks Primary School","54 Carran Road,Crossmaglen,,County Down,Northern Ireland,BT35 9JL"]
[10572222,"ü","St Paul's Church of England Combined School, Wooburn","Stratford Drive, Wooburn Green,,,,,HP10 0QH"]
[10566276,"ü","St Paul's CofE Infant School and Surestart Children's Centre, Tongham","East Ring, The Cardinals, Tongham,,,,,GU10 1EF"]
[10568256,"ü","St Paul's Roman Catholic Primary School, Feniscowles, Blackburn","Preston Old Road, Feniscowles,,,,,BB2 5EP"]
[10034868,"ü","St Pauls Church of England Primary School","Ringwood Way,Winchmore Hill,,Greater London,England,N21 2RA"]
[10024288,"ü","St Pauls Way Community School","Shelmerdine Close,,,Greater London,England,E3 4AN"]
[10036972,"ü","St Peter's CE Primary School","Whitefield Road,,,Greater Manchester,England,BL9 9PW"]
[10575455,"ü","St Peter's Church of England Primary School","Mount Pleasant,,,,,ME20 7BE"]
[10570537,"ü","St Peter's Community Primary School","St Peter's Road, Portslade-By-Sea,,,,,BN41 1LS"]
[10034114,"ü","St Peter And St Paul Parish Church","5 HIGH STREET,,,Somerset,England,BA9 9JN"]
[10019528,"ü","St Peter Church of England School","Church Road,Earley,,Berkshire,England,RG6 1EY"]
[10040339,"ü","St Peters Church Bilton","14 Cherry Tree Close,Bilton,,East Yorkshire,England,HU11 4EZ"]
[10018390,"ü","St Peters Hospice","Charlton Road,Bentry,,Gloucestershire,England,BS10 6NL"]
[10014766,"ü","St Peters School","St Catherine's Road,Southbourne,,Dorset,England,BH6 4AH"]
[10572708,"ü","St Petroc's School","40 Ocean View Road,,,,,EX23 8NJ"]
[10005883,"ü","Strabane District Council","District Council Offices,47 Derry Road,,County Tyrone,Northern Ireland,BT82 8DY"]
[10010635,"ü","Stranmillis University College","Stranmillis Road,,,County Antrim,Northern Ireland,BT9 5DY"]
[10038256,"ü","Strathmartine Primary School","Strathmartine,,,,Scotland,DD3 0PH"]
[10043348,"ü","Stratton School","New Road,Stratton,,Cornwall,England,EX23 9AP"]
[10014542,"ü","Stretford Grammar School","Abey Hey Lane,Abey Hey,,Greater Manchester,England,M18 8RL"]
[10005064,"ü","Strode College","Church Road,,,Somerset,England,BA16 0AB"]
[10574034,"ü","St Rumon's Church of England (VC) Infants School","Dolvin Road,,,,,PL19 9EA"]
[10570510,"ü","St Saviour's Church of England Primary School","Chrisp Street, Poplar,,,,,E14 6BB"]
[10041695,"ü","St Sophia's Primary School","Nelville Drive,,,,England,KA4 8BN"]
[10031117,"ü","St Stephens Junior School","Lansdown Road,Kingswood,,Gloucestershire,England,BS15 1XD"]
[10037663,"ü","St Teresa'S Home","40-46 Roland Gardens,,,Greater London,England,SW7 3PW"]
[10571446,"ü","St Thomas' Catholic Primary School","Parklands Road, Tean,,,,,ST10 4DS"]
[10571293,"ü","St Thomas' CofE Primary School","Parkgate Road, Stockton Heath,,,,,WA4 2AP"]
[10568464,"ü","St Thomas CofE Junior and Infant School","Church Street, Golborne,,,,,WA3 3TH"]
[10003189,"ü","St Thomas More RCP School","Bleakwood Road,,,Kent,England,ME5 0NF"]
[10574496,{"$f":"CHAR(252)","v":"ü"},"St Thomas More Roman Catholic Voluntary Aided Primary School","Greenway,,,,,HP4 3LF"]
[10016589,"ü","Stuart Court Memorial Charity The","13 Bracondale,,,Norfolk,England,NR1 2AL"]
[10001290,"ü","Sturminster Newton High School","Bath Road,,,Dorset,England,DT10 1DT"]
[10035882,"ü","St Vincent de Paul Society","5th Floor 291-299,Borough High Street,,Greater London,England,SE1 1JG"]
[10020267,"ü","St Werburghs Roman Catholic Primary School","Park Grove,,,Merseyside,England,CH41 2TD"]
[10033154,"ü","St Wilfreds RC College","Temple Park Road,,,Tyne and Wear,England,NE34 0PH"]
[10573423,"ü","St William of York Catholic Primary School","Brockley Park,,,,,SE23 1PS"]
[10042993,"ü","Style Acre","Howbery Park,,,Oxfordshire,England,OX10 8BA"]
[10005284,"ü","Sudbury Upper School","Tudor Road,,,Suffolk,England,CO10 1NW"]
[10040820,"ü","Suffolk New College","100 Rope Walk,,,Suffolk,England,IP4 1LT"]
[10029200,"ü","Summerfield Group Practice","Winson Green Road,Winson Green,,West Midlands,England,B18 7AG"]
[10569318,"ü","Sundridge Primary School","Sundridge Road, Kingstanding,,,,,B44 9NY"]
[10039555,"ü","Sunnyhill School","Sunnyhill Road,Streatham,,Greater London,England,SW16 2UW"]
[10042060,"ü","Sunnyside Spencer Academy","Great Hoggett Drive,,,Nottinghamshire,England,NG94HQ"]
[10037719,"ü","Sure Start","6 Braithwaite Road,,,West Midlands,England,B11 1LB"]
[10034189,"ü","Surgery Nettlebed The","WANBOURNE LANE,NETTLEBED,,Oxfordshire,England,RG9 5AJ"]
[10015176,"ü","Surrey and Sussex Deanery","Printworks House,7 Bermondsey Street,,Greater London,England,SE1 2DD"]
[10035726,"ü","Surrey Library Supply Agency","The Drill Hall,West Street,,Surrey,England,RN4 1DD"]
[10006552,"ü","Sussex Oakleaf Housing Association","2nd Floor,Norris House,Burrell Road,West Sussex,England,RH16 1YL"]
[10043047,"ü","Sutton Centre For The Voluntary Sector","Granfers Community Centre,73-79 Oakhill Road,,,England,SM1 3AA"]
[10571407,"ü","Sutton-On-Trent Primary and Nursery School","Church Street, Sutton-on-Trent,,,,,NG23 6PD"]
[10576633,{"$f":"CHAR(252)","v":"ü"},"Suttons Primary School","Suttons Lane,,,,,RM12 6RP"]
[10572192,"ü","Swallowfield Lower School","Weathercock Close, Woburn Sands,,,,,MK17 8SR"]
[10571413,"ü","Swanmore Church of England Aided Primary School","Church Road, Swanmore,,,,,SO32 2PA"]
[10030731,"ü","Swansea County Court","Caravella House,Quay West Quay Parade,,West Glamorgan,Wales,SA1 1SP"]
[10011679,"ü","Swavesey Primary School","Middle Watch,Swavesey,,Cambridgeshire,England,CB4 5RN"]
[10036535,"ü","Swinford Church of England Primary School","School Lane,Swinford,,Leicestershire,England,LE17 6BG"]
[10042214,"ü","Sycamore House Medical Centre","111 Birmingham Road,,,West Midlands,England,WS12NL"]
[10042348,"ü","Syston Health Centre","1330 Melton Road,Syston,,Leicestershire,England,LE7 2EQ"]
[10041915,"ü","Tabernacle Surgery","Tabernacle Street,,,West Glamorgan,Wales,SA10 6UF"]
[10014600,"ü","Taiglum Medical Practice","Coylton Health Clinic,11 Hole Road,Coylton,Ayrshire,Scotland,KA6 6JL"]
[10035398,"ü","Talycopa Primary School","Heol Hafdy,Llansamlet,,West Glamorgan,Wales,SA7 9RZ"]
[10002250,"ü","Tameside Metropolitan Borough Council","Council Offices,Wellington Road,Ashton Under Lyne,Greater Manchester,England,OL6 6DL"]
[10037085,"ü","Tannadice Primary School","South Esk Road,,,Angus,Scotland,DD8 3SH"]
[10037477,"ü","Tate","Millbank,,,Greater London,England,SW1P 4RG"]
[10035826,"ü","Tavistock Town Council","Drake Road,,,Devon,England,PL19 0AU"]
[10038854,"ü","TeachFirst","6 Mitre Passage,,,,England,SE10 0ER"]
[10566231,"ü","Teaseldown School","Sugar Loaves, 175 Swan Street, Sible Hedington,,,,,CO9 3PX"]
[10037042,"ü","Tees Valley Housing","10 Penrith Rd,Berwick Hills,,Cleveland,England,TS3 7JR"]
[10010722,"ü","Templars Primary School","Templar Avenue,Coventry,,West Midlands,England,CV4 9DA"]
[10037007,"ü","Temple Herdewykes Primary School","Falcoln Close,Temple Herdewyke,,Warwickshire,England,CV47 2UD"]
[10044047,"ü","Tenax Schools Trust","Culverden Down,,,Kent,England,TN4 9SH"]
[10029071,"ü","Territorial Army","Hightown Barracks,Kingsmills Road,,Wrexham,Wales,LL13 8RD"]
[10020945,"ü","Thackley Primary School","Town lane,,Thackley,Yorkshire,England,BD10 8PJ"]
[10034145,"ü","Thameside Junior School","MANOR ROAD,GRAYS,,Essex,England,RM17 6EF"]
[10030984,"ü","Thames Valley Primary Care Agency","7/9 Cremyll Road,,,Berkshire,England,RG1 8NQ"]
[10575889,"ü","The Acorns Primary and Nursery School","Pooltown Road,,,,,CH65 7ED"]
[10565363,"ü","The Attic PRU","Lovewell Road,,,Suffolk,England,NR33 0RQ"]
[10572258,"ü","The Beacon Primary Short Stay School","Woodrow South, Woodrow,,,,,B98 7UZ"]
[10570373,"ü","The Braybrook Centre (Key Stage 3 PRU)","Lawnswood Avenue, Parkfields,,,,,WV4 6SR"]
[10573135,{"$f":"CHAR(252)","v":"ü"},"The Castle Primary School","Barrington Street,,,,,EX16 6QR"]
[10576656,"ü","The Children's Trust School","Tadworth Court,,,,,KT20 5RU"]
[10025971,"ü","The Court Funds Office","22 Kingsway,,,Greater London,England,WC2B 6LE"]
[10560030,"ü","THE DASH CHARITY","Rana House,113 Whitby Road,,,England,SL1 3DR"]
[10576706,"ü","The Downs Primary School and Nursery","The Hides,,,,,CM20 3RB"]
[10570590,"ü","The Falcons School for Girls","11 Woodborough Road, Putney,,,,,SW15 6PY"]
[10567207,"ü","The Flying Bull Academy","Flying Bull Lane, Buckland,,,,,PO2 7BJ"]
[10571382,"ü","The Gateshead Cheder Primary School","Bede House, Sunderland Road,,,,,,NE8 3HY"]
[10567804,"ü","The Gregg School","Townhill Park House, Cutbush Lane,,,,,SO18 2GF"]
[10579358,"ü","The Health Foundation","90 Long Acre,,,,England,WC2E 9RA"]
[10573701,"ü","The Ilsleys Primary School","Church Hill,,,,,RG20 7LP"]
[10054265,"ü","The Junction Foundation","19 Station Road,,,North Yorkshire,England,TS10 1AN"]
[10576050,"ü","The Kingston Academy","Richmond Road,,,,,KT2 5PE"]
[10574498,"ü","The Lincoln St Peter-in-Eastgate Church of England (Controlled) Infants School","Greetwellgate,,,,,LN2 4AW"]
[10574277,"ü","The Littlehampton Academy","Fitzalan Road,,,,,BN17 6FE"]
[10566252,"ü","The Mary Towerton School At Studley Green","Water End Road, Studley Green, Stokenchurch,,,,,HP14 3XN"]
[10043239,"ü","The Mull & Iona Dental Practice","Rockfield Road, ,Tobermory,,,Scotland,PA75 6PN"]
[10043318,"ü","The Nuffield Trust For Research","59 New Cavendish Street,,,Greater London,England,W1G 7LP"]
[10566060,"ü","The Orchards Nursery School","Lower Orchards, Highfield Road, Farnworth,,,,,BL4 0RA"]
[10044207,{"$f":"CHAR(252)","v":"ü"},"Theotherapy Christian Fellowship Trust, the","Veterans Hall,Osidge Lane,,,England,N14 5DU"]
[10013431,"ü","The Prince of Wales's Charitable Foundation","St James's Palace, Apartment 15,Colour Court,Marlborough Road,Greater London,England,SW1A 1BG"]
[10576034,{"$f":"CHAR(252)","v":"ü"},"The Redstart Primary School","Redstart Road,,,,,TA20 1SD"]
[10579138,"ü","The Royal British Legion",",,,,,"]
[10579266,"ü","The Russett Learning Trust","Middlehurst Avenue,Weaverham,,Cheshire,England,CW8 3BW"]
[10571072,"ü","The South Norwood Academy","34 Crowther Road, South Norwood,,,,,SE25 5QP"]
[10571430,"ü","The Surrey Teaching Centre","Tadworth Street, Tadworth Court,,,,,KT20 5RU"]
[10024434,"ü","The Unity Partnership Ltd","Tempsford Hall,,,Bedfordshire,England,SG19 2BD."]
[10570219,"ü","The Valley Community Primary School","Hibbert Street, Off Blackburn Road,,,,,BL1 8JG"]
[10569364,"ü","The Willows Catholic Primary School, Kirkham","Victoria Road, Kirkham,,,,,PR4 2BT"]
[10037106,"ü","Theydon Bois County Primary School","Orchard Drive,,,Essex,England,CM16 7DH"]
[10571811,"ü","Thomas's Clapham","Broomwood Road, Wandsworth,,,,,SW11 6JZ"]
[10576121,"ü","Thomas Arnold Primary School","Rowdowns Road,,,,,RM9 6NH"]
[10020328,"ü","Thomas Lord Audley School and Language College The","Monkwick Avenue,,,Essex,England,CO2 8NJ"]
[10571492,"ü","Thompson Primary School","School Road, Thompson,,,,,IP24 1PY"]
[10576783,"ü","Thorney Close Primary School","Torquay Road,,,,,SR3 4BB"]
[10020581,"ü","Thornhill School","Thornhill Road,,,Tyne and Wear,England,SR2 7NA"]
[10033689,"ü","Thornley Primary School","Thornley Primary School,Coopers Terrace,Thornley,County Durham,England,DH6 3DZ"]
[10037722,"ü","Thorpe Health Centre","Williams Loke,St. Williams Way,,Norfolk,England,NR7 0AJ"]
[10026679,"ü","Three Peaks Primary School","Fossdale Road,Wilnecote,,Staffordshire,England,B77 4HN"]
[10030508,"ü","Threeways Surgery","Pennylets Green,,,Berkshire,England,SL2 4AZ"]
[10015149,"ü","Thurlaston Church of England Primary School","Desford Road,,Thurlaston,Leicestershire,England,LE9 7TE"]
[10001838,"ü","Thurstable School","Maypole Road,,,Essex,England,CO5 0EW"]
[10568882,"ü","Tiferes High School","18 Raleigh Close, Hendon,,,,,NW4 2TA"]
[10010879,"ü","Timble Housing Project","Waterloo House,58 Wellington St,,West Yorkshire,England,LS1 2EE"]
[10041727,"ü","TinyLife","33 Ballynahinch Road,Lowes Industrial Estate,Carryduff,County Antrim,Northern Ireland,BT8 8EH"]
[10573049,"ü","Tiverton School","Ashington Grove,,,,,CV3 4DE"]
[10583120,"ü","Toddington Parish Council","Village Hall,,Leighton Road\n\nToddington,,,LU5 6AN"]
[10576772,"ü","Toft Hill Primary School","Toft Hill,,,,,DL14 0JA"]
[10003215,"ü","Tonbridge School","High Street,,,Kent,England,TN9 1JP"]
[10039640,"ü","Torah Vodaas Limited","Hammond Close,High Barnet,,Greater London,England,EN5 2EQ"]
[10041055,{"$f":"CHAR(252)","v":"ü"},"Torridon Road Medical Practice","Torridon Road Medical Practice,80 Torridon Road,Catford,Greater London,England,SE6 1RB"]
[10026649,"ü","Totton Health Centre","Testwood Lane,Totton,,Hampshire,England,SO40 3ZN"]
[10025638,"ü","TOWER BRIDGE EXHIBITION The","Tower Bridge,Tower Bridge Road,,Greater London,England,SE1 2UP"]
[10038898,"ü","Towers Junior School","Windsor Road,,,,England,RM11 1PD"]
[10020853,"ü","Toynbee Housing Association Limited","58 Romford Road,Stratford,,Greater London,England,E15 4TH"]
[10562498,"ü","TRACS Neighbourhood Centre","60 Sneinton Hollows,,,Nottinghamshire,England,NG2 4AA"]
[10577553,"ü","Trafford youth offenders service","Sale Waterside,Waterside Plaza,Sale,,England,M60 2LA"]
[10563510,"ü","Travelling Light Theatre Company",",,,,,BS2 0DF"]
[10020751,"ü","Trekenner Community Primary School","Trekenner,,,Cornwall,England,PL15 9PH"]
[10576812,"ü","Trent Young's CofE Primary School","Trent,,,,,DT9 4SW"]
[10010918,"ü","Trevisker Community Primary School","Warwick Crescent,St Eval,,Cornwall,England,PL27 7UD"]
[10576281,"ü","Trinity Academy, Halifax","Shay Lane,,,,,HX2 9TZ"]
[10575926,"ü","Trinity Church of England Primary School","Princes Plain,,,,,BR2 8LD"]
[10573840,"ü","Trinity CofE VA First School","Coopers Lane,,,,,BH31 7PG"]
[10033473,{"$f":"CHAR(252)","v":"ü"},"Trinity House (Penzance)","Trinity House,Lands End Airport,Kelynack\nSt Just,,,TR19 7RL"]
[10037435,"ü","Trinity Youth and Childrens Project","The Trinity Centre,James St,North Ormesby,,Cleveland,England,TS3 6LD"]
[10016633,"ü","Trustees and Members of the City of Doncaster YMCA","30 Wood Street,,,South Yorkshire,England,DN1 3LH"]
[10042995,"ü","Tuckswood Academy & Nursery","Tuckswood Centre,,,Norfolk,England,NR4 6BP"]
[10018446,"ü","Tudor Grange School","Dingle Lane,,,West Midlands,England,B91 3PD"]
[10571759,"ü","Tunbury Primary School","Tunbury Avenue, Walderslade,,,,,ME5 9HY"]
[10578440,"ü","Turner Free School","Martello Primary ,Warren Way,,Kent,England,CT19 6DT"]
[10020758,"ü","Turves Green Primary School","Turves Green,,Northfield,West Midlands,England,B31 4BP"]
[10567798,"ü","Twiss Green Community Primary School","Twiss Green Lane, Culcheth,,,,,WA3 4DQ"]
[10020578,"ü","Ty Gwyn Secondary Education Centre","Cefn Lane,,Glyncoch,Mid Glamorgan,Wales,CF37 3BP"]
[10021399,"ü","Tyredegar Comprehensive School","Stable Lane,,Tredegar,Gwent,Wales,NP22 4BH"]
[10038797,"ü","UCL Partners","170 Tottenham Court Road,,,Greater London,England,W1T 7HA"]
[10041753,"ü","UFI Charitable Trust","26 Red Lion Square,,,Greater London,England,WC1R4AG"]
[10036422,"ü","UK Financial Investments Limited","2nd Floor Oceanic House,,,Greater London,England,SW1Y"]
[10032318,"ü","Uley Church of England Primary School","Woodstock Terrace,Uley,,Gloucestershire,England,GL11 5SW"]
[10001515,"ü","Ulster Folk and Transport Museum","153 Bangor Road,Cultra,,County Down,Northern Ireland,BT18 1EK"]
[10029943,"ü","Underwood West Primary School","Newcastle Street,,,Cheshire,England,CW1 3LF"]
[10033459,"ü","United Free Church Of Feltham","16 Walsham Road,,,Middlesex,England,TW14 0JD"]
[10013529,"ü","Unity Enterprise","46 Trongate,,,Strathclyde,Scotland,G1 5ES"]
[10044110,"ü","University College of Estate Management","60 Queens Road,,,Berkshire,England,RG1 4BS"]
[10012308,"ü","University Dental Hospital of Manchester","Higher Cambridge Street,,,Greater Manchester,England,M15 6FH"]
[10003297,"ü","University of Bolton","Deane Road,,,Lancashire,England,BL3 5AB"]
[10001269,"ü","University of Exeter","Barley Lane,Dunford Hill,Prince of Wales Road,Devon,England,EX2 5HN"]
[10035569,"ü","University of lincoln","Minerva House,Holbeach Technology Park,Holbeach,Lincolnshire,England,PE12 7PT"]
[10011724,"ü","University of Newcastle Sowerby Centre","16/17 Framlington Place,,,Tyne and Wear,England,NE2 4AB"]
[10011000,"ü","University of Stirling",",,,Stirlingshire,Scotland,FK9 4LA"]
[10041916,"ü","University of Wales Press","10 Columbus Walk,Brigantine Place,,South Glamorgan,Wales,CF10 4UP"]
[10030371,"ü","Uphill Primary School","Old Church Road,,,Somerset,England,BS23 4XH"]
[10541246,"ü","Uplands Infant School","Melbourne Road,Highfields,,,England,LE2 0DR"]
[10033015,{"$f":"CHAR(252)","v":"ü"},"Upper Tribunal (Immigration and Asylum Chamber)","Arnhem Support Centre,,,Leicestershire,England,LE1 6ZX"]
[10033065,"ü","Upton Primary School","Waggon Laneupton,,,West Yorkshire,England,WF9 1JS"]
[10022349,"ü","Ursuline High School","Morland Road,,,Essex,England,IG1 4JU"]
[10036314,"ü","URSULINE Sisters","225 Canterbury Road,,,Kent,England,CT8 8LX"]
[10006562,"ü","Vale First and Middle School","Vale Avenue,Findon Valley,,West Sussex,England,BN14 0DB"]
[10566004,"ü","Valley End CofE Infant School","Higham's Lane, Valley End, Chobham,,,,,GU24 8TB"]
[10021261,"ü","Vandyke Upper School","Vandyke Road,,,Bedfordshire,England,LU7 3DY"]
[10036310,"ü","Variety Club Events Limited","Variety Club House,93 Bayham Street,,,England,NW1 0AG"]
[10579509,"ü","Venturers' Academy","Withywood Road,,,Avon,England,BS13 9AX"]
[10041762,"ü","Vibrance","2 Caxton Place,Roden Street,,Greater London,England,IG1 2AH"]
[10034207,"ü","Victim Support Ni","CENTRAL OFFICE, ANNSGATE HOUSE,70/74 ANN STREET,,County Antrim,Northern Ireland,BT1 4EH"]
[10574894,"ü","Victoria Infant and Nursery School","Islay Place,,,,,CA14 3XB"]
[10036131,"ü","Vida Healthcare Gayton Road Surgery","Gayton Road,,,Norfolk,England,PE30 4DY"]
[10040482,"ü","Villiers Park Educational Trust","Royston Road,Foxton,,Cambridgeshire,England,CB22 6SE"]
[10051364,"ü","VisitBritain",",,,,,"]
[10011035,"ü","VisitScotland Scottish Tourist Board","Croythorn House,23 Ravelston Terrace,Beechwood Park North,Mid Lothian,Scotland,EH4 2TP"]
[10022300,"ü","Voluntary Action Calderdale","Resource Centre,Hall Street,,West Yorkshire,England,HX1 5AY"]
[10577924,"ü","Volunteering Matters","22-24 Lower Clapton Road,,,,England,E5 0PD"]
[10574409,"ü","Wadebridge Primary Academy","Gonvena Hill,,,,,PL27 6BL"]
[10033465,"ü","Wadsley Parish Church","Wadsley Vicarage,91 Airedale Road,,South Yorkshire,England,S6 4AW"]
[10037844,"ü","Waldegrave School For Girls","Fifth Cross Road,,,Greater London,England,TW2 5LH"]
[10032390,{"$f":"CHAR(252)","v":"ü"},"Wales Prisons","Cleland House,Page Street,,Greater London,England,SW1P 4LN"]
[10023399,"ü","Wallasey School","Birket Avenue,Moreton,,,England,CH46 1RB"]
[10034211,"ü","Wallington Medical Centre","52 MOLLISON DRIVE,WALLINGTON,,Surrey,England,SM6 9BY"]
[10006290,"ü","Walsall College of Arts and Technology","PO Box 4203,,,,West Midlands,England,WS1 1WY"]
[10575983,"ü","Waltham Holy Cross Primary School","Quendon Drive,,,,,EN9 1LG"]
[10016662,"ü","Walton on Thames Charity","'Mayfield',74 Hersham Road,,Surrey,England,KT12 5NU"]
[10032682,"ü","Wandle Valley School","Welbeck Road,,,Surrey,England,SM5 1LW"]
[10034940,"ü","Warburg Institute The","Accounts Payable Room ST121,Stewart House,32 Russell Square,Greater London,England,WC1H 0AB"]
[10033653,"ü","Wargrave House School","Wargrave Road,,,Merseyside,England,WA12 8RS"]
[10575657,"ü","Warrender Primary School","Old Hatch Manor,,,,,HA4 8QG"]
[10000750,"ü","Warrington Housing Association Limited","The Gateway,89 Sankey Street,,Cheshire,England,WA1 1SR"]
[10037018,"ü","Warthill Church of England Primary School","Warthill,,,Yorkshire,England,YO19 5XL"]
[10039663,"ü","Warwick Su Finance Department","University Of Warwick,Suhq, Gibbet Hill Road,,West Midlands,England,CV4 7AL"]
[10035279,"ü","Waterbeach Community Primary","High Street,Waterbeach,,Cambridgeshire,England,CB25 9JU"]
[10579481,"ü","Waterfront Sports & Education Academy","Unit 15,Lister Building ,Marjorie Street,Leicestershire,England,LE4 5GY"]
[10023500,"ü","Water Mill Primary School","Water Mill Close,Selly Oak,,West Midlands,England,B28 6TS"]
[10023444,"ü","Watford Community Housing Trust","Watford Community Housing Trust,PO Box 2281,Terrapin Building,Hertfordshire,England,WD18 1JH"]
[10016255,"ü","Wavell Community Infant School","Wavell Road,,,North Yorkshire,England,DL9 3BJ"]
[10564760,"ü","Wayfield Primary School","Wayfield Road,,,Kent,England,ME5 0HH"]
[10029375,"ü","Weald and Downland Open Air Museum","Singleton,,,West Sussex,England,PO18 0EU"]
[10571863,"ü","Webheath Academy Primary School","Downsell Road, Webheath,,,,,B97 5RJ"]
[10020236,"ü","Weir Training Limited","19 London Street,,,Surrey,England,KT16 8AP"]
[10036218,"ü","Welbourn Primary School","High Street,Welbourn,,Lincolnshire,England,LN5 ONH"]
[10571086,"ü","Wellfield Middle School","Kielder Road, South Wellfield,,,Tyne and Wear,England,NE25 9QW"]
[10577016,"ü","Wellington Primary School","Wellington,,,,,HR4 8AZ"]
[10563666,"ü","Welsh Ambulance Service NHS Trust Community First Responders","Upper Denbigh Road,,,Denbighshire,Wales,LL17 0RS"]
[10013628,"ü","Welsh Joint Education Committee","245 Western Avenue,,,South Glamorgan,Wales,CF5 3BL"]
[10021755,"ü","Welsh Purchasing Consortium","Municipal Offices,Llewellyn Street,Pentre,,Wales,CF41 7BT"]
[10043718,"ü","Wendover CE Junior School","Wharf Road,Wendover,,Buckinghamshire,England,HP22 6HF"]
[10003530,{"$f":"CHAR(252)","v":"ü"},"Werneth Junior School","Coppice Street,,,Lancashire,England,OL8 4BL"]
[10015863,"ü","Wesleyan Reform Union","Church House,123 Queen Street,,South Yorkshire,England,S1 2DU"]
[10577038,"ü","West Alvington Church of England Academy","West Alvington,,,,,TQ7 3PP"]
[10023520,{"$f":"CHAR(252)","v":"ü"},"Westbourne Primary School..","Skinner Lane,,,West Yorkshire,England,BD8 7PL"]
[10011497,"ü","West Byfleet Infant School","Camphill Road,,,Surrey,England,KT14 6EF"]
[10571908,"ü","West Cornforth Primary School","High Street, West Cornforth,,,,,DL17 9HP"]
[10001274,"ü","West Croft County Junior School","Coronation Road,,,Devon,England,EX39 3DE"]
[10564692,"ü","Westerhope Community Association CIO","Hillhead Road,,,Tyne and Wear,England,NE5 1NE"]
[10026660,"ü","Western Springs Primary School","Springfields Estate,,,Staffordshire,England,WS152PD"]
[10571925,"ü","West Felton CofE Primary School","School Road,West Felton,,Shropshire,England,SY11 4JR"]
[10571981,"ü","Westfield Primary School","Bonsey Lane, Westfield,,,,,GU22 9PR"]
[10037903,"ü","West Ham Church Primary School","Portway,,,Greater London,England,E15 3QG"]
[10026879,"ü","West Hill Primary School","Beech Park,West Hill,,Devon,England,EX11 1UQ"]
[10577054,"ü","West Kingsdown CofE VC Primary School","West Kingsdown,,,,,TN15 6JP"]
[10003531,"ü","West Lancashire Borough Council","52 Derby Street,,Stanley,Lancashire,England,L39 2DF"]
[10018353,"ü","West London Academy","6 Sloane Street,,,Greater London,England,SW1X 9LE"]
[10571942,"ü","West Meon Church of England Voluntary Controlled Primary School","Church Lane, West Meon,,,,,GU32 1LF"]
[10011119,"ü","West Middlesex University Hospital NHS Trust","MD1 Medical Block,Twickenham Road,Isleworth,Greater London,England,TW7 6AF"]
[10011121,"ü","West Midlands SEN Regional Partnership","PO Box 9868,,,West Midlands,England,B48 7WE"]
[10562247,"ü","Westminster Under School (Independent)","Adrian House,27 Vincent Square,,,England,SW1P 2NN"]
[10011125,"ü","West of England Friends Housing Association Limited","5 Cotham Park North,,,Gloucestershire,England,BS6 6BH"]
[10011161,{"$f":"CHAR(252)","v":"ü"},"Weston Primary School","Lambsickle Lane,Weston Village,,Cheshire,England,WA7 4RA"]
[10022039,"ü","Weston Village Hall","Four Oaks,Maiden Street,Weston,Hertfordshire,England,SG4 7AA"]
[10569427,"ü","West Rise Junior School","Chaffinch Road, Langney,,,,,BN23 7SL"]
[10576246,"ü","West Thurrock Academy","Schoolfield Road,,,,,RM20 3HR"]
[10017215,"ü","Westvale Housing Co operative Limited","19 Devonshire Road,,,Merseyside,England,L8 3TX"]
[10574144,"ü","West Witney Primary School","Edington Road,,,,,OX28 5FZ"]
[10006729,"ü","West Yorkshire Magistrates Courts Service","Po Box 187,The Tyrls,The Tyrls,West Yorkshire,England,BD1 1JL"]
[10021299,"ü","Whaddon House Surgery","221 Whaddon Way,,Bletchley,Buckinghamshire,England,MK3 7EA"]
[10022069,"ü","Wheatlands Primary School","Hundale Crescent,,Redcar,Tyne and Wear,England,TS10 2PU"]
[10040693,"ü","Wheb Credit Union Limited","Wheb Credit Union Ltd,Burnbank Centre,13 Burnbank Centre,Strathclyde,Scotland,ML3 0NQ"]
[10577108,"ü","Whinmoor St Paul's Church of England Primary School","Whinmoor Crescent,,,,,LS14 1EG"]
[10562182,"ü","Whitchurch Community Primary School","School Road,Whitchurch,,,England,PL19 9SR"]
[10026888,"ü","Whitchurch Road Surgery","210 Whitchurch Road,,,South Glamorgan,Wales,CF14 3NB"]
[10018633,"ü","Whitefield Fishponds Community School","Snowdon Road,,,Gloucestershire,England,BS16 2HD"]
[10579448,"ü","Whitehaven & District First Responders",",,,,,"]
[10030389,"ü","Whitehills Nursery School","Acre Lane,,,Northamptonshire,England,NN2 8DF"]
[10002556,"ü","Whitewater Primary School","The Street,,,Hampshire,England,RG27 9BG"]
[10574541,"ü","Whitgift School (Independent)","Haling Park,,,,,CR2 6YT"]
[10041924,"ü","Whitmore Primary School and Nursery","Whitmore Way,,,Essex,England,SS14 2TP"]
[10021070,"ü","Whitworth Medical Centre","Market Street,,Whitworth,Lancashire,England,OL12 8QS"]
[10574292,"ü","Whybridge Infant School","Ford Lane,,,,,RM13 7AR"]
[10572089,"ü","Wicklewood Primary School","Hackford Road, Wicklewood,,,,,NR18 9QJ"]
[10003640,"ü","Wigston College of Further Education","Station Road,,,Leicestershire,England,LE18 2DW"]
[10002557,"ü","Wildground Infant School","Crete Road,Dibden Purlieu,,Hampshire,England,SO45 4JX"]
[10030819,"ü","Wilds Lodge School","Stamford Road,Empignham,,Leicestershire,England,LE15 8QQ"]
[10031289,"ü","William Booth Infant School","Notintone Street,,,Nottinghamshire,England,NG2 4QF"]
[10574405,"ü","William Hildyard Church of England Primary and Nursery School","Godsey Lane,,,,,PE6 8HZ"]
[10571356,"ü","William Shrewsbury Primary School","Church Road, Stretton,,,,,DE13 0HE"]
[10576875,"ü","William Tyndale Primary School","Upper Street,,,,,N1 2GG"]
[10042192,"ü","Willow Bank Partnership CIC","Weston Road,,,,England,ST3 6AB"]
[10030390,"ü","Willow Primary School","Wexham Road,,,Berkshire,England,SL2 5JD"]
[10011201,"ü","Wilmorton Community Primary School","London Road,,,Derbyshire,England,DE24 8UQ"]
[10025418,"ü","Wilthorpe Junior School","Greenfoot Lane,,,South Yorkshire,England,S75 1EG"]
[10578746,"ü","Wiltshire Search and Rescue","London Road,,,Wiltshire,England,SN10 2DN"]
[10014807,"ü","Winchelsea Primary School","49 Sleaford Road,Rushington,,Lincolnshire,England,NG34 9BY"]
[10573678,"ü","Windlestone School","Chilton,,,,,DL17 0HP"]
[10005166,"ü","Windsor Park Church of England Middle School","Springfield Road,,,Staffordshire,England,ST14 7JX"]
[10575800,"ü","Wingate Community Nursery School","Partridge Terrace,,,,,TS28 5BD"]
[10030395,"ü","Winsham Primary School","Church Street,,,Somerset,England,TA20 4HU"]
[10040662,"ü","Winteringham Primary School","School Road,Winteringham,,Lincolnshire,England,DN15 9NL"]
[10022676,"ü","Wirral Grammar School for Boys","Cross Lane,,,Merseyside,England,CH63 3AQ"]
[10004052,"ü","Wirral Multicultural Organisation","111 Conway Street,,,Merseyside,England,CH41 1AF"]
[10575439,"ü","Wistaston Academy","Moreton Road,,,,,CW2 8QS"]
[10016719,"ü","Witney Mills Housing Society Limited","c/o West Oxfordshire Housing,Windrush House,Windrush Park Road,Oxfordshire,England,OX29 7EY"]
[10016720,"ü","Woborns Almshouse Charity","Old Parsonage House,Charlton Horethorne,,Dorset,England,DT9 4NL"]
[10016722,"ü","Wokingham Area Housing Society Limited","17 Windsor Ride,Finchampstead,,Berkshire,England,RG40 3LG"]
[10566338,"ü","Wolsingham School","The Grammar School Building, West End, Wolsingham,,,,,DL13 3DJ"]
[10572207,"ü","Wolverley Sebright VA Primary School","Franche Road, Wolverley,,,,,DY11 5TP"]
[10037092,"ü","Woodbridge Catholic Church","21 St Johns Street,St. Johns Street,,Suffolk,England,IP12 1ED"]
[10035832,"ü","Woodbury Salterton Primary School","Stony Lane,Woodbury Salterton,,Devon,England,EX5 1PP"]
[10031305,"ü","Wood End Junior School","Vernon Rise,,,Middlesex,England,UB6 0EQ"]
[10575365,"ü","Woodford Valley Church of England Aided School","Middle Woodford,,,,,SP4 6NR"]
[10566853,"ü","Woodhouse Academy","Woodhouse Lane, Biddulph,,,,,ST8 7DR"]
[10026644,"ü","Woodhouse Primary School","Woodhouse Road,Quinton,,West Midlands,England,B32 2DL"]
[10036885,"ü","Woodlands Junior School","Loxford Lane,,,Greater London,England,IG1 2PY"]
[10042812,"ü","Woodlands School","Packington Lane,Coleshill,,West Midlands,England,B46 3JE"]
[10037108,"ü","Woodmancote School","Station Road,,,Gloucestershire,England,GL52 9HN"]
[10011167,"ü","Woodside High School","White Hart Lane,Wood Green,,Greater London,England,N22 5QJ"]
[10037014,"ü","Woodside Primary School","Gittin Street,,,Shropshire,England,SY11 1DT"]
[10013681,"ü","Wookey Primary School","Wells Road,Wookey,,Somerset,England,BA5 1LQ"]
[10572271,"ü","Woolston Community Primary School","Barnfield Road, Woolston,,,,,WA1 4NW"]
[10043501,"ü","Woolwich County Court","165-169 Powis Street,,,Greater London,England,SE18 6JW"]
[10006370,"ü","Worcestershire Acute Hospitals NHS Trust","Worcester Royal Hospital,Charles Hastings Way,,Worcestershire,England,WR5 1DD"]
[10051846,"ü","Workington Town Council",",,,,,"]
[10005626,"ü","World Wildlife Fund","Panda House,Weyside Park,Catteshall Lane,Surrey,England,GU7 1XR"]
[10016729,"ü","Worthing Homes Limited","Davison House,,,West Sussex,England,BN11 1ER"]
[10572306,"ü","Wouldham, All Saints Church of England Voluntary Controlled Primary School","School Lane, Wouldham,,,,,ME1 3TS"]
[10570241,"ü","Wren Spinney Community School","Westover Road, Off Westhill Drive,,,,,NN15 7LB"]
[10006101,"ü","Wroughton Infant School","Wharf Road,Wroughton,,Wiltshire,England,SN4 9LE"]
[10027187,"ü","WRVS Cardiff Gate","Beck Court,Cardiff Gate,,South Glamorgan,Wales,CF23 8RP"]
[10577839,"ü","Wycliffe Surgery","8 Cattedown Road,,,Devon,England,PL4 0BZ"]
[10021532,"ü","Wyke Regis Infants School","Shrubbery Lane,Wyke Regis,,Dorset,England,DT4 9LU"]
[10572337,"ü","Wyton on the Hill Community Primary School","Cambridge Square, Wyton-on-the-Hill,,,,,PE28 2JB"]
[10027161,"ü","Yanwath Primary School","Yanwath,,,Cumbria,England,CA10 2LA"]
[10571729,"ü","Yarrells Preparatory School","Yarrells House, Upton,,,,,BH16 5EU"]
[10011262,"ü","Yarrow Housing Limited","216 Goldhawk Road,,,Greater London,England,W12 9NX"]
[10013920,"ü","Yateley Infant School","Cranford Park Drive,,,Hampshire,England,GU46 7TN"]
[10027475,"ü","Yateley Manor School","51 Reading Road,,,Hampshire,England,GU46 7UQ"]
[10021041,"ü","Yateley School","School Lane,,,Hampshire,England,GU46 6NW"]
[10002315,"ü","Yateley Town Council","Council Offices,Reading Road,,Hampshire,England,GU46 7RP"]
[10565181,{"$f":"CHAR(252)","v":"ü"},"Yate Town Council","Poole Court,Poole Court Drive,Yate,Gloucestershire,England,BS37 5PP"]
[10577274,"ü","Yattendon C.E. Primary School","Yattendon,,,,,RG18 0UR"]
[10575640,"ü","Yattendon School","Oakwood Road,,,,,RH6 7BZ"]
[10031227,"ü","Yatton Junior School","High Street,Yatton,,Somerset,England,BS49 4HJ"]
[10037517,"ü","Yavneh Jewish School","Hillside Avenue,Borehamwood,,Hertfordshire,England,WD6 1HL"]
[10055319,"ü","Yaxham CE VA Primary School","Norwich Road,Yaxham,,,England,NR19 1RU"]
[10036164,"ü","Yaxley Group Practice","Landsdowne Road,,,Cambridgeshire,England,PE7 3JL"]
[10572349,"ü","Yaxley Infant School","Main Street, Yaxley,,,,,PE7 3LU"]
[10026280,"ü","Y Bont Faen Primary School","Borough Close,,,Vale of Glamorgan,Wales,CF71 7BN"]
[10028113,"ü","Ycc Clinic At Tower Court Health Centre","OAKDALE ROAD,,,North Yorkshire,England,YO30 4RZ"]
[10033501,"ü","Yeading Children Centre","Carlyon Road,,,Middlesex,England,UB4 0NR"]
[10037730,"ü","Yeadon Westfield Infant School","Westfield,,,West Yorkshire,England,LS19 7NQ"]
[10572352,"ü","Yealand Church of England Primary School","Footeran Lane, Yealand Redmayne,,,,,LA5 9SU"]
[10011263,"ü","Yealmpstone Farm Primary School","Meadowfield Place,Plympton,,Devon,England,PL7 1XQ."]
[10572353,"ü","Yealmpton Primary School","Stray Park, Yealmpton,,,,,PL8 2HF"]
[10018687,"ü","Year in Industry The","University of Southampton,University Road,,Hampshire,England,SO17 1BJ"]
[10014672,"ü","Yearsley Grove Primary School","Yearsley Grove,,,Cambridgeshire,England,YO31 9BX"]
[10021470,"ü","Yehudi Menuhin School","Cobham Road,,,Surrey,England,KT11 3QQ"]
[10579234,"ü","Yeladenu Pre-School","31 Tetherdown,Muswell Hill,,,England,N10 1ND"]
[10020553,"ü","Yeldall Christian Centres","Blakes Lane,Hare Hatch,,Berkshire,England,RG10 9XR"]
[10034191,"ü","Yellow Brick House Nursery The","CHESTNUT PARK PAVILION,WOOSEHILL,,Berkshire,England,RG41 3BP"]
[10572354,"ü","Yelvertoft Primary School","School Lane, Yelvertoft,,,,,NN6 6LH"]
[10020209,"ü","Yemeni Community Association Sheffield Limited","43 Aftercliffe Common,,,South Yorkshire,England,S9 2AE"]
[10020215,"ü","Yemeni Community Centre","Highfield Lane,,,West Midlands,England,B63 4SG"]
[10020210,"ü","Yemeni Economic and Training Centre","43 Aftercliffe Common,,,South Yorkshire,England,S9 2AE"]
[10568149,"ü","Yenton Primary School","Chester Road, Erdington,,,,,B24 0ED"]
[10013789,"ü","YEO Centre North Devon KS3 Pupil Referral Unit The","St. Georges Road,,,Devon,England,EX32 7AU"]
[10577276,"ü","Yeoford Community Primary School","Yeoford,,,,,EX17 5HZ"]
[10054956,"ü","Yeoman Park School","Park Hall Road,Mansfield Woodhouse,,Nottinghamshire,England,NG19 8PS"]
[10013896,"ü","Yeo Moor Junior School","Kennaway Road,,,Somerset,England,BS21 6JL"]
[10030654,"ü","Yeo Vale Medical Practice","155 Mendip Road,,,Somerset,England,BS49 4ER"]
[10574008,"ü","Yeo Valley Primary School","Derby Road,,,,,EX32 7HB"]
[10011265,"ü","Yeovil College","Mudford Road,,,Somerset,England,BA21 4DR"]
[10020266,"ü","Yeovil District Hospital NHS Foundation Trust","Yeovil District Hospital,Higher Kingston,,Somerset,England,BA21 4AT"]
[10026984,"ü","Yeovil Town Council","19 Union Street,,,Somerset,England,BA20 1PQ"]
[10035717,"ü","Yerbury Primary School","Foxham Road,,,Greater London,England,N19 4RR"]
[10013257,"ü","Yercombe Lodge","The Yercombe (Glos) Trust,,Yercombe Lodge,Stinchcombe,Gloucestershire,England,GL11 6AS"]
[10572616,"ü","Yeshivah Ohr Torah School","28 Broom Lane,,,,,M7 4FX"]
[10011267,"ü","Yeshivo Horomo Talmudical College","100 Fairholt Road,,,Greater London,England,N16 5HN"]
[10011268,"ü","Yesodey Hatorah School","2-4 Amhurst Park,,,Greater London,England,N16 5AE"]
[10016337,"ü","Yesodey Hatorah Senior Girls School","Egerton Road,,,Greater London,England,N16 6UB"]
[10011269,"ü","Yesoiday Hatorah School","Sedgley  Park Road,Prestwich,,Greater Manchester,England,M25 0JW"]
[10011259,"ü","Y E T College","33 Northumberland Street,Salford,,Greater Manchester,England,M7 4DQ"]
[10577281,"ü","Yewdale School","Yewdale Road,,,,,CA2 7SD"]
[10027312,"ü","Yewlands Academy","Cresswick Lane,,Grenoside,Yorkshire,England,S35 8NN"]
[10043815,"ü","Yewstock School","Honeymead Lane,,,Dorset,England,DT10 1EW"]
[10566601,"ü","Yew Tree Community Junior and Infant School (NC)","Yew Tree Road, Aston,,,,,B6 6RX"]
[10567372,"ü","Yew Tree Community School","Alcester Street, Chadderton,,,,,OL9 8LD"]
[10036178,"ü","Yew Tree medical Practice","10 Yew Tree Lane,,,West Midlands,England,B91 2RA"]
[10026354,"ü","Yew Tree Primary School","Fletcher Way,,,Hertfordshire,England,HP2 5QR"]
[10029269,"ü","Yew Tree Primary School","Birchfield Way,,,West Midlands,England,WS5 4DX"]
[10021230,"ü","Yew Tree Primary School","Wherretts Well Lane,,,West Midlands,England,B91 2SD"]
[10022053,"ü","YFM Group","210-212 Chapeltown Road,Chapel Allerton,,West Yorkshire,England,LS7 4HZ"]
[10015192,"ü","Yggol Llangelynnin","Henryd,,,Gwynedd,Wales,Ll32 8YB"]
[10016362,"ü","YHA Barrow House","Borrowdale,,,Cumbria,England,CA12 5UR"]
[10014244,"ü","YHA Conwy","Youth Hostels Association,,Larkhill,,Sychnant Pass Road,Conwy,Wales,LL32 8AJ"]
[10020487,"ü","YHGFL Foundation","Normandy Gateway Enterprise Park,Lysaghts Way,,Lincolnshire,England,DN15 9YQ"]
[10037496,"ü","YMCA","Willow Trees Childrens Centre,Lxley Close,,,England,B98 9JL"]
[10042090,"ü","YMCA","Farringdon Point,,,Greater London,England,EC1M 3JF"]
[10037908,"ü","YMCA Barnsley","1 Blucher Street,,,South Yorkshire,England,S70 1AP"]
[10036102,"ü","YMCA Bolton","125 Deansgate,,,Greater Manchester,England,BL1 1HA"]
[10022452,"ü","YMCA Cambridgeshire and Peterborough","The Cresset,,,,England,PE3 8DX"]
[10014776,"ü","YMCA Dover","Burgoyne Heights Community Centre,,Guston,Kent,England,CT15 5LY"]
[10542292,"ü","Ymca East Surrey",",,,,England,RH1 6JJ"]
[10011270,{"$f":"CHAR(252)","v":"ü"},"YMCA England","640 Forest Road,,Waltham Forest,Greater London,England,E17 3DZ"]
[10039712,"ü","Ymca Fairthorne Group","Ymca Fairthorne Manor,Curdridge,,Hampshire,England,SO30 2GH"]
[10011701,"ü","YMCA George Williams College","199 Freemasons Road,,,Greater London,England,E16 3PY"]
[10578274,"ü","YMCA Norfolk","35-37 Exchange Street,,,Norfolk,England,NR2 1DP"]
[10040002,"ü","YMCA North Staffordshire","Edinburgh House,Harding Road,,Staffordshire,England,ST1 3AE"]
[10016737,"ü","YMCA of Lambeth Lewisham and Southwark","King George's House,40 Stockwell Road,,Greater London,England,SW9 9ES"]
[10578609,"ü","YMCA St Paul's Group","St. James House,9-15 St. James Road,,,England,KT6 4QH"]
[10565303,"ü","YMCA Tees Valley","Tees Valley YMCA,Middleton Street,,,England,DL1 1TU"]
[10018370,"ü","YMCA Training","Chief Executive,55 High Street,,Oxfordshire,England,OX16 5JJ"]
[10024717,"ü","YMCA Wales","Unit 17,J Shed,Kings Road,West Glamorgan,Wales,SA1 8PL"]
[10023317,"ü","YMCA Wales Community College","Unit 6, Cleeve House,Lambourne Crescent,Cardiff Business Park,South Glamorgan,Wales,CF14 5GP"]
[10013346,"ü","YMCA Welwyn Hatfield","YMCA,Peartree Lane,,Hertfordshire,England,AL7 3UL"]
[10013486,"ü","YMCA Wiston Lodge","Millrig Road,,,,Scotland,ML12 6HT"]
[10021533,"ü","YMCA Worchester","YMCA Worchester,YMCA Hostel,Henwick Road,Worcestershire,England,WR2 5NS"]
[10043090,"ü","Ynsmaerdy C P School","Neath Road,Llansawel,,,Wales,SA11 2BQ"]
[10011271,"ü","Ynysboeth Junior School","Main Road,Ynysboeth,,Mid Glamorgan,Wales,CF45 4LJ"]
[10014315,"ü","Ynysddu Primary School","Ynysddu Primary School,High Street,Ynysddu,Gwent,Wales,NP11 7JH"]
[10025887,"ü","Ynysfach Primary School","Resolven,,,Mid Glamorgan,Wales,SA11 4AB"]
[10031228,"ü","Ynyshir Primary School","Llanwonno Road,Ynishir,,Mid Glamorgan,Wales,CF39 0HU"]
[10569069,"ü","Yohden Primary School","Windsor Terrace, Horden,,,,,SR8 4HP"]
[10029344,"ü","Yorcard","11 Broad Street West,,,South Yorkshire,England,S1 2BQ"]
[10044123,"ü","Yorebridge Sport and Leisure Centre","Wensleydale Avenue,,,North Yorkshire,England,DL8 5SD"]
[10020143,"ü","York Against Cancer","31 - 33 North Moor Road,,Huntington,North Yorkshire,England,YO32 9QN"]
[10028849,"ü","York and North Yorkshire Probation Trust","Thurstan House,Thornfield Business Park,Standard Way Business Park,West Yorkshire,England,DL6 2XQ"]
[10042261,"ü","York Boat Rescue","23 St. Pauls Mews,,,Yorkshire,England,YO24 4BR"]
[10028114,"ü","York Cataract Company Limited","TOWER COURT HEALTH CENTRE,OAKDALE ROAD,,North Yorkshire,England,YO30 4RZ"]
[10042330,"ü","York City Council","West Offices,Station Rise,,Yorkshire,England,YO1 6GA"]
[10011716,"ü","York College","Buying Department,Tadcaster Road,,North Yorkshire,England,YO24 1UA"]
[10576318,"ü","York College","Sim Balk Lane,,,,,YO23 2BB"]
[10036194,"ü","York Consortium Drainage Boards","Derwent House,Crockey Hill,,North Yorkshire,England,YO19 4SR"]
[10018371,"ü","York Diocesan Board of Finance Limited","Diocesan House,Aviator Court,Clifton Moor,Yorkshire,England,YO30 4WJ"]
[10040984,"ü","York Early Music Foundation","The National Cen For Early ,St Margarets Church.Walmgate,,North Yorkshire,England,YO1 9TL"]
[10031229,"ü","York Emc Services Limited","Market Square,University Of York,Heslington,Yorkshire,England,YO10 4DD"]
[10567787,"ü","Yorke Mead Primary School","Dulwich Way, Croxley Green,,,,,WD3 3PX"]
[10032853,"ü","York High School","Cornlands Road,,,North Yorkshire,England,YO24 3WZ"]
[10040539,"ü","Yorkhill Children's Charity","Dalnair Street,,,Lanarkshire,England,G3 8SJ"]
[10055157,"ü","Yorkhill Family House","Ronald McDonald House,1299 Govan Road,,Lanarkshire,Scotland,G51 4TE"]
[10038370,"ü","Yorkhill Hospital NHS Trust","Yorkhill Hospital DCFP,Caledonia House,,Strathclyde,Scotland,G3 8SJ"]
[10566026,"ü","York House School","Redheath, Sarratt Road, Croxley Green,,,,,WD3 4LW"]
[10016738,"ü","York Housing Association Limited","2 Alpha Court,Monks Cross Drive,Huntington,North Yorkshire,England,YO32 9WN"]
[10014183,"ü","Yorkley Health Centre","Bailey Hill,Yorkley,,Gloucestershire,England,GL15 4RS"]
[10028906,"ü","Yorkley School","Lydney Road,Yorkley,,Gloucestershire,England,GL15 4RR"]
[10041556,"ü","Yorkmead Primary School","York Road,Hall Green,,West Midlands,England,B28 8BB"]
[10019794,"ü","York Medical Group","199 Acomb Road,Acomb,,Yorkshire,England,YO24 4HD"]
[10033577,"ü","York Medical Pratice","St John's Health Centre,Oak Lane,,Greater London,England,TW1 3PA"]
[10040579,"ü","York Museum Trust","The Castle,,,North Yorkshire,England,YO1 9RY"]
[10013795,"ü","York Road Junior School and Language Unit","York Road,,,Kent,England,DA1 1SQ"]
[10577284,"ü","York Road Nursery School","York Road,,,,,SG5 1XA"]
[10026637,"ü","York Road Surgery","York Road,,,South Yorkshire,England,S65 1PW"]
[10038272,"ü","Yorkshill NHS Trust  Finance","Yorkhill Hospital,Clinical Psychology Dept,,Strathclyde,Scotland,G3 8SJ"]
[10025665,"ü","Yorkshire Agricultural Society","Great Yorkshire Showground,Railway Road,,North Yorkshire,England,HG2 8PW"]
[10020554,"ü","Yorkshire Air Ambulance Charity","Office D255,Dean Clough,,West Yorkshire,England,HX3 5AX"]
[10022240,"ü","Yorkshire Ambulance Service NHS Trust","Unit D, Wakefield Industrial Estate,,,,West Yorkshire,England,WF2 0XQ."]
[10030697,"ü","Yorkshire and Humber Assembly","18 King Street,,,West Yorkshire,England,WF1 2SQ"]
[10018984,"ü","Yorkshire and Humber Improvement and Efficiency Partnership","1st Floor,St George House,Great George Street,West Yorkshire,England,LS1 3DL"]
[10014102,"ü","Yorkshire and Humber Regional Aggregation Board","Round Foundry Media Centre,Foundry Street,,West Yorkshire,England,LS11 5QP"]
[10020365,"ü","Yorkshire and Humberside Grid For Learning","x,,,East Yorkshire,England,DN15 9YG"]
[10052209,"ü","Yorkshire and Humberside Police Force",",,,,,"]
[10032402,"ü","Yorkshire and Humberside Prisons","Cleland House,Page Street,,Greater London,England,SW1P 4LN"]
[10032403,"ü","Yorkshire and Humberside Probation","Cleland House,Page Street,,Greater London,England,SW1P 4LN"]
[10035676,"ü","Yorkshire and Humber Strategic Health Authority","Blenheim House,Duncombe Street,,West Yorkshire,England,LS1 4PL"]
[10020915,"ü","Yorkshire and Humber Sustainable Futures Co Limited","The Green Sand Foundry,99 Water Lane,Holbeck,West Yorkshire,England,LS11 5QN"]
[10025658,"ü","Yorkshire Cancer Research","39 East Parade,,,North Yorkshire,England,HG1 5LQ"]
[10004600,"ü","Yorkshire Coast College for Further and Higher Education","Lady Edith's Drive,,,North Yorkshire,England,YO12 5RN"]
[10016739,{"$f":"CHAR(252)","v":"ü"},"Yorkshire Coast Homes Limited","Londesborough Lodge,The Crescent,,North Yorkshire,England,YO11 2PW"]
[10023232,"ü","Yorkshire Coast Workshops","Auborough Street,,,Yorkshire,England,Y011 1HT"]
[10016740,"ü","Yorkshire Community Housing Limited","Regent House,161 Briggate,,West Yorkshire,England,LS1 6LY"]
[10014030,"ü","Yorkshire Culture","Round Foundry Media Centre,Foundry Street,,West Yorkshire,England,LS11 5QP"]
[10020060,"ü","Yorkshire Dales National Park Authority","Yoredale,Bainbridge,,North Yorkshire,England,DL8 3EL"]
[10027901,"ü","Yorkshire Deanery","NHS DEPARTMENT,POSTGRAD MEDICAL & DENTAL EDUCATION,UNI OF LEEDS, WOODHOUSE LANE,West Yorkshire,England,LS2 9JT"]
[10028725,"ü","Yorkshire Eye Hospital","937 Harrogate Road,,,West Yorkshire,England,BD10 0RD"]
[10013551,"ü","Yorkshire Housing","Yorkshire House,,Innovation Close,Heslington,Yorkshire,England,YO10 5ZF"]
[10579287,"ü","Yorkshire Housing Limited",",,,,,"]
[10016741,"ü","Yorkshire Ladies Council Hostels Limited","Forest Hill,11 Park Crescent,,West Yorkshire,England,LS8 1DH"]
[10005732,"ü","Yorkshire Metropolitan Housing Association","49 Church Street,,,South Yorkshire,England,S70 2AH"]
[10011273,"ü","Yorkshire Museums Libraries and Archives Council","Farnley Hall,Hall Lane,,West Yorkshire,England,LS12 5HA"]
[10011274,"ü","Yorkshire Purchasing Organisation","41 Industrial Park,,,West Yorkshire,England,WF2 0XE"]
[10040369,"ü","Yorkshire Regiment Area Office The","Trinity Church Square,Market Place,,Greater London,England,DL10 4QN"]
[10014364,"ü","Yorkshire Tourist Board","Yorkshire Tourist Board,312 Tadcaster Road,,North Yorkshire,England,YO24 1GS"]
[10012510,"ü","Yorkshire Wildlife Trust","1 St Georges Place,,,Yorkshire,England,YO24 1GN"]
[10022760,"ü","Yorkshire Young Musicians","PO Box 127,Thirsk,,,England,YO7 2WX"]
[10004597,"ü","York Sixth Form College","Sim Balk Lane,Tadcaster Road,,North Yorkshire,England,YO2 1UD"]
[10004598,"ü","York St John College","Lord Mayors Walk,,,North Yorkshire,England,YO317EX"]
[10044030,"ü","York St John University","Lord Mayors Walk,,,North Yorkshire,England,YO31 7EX"]
[10569308,"ü","Yorkswood Primary School","Kingshurst Way, Kingshurst,,,,,B37 6DF"]
[10581703,"ü","York Teaching Hospital Facilities Management LLP","Wigginton Road,,,Yorkshire,England,YO31 8HE"]
[10013699,"ü","York Teaching Hospital NHS Foundation Trust","York District Hospital,Wigginton Road,,North Yorkshire,England,YO31 8HE"]
[10019022,"ü","York Theatre Royal","St. Leonards Place,,,North Yorkshire,England,YO1 7HD"]
[10572524,"ü","Yorston Lodge School","18 St John's Road,,,,,WA16 0DP"]
[10541576,"ü","Yorwaste Waste Management and Recycling Limited","Mount View,Standard Way,,,,DL6 2YD"]
[10572360,"ü","Youlgrave All Saints CofE Voluntary Aided Primary School","Alport Lane, Youlgrave,,,,,DE45 1WN"]
[10577470,"ü","Young Barnet Foundation","102A Watling Ave,,,,England,HA8 0LN"]
[10032518,"ü","Young Bristol","113 Parson Street,,Bedminster,Somerset,England,BS3 5QH"]
[10570914,"ü","Young Dancers Academy","25 Bulwer Street, Shepherds Bush,,,,,W12 8AR"]
[10011277,"ü","Young Enterprise","Peterley House,Peterley Road,,Oxfordshire,England,OX4 2TZ"]
[10043138,"ü","Young Enterprise (NI)","Grove House,145-149 Donegall Pass,,County Antrim,Northern Ireland,BT7 1DT"]
[10576503,"ü","Young Epilepsy (The National Centre for Young People with Epilepsy)","St Piers Lane,,,,,RH7 6PW"]
[10011279,"ü","Younger Botanic Gardens","Benmore,,,,Scotland,PA23 8QU"]
[10542293,"ü","Young Gloucestershire",",,,,England,GL1 1TS"]
[10041244,"ü","Young Life International","Kestin House,45 Crescent Road,,Bedfordshire,England,LU2 0AH"]
[10035725,"ü","Young Peoples Support Service","Estcourt Crescent,,,Wiltshire,England,SN10 1LR"]
[10041798,"ü","Young Scot","Rosebury House,9 Haymarket Terrace,,Lothian,Scotland,EH12 5EZ"]
[10033502,"ü","Young Sussex","165 Portland Road,,,East Sussex,England,BN3 5QJ"]
[10034239,"ü","Young Sussex Childrens Day Nursery","191-193 DYKE ROAD,HOVE,,East Sussex,England,BN3 1TL"]
[10011278,"ü","Young Vic Company","66 The Cut,,,Greater London,England,SE1 8LZ"]
[10030859,"ü","Your Choice Homes","Property Shop,18 New Bridge Street,,Tyne and Wear,England,NE1 8AW"]
[10032965,"ü","Your Healthcare","Hollyfield House,22 Hollyfield Road,,Greater London,England,KT5 9AL"]
[10023856,"ü","Your Homes Newcastle","Y H N House,,Benton Park Road,,,Tyne and Wear,England,NE7 7LX"]
[10036652,"ü","Your Housing Group","Apex House,266 Moseley Road,Levenshulme,Greater Manchester,England,M19 2LH"]
[10041019,"ü","Your Leisure Kent","Northdown House,Northdown Park,,Kent,England,CT9 3TP"]
[10051405,"ü","Your Life Charity","12 Carsic Lane,,,,England,NG17 2AX"]
[10030875,"ü","Youth Action NI","14 College Sq North,,,County Down,Northern Ireland,BT1 6AS"]
[10011675,"ü","Youth and Community Service","Solar Campus,Leasowe Road,,Merseyside,England,CH45 8RG"]
[10032723,"ü","Youth Association The","12 South Parade,,,West Yorkshire,England,WF1 1LR"]
[10015446,"ü","Youth Challenge Secondary","Smithills Dean Road,,,Greater Manchester,England,BL1 6JT"]
[10015103,"ü","Youth Council for Northern Ireland","Forestview,Purdy's Lane,,County Antrim,Northern Ireland,BT8 7AR"]
[10019634,"ü","Youth Enquiry Service Perth","10 St John's Place,,,Perth and Kinross,Scotland,PH1 5SZ"]
[10017929,"ü","Youth Focus","The Coach House,Green Park Centre,Aston Clinton,Buckinghamshire,England,HP22 5NE"]
[10014691,"ü","Youth Hostels Association","Trevelyan House,Dimple Road,,Derbyshire,England,DE4 3YH"]
[10014692,"ü","Youth Hostels Association Longlands Hall","Lees Lane,Haworth,,West Yorkshire,England,BD22 8RT"]
[10033613,"ü","Youth Initiatives","Clona House/Colin Rd,,,County Antrim,Northern Ireland,BT17 0LG"]
[10030876,"ü","Youth Justice","42-48 Scotch Street,,,County Tyrone,Northern Ireland,BT70 1BD"]
[10021894,"ü","Youth Justice Agency of Northern Ireland","41-43 Waring Street,,,County Antrim,Northern Ireland,BT1 2DY"]
[10011281,"ü","Youth Justice Board for England and Wales","11 Carteret Street,,,Greater London,England,SW1H 9DL"]
[10021291,"ü","Youthlink Scotland","Rosebury House,9 Haymarket Terrace,,Lothian,Scotland,EH12 5EZ"]
[10031231,"ü","Youth Ministry Team","Diocesan Youth Village,Pembertonn Road,Allensford,County Durham,England,DH8 9BA"]
[10014992,"ü","Youth Sport Trust","Sir John Beckwith Centre for Sport,Loughborough University,,Leicestershire,England,LE11 3TU"]
[10039713,"ü","Youth Team","West Berkshire Council  Council Offices,Pincents Lane   Turnhams Green,,Berkshire,England,RG31 4UH"]
[10024745,{"$f":"CHAR(252)","v":"ü"},"Youth Today","56 Brownhill Crescent,,,West Yorkshire,England,LS9 6EA"]
[10043747,"ü","Youth United Foundation","202 Lambeth Road,,,,England,SE1 7JW"]
[10042633,"ü","Youth Vision","44 Harlaw Road,,,Mid Lothian,Scotland,EH14 7AX"]
[10014452,"ü","Youth With a Mission","Youth With a Mission,6 Highfield Oval,,Hertfordshire,England,AL5 4BX"]
[10025744,"ü","Youth Work In Education","Dodds Lane Student Centre,,,,England,LL11 4PA"]
[10564685,"ü","Youth Works CIC","97 Rockingham Road,,,Northamptonshire,England,NN16 9HX"]
[10033027,"ü","You Trust The","May Place House,May Place,,Hampshire,England,RG21 7NX"]
[10572361,"ü","Yoxford & Peasenhall Primary Academy","High Street, Yoxford,,,,,IP17 3EU"]
[10016338,"ü","Y Pant Comprehensive School","Cowqbridge Road,,Talbot Green,Mid Glamorgan,Wales,CF72 8YQ"]
[10021339,"ü","Ysgol Aberconwy","Ysgol Aberconwy,Morfa DRive,Conwy,,Wales,LL32 8ED"]
[10034355,"ü","Ysgol Abersoch","Lon Gwydryn,Abersoch,Pwllheli,,Wales,LL53 7EA"]
[10035960,"ü","Ysgol Arbennig Hafod Lon","Y Ffor,,,Gwynedd,Wales,LL53 6UP"]
[10042719,"ü","Ysgol Ardudwy","Ffordd Y Traeth,,,Gwynedd,Wales,LL46 2UH"]
[10562173,"ü","Ysgol Babanod Morfa Nefyn","Ietwen,Lon Yr Eglwys,Morfa Nefyn,Gwynedd,Wales,LL53 6AR"]
[10579148,"ü","Ysgol Baladeulyn","Nantlle,,,Gwynedd,Wales,LL54 6BT"]
[10579145,"ü","Ysgol Beddgelert","Lon Caernarfon,,,Gwynedd,Wales,LL55 4UY"]
[10579167,"ü","Ysgol Bodafon","Bodafon Road,,,Conwy,Wales,LL30 3BA"]
[10030970,"ü","Ysgol Bod Alaw","Abergele Road,,,Conwy,Wales,LL29 7ST"]
[10579144,"ü","Ysgol Bodfeurig","Sling,,,,Gwynedd,Wales,LL57 4RN"]
[10579128,"ü","YSGOL BODFFORD C.P. SCHOOL","Derlwyn,,,Gwynedd,Wales,LL77 7LZ"]
[10040452,"ü","Ysgol Bro Cynfal","Ffestiniog,,,Gwynedd,Wales,LL41 4NF"]
[10025517,"ü","Ysgol Bro Ddyfi","Ysgol Bro Ddyfi,Greenfields,Machynlleth,,Wales,SY23 8DR"]
[10016275,"ü","Ysgol Bro Gwaun","Heol Dyfed,,,Pembrokeshire,Wales,SA65 9DT"]
[10026083,"ü","Ysgol Bro Hedd Wyn","Trawsfynedd,,,Gwynedd,Wales,LL41 4SE"]
[10011282,"ü","Ysgol Bro Lleu","Kings Road,,Penygroes,Gwynedd,Wales,LL54 6RE"]
[10018798,"ü","Ysgol Bro Myrddin","Croesycelliog,,,,Wales,SA32 8DN"]
[10037515,"ü","Ysgol Bro Pedr","Llanbedr Pont Steffan,Ceredigion,,,Wales,SA47 7BX"]
[10026646,"ü","Ysgol Bro Plenydd","Y Ffor,,,Gwynedd,Wales,LL53 6UP"]
[10034348,"ü","Ysgol Bro Sannan","Ty Fry Road,,,Mid Glamorgan,Wales,CF81 9FN"]
[10031232,"ü","Ysgol Bro Sion Cwilt","Synod Inn,,,Dyfed,Wales,SA44 6JZ"]
[10563708,"ü","Ysgol Bro Teifi","Llandysul,,Ceredigion,,,SA44 4JL"]
[10026092,"ü","Ysgol Bryaerau","Pontyllfyni,,,,Wales,LL54 5EU"]
[10014002,"ü","Ysgol Bryn Alyn","Bryn Alyn High School,Bryn Glas,Gwesylit,Wrexham,Wales,LL11 4HB"]
[10031233,"ü","Ysgol Bryn Castell","Llangewydd Road,,,Mid Glamorgan,Wales,CF31 4JP"]
[10565547,"ü","Ysgol Bryn Derw ASD Special School","Melfort Road,,,,Wales,NP20 3FP"]
[10022668,"ü","Ysgol Bryn Elian","Windsor Drive,,Colwyn Bay,Conwy,Wales,LL29 8HU"]
[10023321,"ü","Ysgol Brynhyfryd","Mold Road,,,Clwyd,Wales,Ll15 1EG"]
[10035003,"ü","Ysgol Bryn Onnen","Varteg,,,Gwent,Wales,NP4 7RT"]
[10027147,"ü","Ysgol Brynrefail","Llanrug,,,Gwynedd,Wales,ll55 4ad"]
[10044169,"ü","Ysgol Brynsaron","Afallon Saron,Llandysul,,,,Wales,SA44 5EB"]
[10051004,"ü","Ysgol Bynea","Saron Road,Y Bynie,,,Wales,SA14 9LT"]
[10035770,"ü","Ysgol Caer Felin","Pencader,,,Carmarthenshire,Wales,SA39 9AA"]
[10031234,"ü","Ysgol Caerphilly","Parc-Y-Felin Street,,,Mid Glamorgan,Wales,CF83 3AH"]
[10013305,"ü","Ysgol Capel Garmon","Capel Garmon Primary School,,Capel Garmon,Conwy,Wales,LL26 0RL"]
[10031235,"ü","Ysgol Castellau","Ffordd Castellau,Beddau,,Mid Glamorgan,Wales,CF38 2AA"]
[10035851,"ü","Ysgol Cenarth CP School","Cenarth,,,Carmarthenshire,Wales,SA38 9JP"]
[10579155,"ü","Ysgol Chwilog",",,,Gwynedd,Wales,LL53 6PS"]
[10564694,"ü","Ysgol Comins Coch","Brongwinau, Comins Coch,,,,Wales,SY23 3BQ"]
[10044116,"ü","Ysgol Corn Hir","Y Caban Bryn Meurig,Llangefni,,,Wales,LL77 7JB"]
[10041077,"ü","Ysgol Craig Y Deryn","Llanegryn,,,,Wales,LL36 9SG"]
[10036335,"ü","Ysgol Craig Yr Wylfa","Francis Road,,,,Wales,SY24 5NJ"]
[10026125,"ü","Ysgol Cwmtwrch","Heol Twrch,Cwmtwrch,,,Wales,SA49 2TD"]
[10037671,"ü","Ysgol Cwm y Glo","Cwm-y-Glo,,,Gwynedd,Wales,LL55 4DE"]
[10564711,"ü","Ysgol Cybi","Garreglwyd Road,Holyhead, Sir Ynys Mon LL65 1NP,Wales,,,"]
[10041260,"ü","Ysgol Cynwyd Sant","Pen Yr Ysgol,,,Mid Glamorgan,Wales,CF34 9YE"]
[10015735,"ü","Ysgol David Hughes","Pentraeth Road,,,Gwynedd,Wales,LL59 5SS"]
[10026781,"ü","Ysgol Deganwy","Park Drive,Deganwy,,Conwy,Wales,LL31 9YB"]
[10025509,"ü","Ysgol Deiniol County Primary School","The Ridgeway,Marchwiel,,Wrexham,Wales,LL13 0SB"]
[10026406,"ü","Ysgol Dewi Sant","St. Davids,,,Pembrokeshire,Wales,SA62 6QH"]
[10030452,"ü","Ysgol Dewi Sant Primary","Rhuddlan Road,,,Denbighshire,Wales,LL18 2RE"]
[10018774,"ü","Ysgol Dinas Bran","Dinbren Road,,,Denbighshire,Wales,LL20 8TG"]
[10041088,"ü","Ysgol Dinas Mawddwy","Dinas Mawddwy,,,Gwynedd,Wales,SY20 9LN"]
[10579169,"ü","Ysgol Dolwyddelan",",,,Conwy,Wales,LL25 0SZ"]
[10579164,"ü","Ysgol Dyffryn Ardudwy","Y Brif Heol,,,Gwynedd,Wales,LL44 2EP"]
[10015624,{"$f":"CHAR(252)","v":"ü"},"Ysgol Dyffryn Conwy","Nebo Road,,,,Wales,LL26 OSD"]
[10029625,"ü","Ysgol Dyffryn Dulas Corris","Corris,,,Gwynedd,Wales,SY20 9TQ"]
[10581273,"ü","Ysgol Dyffryn Nantlle",",,,,,"]
[10018779,"ü","Ysgol Dyffryn Ogwen","Ffordd Coetmor,,,Gwynedd,Wales,LL57 3NN"]
[10019683,"ü","Ysgol Dyffryn Taf","North Road,,,Dyfed,Wales,SA34 OBD"]
[10036849,"ü","Ysgol Dyffryn Trannon","Trefeglwys,,,,Wales,SY17 5PH"]
[10579262,"ü","YSGOL DYSERTH","Thomas Avenue,,,,Wales,LL18 6AN"]
[10579157,"ü","Ysgol Edern","Ffordd Y Rhos,Edern,,Gwynedd,Wales,LL53 8YW"]
[10032763,"ü","YSGOL EDMWND PRYS","Gellilydan,,,Gwynedd,Wales,LL41 4DY"]
[10028755,"ü","Ysgol Eifionydd","Portmadog,,,Gwynedd,Wales,LL49 9HS"]
[10005904,"ü","Ysgol Erwr Delyn Special School","St Cyres Road,,,South Glamorgan,Wales,CF64 2WR"]
[10035865,"ü","Ysgol Esceifiog","Lon Groes,,,,Wales,LL60 6DD"]
[10579171,"ü","Ysgol Ffridd y LLyn","Cefnddwysarn,,,Gwynedd,Wales,LL23 7HE"]
[10579158,"ü","Ysgol Foel Gron","Mynytho,,,Gwynedd,Wales,LL53 7RN"]
[10030398,"ü","Ysgol Frongoch","Rhyl Road,,,Denbighshire,Wales,LL16 3DP"]
[10564763,"ü","Ysgol Gelli","Bethel Road,,,,Wales,LL55 1DU"]
[10036165,"ü","Ysgol Glan Morfa","Hinton Street,,,South Glamorgan,Wales,CF24 2EU"]
[10023163,"ü","Ysgol Glan Y Mor","Ffordd Caerdydd,,,Gwynedd,Wales,LL53 1SH"]
[10021245,"ü","Ysgol Glan Y Mor School","Heol Elfed,,,,Wales,SA16 OAL"]
[10030821,"ü","Ysgol Glymraeg","Pantyffynnon Road,,,West Glamorgan,Wales,SA9 1EU"]
[10018786,"ü","Ysgol Griffith Jones","Station Road,,,Carmarthenshire,Wales,SA33 4BT"]
[10034969,"ü","Ysgol Gwenllian","36 Station Road,,,Dyfed,Wales,SA17 4UT"]
[10019644,"ü","Ysgol Gwynfryn","Heol Y Meinciau,Pontyates,,Dyfed,Wales,SA15 5SN"]
[10579120,"ü","Ysgol Gyfun Aberaeron","South Road,,,Ceredigion,Wales,SA46 0DT"]
[10021437,"ü","Ysgol Gyfun Bro Morgannwg","Colcot Road,,,South Glamorgan,Wales,CF62 8YU"]
[10024690,"ü","Ysgol Gyfun Emlyn","Newcastle Emlyn,,,Carmarthenshire,Wales,SA38 9LN"]
[10029147,"ü","Ysgol Gyfun Garth Olwg","Main Road,Church Village,,Mid Glamorgan,Wales,CF38 1DX"]
[10029157,"ü","Ysgol Gyfun Garth Olwg","Erw Wen Salop Road,,,Powys,Wales,SY21 7RE"]
[10036960,"ü","YSGOL GYFUN GWYR","Ysgol Gyfun Gymraeg Gwyr,Talbot Street,Gowerton,West Glamorgan,Wales,SA4 3DB"]
[10043801,"ü","Ysgol Gyfun Gymraeg Bro Edern","Llanedern Road,Penylan,,,Wales,CF23 9DT"]
[10029232,"ü","Ysgol Gyfun Gymraeg Glantaf","Bridge Road,Llandaff North,,South Glamorgan,Wales,CF14 2JL"]
[10032642,"ü","Ysgol Gyfun Gymraeg Llangynwyd","Bridgend Road,,,Mid Glamorgan,Wales,CF34 9RW"]
[10021010,"ü","Ysgol Gyfun Gymundol Penweddig","Pffordd Llanbadarn,Llangawsai,,Ceredigion,Wales,SY23 3QN"]
[10026397,"ü","Ysgol Gyfun Llanbedr Pont Steffan","Peterwell Terrace,,,Ceredigion,Wales,SA48 7BX"]
[10011285,"ü","Ysgol Gyfun Llangefni","Llangefni,Llangefni,,Gwynedd,Wales,LL77 7NG"]
[10021155,"ü","Ysgol Gyfun Llanhari","Llanhari,,,West Glamorgan,Wales,CF72 9XE"]
[10015174,"ü","Ysgol Gyfun Maes Yr Yrfa","74 Heol Y Parc,Cefniethin,,Carmarthenshire,Wales,SA14 7DT"]
[10019810,"ü","Ysgol Gyfun Plas Mawr","Pentreban Road,,,Dyfed,Wales,CF5 3PZ"]
[10014453,"ü","Ysgol Gyfun Rhydywaun","Ysgol Gyfun Rhydywaun,Lawrence Avenue,Penywaun,Mid Glamorgan,Wales,CF44 9ES"]
[10022538,"ü","Ysgol Gyfun Y Cymer","Graigwen Road,,Cymmer,,Mid Glamorgan,Wales,CF39 9HA"]
[10022251,"ü","Ysgol Gyfun Ymraeg Bryn","YGG Bryn Tawe,Heol Gwyrosyod,,South Glamorgan,Wales,SA5 7BU"]
[10014316,"ü","Ysgol Gyfun Ystalyfera","Ysgol Gyfun Ystalyfera,Glanyrafon Road,Ystalyfera,West Glamorgan,Wales,SA9 2JJ"]
[10018601,"ü","Ysgol Gyfun Y Strade","Heol Sandy,,,Carmarthenshire,Wales,SA15 4DL"]
[10019779,"ü","Ysgol Gyfyn Dyffryn Taf","North Road,,,Carmarthenshire,Wales,SA34 0BD"]
[10029840,"ü","Ysgol Gymnraeg Trelyn","Commercial Street,,,,Wales,NP12 3ST"]
[10020633,"ü","Ysgol Gymraeg Aberystwyth","Coedlan Plascrug,,,Ceredigion,Wales,SY23 1HL"]
[10563698,"ü","Ysgol Gymraeg Bro Eirwg","Ysgol Gymraeg Bro Eirwg,Ridgeway Road,Rumney,,,CF3 4AB"]
[10031236,"ü","Ysgol Gymraeg Bro Helyg","Rising Sun Industrial Estate,Blaina,,Gwent,Wales,NP13 3JW"]
[10032643,"ü","Ysgol Gymraeg Coed Gof","Beechley Drive,Pentrebaen,,South Glamorgan,Wales,CF5 3SG"]
[10022045,"ü","Ysgol Gymraeg Cwmbran","Hennllys Way,Cwmbran,,,Wales,NP44 3NB"]
[10031237,"ü","Ysgol Gymraeg Cwm Derwen","Beech Grove,Oakdale,,,Wales,NP12 0JL"]
[10024358,"ü","Ysgol Gymraeg Cwm Gwyddon","Gwyddon Road,Abercarn,,Gwent,Wales,NP11 5GX"]
[10039913,"ü","Ysgol Gymraeg Cwmnedd","25 New Street,Glynneath,,West Glamorgan,Wales,SA11 5AG"]
[10042107,"ü","Ysgol Gymraeg Duffryn Y Glowyr","Bethel Road,,,West Glamorgan,Wales,SA92PP"]
[10036959,"ü","YSGOL GYMRAEG FFWRNES","Ysgol Gymraeg Ffwrnes,,,Carmarthenshire,Wales,SA15 4HT"]
[10031238,"ü","Ysgol Gymraeg Ifor Hael","Meon Close,Bettws,,Monmouthshire,Wales,NP20 7DU"]
[10566102,"ü","Ysgol Gymraeg Llundain, London Welsh School","Hanwell Community Centre, Westcott Crescent, Hanwell,,,,,W7 1PD"]
[10031004,"ü","Ysgol Gymraeg Melin Gruffydd C","Erw Las,,,South Glamorgan,Wales,CF14 1NL"]
[10031239,"ü","Ysgol Gymraeg Nant Caerau","Caerau Lane,,,South Glamorgan,Wales,CF5 5QZ"]
[10032644,"ü","Ysgol Gymraeg Penalltau","Cwm Calon,Penallta,Ystrad Mynach,Mid Glamorgan,Wales,CF82 7QX"]
[10031240,"ü","Ysgol Gymraeg Pwll Coch","Lawrenny Avenue,Canton,,South Glamorgan,Wales,CF11 8BR"]
[10041616,"ü","Ysgol Gymraeg Rhosafan","Marine Drive,,,West Glamorgan,Wales,SA12 7NN"]
[10026024,"ü","Ysgol Gymraeg Sant Baruc","St. Pauls Avenue,,,Vale of Glamorgan,Wales,CF62 8HT"]
[10013084,"ü","Ysgol Gymraeg Teilo Sant Llandeilo","Ysgol Teilo Sant, 18,Rhosmaen Street,,Carmarthenshire,Wales,SA19 6LU"]
[10031241,{"$f":"CHAR(252)","v":"ü"},"Ysgol Gymraeg Tonyrefail","School Street,Tonyrefail,,Mid Glamorgan,Wales,CF39 8LE"]
[10026294,"ü","Ysgol Gymraeg Y Fenni","St Davids Road,,,Monmouthshire,Wales,NP7 6HF"]
[10023164,"ü","Ysgol Gymreag Lon Las","Walters Road,,,Gwynedd,Wales,SA7 9RW"]
[10013653,"ü","Ysgol Gymuned Bodorgan","Bodorgan,,,Gwynedd,Wales,LL62 5AB"]
[10043301,"ü","Ysgol Gymuned Moelfre",",,,,Wales,LL72 8HA"]
[10041133,"ü","Ysgol Gymunedol Aberporth","Aberporth,Cardigan,Ceredigion,,Wales,SA43 2DE"]
[10042094,"ü","Ysgol Gymunedol Beulah","Beulah,,,Carmarthenshire,Wales,SA389QB"]
[10040497,"ü","Ysgol Gymunedol Llanarth","Ysgol Gynradd Llanarth,Llanarth,,,Wales,SA47 0NP"]
[10564695,"ü","Ysgol Gymunedol Llannon","Llanon,,,,Wales,SY23 5HX"]
[10564696,"ü","Ysgol Gymunedol Mynach",",,,,Wales,SY23 4QZ"]
[10043761,"ü","Ysgol Gymunedol T Llew Jones","Brynhoffnant,,Llandysul,,Ceredigion,Wales,SA44 6EA"]
[10564845,"ü","Ysgol Gymuned Penisarwaun","Penisa'r Waun,,,,,Wales,LL55 3BW"]
[10579130,"ü","Ysgol Gymuned Pentraeth","Ynys Môn,,,Gwynedd,Wales,LL75 8UP"]
[10563709,"ü","Ysgol Gynradd Aberteifi","Napier Street,,Cardigan,,CEREDIGION,,,SA43 1EH"]
[10042426,"ü","Ysgol Gynradd Amlwch","Amlwch,,,,Flintshire,Wales,LL68 9DY"]
[10031242,"ü","Ysgol Gynradd Brynaman","Brynaman,,,Dyfed,Wales,SA18 1AH"]
[10029112,"ü","Ysgol Gynradd Bryncrug","Tywyn,,,Gwynedd,Wales,LL36 9PR"]
[10578259,"ü","Ysgol Gynradd Brynsiencyn","Brynsiencyn,Llanfairpwllgwyngyll, Sir Ynys Mon LL61 6HZ,Wales,,,"]
[10024260,"ü","Ysgol Gynradd Castellnedd Primary School","Woodland Road,,,West Glamorgan,Wales,SA11 3AL"]
[10029353,"ü","Ysgol Gynradd Cefn Coch","Penryndeudraeth,,,Gwynedd,Wales,LL48 6AE"]
[10042029,"ü","Ysgol Gynradd Coed Hirwaun","Cwrt Y Carw,,,West Glamorgan,Wales,SA132TS"]
[10564948,"ü","Ysgol Gynradd Dyffryn Cledlyn","Drefach,,,,Wales,SA40 9SX"]
[10579162,"ü","Ysgol Gynradd Garndolbenmaen Primary School",",,,Gwynedd,Wales,LL51 9SZ"]
[10037136,"ü","Ysgol Gynradd Gymraeg","Hill View,Pontycymer,,Bridgend,Wales,CF32 8LU"]
[10031243,"ü","Ysgol Gynradd Gymraeg Pont Sion Norton","Heol Pont Sion Norton,,,Mid Glamorgan,Wales,CF37 4ND"]
[10042095,"ü","Ysgol Gynradd Gymunedol Tregaron","Ceredigion,,,,Wales,SY256JD"]
[10579034,"ü","Ysgol Gynradd Llanbedr","Felin,,,Gwynedd,Wales,LL45 2NS"]
[10018905,"ü","Ysgol Gynradd Llangynfelyn","Taliesin,,,Powys,Wales,SY20 8JG"]
[10043664,"ü","Ysgol Gynradd Llwyn Yr Eos Primary School","Penparcau,,,Ceredigion,Wales,SY23 1SH"]
[10015296,"ü","Ysgol Gynradd Mynyddcerrig","Mynnddcerrig,,,,Wales,SA15 5BG"]
[10025124,"ü","Ysgol Gynradd Parcyrhun Primary School","Villiers Road,Rhydaman,Ammanford,Carmarthenshire,Wales,SA18 3HB"]
[10037467,"ü","YSGOL GYNRADD RHIWLAS","Waen Pentir,,,Gwynedd,Wales,LL57 4EH"]
[10563710,"ü","Ysgol Gynradd Rhos Helyg","Rhosesmor,Mold,Flintshire,,,CH7 6PJ"]
[10579139,"ü","Ysgol Gynradd Rhosneigr","Rhosneigr,,,Gwynedd,Wales,LL64 5XA"]
[10578948,"ü","Ysgol Gynradd Talsarnau","4 Caerffynnon,,,Gwynedd,Wales,LL47 6TA"]
[10562910,"ü","Ysgol Gynradd Talwrn","Talwrn,Llangefni, Sir Ynys Mon LL77 7TG,Wales,,,"]
[10031244,"ü","Ysgol Gynradd Talyllchau","Talyllychau,,,Carmarthenshire,Wales,SA19 7YH"]
[10579276,"ü","Ysgol Gynradd Y Felinheli","Felinheli,,,Gwynedd,Wales,LL56 4TZ"]
[10023114,"ü","Ysgol Hendre Special School","Main Road,Bryncoch,,West Glamorgan,Wales,SA10 7TY"]
[10023831,"ü","Ysgol Heol Goffa","Heol Goffa,,,Carmarthenshire,Wales,SA14 3LS"]
[10029886,"ü","Ysgol Ieuan Gwynedd","Rhydymain,,,Gwynedd,Wales,LL40 2AS"]
[10031245,"ü","Ysgol Ifor Bach","Windsor Way,Ffordd Ifor,Abertridwr,Mid Glamorgan,Wales,CF83 4AB"]
[10023766,"ü","Ysgol Iolo Morganwg","Broadway,,,,South Glamorgan,Wales,CF71 7ER"]
[10019402,"ü","Ysgol John Bright","Maesdu Road,,,Conwy,Wales,LL30 1LF"]
[10562346,"ü","Ysgol Kingsland","Holyhead,,,,Wales,LL65 2TG"]
[10579146,"ü","Ysgol Llanaelhaearn",",,,Gwynedd,Wales,LL54 5AL"]
[10579147,"ü","Ysgol Llandwrog",",,,Gwynedd,Wales,LL54 5ST"]
[10579402,"ü","Ysgol Llandygai","Llandygai School,Llandygai,,,Wales,LL57 4HU"]
[10579165,"ü","Ysgol Llanelltyd","Llanelltyd,,,,Gwynedd,Wales,LL40 2TA"]
[10582576,"ü","Ysgol Llanerchymedd","Llanerchymedd,,,Gwynedd,Wales,LL71 8DP"]
[10577846,"ü","Ysgol Llanfair Pwllgwyngyll","Ysgol Llanfair Pwllgwyngyll,Ffordd Caergybi ,Llanfair Pwllgwyngyll \nYnys Mon \nLL61 5TX,,,"]
[10044100,"ü","Ysgol Llanfechall","Llanfechell,,,,Wales,LL68 0SA"]
[10579159,"ü","Ysgol Llangybi","Llangybi,,,,Gwynedd,Wales,LL53 6DQ"]
[10038149,"ü","Ysgol Llanrug Community School","Llanberis Road,Llanrug,Caernarfon,Gwynedd,Wales,LL55 4AL"]
[10036962,"ü","YSGOL LLANSTEFFAN","Ysgol Llansteffan,,,Carmarthenshire,Wales,SA33 5LN"]
[10031208,"ü","Ysgol Llanwenog","Llanwenog,Lampeter,,,Wales,SA40 9UU"]
[10579161,"ü","Ysgol Llanystumdwy","Llanystumdwy,,,Gwynedd,Wales,LL52 0SP"]
[10029455,"ü","Ysgol Llwyngwril","Llwyn Crofft,,,Gwynedd,Wales,LL37 2JQ"]
[10036008,"ü","Ysgol Login Fach","Roseland Road,,,Mid Glamorgan,Wales,SA5 4ST"]
[10031024,"ü","Ysgol Machreth","Llandachreth,,Llanfachreth,Gwynedd,Wales,LL40 2DY"]
[10041272,"ü","Ysgol Maenofferen","Bryn Eirw,Heol Maenofferen,,Gwynedd,Wales,LL41 3DL"]
[10043203,"ü","Ysgol Maes Garmon","Conway Street,,,Flintshire,Wales,CH7 1JB"]
[10579018,"ü","Ysgol Maesincla","Maesincla,,,Gwynedd,Wales,LL55 1DF"]
[10044159,"ü","Ysgol Maes-y-Llan","Maes Y Llan Lane,Rhiwabon,,,Wales,LL14 6AE"]
[10035937,{"$f":"CHAR(252)","v":"ü"},"Ysgol Morgan Llwyd","Cefn Road,,,Wrexham,Wales,LL13 9NG"]
[10042699,"ü","Ysgol Mynydd Bychan","New Zealand Road,,,Mid Glamorgan,Wales,CF14 3BR"]
[10030399,"ü","Ysgol Nant Y Coed","Ronald Avenue,,,Conwy,Wales,LL31 9EU"]
[10579149,"ü","Ysgol Nebo","Ffordd y Llyn,Nebo,,Gwynedd,Wales,LL54 6EE"]
[10579172,"ü","Ysgol O.M. Edwards","Llanuwchllyn,,,Gwynedd,Wales,LL23 7UB"]
[10030400,"ü","Ysgol Owen Jones","Northop,,,Flintshire,Wales,CH7 6AU"]
[10043064,"ü","Ysgol Parch Thomas Ellis","Llaingoch,,,,Wales,LL65 1LD"]
[10579142,"ü","Ysgol Parc Y Bont","Llanddaniel Fab,,,Gwynedd,Wales,LL60 6HB"]
[10013082,"ü","Ysgol Parc y Tywyn","Ysgol Parc y Tywyn,Elfed Road,,Dyfed,Wales,SA16 0AL"]
[10034970,"ü","Ysgol Penboyr","Felindre,Llandysul,,Dyfed,Wales,SA44 5XG"]
[10582665,"ü","Ysgol Pencae","Highfields, Gillian Road, Cardiff,,,,,CF5 2QA"]
[10550165,"ü","Ysgol Pencarnisiog","Pencarnisiog,Ty Croes, Sir Ynys Mon LL63 5RY,Wales,,,"]
[10582620,"ü","Ysgol Pendalar","Bethel Road,,,Gwynedd,Wales,LL55 1DU"]
[10029154,"ü","Ysgol Pendorlan School","Greenfield School,,,Clwyd,Wales,LL29 8ET"]
[10031209,"ü","Ysgol Penllwyn","Capel Bangor,,,Ceredigion,Wales,SY23 3LP"]
[10579170,"ü","Ysgol Penmachno","Penmachno,,,Conwy,Wales,LL24 0PT"]
[10011466,"ü","Ysgol Penmaes","Canal Road,,,Powys,Wales,LD3 7HL"]
[10015304,"ü","Ysgol Penmorfa","Llangrannog,Llandusul,,Ceredigion,Wales,SA14 6QF"]
[10027042,"ü","Ysgol Pennal","Pennal,,,Gwynedd,Wales,SY20 9JT"]
[10564756,"ü","Ysgol Penrhyncoch","5 Tan Y Berth,Penrhyn-coch,,Aberystwyth \nSY23 3EH,,,"]
[10579160,"ü","Ysgol Pentreuchaf",",,,Gwynedd,Wales,LL53 8DZ"]
[10027149,"ü","Ysgol Penybryn","Ffordd Cadfan,,,Gwynedd,Wales,LL36 9EF"]
[10024112,"ü","Ysgol Pen Y Garth","Redlands Road,,,Vale of Glamorgan,Wales,CF64 2QN"]
[10031210,"ü","Ysgol PenYPil","Glan-Y-Mor Road,Trowbridge,,South Glamorgan,Wales,CF3 1RQ"]
[10043712,"ü","Ysgol Penysarn","Ffordd Yr Ysgol,Penysarn,,,Monmouthshire,Wales,LL69 9AZ"]
[10026937,"ü","Ysgol Plas Brondyffryn","Park Street,,,Denbighshire,Wales,LL16 3DR"]
[10563726,"ü","Ysgol Plasmawr","Pentrebane Road,,,,Wales,CF5 3PZ"]
[10031211,"ü","Ysgol Pontrhydfendigaid","Pontrhydfendigaid,,,,Wales,SY25 6BL"]
[10036173,"ü","Ysgol Pont Y Gof","Botwnnog,,,Gwynedd,Wales,LL53 8RA"]
[10054306,"ü","Ysgol Rhoscolyn","Rhoscolyn,,,,Wales,LL65 2DX"]
[10025292,"ü","Ysgol Rhydaman","Stryd Fawr,,,Carmarthenshire,Wales,SA18 2NS"]
[10564539,"ü","Ysgol Rhyd y Llan","Llanfaethlu,Holyhead, ,Sir Ynys Mon,,,LL65 4PQ"]
[10021220,"ü","Ysgol Rhys Prichard Llanymddyfri","Ysgol Rhys Prichard,Llanfair Road,Llandovery,,Wales,SA20 0HY"]
[10030401,"ü","Ysgol Ro Wen","Ffordd,,,Gwynedd,Wales,LL32 8TS"]
[10031212,"ü","Ysgol Sant Curig","College Road,,,Vale of Glamorgan,Wales,CF62 8HQ"]
[10037698,"ü","Ysgol Sarn Bach","Sarn Bach,Pwllheli,,Gwynedd,Wales,LL53 7LF"]
[10031213,"ü","Ysgol Saron","Saron,Rhydaman,,Dyfed,Wales,SA18 3HL"]
[10024729,"ü","Ysgol Syr Hugh Owen","Bethel Road,,,Gwynedd,Wales,LL55 1HW"]
[10042055,"ü","Ysgol Syr Thomas Jones","Pentrefelin,,,Gwynedd,Wales,LL689TH"]
[10020829,"ü","Ysgol Talaiarn","Church Street,,Llanfairalhaiarn,Clwyd,Wales,LL22 8SD"]
[10042179,"ü","Ysgol Talgarreg","Tyr Ysgol,,,Ceredigion,Wales,SA444ER"]
[10579166,"ü","Ysgol Tal-y-Bont","Conwy Road,,,Conwy,Wales,LL32 8QF"]
[10038012,"ü","Ysgol Tanygrisiau","Tanygrisiau,,,Gwynedd,Wales,LL41 3SU"]
[10026573,"ü","Ysgol Tir Morfa","Derwen Road,,,Denbighshire,Wales,LL18 2RN"]
[10037376,"ü","YSGOL TREFERTHYR","CRICIETH,,,Gwynedd,Wales,LL52 0DS"]
[10031214,"ü","Ysgol Trefilan","Talsarn,,,Ceredigion,Wales,SA48 8QZ"]
[10033614,"ü","Ysgol Trefnant","Henllan Road,,,Denbighshire,Wales,LL16 5UF"]
[10004790,"ü","Ysgol Trefonnen","Trefonnen,Trefonnen Lane,,Powys,Wales,LD1 5EB"]
[10054592,"ü","Ysgol Treganna","Sanatorium Road,,,,Wales,CF11 8DG"]
[10015141,"ü","Ysgol Treganna","Heol Radnor,,Treganna,,Wales,CF5 1RB"]
[10014026,"ü","Ysgol Tregarth","Tregarth,,,Gwynedd,Wales,LL57 4PG"]
[10011291,"ü","Ysgol Tre Gib School","Bethlehem Road,Ffairfach,,Carmarthenshire,Wales,SA19 6TB"]
[10043217,"ü","Ysgol Tryfan ","Lôn Powys ,,,Gwynedd,Wales,LL57 2TU."]
[10035020,"ü","Ysgol Tudweiliog","Tudweiliog,,,Gwynedd,Wales,LL53 8ND"]
[10011293,"ü","Ysgol Ty Coch","Lansdale Drive,,,Mid Glamorgan,Wales,CF38 1PG"]
[10577613,"ü","Ysgol Uwchradd Bodedern","Bodedern,,,,Wales,LL65 3SU"]
[10020737,"ü","Ysgol Uwchradd Caergybi","Alderley Terrace,,,Isle of Anglesey,Wales,LL65 1NP"]
[10029771,"ü","Ysgol Uwchradd Glan Clwyd CLWYD","Upper Denbigh Road,,,Denbighshire,Wales,LL17 0RP"]
[10022281,"ü","Ysgol Vryn Teg","Ynys Lan,,Llysynhendy,Carmarthenshire,Wales,SA15 9BT"]
[10022775,"ü","Ysgol Y Bedol","Folland Road,Cwmaman,,Carmarthenshire,Wales,SA18 2BE"]
[10036530,"ü","Ysgol Y Clogau","Bontddu,,,Gwynedd,Wales,LL40 2UA"]
[10031215,"ü","Ysgol Y Dderi","Llangybi,,,Ceredigion,Wales,SA48 8NG"]
[10018612,"ü","Ysgol y Dderwen","Heol Spurrell,,,Dyfed,Wales,SA31 1TG"]
[10031216,"ü","Ysgol Y Ddwylan","New Road,,,Carmarthenshire,Wales,SA38 9AB"]
[10581691,{"$f":"CHAR(252)","v":"ü"},"Ysgol Y Faenol","Penrhosgarnedd,,,Gwynedd,Wales,LL57 2NN"]
[10037043,"ü","Ysgoly Ferch o'r Sger","Greenfield Terrace,Corneli,,Mid Glamorgan,Wales,CF33 4LW"]
[10035386,"ü","Ysgol Y Frenni","Crymych,,,,Wales,SA41 3QH"]
[10038414,"ü","Ysgol Y Garreg","Llanfrothen,Penrhydeudraeth,,Gwynedd,Wales,LL48 6LJ"]
[10542294,"ü","Ysgol Y Gogarth",",,,Conwy,Wales,LL30 1YE"]
[10032290,"ü","Ysgol Y Gorlan","Tremadog,,,Gwynedd,Wales,LL49 9RN"]
[10030402,"ü","Ysgol Y Graig","Llangefni Ynys Mon,,,Gwynedd,Wales,LL77 7JA"]
[10025005,"ü","Ysgol Y Gwendraeth","Drefach,,,Carmarthenshire,Wales,SA14 7AB"]
[10015098,"ü","Ysgol Y Moelwyn","Wynne Road,,,Gwynedd,Wales,LL41 3DW"]
[10021198,"ü","Ysgol y Preseli","Crymych,,,Pembrokeshire,Wales,SA41 3QH"]
[10579175,"ü","Ysgol yr Esgob Caerwys School","Lon yr Ysgol,,,,,Flintshire,Wales,CH7 5 PZ"]
[10037882,"ü","Ysgol yr Hendre","Caernarfon,,,,Wales,LL55 2LY"]
[10013775,"ü","Ysgol y Traeth","Princes Avenue,,,Gwynedd,Wales,LL42 1HH"]
[10032716,"ü","Ysgol Y Waun","Lloyd's Lane,Chirk,,Wrexham,Wales,LL14 5NH"]
[10019046,"ü","Ysgol Y Wern","Llangranog Road,,,,Wales,CF14 5BL"]
[10020846,"ü","Ysol Caergeiliog Foundation School","Lon Bach,,,,Wales,LL65 3NP"]
[10038867,"ü","Ysol Gymraeg Bro Ogwr","Princess Way,Brackla,,Mid Glamorgan,Wales,CF31 2LN"]
[10036595,"ü","Ystalyfera Development Trust","72 Commercial Street,Ystalyfera,,West Glamorgan,Wales,SA9 2HS"]
[10542295,"ü","Ystradgynlais Volunteer Centre",",,,,England,SA9 1AF"]
[10011295,"ü","Ystrad Mynach College","Twyn Road,Yshad Mynach,,Mid Glamorgan,Wales,CF82 7XR"]
[10044190,"ü","ystrad mynach primary school","Lewis Street,,,Caerphilly,Wales,CF82 7AQ"]
[10043688,"ü","Ystradowen Community Centre","38 New Road,Ystradowen,,,Wales,SA9 2YY"]
[10025243,"ü","Ystradowen Community Primary","Cwmllynfell,,,West Glamorgan,Wales,SA9 2YN"]
[10040140,"ü","Ystruth Primary School","East Pentwyn,Blaina,,,England,NP13 3XQ"]
[10039714,"ü","Ywam  Carlisle","Old Vicarage,West Walls,,Cumbria,England,CA3 8UF"]
[10039715,"ü","Ywam  Derby","79 Powell Street,,,Derbyshire,England,DE23 6PL"]
[10039716,"ü","Ywam  Eccp","Flat 2,8 Templeton Place,,Greater London,England,SW5 9LZ"]
[10039717,"ü","Ywam  Holmsted Manor","Accounts Dept,Staplefield Road,,West Sussex,England,RH17 5JF"]
[10039721,"ü","Ywam  York","96 Jute Road,,,North Yorkshire,England,YO26 5EW"]
[10004756,"ü","YWCA England and Wales","Clarendon House,52 Cornmarket Street,,Oxfordshire,England,OX1 3EJ"]
[10022331,"ü","Y Wern Primary School","Clare Road,,Ystalyfera,West Glamorgan,Wales,SA9 2AJ"]
[10016742,"ü","Zah Housing Co operative Limited","36 Oak Road,Withington,,Greater Manchester,England,M20 9DA"]
[10572419,"ü","Zakaria Muslim Girls' High School","111 Warwick Road,,,,,WF17 6AJ"]
[10572759,"ü","Zaytouna Primary School","500 London Road,,,,,DE24 8WH"]
[10011296,"ü","Zebra Housing Association Limited","Jerome House,5-13 Glendower Place,,Greater London,England,SW7 3DU"]
[10542296,"ü","Zenith",",,,,Wales,NP44 2YN"]
[10013525,"ü","Zenith Development Partnership","First Floor,Peel Place,50 Carver Street,West Midlands,England,B1 3AS"]
[10042643,"ü","ZeroC Holdings Ltd","3 Armitage House,Victor Jackson Avenue,Poundbury,Dorset,England,DT1 3GY"]
[10041464,"ü","Zero Waste Scotland","Moray House,Forthside Way,,Stirlingshire,Scotland,FK8 1QZ"]
[10033003,"ü","Zest Health for Life Limited","Sandway Business Centre,Shannon Street,,Yorkshire,England,LS9 8SS"]
[10563519,"ü","Zest Theatre",",,,,,LN2 1BD"]
[10014587,"ü","Zetland Primary School","Redcar Lane,,,North Yorkshire,England,TS10 3JL"]
[10027918,"ü","Zoes Place - Baby Hospice","Life Health Centre,Yew Tree Lane,,Merseyside,England,L12 9HH"]
[10017999,"ü","Zoological Society of London","Regents Park.,,,,England,NW1 4RY"]
[10015949,"ü","Zoos Forum","Global Wildlife Division,1/16 Temple Quay House,2 The Square,Gloucestershire,England,BS1 6EB"]
[10004160,"ü","Zouch Primary School","Wavell Road,,,Northumberland,England,SP9 7JF"]
[10043204,"ü","ZSL Whipsnade Zoo","Whipsnade,,,Bedfordshire,England,LU6 2LF"]